Workbook

Sheet 記入例
AQ1: 2020 | AT1: 年度
A2: 校長 | E2: 教頭 | I2: 教頭 | M2: 主幹教諭 | U2: 顧問 | Z2: 学校名 | AC2: 四万十中 | AM2: 学校
A3: 印 | E3: 印 | I3: 印 | M3: 印 | Q3: 印 | U3: 印
Z4: 部活動名 | AC4: サッカー | AM4: 部
A7: 4 | F7: 月 | I7: 〈月間〉部活動計画・活動実績 | Y7: 部員数 | AB7: 1女 | AD7: 2女 | AF7: 3女 | AH7: 1男 | AJ7: 2男 | AL7: 3男 | AN7: 計
AH8: 6 | AJ8: 3 | AL8: 3 | AN8: =SUM(AB8:AM8) -> 12
B10: 職名 | D10: 教諭 | I10: 顧問 | K10: 中村 太郎 | V10: 職名 | AC10: 副２
B12: 職名 | D12: 期限付講師 | I12: 副顧問 | K12: 四万十 花子 | V12: 職名 | AC12: 副３
A15: 日 | C15: 曜 | E15: ＡＭ | L15: ＰＭ | S15: 時間 | V15: 内容（練習・大会・OFF等） | AH15: 場所
A16: 1 | C16: =IF(A16="","",TEXT(DATE($AQ$1,$A$7,A16),"aaa")) -> 水 | H16: ～ | O16: ～ | S16: =(I16-E16)+(P16-L16) -> 00:00:00 | V16: 部活動休業日 | AB16: 中村 | AH16: 学校
A17: 2 | C17: =IF(A17="","",TEXT(DATE($AQ$1,$A$7,A17),"aaa")) -> 木 | E17: 07:30:00 | H17: ～ | I17: 08:00:00 | L17: 16:30:00 | O17: ～ | P17: 18:00:00 | S17: 02:00:00 | V17: 練習 | AB17: 中村 | AH17: 学校
A18: 3 | C18: 金 | E18: 07:30:00 | H18: ～ | I18: 08:00:00 | L18: 16:30:00 | O18: ～ | P18: 18:00:00 | S18: 02:00:00 | V18: 練習 | AB18: 四万十 | AH18: 学校
A19: 4 | C19: 土 | E19: 09:00:00 | H19: ～ | I19: 12:00:00 | O19: ～ | S19: 03:00:00 | V19: 練習試合（○○中） | AB19: 中村・四万十 | AH19: ○○中学校
A20: 5 | C20: 日 | H20: ～ | O20: ～ | S20: 00:00:00 | V20: 部活動休業日
A21: 6 | C21: 月 | E21: 07:30:00 | H21: ～ | I21: 08:00:00 | L21: 16:30:00 | O21: ～ | P21: 18:00:00 | S21: 02:00:00 | V21: 練習 | AB21: 中村 | AH21: 学校
A22: 7 | C22: 火 | E22: 07:30:00 | H22: ～ | I22: 08:00:00 | L22: 16:30:00 | O22: ～ | P22: 18:00:00 | S22: 02:00:00 | V22: 練習 | AB22: 中村 | AH22: ○○中学校
A23: 8 | C23: 水 | H23: ～ | O23: ～ | S23: 00:00:00 | V23: 部活動休業日
A24: 9 | C24: 木 | E24: 07:30:00 | H24: ～ | I24: 08:00:00 | L24: 16:30:00 | O24: ～ | P24: 18:00:00 | S24: 02:00:00 | AH24: 学校
A25: 10 | C25: 金 | E25: 07:30:00 | H25: ～ | I25: 08:00:00 | L25: 16:30:00 | O25: ～ | P25: 18:00:00 | S25: 02:00:00 | AH25: 学校
A26: 11 | C26: 土 | E26: 09:00:00 | H26: ～ | I26: 12:00:00 | O26: ～ | S26: 03:00:00 | V26: 練習 | AB26: 中村
A27: 12 | C27: 日 | H27: ～ | O27: ～ | S27: 00:00:00 | V27: 部活動休業日
A28: 13 | C28: 月 | E28: 07:30:00 | H28: ～ | I28: 08:00:00 | L28: 16:30:00 | O28: ～ | P28: 18:00:00 | S28: 02:00:00 | V28: 練習 | AB28: 中村 | AH28: 学校
A29: 14 | C29: 火 | E29: 07:30:00 | H29: ～ | I29: 08:00:00 | L29: 16:30:00 | O29: ～ | P29: 18:00:00 | S29: 02:00:00 | V29: 練習 | AB29: 中村 | AH29: 学校
A30: 15 | C30: 水 | H30: ～ | O30: ～ | S30: 00:00:00 | V30: 部活動休業日
A31: 16 | C31: 木 | E31: 07:30:00 | H31: ～ | I31: 08:00:00 | L31: 16:30:00 | O31: ～ | P31: 18:00:00 | S31: 02:00:00 | V31: 練習 | AB31: 中村 | AH31: 学校
A32: 17 | C32: 金 | E32: 07:30:00 | H32: ～ | I32: 08:00:00 | L32: 16:30:00 | O32: ～ | P32: 18:00:00 | S32: 02:00:00 | V32: 練習 | AB32: 中村 | AH32: 学校
A33: 18 | C33: 土 | E33: 08:30:00 | H33: ～ | I33: 12:30:00 | L33: 13:00:00 | O33: ～ | P33: 17:00:00 | S33: 08:00:00 | V33: 高知県○○大会 | AB33: 中村・四万十 | AH33: ○○運動公園
A34: 19 | C34: 日 | E34: 06:30:00 | H34: ～ | I34: 12:30:00 | L34: 13:00:00 | O34: ～ | P34: 15:00:00 | S34: 08:00:00 | V34: 高知県○○大会 | AB34: 中村・四万十 | AH34: ○○運動公園
A35: 20 | C35: 月 | H35: ～ | O35: ～ | S35: 00:00:00 | V35: 部活動休業日
A36: 21 | C36: 火 | E36: 07:30:00 | H36: ～ | I36: 08:00:00 | L36: 16:30:00 | O36: ～ | P36: 18:00:00 | S36: 02:00:00 | V36: 練習 | AB36: 四万十 | AH36: 学校
A37: 22 | C37: 水 | H37: ～ | O37: ～ | S37: 00:00:00 | V37: 部活動休業日
A38: 23 | C38: 木 | E38: 07:30:00 | H38: ～ | I38: 08:00:00 | L38: 16:30:00 | O38: ～ | P38: 18:00:00 | S38: 02:00:00 | V38: 練習 | AB38: 中村 | AH38: 学校
A39: 24 | C39: 金 | E39: 07:30:00 | H39: ～ | I39: 08:00:00 | L39: 16:30:00 | O39: ～ | P39: 18:00:00 | S39: 02:00:00 | V39: 練習 | AB39: 中村 | AH39: 学校
A40: 25 | C40: 土 | E40: 09:00:00 | H40: ～ | I40: 12:00:00 | O40: ～ | S40: 03:00:00 | V40: 練習 | AB40: 中村 | AH40: 学校
A41: 26 | C41: 日 | H41: ～ | O41: ～ | S41: 00:00:00 | V41: 部活動休業日
A42: 27 | C42: 月 | E42: 09:00:00 | H42: ～ | I42: 12:00:00 | O42: ～ | S42: 03:00:00 | V42: 練習 | AB42: 中村 | AH42: 学校
A43: 28 | C43: 火 | E43: 07:30:00 | H43: ～ | I43: 08:00:00 | L43: 16:30:00 | O43: ～ | P43: 18:00:00 | S43: 02:00:00 | V43: 練習 | AB43: 中村
A44: 29 | C44: 水 | H44: ～ | O44: ～ | S44: 00:00:00 | V44: 部活動休業日
A45: 30 | C45: 木 | E45: 07:30:00 | H45: ～ | I45: 08:00:00 | L45: 16:30:00 | O45: ～ | P45: 18:00:00 | S45: 02:00:00 | V45: 練習 | AB45: 中村 | AH45: 学校
H46: ～ | O46: ～ | S46: 00:00:00
S47: =SUM(S16:U46) -> 2.416666667 | AG47: 赤字変更内容については口頭命令済 | AL47: 校長
AL48: . .
A49: 月 | D49: 4 | F49: 5 | H49: 6 | J49: 7 | L49: 8 | N49: 9 | P49: 10 | R49: 11 | T49: 12 | V49: 1 | X49: 2 | Z49: 3 | AB49: 計
A50: 時間 | D50: =S47 -> 2.416666667 | AB50: =SUM(D50:AA50) -> 2.416666667 | AG50: 時間
A51: 活動日数 | D51: =COUNTIF(S16:U45,">0") -> 21 | AB51: =SUM(D51:AA51) -> 21 | AG51: 活動日数
A52: 休養日数 | D52: =COUNTIF(S16:U45,"0:00") -> 9 | AB52: =SUM(D52:AA52) -> 9 | AG52: 休養日数
AB53: =AB50/AB51 -> 0.1150793651 | AG53: 平均時間/日

Sheet 4計画
AQ1: 2020 | AT1: 年度
A2: 校長 | E2: 教頭 | I2: 教頭 | M2: 主幹教諭 | U2: 顧問 | Z2: 学校名 | AM2: 学校
A3: 印 | E3: 印 | I3: 印 | M3: 印 | Q3: 印 | U3: 印
Z4: 部活動名 | AM4: 部
A7: 4 | F7: 月 | I7: 〈月間〉部活動計画・活動実績 | Y7: 部員数 | AB7: 1女 | AD7: 2女 | AF7: 3女 | AH7: 1男 | AJ7: 2男 | AL7: 3男 | AN7: 計
AD8: 0 | AF8: 0 | AN8: =SUM(AB8:AM8) -> 0
B10: 職名 | I10: 顧問 | V10: 職名 | AC10: 副２
B12: 職名 | I12: 副顧問 | V12: 職名 | AC12: 副３
A15: 日 | C15: 曜 | E15: ＡＭ | L15: ＰＭ | S15: 時間 | V15: 内容（練習・大会・OFF等） | AH15: 場所
A16: 1 | C16: =IF(A16="","",TEXT(DATE($AQ$1,$A$7,A16),"aaa")) -> 水 | H16: ～ | O16: ～ | S16: =(I16-E16)+(P16-L16) -> 00:00:00
A17: 2 | C17: =IF(A17="","",TEXT(DATE($AQ$1,$A$7,A17),"aaa")) -> 木 | H17: ～ | O17: ～ | S17: 00:00:00
A18: 3 | C18: 金 | H18: ～ | O18: ～ | S18: 00:00:00
A19: 4 | C19: 土 | H19: ～ | O19: ～ | S19: 00:00:00
A20: 5 | C20: 日 | H20: ～ | O20: ～ | S20: 00:00:00
A21: 6 | C21: 月 | H21: ～ | O21: ～ | S21: 00:00:00
A22: 7 | C22: 火 | H22: ～ | O22: ～ | S22: 00:00:00
A23: 8 | C23: 水 | H23: ～ | O23: ～ | S23: 00:00:00
A24: 9 | C24: 木 | H24: ～ | O24: ～ | S24: 00:00:00
A25: 10 | C25: 金 | H25: ～ | O25: ～ | S25: 00:00:00
A26: 11 | C26: 土 | H26: ～ | O26: ～ | S26: 00:00:00
A27: 12 | C27: 日 | H27: ～ | O27: ～ | S27: 00:00:00
A28: 13 | C28: 月 | H28: ～ | O28: ～ | S28: 00:00:00
A29: 14 | C29: 火 | H29: ～ | O29: ～ | S29: 00:00:00
A30: 15 | C30: 水 | H30: ～ | O30: ～ | S30: 00:00:00
A31: 16 | C31: 木 | H31: ～ | O31: ～ | S31: 00:00:00
A32: 17 | C32: 金 | H32: ～ | O32: ～ | S32: 00:00:00
A33: 18 | C33: 土 | H33: ～ | O33: ～ | S33: 00:00:00
A34: 19 | C34: 日 | H34: ～ | O34: ～ | S34: 00:00:00
A35: 20 | C35: 月 | H35: ～ | O35: ～ | S35: 00:00:00
A36: 21 | C36: 火 | H36: ～ | O36: ～ | S36: 00:00:00
A37: 22 | C37: 水 | H37: ～ | O37: ～ | S37: 00:00:00
A38: 23 | C38: 木 | H38: ～ | O38: ～ | S38: 00:00:00
A39: 24 | C39: 金 | H39: ～ | O39: ～ | S39: 00:00:00
A40: 25 | C40: 土 | H40: ～ | O40: ～ | S40: 00:00:00
A41: 26 | C41: 日 | H41: ～ | O41: ～ | S41: 00:00:00
A42: 27 | C42: 月 | H42: ～ | O42: ～ | S42: 00:00:00
A43: 28 | C43: 火 | H43: ～ | O43: ～ | S43: 00:00:00
A44: 29 | C44: 水 | H44: ～ | O44: ～ | S44: 00:00:00
A45: 30 | C45: 木 | H45: ～ | O45: ～ | S45: 00:00:00
H46: ～ | O46: ～ | S46: 00:00:00 | BK46: =RIGHT(V46,2) -> 
S47: =SUM(S16:U46) -> 0 | AG47: 赤字変更内容については口頭命令済 | AL47: 校長
AL48: . .
A49: 月 | D49: 4 | F49: 5 | H49: 6 | J49: 7 | L49: 8 | N49: 9 | P49: 10 | R49: 11 | T49: 12 | V49: 1 | X49: 2 | Z49: 3 | AB49: 計
A50: 時間 | D50: =S47 -> 0 | AB50: =SUM(D50:AA50) -> 0 | AG50: 時間
A51: 活動日数 | D51: =COUNTIF(S16:U45,">0") -> 0 | AB51: =SUM(D51:AA51) -> 0 | AG51: 活動日数
A52: 休養日数 | D52: =COUNTIF(S16:U45,"0:00") -> 30 | AB52: =SUM(D52:AA52) -> 30 | AG52: 休養日数
AB53: =AB50/AB51 ->  | AG53: 平均時間/日

Sheet 5計画
AS1: ='4計画'!AQ1 -> 2020
A2: 校長 | E2: 教頭 | I2: 教頭 | M2: 主幹教諭 | U2: 顧問 | Z2: 学校名 | AC2: =IF('４実績'!AC2="","",'４実績'!AC2) -> 0 | AM2: 学校
A3: 印 | E3: 印 | I3: 印 | M3: 印 | Q3: 印 | U3: 印
Z4: 部活動名 | AC4: =IF('４実績'!AC4="","",'４実績'!AC4) -> 0 | AM4: 部
A7: 5 | F7: 月 | I7: 〈月間〉部活動計画・活動実績 | Y7: 部員数 | AB7: 1女 | AD7: 2女 | AF7: 3女 | AH7: 1男 | AJ7: 2男 | AL7: 3男 | AN7: 計
AB8: =IF('４実績'!AB8="","",'４実績'!AB8) -> 0 | AD8: =IF('４実績'!AD8="","",'４実績'!AD8) -> 0 | AF8: =IF('４実績'!AF8="","",'４実績'!AF8) -> 0 | AH8: =IF('４実績'!AH8="","",'４実績'!AH8) -> 0 | AJ8: =IF('４実績'!AJ8="","",'４実績'!AJ8) -> 0 | AL8: =IF('４実績'!AL8="","",'４実績'!AL8) -> 0 | AN8: =SUM(AB8:AM8) -> 0
B10: 職名 | I10: 顧問 | K10: =IF('４実績'!K10="","",'４実績'!K10) -> 0 | V10: 職名 | X10: =IF('４実績'!X10="","",'４実績'!X10) -> 0 | AC10: 副２ | AE10: =IF('４実績'!AE10="","",'４実績'!AE10) -> 0
B12: 職名 | D12: =IF('４実績'!D12="","",'４実績'!D12) -> 0 | I12: 副顧問 | K12: =IF('４実績'!K12="","",'４実績'!K12) -> 0 | V12: 職名 | X12: =IF('４実績'!X12="","",'４実績'!X12) -> 0 | AC12: 副３ | AE12: =IF('４実績'!AE12="","",'４実績'!AE12) -> 0
A15: 日 | C15: 曜 | E15: ＡＭ | L15: ＰＭ | S15: 時間 | V15: 内容（練習・大会・OFF等） | AH15: 場所
A16: 1 | C16: =IF(A16="","",TEXT(DATE($AS$1,$A$7,A16),"aaa")) -> 金 | H16: ～ | O16: ～ | S16: =(I16-E16)+(P16-L16) -> 00:00:00
A17: 2 | C17: =IF(A17="","",TEXT(DATE($AS$1,$A$7,A17),"aaa")) -> 土 | H17: ～ | O17: ～ | S17: 00:00:00
A18: 3 | C18: 日 | H18: ～ | O18: ～ | S18: 00:00:00
A19: 4 | C19: 月 | H19: ～ | O19: ～ | S19: 00:00:00
A20: 5 | C20: 火 | H20: ～ | O20: ～ | S20: 00:00:00
A21: 6 | C21: 水 | H21: ～ | O21: ～ | S21: 00:00:00
A22: 7 | C22: 木 | H22: ～ | O22: ～ | S22: 00:00:00
A23: 8 | C23: 金 | H23: ～ | O23: ～ | S23: 00:00:00
A24: 9 | C24: 土 | H24: ～ | O24: ～ | S24: 00:00:00
A25: 10 | C25: 日 | H25: ～ | O25: ～ | S25: 00:00:00
A26: 11 | C26: 月 | H26: ～ | O26: ～ | S26: 00:00:00
A27: 12 | C27: 火 | H27: ～ | O27: ～ | S27: 00:00:00
A28: 13 | C28: 水 | H28: ～ | O28: ～ | S28: 00:00:00
A29: 14 | C29: 木 | H29: ～ | O29: ～ | S29: 00:00:00
A30: 15 | C30: 金 | H30: ～ | O30: ～ | S30: 00:00:00
A31: 16 | C31: 土 | H31: ～ | O31: ～ | S31: 00:00:00
A32: 17 | C32: 日 | H32: ～ | O32: ～ | S32: 00:00:00
A33: 18 | C33: 月 | H33: ～ | O33: ～ | S33: 00:00:00
A34: 19 | C34: 火 | H34: ～ | O34: ～ | S34: 00:00:00
A35: 20 | C35: 水 | H35: ～ | O35: ～ | S35: 00:00:00
A36: 21 | C36: 木 | H36: ～ | O36: ～ | S36: 00:00:00
A37: 22 | C37: 金 | H37: ～ | O37: ～ | S37: 00:00:00
A38: 23 | C38: 土 | H38: ～ | O38: ～ | S38: 00:00:00
A39: 24 | C39: 日 | H39: ～ | O39: ～ | S39: 00:00:00
A40: 25 | C40: 月 | H40: ～ | O40: ～ | S40: 00:00:00
A41: 26 | C41: 火 | H41: ～ | O41: ～ | S41: 00:00:00
A42: 27 | C42: 水 | H42: ～ | O42: ～ | S42: 00:00:00
A43: 28 | C43: 木 | H43: ～ | O43: ～ | S43: 00:00:00
A44: 29 | C44: 金 | H44: ～ | O44: ～ | S44: 00:00:00
A45: 30 | C45: 土 | H45: ～ | O45: ～ | S45: 00:00:00
A46: 31 | C46: 日 | H46: ～ | O46: ～ | S46: 00:00:00 | BK46: =RIGHT(V46,2) -> 
S47: =SUM(S16:U46) -> 0 | AG47: 赤字変更内容については口頭命令済 | AL47: 校長
AL48: . .
A49: 月 | D49: 4 | F49: 5 | H49: 6 | J49: 7 | L49: 8 | N49: 9 | P49: 10 | R49: 11 | T49: 12 | V49: 1 | X49: 2 | Z49: 3 | AB49: 計
A50: 時間 | D50: ='４実績'!D50 -> 0 | F50: =S47 -> 0 | AB50: =SUM(D50:AA50) -> 0 | AG50: 時間
A51: 活動日数 | D51: ='４実績'!D51 -> 0 | F51: =COUNTIF(S16:U46,">0") -> 0 | AB51: =SUM(D51:AA51) -> 0 | AG51: 活動日数
A52: 休養日数 | D52: ='４実績'!D52 -> 30 | F52: =COUNTIF(S16:U46,"0:00") -> 31 | AB52: =SUM(D52:AA52) -> 61 | AG52: 休養日数
AB53: =AB50/AB51 ->  | AG53: 平均時間/日

Sheet ６計画
AT1: ='4計画'!AQ1 -> 2020
A2: 校長 | E2: 教頭 | I2: 教頭 | M2: 主幹教諭 | U2: 顧問 | Z2: 学校名 | AC2: =IF('５実績'!AC2="","",'５実績'!AC2) -> 0 | AM2: 学校
A3: 印 | E3: 印 | I3: 印 | M3: 印 | Q3: 印 | U3: 印
Z4: 部活動名 | AC4: =IF('５実績'!AC4="","",'５実績'!AC4) -> 0 | AM4: 部
A7: 6 | F7: 月 | I7: 〈月間〉部活動計画・活動実績 | Y7: 部員数 | AB7: 1女 | AD7: 2女 | AF7: 3女 | AH7: 1男 | AJ7: 2男 | AL7: 3男 | AN7: 計
AB8: =IF('５実績'!AB8="","",'５実績'!AB8) -> 0 | AD8: =IF('５実績'!AD8="","",'５実績'!AD8) -> 0 | AF8: =IF('５実績'!AF8="","",'５実績'!AF8) -> 0 | AH8: =IF('５実績'!AH8="","",'５実績'!AH8) -> 0 | AJ8: =IF('５実績'!AJ8="","",'５実績'!AJ8) -> 0 | AL8: =IF('５実績'!AL8="","",'５実績'!AL8) -> 0 | AN8: =SUM(AB8:AM8) -> 0
B10: 職名 | D10: =IF('５実績'!D10="","",'５実績'!D10) -> 0 | I10: 顧問 | K10: =IF('５実績'!K10="","",'５実績'!K10) -> 0 | V10: 職名 | X10: =IF('５実績'!X10="","",'５実績'!X10) -> 0 | AC10: 副２ | AE10: =IF('５実績'!AE10="","",'５実績'!AE10) -> 0
B12: 職名 | D12: =IF('５実績'!D12="","",'５実績'!D12) -> 0 | I12: 副顧問 | K12: =IF('５実績'!K12="","",'５実績'!K12) -> 0 | V12: 職名 | X12: =IF('５実績'!X12="","",'５実績'!X12) -> 0 | AC12: 副３ | AE12: =IF('５実績'!AE12="","",'５実績'!AE12) -> 0
A15: 日 | C15: 曜 | E15: ＡＭ | L15: ＰＭ | S15: 時間 | V15: 内容（練習・大会・OFF等） | AH15: 場所
A16: 1 | C16: =IF(A16="","",TEXT(DATE($AT$1,$A$7,A16),"aaa")) -> 月 | H16: ～ | O16: ～ | S16: =(I16-E16)+(P16-L16) -> 00:00:00
A17: 2 | C17: =IF(A17="","",TEXT(DATE($AT$1,$A$7,A17),"aaa")) -> 火 | H17: ～ | O17: ～ | S17: 00:00:00
A18: 3 | C18: 水 | H18: ～ | O18: ～ | S18: 00:00:00
A19: 4 | C19: 木 | H19: ～ | O19: ～ | S19: 00:00:00
A20: 5 | C20: 金 | H20: ～ | O20: ～ | S20: 00:00:00
A21: 6 | C21: 土 | H21: ～ | O21: ～ | S21: 00:00:00
A22: 7 | C22: 日 | H22: ～ | O22: ～ | S22: 00:00:00
A23: 8 | C23: 月 | H23: ～ | O23: ～ | S23: 00:00:00
A24: 9 | C24: 火 | H24: ～ | O24: ～ | S24: 00:00:00
A25: 10 | C25: 水 | H25: ～ | O25: ～ | S25: 00:00:00
A26: 11 | C26: 木 | H26: ～ | O26: ～ | S26: 00:00:00
A27: 12 | C27: 金 | H27: ～ | O27: ～ | S27: 00:00:00
A28: 13 | C28: 土 | H28: ～ | O28: ～ | S28: 00:00:00
A29: 14 | C29: 日 | H29: ～ | O29: ～ | S29: 00:00:00
A30: 15 | C30: 月 | H30: ～ | O30: ～ | S30: 00:00:00
A31: 16 | C31: 火 | H31: ～ | O31: ～ | S31: 00:00:00
A32: 17 | C32: 水 | H32: ～ | O32: ～ | S32: 00:00:00
A33: 18 | C33: 木 | H33: ～ | O33: ～ | S33: 00:00:00
A34: 19 | C34: 金 | H34: ～ | O34: ～ | S34: 00:00:00
A35: 20 | C35: 土 | H35: ～ | O35: ～ | S35: 00:00:00
A36: 21 | C36: 日 | H36: ～ | O36: ～ | S36: 00:00:00
A37: 22 | C37: 月 | H37: ～ | O37: ～ | S37: 00:00:00
A38: 23 | C38: 火 | H38: ～ | O38: ～ | S38: 00:00:00
A39: 24 | C39: 水 | H39: ～ | O39: ～ | S39: 00:00:00
A40: 25 | C40: 木 | H40: ～ | O40: ～ | S40: 00:00:00
A41: 26 | C41: 金 | H41: ～ | O41: ～ | S41: 00:00:00
A42: 27 | C42: 土 | H42: ～ | O42: ～ | S42: 00:00:00
A43: 28 | C43: 日 | H43: ～ | O43: ～ | S43: 00:00:00
A44: 29 | C44: 月 | H44: ～ | O44: ～ | S44: 00:00:00
A45: 30 | C45: 火 | H45: ～ | O45: ～ | S45: 00:00:00
H46: ～ | O46: ～ | S46: 00:00:00 | BK46: =RIGHT(V46,2) -> 
S47: =SUM(S16:U46) -> 0 | AG47: 赤字変更内容については口頭命令済 | AL47: 校長
AL48: . .
A49: 月 | D49: 4 | F49: 5 | H49: 6 | J49: 7 | L49: 8 | N49: 9 | P49: 10 | R49: 11 | T49: 12 | V49: 1 | X49: 2 | Z49: 3 | AB49: 計
A50: 時間 | D50: ='４実績'!D50 -> 0 | F50: ='５実績'!F50 -> 0 | H50: =S47 -> 0 | AB50: =SUM(D50:AA50) -> 0 | AG50: 時間
A51: 活動日数 | D51: ='４実績'!D51 -> 0 | F51: ='５実績'!F51 -> 0 | H51: =COUNTIF(S16:U45,">0") -> 0 | AB51: =SUM(D51:AA51) -> 0 | AG51: 活動日数
A52: 休養日数 | D52: ='４実績'!D52 -> 30 | F52: ='５実績'!F52 -> 31 | H52: =COUNTIF(S16:U45,"0:00") -> 30 | AB52: =SUM(D52:AA52) -> 91 | AG52: 休養日数
AB53: =AB50/AB51 ->  | AG53: 平均時間/日

Sheet 7計画
AS1: ='4計画'!AQ1 -> 2020
A2: 校長 | E2: 教頭 | I2: 教頭 | M2: 主幹教諭 | U2: 顧問 | Z2: 学校名 | AC2: =IF('6実績'!AC2="","",'6実績'!AC2) -> 0 | AM2: 学校
A3: 印 | E3: 印 | I3: 印 | M3: 印 | Q3: 印 | U3: 印
Z4: 部活動名 | AC4: =IF('6実績'!AC4="","",'6実績'!AC4) -> 0 | AM4: 部
A7: 7 | F7: 月 | I7: 〈月間〉部活動計画・活動実績 | Y7: 部員数 | AB7: 1女 | AD7: 2女 | AF7: 3女 | AH7: 1男 | AJ7: 2男 | AL7: 3男 | AN7: 計
AB8: =IF('6実績'!AB8="","",'6実績'!AB8) -> 0 | AD8: =IF('6実績'!AD8="","",'6実績'!AD8) -> 0 | AF8: =IF('6実績'!AF8="","",'6実績'!AF8) -> 0 | AH8: =IF('6実績'!AH8="","",'6実績'!AH8) -> 0 | AJ8: =IF('6実績'!AJ8="","",'6実績'!AJ8) -> 0 | AL8: =IF('6実績'!AL8="","",'6実績'!AL8) -> 0 | AN8: =SUM(AB8:AM8) -> 0
B10: 職名 | D10: =IF('6実績'!D10="","",'6実績'!D10) -> 0 | I10: 顧問 | K10: =IF('6実績'!K10="","",'6実績'!K10) -> 0 | V10: 職名 | X10: =IF('6実績'!X10="","",'6実績'!X10) -> 0 | AC10: 副２ | AE10: =IF('6実績'!AE10="","",'6実績'!AE10) -> 0
B12: 職名 | D12: =IF('6実績'!D12="","",'6実績'!D12) -> 0 | I12: 副顧問 | K12: =IF('6実績'!K12="","",'6実績'!K12) -> 0 | V12: 職名 | X12: =IF('6実績'!X12="","",'6実績'!X12) -> 0 | AC12: 副３ | AE12: =IF('6実績'!AE12="","",'6実績'!AE12) -> 0
A15: 日 | C15: 曜 | E15: ＡＭ | L15: ＰＭ | S15: 時間 | V15: 内容（練習・大会・OFF等） | AH15: 場所
A16: 1 | C16: =IF(A16="","",TEXT(DATE($AS$1,$A$7,A16),"aaa")) -> 水 | H16: ～ | O16: ～ | S16: =(I16-E16)+(P16-L16) -> 00:00:00
A17: 2 | C17: =IF(A17="","",TEXT(DATE($AS$1,$A$7,A17),"aaa")) -> 木 | H17: ～ | O17: ～ | S17: 00:00:00
A18: 3 | C18: 金 | H18: ～ | O18: ～ | S18: 00:00:00
A19: 4 | C19: 土 | H19: ～ | O19: ～ | S19: 00:00:00
A20: 5 | C20: 日 | H20: ～ | O20: ～ | S20: 00:00:00
A21: 6 | C21: 月 | H21: ～ | O21: ～ | S21: 00:00:00
A22: 7 | C22: 火 | H22: ～ | O22: ～ | S22: 00:00:00
A23: 8 | C23: 水 | H23: ～ | O23: ～ | S23: 00:00:00
A24: 9 | C24: 木 | H24: ～ | O24: ～ | S24: 00:00:00
A25: 10 | C25: 金 | H25: ～ | O25: ～ | S25: 00:00:00
A26: 11 | C26: 土 | H26: ～ | O26: ～ | S26: 00:00:00
A27: 12 | C27: 日 | H27: ～ | O27: ～ | S27: 00:00:00
A28: 13 | C28: 月 | H28: ～ | O28: ～ | S28: 00:00:00
A29: 14 | C29: 火 | H29: ～ | O29: ～ | S29: 00:00:00
A30: 15 | C30: 水 | H30: ～ | O30: ～ | S30: 00:00:00
A31: 16 | C31: 木 | H31: ～ | O31: ～ | S31: 00:00:00
A32: 17 | C32: 金 | H32: ～ | O32: ～ | S32: 00:00:00
A33: 18 | C33: 土 | H33: ～ | O33: ～ | S33: 00:00:00
A34: 19 | C34: 日 | H34: ～ | O34: ～ | S34: 00:00:00
A35: 20 | C35: 月 | H35: ～ | O35: ～ | S35: 00:00:00
A36: 21 | C36: 火 | H36: ～ | O36: ～ | S36: 00:00:00
A37: 22 | C37: 水 | H37: ～ | O37: ～ | S37: 00:00:00
A38: 23 | C38: 木 | H38: ～ | O38: ～ | S38: 00:00:00
A39: 24 | C39: 金 | H39: ～ | O39: ～ | S39: 00:00:00
A40: 25 | C40: 土 | H40: ～ | O40: ～ | S40: 00:00:00
A41: 26 | C41: 日 | H41: ～ | O41: ～ | S41: 00:00:00
A42: 27 | C42: 月 | H42: ～ | O42: ～ | S42: 00:00:00
A43: 28 | C43: 火 | H43: ～ | O43: ～ | S43: 00:00:00
A44: 29 | C44: 水 | H44: ～ | O44: ～ | S44: 00:00:00
A45: 30 | C45: 木 | H45: ～ | O45: ～ | S45: 00:00:00
A46: 31 | C46: 金 | H46: ～ | O46: ～ | S46: 00:00:00 | BK46: =RIGHT(V46,2) -> 
S47: =SUM(S16:U46) -> 0 | AG47: 赤字変更内容については口頭命令済 | AL47: 校長
AL48: . .
A49: 月 | D49: 4 | F49: 5 | H49: 6 | J49: 7 | L49: 8 | N49: 9 | P49: 10 | R49: 11 | T49: 12 | V49: 1 | X49: 2 | Z49: 3 | AB49: 計
A50: 時間 | D50: ='４実績'!D50 -> 0 | F50: ='５実績'!F50 -> 0 | H50: ='6実績'!H50 -> 0 | J50: =S47 -> 0 | AB50: =SUM(D50:AA50) -> 0 | AG50: 時間
A51: 活動日数 | D51: ='４実績'!D51 -> 0 | F51: ='５実績'!F51 -> 0 | H51: ='6実績'!H51 -> 0 | J51: =COUNTIF(S16:U46,">0") -> 0 | AB51: =SUM(D51:AA51) -> 0 | AG51: 活動日数
A52: 休養日数 | D52: ='４実績'!D52 -> 30 | F52: ='５実績'!F52 -> 31 | H52: ='6実績'!H52 -> 30 | J52: =COUNTIF(S16:U46,"0:00") -> 31 | AB52: =SUM(D52:AA52) -> 122 | AG52: 休養日数
AB53: =AB50/AB51 ->  | AG53: 平均時間/日

Sheet 8計画
AS1: ='4計画'!AQ1 -> 2020
A2: 校長 | E2: 教頭 | I2: 教頭 | M2: 主幹教諭 | U2: 顧問 | Z2: 学校名 | AC2: =IF('7実績'!AC2="","",'7実績'!AC2) -> 0 | AM2: 学校
A3: 印 | E3: 印 | I3: 印 | M3: 印 | Q3: 印 | U3: 印
Z4: 部活動名 | AC4: =IF('7実績'!AC4="","",'7実績'!AC4) -> 0 | AM4: 部
A7: 8 | F7: 月 | I7: 〈月間〉部活動計画・活動実績 | Y7: 部員数 | AB7: 1女 | AD7: 2女 | AF7: 3女 | AH7: 1男 | AJ7: 2男 | AL7: 3男 | AN7: 計
AB8: =IF('7実績'!AB8="","",'7実績'!AB8) -> 0 | AD8: =IF('7実績'!AD8="","",'7実績'!AD8) -> 0 | AF8: =IF('7実績'!AF8="","",'7実績'!AF8) -> 0 | AH8: =IF('7実績'!AH8="","",'7実績'!AH8) -> 0 | AJ8: =IF('7実績'!AJ8="","",'7実績'!AJ8) -> 0 | AL8: =IF('7実績'!AL8="","",'7実績'!AL8) -> 0 | AN8: =SUM(AB8:AM8) -> 0
B10: 職名 | D10: =IF('7実績'!D10="","",'7実績'!D10) -> 0 | I10: 顧問 | K10: =IF('7実績'!K10="","",'7実績'!K10) -> 0 | V10: 職名 | X10: =IF('7実績'!X10="","",'7実績'!X10) -> 0 | AC10: 副２ | AE10: =IF('7実績'!AE10="","",'7実績'!AE10) -> 0
B12: 職名 | D12: =IF('7実績'!D12="","",'7実績'!D12) -> 0 | I12: 副顧問 | K12: =IF('7実績'!K12="","",'7実績'!K12) -> 0 | V12: 職名 | X12: =IF('7実績'!X12="","",'7実績'!X12) -> 0 | AC12: 副３ | AE12: =IF('7実績'!AE12="","",'7実績'!AE12) -> 0
A15: 日 | C15: 曜 | E15: ＡＭ | L15: ＰＭ | S15: 時間 | V15: 内容（練習・大会・OFF等） | AH15: 場所
A16: 1 | C16: =IF(A16="","",TEXT(DATE($AS$1,$A$7,A16),"aaa")) -> 土 | H16: ～ | O16: ～ | S16: =(I16-E16)+(P16-L16) -> 00:00:00
A17: 2 | C17: =IF(A17="","",TEXT(DATE($AS$1,$A$7,A17),"aaa")) -> 日 | H17: ～ | O17: ～ | S17: 00:00:00
A18: 3 | C18: 月 | H18: ～ | O18: ～ | S18: 00:00:00
A19: 4 | C19: 火 | H19: ～ | O19: ～ | S19: 00:00:00
A20: 5 | C20: 水 | H20: ～ | O20: ～ | S20: 00:00:00
A21: 6 | C21: 木 | H21: ～ | O21: ～ | S21: 00:00:00
A22: 7 | C22: 金 | H22: ～ | O22: ～ | S22: 00:00:00
A23: 8 | C23: 土 | H23: ～ | O23: ～ | S23: 00:00:00
A24: 9 | C24: 日 | H24: ～ | O24: ～ | S24: 00:00:00
A25: 10 | C25: 月 | H25: ～ | O25: ～ | S25: 00:00:00
A26: 11 | C26: 火 | H26: ～ | O26: ～ | S26: 00:00:00
A27: 12 | C27: 水 | H27: ～ | O27: ～ | S27: 00:00:00
A28: 13 | C28: 木 | H28: ～ | O28: ～ | S28: 00:00:00
A29: 14 | C29: 金 | H29: ～ | O29: ～ | S29: 00:00:00
A30: 15 | C30: 土 | H30: ～ | O30: ～ | S30: 00:00:00
A31: 16 | C31: 日 | H31: ～ | O31: ～ | S31: 00:00:00
A32: 17 | C32: 月 | H32: ～ | O32: ～ | S32: 00:00:00
A33: 18 | C33: 火 | H33: ～ | O33: ～ | S33: 00:00:00
A34: 19 | C34: 水 | H34: ～ | O34: ～ | S34: 00:00:00
A35: 20 | C35: 木 | H35: ～ | O35: ～ | S35: 00:00:00
A36: 21 | C36: 金 | H36: ～ | O36: ～ | S36: 00:00:00
A37: 22 | C37: 土 | H37: ～ | O37: ～ | S37: 00:00:00
A38: 23 | C38: 日 | H38: ～ | O38: ～ | S38: 00:00:00
A39: 24 | C39: 月 | H39: ～ | O39: ～ | S39: 00:00:00
A40: 25 | C40: 火 | H40: ～ | O40: ～ | S40: 00:00:00
A41: 26 | C41: 水 | H41: ～ | O41: ～ | S41: 00:00:00
A42: 27 | C42: 木 | H42: ～ | O42: ～ | S42: 00:00:00
A43: 28 | C43: 金 | H43: ～ | O43: ～ | S43: 00:00:00
A44: 29 | C44: 土 | H44: ～ | O44: ～ | S44: 00:00:00
A45: 30 | C45: 日 | H45: ～ | O45: ～ | S45: 00:00:00
A46: 31 | C46: 月 | H46: ～ | O46: ～ | S46: 00:00:00 | BK46: =RIGHT(V46,2) -> 
S47: =SUM(S16:U46) -> 0 | AG47: 赤字変更内容については口頭命令済 | AL47: 校長
AL48: . .
A49: 月 | D49: 4 | F49: 5 | H49: 6 | J49: 7 | L49: 8 | N49: 9 | P49: 10 | R49: 11 | T49: 12 | V49: 1 | X49: 2 | Z49: 3 | AB49: 計
A50: 時間 | D50: ='４実績'!D50 -> 0 | F50: ='５実績'!F50 -> 0 | H50: ='6実績'!H50 -> 0 | J50: ='7実績'!J50 -> 0 | L50: =S47 -> 0 | AB50: =SUM(D50:AA50) -> 0 | AG50: 時間
A51: 活動日数 | D51: ='４実績'!D51 -> 0 | F51: ='５実績'!F51 -> 0 | H51: ='6実績'!H51 -> 0 | J51: ='7実績'!J51 -> 0 | L51: =COUNTIF(S16:U46,">0") -> 0 | AB51: =SUM(D51:AA51) -> 0 | AG51: 活動日数
A52: 休養日数 | D52: ='４実績'!D52 -> 30 | F52: ='５実績'!F52 -> 31 | H52: ='6実績'!H52 -> 30 | J52: ='7実績'!J52 -> 31 | L52: =COUNTIF(S16:U46,"0:00") -> 31 | AB52: =SUM(D52:AA52) -> 153 | AG52: 休養日数
AB53: =AB50/AB51 ->  | AG53: 平均時間/日

Sheet 9計画
AS1: ='4計画'!AQ1 -> 2020
A2: 校長 | E2: 教頭 | I2: 教頭 | M2: 主幹教諭 | U2: 顧問 | Z2: 学校名 | AC2: =IF('8実績'!AC2="","",'8実績'!AC2) -> 0 | AM2: 学校
A3: 印 | E3: 印 | I3: 印 | M3: 印 | Q3: 印 | U3: 印
Z4: 部活動名 | AC4: =IF('8実績'!AC4="","",'8実績'!AC4) -> 0 | AM4: 部
A7: 9 | F7: 月 | I7: 〈月間〉部活動計画・活動実績 | Y7: 部員数 | AB7: 1女 | AD7: 2女 | AF7: 3女 | AH7: 1男 | AJ7: 2男 | AL7: 3男 | AN7: 計
AB8: =IF('8実績'!AB8="","",'8実績'!AB8) -> 0 | AD8: =IF('8実績'!AD8="","",'8実績'!AD8) -> 0 | AF8: =IF('8実績'!AF8="","",'8実績'!AF8) -> 0 | AH8: =IF('8実績'!AH8="","",'8実績'!AH8) -> 0 | AJ8: =IF('8実績'!AJ8="","",'8実績'!AJ8) -> 0 | AL8: =IF('8実績'!AL8="","",'8実績'!AL8) -> 0 | AN8: =SUM(AB8:AM8) -> 0
B10: 職名 | D10: =IF('8実績'!D10="","",'8実績'!D10) -> 0 | I10: 顧問 | K10: =IF('8実績'!K10="","",'8実績'!K10) -> 0 | V10: 職名 | X10: =IF('8実績'!X10="","",'8実績'!X10) -> 0 | AC10: 副２ | AE10: =IF('8実績'!AE10="","",'8実績'!AE10) -> 0
B12: 職名 | D12: =IF('8実績'!D12="","",'8実績'!D12) -> 0 | I12: 副顧問 | K12: =IF('8実績'!K12="","",'8実績'!K12) -> 0 | V12: 職名 | X12: =IF('8実績'!X12="","",'8実績'!X12) -> 0 | AC12: 副３ | AE12: =IF('8実績'!AE12="","",'8実績'!AE12) -> 0
A15: 日 | C15: 曜 | E15: ＡＭ | L15: ＰＭ | S15: 時間 | V15: 内容（練習・大会・OFF等） | AH15: 場所
A16: 1 | C16: =IF(A16="","",TEXT(DATE($AS$1,$A$7,A16),"aaa")) -> 火 | H16: ～ | O16: ～ | S16: =(I16-E16)+(P16-L16) -> 00:00:00
A17: 2 | C17: =IF(A17="","",TEXT(DATE($AS$1,$A$7,A17),"aaa")) -> 水 | H17: ～ | O17: ～ | S17: 00:00:00
A18: 3 | C18: 木 | H18: ～ | O18: ～ | S18: 00:00:00
A19: 4 | C19: 金 | H19: ～ | O19: ～ | S19: 00:00:00
A20: 5 | C20: 土 | H20: ～ | O20: ～ | S20: 00:00:00
A21: 6 | C21: 日 | H21: ～ | O21: ～ | S21: 00:00:00
A22: 7 | C22: 月 | H22: ～ | O22: ～ | S22: 00:00:00
A23: 8 | C23: 火 | H23: ～ | O23: ～ | S23: 00:00:00
A24: 9 | C24: 水 | H24: ～ | O24: ～ | S24: 00:00:00
A25: 10 | C25: 木 | H25: ～ | O25: ～ | S25: 00:00:00
A26: 11 | C26: 金 | H26: ～ | O26: ～ | S26: 00:00:00
A27: 12 | C27: 土 | H27: ～ | O27: ～ | S27: 00:00:00
A28: 13 | C28: 日 | H28: ～ | O28: ～ | S28: 00:00:00
A29: 14 | C29: 月 | H29: ～ | O29: ～ | S29: 00:00:00
A30: 15 | C30: 火 | H30: ～ | O30: ～ | S30: 00:00:00
A31: 16 | C31: 水 | H31: ～ | O31: ～ | S31: 00:00:00
A32: 17 | C32: 木 | H32: ～ | O32: ～ | S32: 00:00:00
A33: 18 | C33: 金 | H33: ～ | O33: ～ | S33: 00:00:00
A34: 19 | C34: 土 | H34: ～ | O34: ～ | S34: 00:00:00
A35: 20 | C35: 日 | H35: ～ | O35: ～ | S35: 00:00:00
A36: 21 | C36: 月 | H36: ～ | O36: ～ | S36: 00:00:00
A37: 22 | C37: 火 | H37: ～ | O37: ～ | S37: 00:00:00
A38: 23 | C38: 水 | H38: ～ | O38: ～ | S38: 00:00:00
A39: 24 | C39: 木 | H39: ～ | O39: ～ | S39: 00:00:00
A40: 25 | C40: 金 | H40: ～ | O40: ～ | S40: 00:00:00
A41: 26 | C41: 土 | H41: ～ | O41: ～ | S41: 00:00:00
A42: 27 | C42: 日 | H42: ～ | O42: ～ | S42: 00:00:00
A43: 28 | C43: 月 | H43: ～ | O43: ～ | S43: 00:00:00
A44: 29 | C44: 火 | H44: ～ | O44: ～ | S44: 00:00:00
A45: 30 | C45: 水 | H45: ～ | O45: ～ | S45: 00:00:00
H46: ～ | O46: ～ | S46: 00:00:00 | BK46: =RIGHT(V46,2) -> 
S47: =SUM(S16:U46) -> 0 | AG47: 赤字変更内容については口頭命令済 | AL47: 校長
AL48: . .
A49: 月 | D49: 4 | F49: 5 | H49: 6 | J49: 7 | L49: 8 | N49: 9 | P49: 10 | R49: 11 | T49: 12 | V49: 1 | X49: 2 | Z49: 3 | AB49: 計
A50: 時間 | D50: ='４実績'!D50 -> 0 | F50: ='５実績'!F50 -> 0 | H50: ='6実績'!H50 -> 0 | J50: ='7実績'!J50 -> 0 | L50: ='8実績'!L50:M50 -> 0 | N50: =S47 -> 0 | AB50: =SUM(D50:AA50) -> 0 | AG50: 時間
A51: 活動日数 | D51: ='４実績'!D51 -> 0 | F51: ='５実績'!F51 -> 0 | H51: ='6実績'!H51 -> 0 | J51: ='7実績'!J51 -> 0 | L51: ='8実績'!L51:M51 -> 0 | N51: =COUNTIF(S16:U46,">0") -> 0 | AB51: =SUM(D51:AA51) -> 0 | AG51: 活動日数
A52: 休養日数 | D52: ='４実績'!D52 -> 30 | F52: ='５実績'!F52 -> 31 | H52: ='6実績'!H52 -> 30 | J52: ='7実績'!J52 -> 31 | L52: ='8実績'!L52:M52 -> 31 | N52: =COUNTIF(S16:U45,"0:00") -> 30 | AB52: =SUM(D52:AA52) -> 183 | AG52: 休養日数
AB53: =AB50/AB51 ->  | AG53: 平均時間/日

Sheet 10計画
AS1: ='4計画'!AQ1 -> 2020
A2: 校長 | E2: 教頭 | I2: 教頭 | M2: 主幹教諭 | U2: 顧問 | Z2: 学校名 | AC2: =IF('9実績'!AC2="","",'9実績'!AC2) -> 0 | AM2: 学校
A3: 印 | E3: 印 | I3: 印 | M3: 印 | Q3: 印 | U3: 印
Z4: 部活動名 | AC4: =IF('9実績'!AC4="","",'9実績'!AC4) -> 0 | AM4: 部
A7: 10 | F7: 月 | I7: 〈月間〉部活動計画・活動実績 | Y7: 部員数 | AB7: 1女 | AD7: 2女 | AF7: 3女 | AH7: 1男 | AJ7: 2男 | AL7: 3男 | AN7: 計
AB8: =IF('9実績'!AB8="","",'9実績'!AB8) -> 0 | AD8: =IF('9実績'!AD8="","",'9実績'!AD8) -> 0 | AF8: =IF('9実績'!AF8="","",'9実績'!AF8) -> 0 | AH8: =IF('9実績'!AH8="","",'9実績'!AH8) -> 0 | AJ8: =IF('9実績'!AJ8="","",'9実績'!AJ8) -> 0 | AL8: =IF('9実績'!AL8="","",'9実績'!AL8) -> 0 | AN8: =SUM(AB8:AM8) -> 0
B10: 職名 | D10: =IF('9実績'!D10="","",'9実績'!D10) -> 0 | I10: 顧問 | K10: =IF('9実績'!K10="","",'9実績'!K10) -> 0 | V10: 職名 | X10: =IF('9実績'!X10="","",'9実績'!X10) -> 0 | AC10: 副２ | AE10: =IF('9実績'!AE10="","",'9実績'!AE10) -> 0
B12: 職名 | D12: =IF('9実績'!D12="","",'9実績'!D12) -> 0 | I12: 副顧問 | K12: =IF('9実績'!K12="","",'9実績'!K12) -> 0 | V12: 職名 | X12: =IF('9実績'!X12="","",'9実績'!X12) -> 0 | AC12: 副３ | AE12: =IF('9実績'!AE12="","",'9実績'!AE12) -> 0
A15: 日 | C15: 曜 | E15: ＡＭ | L15: ＰＭ | S15: 時間 | V15: 内容（練習・大会・OFF等） | AH15: 場所
A16: 1 | C16: =IF(A16="","",TEXT(DATE($AS$1,$A$7,A16),"aaa")) -> 木 | H16: ～ | O16: ～ | S16: =(I16-E16)+(P16-L16) -> 00:00:00
A17: 2 | C17: =IF(A17="","",TEXT(DATE($AS$1,$A$7,A17),"aaa")) -> 金 | H17: ～ | O17: ～ | S17: 00:00:00
A18: 3 | C18: 土 | H18: ～ | O18: ～ | S18: 00:00:00
A19: 4 | C19: 日 | H19: ～ | O19: ～ | S19: 00:00:00
A20: 5 | C20: 月 | H20: ～ | O20: ～ | S20: 00:00:00
A21: 6 | C21: 火 | H21: ～ | O21: ～ | S21: 00:00:00
A22: 7 | C22: 水 | H22: ～ | O22: ～ | S22: 00:00:00
A23: 8 | C23: 木 | H23: ～ | O23: ～ | S23: 00:00:00
A24: 9 | C24: 金 | H24: ～ | O24: ～ | S24: 00:00:00
A25: 10 | C25: 土 | H25: ～ | O25: ～ | S25: 00:00:00
A26: 11 | C26: 日 | H26: ～ | O26: ～ | S26: 00:00:00
A27: 12 | C27: 月 | H27: ～ | O27: ～ | S27: 00:00:00
A28: 13 | C28: 火 | H28: ～ | O28: ～ | S28: 00:00:00
A29: 14 | C29: 水 | H29: ～ | O29: ～ | S29: 00:00:00
A30: 15 | C30: 木 | H30: ～ | O30: ～ | S30: 00:00:00
A31: 16 | C31: 金 | H31: ～ | O31: ～ | S31: 00:00:00
A32: 17 | C32: 土 | H32: ～ | O32: ～ | S32: 00:00:00
A33: 18 | C33: 日 | H33: ～ | O33: ～ | S33: 00:00:00
A34: 19 | C34: 月 | H34: ～ | O34: ～ | S34: 00:00:00
A35: 20 | C35: 火 | H35: ～ | O35: ～ | S35: 00:00:00
A36: 21 | C36: 水 | H36: ～ | O36: ～ | S36: 00:00:00
A37: 22 | C37: 木 | H37: ～ | O37: ～ | S37: 00:00:00
A38: 23 | C38: 金 | H38: ～ | O38: ～ | S38: 00:00:00
A39: 24 | C39: 土 | H39: ～ | O39: ～ | S39: 00:00:00
A40: 25 | C40: 日 | H40: ～ | O40: ～ | S40: 00:00:00
A41: 26 | C41: 月 | H41: ～ | O41: ～ | S41: 00:00:00
A42: 27 | C42: 火 | H42: ～ | O42: ～ | S42: 00:00:00
A43: 28 | C43: 水 | H43: ～ | O43: ～ | S43: 00:00:00
A44: 29 | C44: 木 | H44: ～ | O44: ～ | S44: 00:00:00
A45: 30 | C45: 金 | H45: ～ | O45: ～ | S45: 00:00:00
A46: 31 | C46: 土 | H46: ～ | O46: ～ | S46: 00:00:00 | BK46: =RIGHT(V46,2) -> 
S47: =SUM(S16:U46) -> 0 | AG47: 赤字変更内容については口頭命令済 | AL47: 校長
AL48: . .
A49: 月 | D49: 4 | F49: 5 | H49: 6 | J49: 7 | L49: 8 | N49: 9 | P49: 10 | R49: 11 | T49: 12 | V49: 1 | X49: 2 | Z49: 3 | AB49: 計
A50: 時間 | D50: ='４実績'!D50 -> 0 | F50: ='５実績'!F50 -> 0 | H50: ='6実績'!H50 -> 0 | J50: ='7実績'!J50 -> 0 | L50: ='8実績'!L50:M50 -> 0 | N50: ='9実績'!N50:O50 -> 0 | P50: =S47 -> 0 | AB50: =SUM(D50:AA50) -> 0 | AG50: 時間
A51: 活動日数 | D51: ='４実績'!D51 -> 0 | F51: ='５実績'!F51 -> 0 | H51: ='6実績'!H51 -> 0 | J51: ='7実績'!J51 -> 0 | L51: ='8実績'!L51:M51 -> 0 | N51: ='9実績'!N51:O51 -> 0 | P51: =COUNTIF(S16:U46,">0") -> 0 | AB51: =SUM(D51:AA51) -> 0 | AG51: 活動日数
A52: 休養日数 | D52: ='４実績'!D52 -> 30 | F52: ='５実績'!F52 -> 31 | H52: ='6実績'!H52 -> 30 | J52: ='7実績'!J52 -> 31 | L52: ='8実績'!L52:M52 -> 31 | N52: ='9実績'!N52:O52 -> 30 | P52: =COUNTIF(S16:U46,"0:00") -> 31 | AB52: =SUM(D52:AA52) -> 214 | AG52: 休養日数
AB53: =AB50/AB51 ->  | AG53: 平均時間/日

Sheet 11計画
AS1: ='4計画'!AQ1 -> 2020
A2: 校長 | E2: 教頭 | I2: 教頭 | M2: 主幹教諭 | U2: 顧問 | Z2: 学校名 | AC2: =IF('10実績'!AC2="","",'10実績'!AC2) -> 0 | AM2: 学校
A3: 印 | E3: 印 | I3: 印 | M3: 印 | Q3: 印 | U3: 印
Z4: 部活動名 | AC4: =IF('10実績'!AC4="","",'10実績'!AC4) -> 0 | AM4: 部
A7: 11 | F7: 月 | I7: 〈月間〉部活動計画・活動実績 | Y7: 部員数 | AB7: 1女 | AD7: 2女 | AF7: 3女 | AH7: 1男 | AJ7: 2男 | AL7: 3男 | AN7: 計
AB8: =IF('10実績'!AB8="","",'10実績'!AB8) -> 0 | AD8: =IF('10実績'!AD8="","",'10実績'!AD8) -> 0 | AF8: =IF('10実績'!AF8="","",'10実績'!AF8) -> 0 | AH8: =IF('10実績'!AH8="","",'10実績'!AH8) -> 0 | AJ8: =IF('10実績'!AJ8="","",'10実績'!AJ8) -> 0 | AL8: =IF('10実績'!AL8="","",'10実績'!AL8) -> 0 | AN8: =SUM(AB8:AM8) -> 0
B10: 職名 | D10: =IF('10実績'!D10="","",'10実績'!D10) -> 0 | I10: 顧問 | K10: =IF('10実績'!K10="","",'10実績'!K10) -> 0 | V10: 職名 | X10: =IF('10実績'!X10="","",'10実績'!X10) -> 0 | AC10: 副２ | AE10: =IF('10実績'!AE10="","",'10実績'!AE10) -> 0
B12: 職名 | D12: =IF('10実績'!D12="","",'10実績'!D12) -> 0 | I12: 副顧問 | K12: =IF('10実績'!K12="","",'10実績'!K12) -> 0 | V12: 職名 | X12: =IF('10実績'!X12="","",'10実績'!X12) -> 0 | AC12: 副３ | AE12: =IF('10実績'!AE12="","",'10実績'!AE12) -> 0
A15: 日 | C15: 曜 | E15: ＡＭ | L15: ＰＭ | S15: 時間 | V15: 内容（練習・大会・OFF等） | AH15: 場所
A16: 1 | C16: =IF(A16="","",TEXT(DATE($AS$1,$A$7,A16),"aaa")) -> 日 | H16: ～ | O16: ～ | S16: =(I16-E16)+(P16-L16) -> 00:00:00
A17: 2 | C17: =IF(A17="","",TEXT(DATE($AS$1,$A$7,A17),"aaa")) -> 月 | H17: ～ | O17: ～ | S17: 00:00:00
A18: 3 | C18: 火 | H18: ～ | O18: ～ | S18: 00:00:00
A19: 4 | C19: 水 | H19: ～ | O19: ～ | S19: 00:00:00
A20: 5 | C20: 木 | H20: ～ | O20: ～ | S20: 00:00:00
A21: 6 | C21: 金 | H21: ～ | O21: ～ | S21: 00:00:00
A22: 7 | C22: 土 | H22: ～ | O22: ～ | S22: 00:00:00
A23: 8 | C23: 日 | H23: ～ | O23: ～ | S23: 00:00:00
A24: 9 | C24: 月 | H24: ～ | O24: ～ | S24: 00:00:00
A25: 10 | C25: 火 | H25: ～ | O25: ～ | S25: 00:00:00
A26: 11 | C26: 水 | H26: ～ | O26: ～ | S26: 00:00:00
A27: 12 | C27: 木 | H27: ～ | O27: ～ | S27: 00:00:00
A28: 13 | C28: 金 | H28: ～ | O28: ～ | S28: 00:00:00
A29: 14 | C29: 土 | H29: ～ | O29: ～ | S29: 00:00:00
A30: 15 | C30: 日 | H30: ～ | O30: ～ | S30: 00:00:00
A31: 16 | C31: 月 | H31: ～ | O31: ～ | S31: 00:00:00
A32: 17 | C32: 火 | H32: ～ | O32: ～ | S32: 00:00:00
A33: 18 | C33: 水 | H33: ～ | O33: ～ | S33: 00:00:00
A34: 19 | C34: 木 | H34: ～ | O34: ～ | S34: 00:00:00
A35: 20 | C35: 金 | H35: ～ | O35: ～ | S35: 00:00:00
A36: 21 | C36: 土 | H36: ～ | O36: ～ | S36: 00:00:00
A37: 22 | C37: 日 | H37: ～ | O37: ～ | S37: 00:00:00
A38: 23 | C38: 月 | H38: ～ | O38: ～ | S38: 00:00:00
A39: 24 | C39: 火 | H39: ～ | O39: ～ | S39: 00:00:00
A40: 25 | C40: 水 | H40: ～ | O40: ～ | S40: 00:00:00
A41: 26 | C41: 木 | H41: ～ | O41: ～ | S41: 00:00:00
A42: 27 | C42: 金 | H42: ～ | O42: ～ | S42: 00:00:00
A43: 28 | C43: 土 | H43: ～ | O43: ～ | S43: 00:00:00
A44: 29 | C44: 日 | H44: ～ | O44: ～ | S44: 00:00:00
A45: 30 | C45: 月 | H45: ～ | O45: ～ | S45: 00:00:00
H46: ～ | O46: ～ | S46: 00:00:00 | BK46: =RIGHT(V46,2) -> 
S47: =SUM(S16:U46) -> 0 | AG47: 赤字変更内容については口頭命令済 | AL47: 校長
AL48: . .
A49: 月 | D49: 4 | F49: 5 | H49: 6 | J49: 7 | L49: 8 | N49: 9 | P49: 10 | R49: 11 | T49: 12 | V49: 1 | X49: 2 | Z49: 3 | AB49: 計
A50: 時間 | D50: ='４実績'!D50 -> 0 | F50: ='５実績'!F50 -> 0 | H50: ='6実績'!H50 -> 0 | J50: ='7実績'!J50 -> 0 | L50: ='8実績'!L50:M50 -> 0 | N50: ='9実績'!N50:O50 -> 0 | P50: ='10実績'!P50:Q50 -> 0 | R50: =S47 -> 0 | AB50: =SUM(D50:AA50) -> 0 | AG50: 時間
A51: 活動日数 | D51: ='４実績'!D51 -> 0 | F51: ='５実績'!F51 -> 0 | H51: ='6実績'!H51 -> 0 | J51: ='7実績'!J51 -> 0 | L51: ='8実績'!L51:M51 -> 0 | N51: ='9実績'!N51:O51 -> 0 | P51: ='10実績'!P51:Q51 -> 0 | R51: =COUNTIF(S16:U46,">0") -> 0 | AB51: =SUM(D51:AA51) -> 0 | AG51: 活動日数
A52: 休養日数 | D52: ='４実績'!D52 -> 30 | F52: ='５実績'!F52 -> 31 | H52: ='6実績'!H52 -> 30 | J52: ='7実績'!J52 -> 31 | L52: ='8実績'!L52:M52 -> 31 | N52: ='9実績'!N52:O52 -> 30 | P52: ='10実績'!P52:Q52 -> 31 | R52: =COUNTIF(S16:U45,"0:00") -> 30 | AB52: =SUM(D52:AA52) -> 244 | AG52: 休養日数
AB53: =AB50/AB51 ->  | AG53: 平均時間/日

Sheet 12計画
AS1: ='4計画'!AQ1 -> 2020
A2: 校長 | E2: 教頭 | I2: 教頭 | M2: 主幹教諭 | U2: 顧問 | Z2: 学校名 | AC2: =IF('11実績'!AC2="","",'11実績'!AC2) -> 0 | AM2: 学校
A3: 印 | E3: 印 | I3: 印 | M3: 印 | Q3: 印 | U3: 印
Z4: 部活動名 | AC4: =IF('11実績'!AC4="","",'11実績'!AC4) -> 0 | AM4: 部
A7: 12 | F7: 月 | I7: 〈月間〉部活動計画・活動実績 | Y7: 部員数 | AB7: 1女 | AD7: 2女 | AF7: 3女 | AH7: 1男 | AJ7: 2男 | AL7: 3男 | AN7: 計
AB8: =IF('11実績'!AB8="","",'11実績'!AB8) -> 0 | AD8: =IF('11実績'!AD8="","",'11実績'!AD8) -> 0 | AF8: =IF('11実績'!AF8="","",'11実績'!AF8) -> 0 | AH8: =IF('11実績'!AH8="","",'11実績'!AH8) -> 0 | AJ8: =IF('11実績'!AJ8="","",'11実績'!AJ8) -> 0 | AL8: =IF('11実績'!AL8="","",'11実績'!AL8) -> 0 | AN8: =SUM(AB8:AM8) -> 0
B10: 職名 | D10: =IF('11実績'!D10="","",'11実績'!D10) -> 0 | I10: 顧問 | K10: =IF('11実績'!K10="","",'11実績'!K10) -> 0 | V10: 職名 | X10: =IF('11実績'!X10="","",'11実績'!X10) -> 0 | AC10: 副２ | AE10: =IF('11実績'!AE10="","",'11実績'!AE10) -> 0
B12: 職名 | D12: =IF('11実績'!D12="","",'11実績'!D12) -> 0 | I12: 副顧問 | K12: =IF('11実績'!K12="","",'11実績'!K12) -> 0 | V12: 職名 | X12: =IF('11実績'!X12="","",'11実績'!X12) -> 0 | AC12: 副３ | AE12: =IF('11実績'!AE12="","",'11実績'!AE12) -> 0
A15: 日 | C15: 曜 | E15: ＡＭ | L15: ＰＭ | S15: 時間 | V15: 内容（練習・大会・OFF等） | AH15: 場所
A16: 1 | C16: =IF(A16="","",TEXT(DATE($AS$1,$A$7,A16),"aaa")) -> 火 | H16: ～ | O16: ～ | S16: =(I16-E16)+(P16-L16) -> 00:00:00
A17: 2 | C17: =IF(A17="","",TEXT(DATE($AS$1,$A$7,A17),"aaa")) -> 水 | H17: ～ | O17: ～ | S17: 00:00:00
A18: 3 | C18: 木 | H18: ～ | O18: ～ | S18: 00:00:00
A19: 4 | C19: 金 | H19: ～ | O19: ～ | S19: 00:00:00
A20: 5 | C20: 土 | H20: ～ | O20: ～ | S20: 00:00:00
A21: 6 | C21: 日 | H21: ～ | O21: ～ | S21: 00:00:00
A22: 7 | C22: 月 | H22: ～ | O22: ～ | S22: 00:00:00
A23: 8 | C23: 火 | H23: ～ | O23: ～ | S23: 00:00:00
A24: 9 | C24: 水 | H24: ～ | O24: ～ | S24: 00:00:00
A25: 10 | C25: 木 | H25: ～ | O25: ～ | S25: 00:00:00
A26: 11 | C26: 金 | H26: ～ | O26: ～ | S26: 00:00:00
A27: 12 | C27: 土 | H27: ～ | O27: ～ | S27: 00:00:00
A28: 13 | C28: 日 | H28: ～ | O28: ～ | S28: 00:00:00
A29: 14 | C29: 月 | H29: ～ | O29: ～ | S29: 00:00:00
A30: 15 | C30: 火 | H30: ～ | O30: ～ | S30: 00:00:00
A31: 16 | C31: 水 | H31: ～ | O31: ～ | S31: 00:00:00
A32: 17 | C32: 木 | H32: ～ | O32: ～ | S32: 00:00:00
A33: 18 | C33: 金 | H33: ～ | O33: ～ | S33: 00:00:00
A34: 19 | C34: 土 | H34: ～ | O34: ～ | S34: 00:00:00
A35: 20 | C35: 日 | H35: ～ | O35: ～ | S35: 00:00:00
A36: 21 | C36: 月 | H36: ～ | O36: ～ | S36: 00:00:00
A37: 22 | C37: 火 | H37: ～ | O37: ～ | S37: 00:00:00
A38: 23 | C38: 水 | H38: ～ | O38: ～ | S38: 00:00:00
A39: 24 | C39: 木 | H39: ～ | O39: ～ | S39: 00:00:00
A40: 25 | C40: 金 | H40: ～ | O40: ～ | S40: 00:00:00
A41: 26 | C41: 土 | H41: ～ | O41: ～ | S41: 00:00:00
A42: 27 | C42: 日 | H42: ～ | O42: ～ | S42: 00:00:00
A43: 28 | C43: 月 | H43: ～ | O43: ～ | S43: 00:00:00
A44: 29 | C44: 火 | H44: ～ | O44: ～ | S44: 00:00:00
A45: 30 | C45: 水 | H45: ～ | O45: ～ | S45: 00:00:00
A46: 31 | C46: 木 | H46: ～ | O46: ～ | S46: 00:00:00 | BK46: =RIGHT(V46,2) -> 
S47: =SUM(S16:U46) -> 0 | AG47: 赤字変更内容については口頭命令済 | AL47: 校長
AL48: . .
A49: 月 | D49: 4 | F49: 5 | H49: 6 | J49: 7 | L49: 8 | N49: 9 | P49: 10 | R49: 11 | T49: 12 | V49: 1 | X49: 2 | Z49: 3 | AB49: 計
A50: 時間 | D50: ='４実績'!D50 -> 0 | F50: ='５実績'!F50 -> 0 | H50: ='6実績'!H50 -> 0 | J50: ='7実績'!J50 -> 0 | L50: ='8実績'!L50:M50 -> 0 | N50: ='9実績'!N50:O50 -> 0 | P50: ='10実績'!P50:Q50 -> 0 | R50: ='11実績'!R50:S50 -> 0 | T50: =S47 -> 0 | AB50: =SUM(D50:AA50) -> 0 | AG50: 時間
A51: 活動日数 | D51: ='４実績'!D51 -> 0 | F51: ='５実績'!F51 -> 0 | H51: ='6実績'!H51 -> 0 | J51: ='7実績'!J51 -> 0 | L51: ='8実績'!L51:M51 -> 0 | N51: ='9実績'!N51:O51 -> 0 | P51: ='10実績'!P51:Q51 -> 0 | R51: ='11実績'!R51:S51 -> 0 | T51: =COUNTIF(S16:U46,">0") -> 0 | AB51: =SUM(D51:AA51) -> 0 | AG51: 活動日数
A52: 休養日数 | D52: ='４実績'!D52 -> 30 | F52: ='５実績'!F52 -> 31 | H52: ='6実績'!H52 -> 30 | J52: ='7実績'!J52 -> 31 | L52: ='8実績'!L52:M52 -> 31 | N52: ='9実績'!N52:O52 -> 30 | P52: ='10実績'!P52:Q52 -> 31 | R52: ='11実績'!R52:S52 -> 30 | T52: =COUNTIF(S16:U46,"0:00") -> 31 | AB52: =SUM(D52:AA52) -> 275 | AG52: 休養日数
AB53: =AB50/AB51 ->  | AG53: 平均時間/日

Sheet 1計画
AS1: ='4計画'!AQ1+1 -> 2021
A2: 校長 | E2: 教頭 | I2: 教頭 | M2: 主幹教諭 | U2: 顧問 | Z2: 学校名 | AC2: =IF('12実績'!AC2="","",'12実績'!AC2) -> 0 | AM2: 学校
A3: 印 | E3: 印 | I3: 印 | M3: 印 | Q3: 印 | U3: 印
Z4: 部活動名 | AC4: =IF('12実績'!AC4="","",'12実績'!AC4) -> 0 | AM4: 部
A7: 1 | F7: 月 | I7: 〈月間〉部活動計画・活動実績 | Y7: 部員数 | AB7: 1女 | AD7: 2女 | AF7: 3女 | AH7: 1男 | AJ7: 2男 | AL7: 3男 | AN7: 計
AB8: =IF('12実績'!AB8="","",'12実績'!AB8) -> 0 | AD8: =IF('12実績'!AD8="","",'12実績'!AD8) -> 0 | AF8: =IF('12実績'!AF8="","",'12実績'!AF8) -> 0 | AH8: =IF('12実績'!AH8="","",'12実績'!AH8) -> 0 | AJ8: =IF('12実績'!AJ8="","",'12実績'!AJ8) -> 0 | AL8: =IF('12実績'!AL8="","",'12実績'!AL8) -> 0 | AN8: =SUM(AB8:AM8) -> 0
B10: 職名 | D10: =IF('12実績'!D10="","",'12実績'!D10) -> 0 | I10: 顧問 | K10: =IF('12実績'!K10="","",'12実績'!K10) -> 0 | V10: 職名 | X10: =IF('12実績'!X10="","",'12実績'!X10) -> 0 | AC10: 副２ | AE10: =IF('12実績'!AE10="","",'12実績'!AE10) -> 0
B12: 職名 | D12: =IF('12実績'!D12="","",'12実績'!D12) -> 0 | I12: 副顧問 | K12: =IF('12実績'!K12="","",'12実績'!K12) -> 0 | V12: 職名 | X12: =IF('12実績'!X12="","",'12実績'!X12) -> 0 | AC12: 副３ | AE12: =IF('12実績'!AE12="","",'12実績'!AE12) -> 0
A15: 日 | C15: 曜 | E15: ＡＭ | L15: ＰＭ | S15: 時間 | V15: 内容（練習・大会・OFF等） | AH15: 場所
A16: 1 | C16: =IF(A16="","",TEXT(DATE($AS$1,$A$7,A16),"aaa")) -> 金 | H16: ～ | O16: ～ | S16: =(I16-E16)+(P16-L16) -> 00:00:00
A17: 2 | C17: =IF(A17="","",TEXT(DATE($AS$1,$A$7,A17),"aaa")) -> 土 | H17: ～ | O17: ～ | S17: 00:00:00
A18: 3 | C18: 日 | H18: ～ | O18: ～ | S18: 00:00:00
A19: 4 | C19: 月 | H19: ～ | O19: ～ | S19: 00:00:00
A20: 5 | C20: 火 | H20: ～ | O20: ～ | S20: 00:00:00
A21: 6 | C21: 水 | H21: ～ | O21: ～ | S21: 00:00:00
A22: 7 | C22: 木 | H22: ～ | O22: ～ | S22: 00:00:00
A23: 8 | C23: 金 | H23: ～ | O23: ～ | S23: 00:00:00
A24: 9 | C24: 土 | H24: ～ | O24: ～ | S24: 00:00:00
A25: 10 | C25: 日 | H25: ～ | O25: ～ | S25: 00:00:00
A26: 11 | C26: 月 | H26: ～ | O26: ～ | S26: 00:00:00
A27: 12 | C27: 火 | H27: ～ | O27: ～ | S27: 00:00:00
A28: 13 | C28: 水 | H28: ～ | O28: ～ | S28: 00:00:00
A29: 14 | C29: 木 | H29: ～ | O29: ～ | S29: 00:00:00
A30: 15 | C30: 金 | H30: ～ | O30: ～ | S30: 00:00:00
A31: 16 | C31: 土 | H31: ～ | O31: ～ | S31: 00:00:00
A32: 17 | C32: 日 | H32: ～ | O32: ～ | S32: 00:00:00
A33: 18 | C33: 月 | H33: ～ | O33: ～ | S33: 00:00:00
A34: 19 | C34: 火 | H34: ～ | O34: ～ | S34: 00:00:00
A35: 20 | C35: 水 | H35: ～ | O35: ～ | S35: 00:00:00
A36: 21 | C36: 木 | H36: ～ | O36: ～ | S36: 00:00:00
A37: 22 | C37: 金 | H37: ～ | O37: ～ | S37: 00:00:00
A38: 23 | C38: 土 | H38: ～ | O38: ～ | S38: 00:00:00
A39: 24 | C39: 日 | H39: ～ | O39: ～ | S39: 00:00:00
A40: 25 | C40: 月 | H40: ～ | O40: ～ | S40: 00:00:00
A41: 26 | C41: 火 | H41: ～ | O41: ～ | S41: 00:00:00
A42: 27 | C42: 水 | H42: ～ | O42: ～ | S42: 00:00:00
A43: 28 | C43: 木 | H43: ～ | O43: ～ | S43: 00:00:00
A44: 29 | C44: 金 | H44: ～ | O44: ～ | S44: 00:00:00
A45: 30 | C45: 土 | H45: ～ | O45: ～ | S45: 00:00:00
A46: 31 | C46: 日 | H46: ～ | O46: ～ | S46: 00:00:00 | BK46: =RIGHT(V46,2) -> 
S47: =SUM(S16:U46) -> 0 | AG47: 赤字変更内容については口頭命令済 | AL47: 校長
AL48: . .
A49: 月 | D49: 4 | F49: 5 | H49: 6 | J49: 7 | L49: 8 | N49: 9 | P49: 10 | R49: 11 | T49: 12 | V49: 1 | X49: 2 | Z49: 3 | AB49: 計
A50: 時間 | D50: ='４実績'!D50 -> 0 | F50: ='５実績'!F50 -> 0 | H50: ='6実績'!H50 -> 0 | J50: ='7実績'!J50 -> 0 | L50: ='8実績'!L50:M50 -> 0 | N50: ='9実績'!N50:O50 -> 0 | P50: ='10実績'!P50:Q50 -> 0 | R50: ='11実績'!R50:S50 -> 0 | T50: ='12実績'!T50:U50 -> 0 | V50: =S47 -> 0 | AB50: =SUM(D50:AA50) -> 0 | AG50: 時間
A51: 活動日数 | D51: ='４実績'!D51 -> 0 | F51: ='５実績'!F51 -> 0 | H51: ='6実績'!H51 -> 0 | J51: ='7実績'!J51 -> 0 | L51: ='8実績'!L51:M51 -> 0 | N51: ='9実績'!N51:O51 -> 0 | P51: ='10実績'!P51:Q51 -> 0 | R51: ='11実績'!R51:S51 -> 0 | T51: ='12実績'!T51:U51 -> 0 | V51: =COUNTIF(S16:U46,">0") -> 0 | AB51: =SUM(D51:AA51) -> 0 | AG51: 活動日数
A52: 休養日数 | D52: ='４実績'!D52 -> 30 | F52: ='５実績'!F52 -> 31 | H52: ='6実績'!H52 -> 30 | J52: ='7実績'!J52 -> 31 | L52: ='8実績'!L52:M52 -> 31 | N52: ='9実績'!N52:O52 -> 30 | P52: ='10実績'!P52:Q52 -> 31 | R52: ='11実績'!R52:S52 -> 30 | T52: ='12実績'!T52:U52 -> 31 | V52: =COUNTIF(S16:U46,"0:00") -> 31 | AB52: =SUM(D52:AA52) -> 306 | AG52: 休養日数
AB53: =AB50/AB51 ->  | AG53: 平均時間/日

Sheet 2計画
AS1: ='4計画'!AQ1+1 -> 2021
A2: 校長 | E2: 教頭 | I2: 教頭 | M2: 主幹教諭 | U2: 顧問 | Z2: 学校名 | AC2: =IF('1実績'!AC2="","",'1実績'!AC2) -> 0 | AM2: 学校
A3: 印 | E3: 印 | I3: 印 | M3: 印 | Q3: 印 | U3: 印
Z4: 部活動名 | AC4: =IF('1実績'!AC4="","",'1実績'!AC4) -> 0 | AM4: 部
A7: 2 | F7: 月 | I7: 〈月間〉部活動計画・活動実績 | Y7: 部員数 | AB7: 1女 | AD7: 2女 | AF7: 3女 | AH7: 1男 | AJ7: 2男 | AL7: 3男 | AN7: 計
AB8: =IF('1実績'!AB8="","",'1実績'!AB8) -> 0 | AD8: =IF('1実績'!AD8="","",'1実績'!AD8) -> 0 | AF8: =IF('1実績'!AF8="","",'1実績'!AF8) -> 0 | AH8: =IF('1実績'!AH8="","",'1実績'!AH8) -> 0 | AJ8: =IF('1実績'!AJ8="","",'1実績'!AJ8) -> 0 | AL8: =IF('1実績'!AL8="","",'1実績'!AL8) -> 0 | AN8: =SUM(AB8:AM8) -> 0
B10: 職名 | D10: =IF('1実績'!D10="","",'1実績'!D10) -> 0 | I10: 顧問 | K10: =IF('1実績'!K10="","",'1実績'!K10) -> 0 | V10: 職名 | X10: =IF('1実績'!X10="","",'1実績'!X10) -> 0 | AC10: 副２ | AE10: =IF('1実績'!AE10="","",'1実績'!AE10) -> 0
B12: 職名 | D12: =IF('1実績'!D12="","",'1実績'!D12) -> 0 | I12: 副顧問 | K12: =IF('1実績'!K12="","",'1実績'!K12) -> 0 | V12: 職名 | X12: =IF('1実績'!X12="","",'1実績'!X12) -> 0 | AC12: 副３ | AE12: =IF('1実績'!AE12="","",'1実績'!AE12) -> 0
A15: 日 | C15: 曜 | E15: ＡＭ | L15: ＰＭ | S15: 時間 | V15: 内容（練習・大会・OFF等） | AH15: 場所
A16: 1 | C16: =IF(A16="","",TEXT(DATE($AS$1,$A$7,A16),"aaa")) -> 月 | H16: ～ | O16: ～ | S16: =(I16-E16)+(P16-L16) -> 00:00:00
A17: 2 | C17: =IF(A17="","",TEXT(DATE($AS$1,$A$7,A17),"aaa")) -> 火 | H17: ～ | O17: ～ | S17: 00:00:00
A18: 3 | C18: 水 | H18: ～ | O18: ～ | S18: 00:00:00
A19: 4 | C19: 木 | H19: ～ | O19: ～ | S19: 00:00:00
A20: 5 | C20: 金 | H20: ～ | O20: ～ | S20: 00:00:00
A21: 6 | C21: 土 | H21: ～ | O21: ～ | S21: 00:00:00
A22: 7 | C22: 日 | H22: ～ | O22: ～ | S22: 00:00:00
A23: 8 | C23: 月 | H23: ～ | O23: ～ | S23: 00:00:00
A24: 9 | C24: 火 | H24: ～ | O24: ～ | S24: 00:00:00
A25: 10 | C25: 水 | H25: ～ | O25: ～ | S25: 00:00:00
A26: 11 | C26: 木 | H26: ～ | O26: ～ | S26: 00:00:00
A27: 12 | C27: 金 | H27: ～ | O27: ～ | S27: 00:00:00
A28: 13 | C28: 土 | H28: ～ | O28: ～ | S28: 00:00:00
A29: 14 | C29: 日 | H29: ～ | O29: ～ | S29: 00:00:00
A30: 15 | C30: 月 | H30: ～ | O30: ～ | S30: 00:00:00
A31: 16 | C31: 火 | H31: ～ | O31: ～ | S31: 00:00:00
A32: 17 | C32: 水 | H32: ～ | O32: ～ | S32: 00:00:00
A33: 18 | C33: 木 | H33: ～ | O33: ～ | S33: 00:00:00
A34: 19 | C34: 金 | H34: ～ | O34: ～ | S34: 00:00:00
A35: 20 | C35: 土 | H35: ～ | O35: ～ | S35: 00:00:00
A36: 21 | C36: 日 | H36: ～ | O36: ～ | S36: 00:00:00
A37: 22 | C37: 月 | H37: ～ | O37: ～ | S37: 00:00:00
A38: 23 | C38: 火 | H38: ～ | O38: ～ | S38: 00:00:00
A39: 24 | C39: 水 | H39: ～ | O39: ～ | S39: 00:00:00
A40: 25 | C40: 木 | H40: ～ | O40: ～ | S40: 00:00:00
A41: 26 | C41: 金 | H41: ～ | O41: ～ | S41: 00:00:00
A42: 27 | C42: 土 | H42: ～ | O42: ～ | S42: 00:00:00
A43: 28 | C43: 日 | H43: ～ | O43: ～ | S43: 00:00:00
A44: 29 | C44: 月 | H44: ～ | O44: ～ | S44: 00:00:00
H45: ～ | O45: ～ | S45: 00:00:00
H46: ～ | O46: ～ | S46: 00:00:00 | BK46: =RIGHT(V46,2) -> 
S47: =SUM(S16:U46) -> 0 | AG47: 赤字変更内容については口頭命令済 | AL47: 校長
AL48: . .
A49: 月 | D49: 4 | F49: 5 | H49: 6 | J49: 7 | L49: 8 | N49: 9 | P49: 10 | R49: 11 | T49: 12 | V49: 1 | X49: 2 | Z49: 3 | AB49: 計
A50: 時間 | D50: ='４実績'!D50 -> 0 | F50: ='５実績'!F50 -> 0 | H50: ='6実績'!H50 -> 0 | J50: ='7実績'!J50 -> 0 | L50: ='8実績'!L50:M50 -> 0 | N50: ='9実績'!N50:O50 -> 0 | P50: ='10実績'!P50:Q50 -> 0 | R50: ='11実績'!R50:S50 -> 0 | T50: ='12実績'!T50:U50 -> 0 | V50: ='1実績'!V50:W50 -> 0 | X50: =S47 -> 0 | AB50: =SUM(D50:AA50) -> 0 | AG50: 時間
A51: 活動日数 | D51: ='４実績'!D51 -> 0 | F51: ='５実績'!F51 -> 0 | H51: ='6実績'!H51 -> 0 | J51: ='7実績'!J51 -> 0 | L51: ='8実績'!L51:M51 -> 0 | N51: ='9実績'!N51:O51 -> 0 | P51: ='10実績'!P51:Q51 -> 0 | R51: ='11実績'!R51:S51 -> 0 | T51: ='12実績'!T51:U51 -> 0 | V51: ='1実績'!V51:W51 -> 0 | X51: =COUNTIF(S16:U46,">0") -> 0 | AB51: =SUM(D51:AA51) -> 0 | AG51: 活動日数
A52: 休養日数 | D52: ='４実績'!D52 -> 30 | F52: ='５実績'!F52 -> 31 | H52: ='6実績'!H52 -> 30 | J52: ='7実績'!J52 -> 31 | L52: ='8実績'!L52:M52 -> 31 | N52: ='9実績'!N52:O52 -> 30 | P52: ='10実績'!P52:Q52 -> 31 | R52: ='11実績'!R52:S52 -> 30 | T52: ='12実績'!T52:U52 -> 31 | V52: ='1実績'!V52:W52 -> 31 | X52: =COUNTIF(S16:U43,"0:00") -> 28 | AB52: =SUM(D52:AA52) -> 334 | AG52: 休養日数
AB53: =AB50/AB51 ->  | AG53: 平均時間/日

Sheet 3計画
AS1: ='4計画'!AQ1+1 -> 2021
A2: 校長 | E2: 教頭 | I2: 教頭 | M2: 主幹教諭 | U2: 顧問 | Z2: 学校名 | AC2: =IF('2実績'!AC2="","",'2実績'!AC2) -> 0 | AM2: 学校
A3: 印 | E3: 印 | I3: 印 | M3: 印 | Q3: 印 | U3: 印
Z4: 部活動名 | AC4: =IF('2実績'!AC4="","",'2実績'!AC4) -> 0 | AM4: 部
A7: 3 | F7: 月 | I7: 〈月間〉部活動計画・活動実績 | Y7: 部員数 | AB7: 1女 | AD7: 2女 | AF7: 3女 | AH7: 1男 | AJ7: 2男 | AL7: 3男 | AN7: 計
AB8: =IF('2実績'!AB8="","",'2実績'!AB8) -> 0 | AD8: =IF('2実績'!AD8="","",'2実績'!AD8) -> 0 | AF8: =IF('2実績'!AF8="","",'2実績'!AF8) -> 0 | AH8: =IF('2実績'!AH8="","",'2実績'!AH8) -> 0 | AJ8: =IF('2実績'!AJ8="","",'2実績'!AJ8) -> 0 | AL8: =IF('2実績'!AL8="","",'2実績'!AL8) -> 0 | AN8: =SUM(AB8:AM8) -> 0
B10: 職名 | D10: =IF('2実績'!D10="","",'2実績'!D10) -> 0 | I10: 顧問 | K10: =IF('2実績'!K10="","",'2実績'!K10) -> 0 | V10: 職名 | X10: =IF('2実績'!X10="","",'2実績'!X10) -> 0 | AC10: 副２ | AE10: =IF('2実績'!AE10="","",'2実績'!AE10) -> 0
B12: 職名 | D12: =IF('2実績'!D12="","",'2実績'!D12) -> 0 | I12: 副顧問 | K12: =IF('2実績'!K12="","",'2実績'!K12) -> 0 | V12: 職名 | X12: =IF('2実績'!X12="","",'2実績'!X12) -> 0 | AC12: 副３ | AE12: =IF('2実績'!AE12="","",'2実績'!AE12) -> 0
A15: 日 | C15: 曜 | E15: ＡＭ | L15: ＰＭ | S15: 時間 | V15: 内容（練習・大会・OFF等） | AH15: 場所
A16: 1 | C16: =IF(A16="","",TEXT(DATE($AS$1,$A$7,A16),"aaa")) -> 月 | H16: ～ | O16: ～ | S16: =(I16-E16)+(P16-L16) -> 00:00:00
A17: 2 | C17: =IF(A17="","",TEXT(DATE($AS$1,$A$7,A17),"aaa")) -> 火 | H17: ～ | O17: ～ | S17: 00:00:00
A18: 3 | C18: 水 | H18: ～ | O18: ～ | S18: 00:00:00
A19: 4 | C19: 木 | H19: ～ | O19: ～ | S19: 00:00:00
A20: 5 | C20: 金 | H20: ～ | O20: ～ | S20: 00:00:00
A21: 6 | C21: 土 | H21: ～ | O21: ～ | S21: 00:00:00
A22: 7 | C22: 日 | H22: ～ | O22: ～ | S22: 00:00:00
A23: 8 | C23: 月 | H23: ～ | O23: ～ | S23: 00:00:00
A24: 9 | C24: 火 | H24: ～ | O24: ～ | S24: 00:00:00
A25: 10 | C25: 水 | H25: ～ | O25: ～ | S25: 00:00:00
A26: 11 | C26: 木 | H26: ～ | O26: ～ | S26: 00:00:00
A27: 12 | C27: 金 | H27: ～ | O27: ～ | S27: 00:00:00
A28: 13 | C28: 土 | H28: ～ | O28: ～ | S28: 00:00:00
A29: 14 | C29: 日 | H29: ～ | O29: ～ | S29: 00:00:00
A30: 15 | C30: 月 | H30: ～ | O30: ～ | S30: 00:00:00
A31: 16 | C31: 火 | H31: ～ | O31: ～ | S31: 00:00:00
A32: 17 | C32: 水 | H32: ～ | O32: ～ | S32: 00:00:00
A33: 18 | C33: 木 | H33: ～ | O33: ～ | S33: 00:00:00
A34: 19 | C34: 金 | H34: ～ | O34: ～ | S34: 00:00:00
A35: 20 | C35: 土 | H35: ～ | O35: ～ | S35: 00:00:00
A36: 21 | C36: 日 | H36: ～ | O36: ～ | S36: 00:00:00
A37: 22 | C37: 月 | H37: ～ | O37: ～ | S37: 00:00:00
A38: 23 | C38: 火 | H38: ～ | O38: ～ | S38: 00:00:00
A39: 24 | C39: 水 | H39: ～ | O39: ～ | S39: 00:00:00
A40: 25 | C40: 木 | H40: ～ | O40: ～ | S40: 00:00:00
A41: 26 | C41: 金 | H41: ～ | O41: ～ | S41: 00:00:00
A42: 27 | C42: 土 | H42: ～ | O42: ～ | S42: 00:00:00
A43: 28 | C43: 日 | H43: ～ | O43: ～ | S43: 00:00:00
A44: 29 | C44: 月 | H44: ～ | O44: ～ | S44: 00:00:00
A45: 30 | C45: 火 | H45: ～ | O45: ～ | S45: 00:00:00
A46: 31 | C46: 水 | H46: ～ | O46: ～ | S46: 00:00:00 | BK46: =RIGHT(V46,2) -> 
S47: =SUM(S16:U46) -> 0 | AG47: 赤字変更内容については口頭命令済 | AL47: 校長
AL48: . .
A49: 月 | D49: 4 | F49: 5 | H49: 6 | J49: 7 | L49: 8 | N49: 9 | P49: 10 | R49: 11 | T49: 12 | V49: 1 | X49: 2 | Z49: 3 | AB49: 計
A50: 時間 | D50: ='４実績'!D50 -> 0 | F50: ='５実績'!F50 -> 0 | H50: ='6実績'!H50 -> 0 | J50: ='7実績'!J50 -> 0 | L50: ='8実績'!L50:M50 -> 0 | N50: ='9実績'!N50:O50 -> 0 | P50: ='10実績'!P50:Q50 -> 0 | R50: ='11実績'!R50:S50 -> 0 | T50: ='12実績'!T50:U50 -> 0 | V50: ='1実績'!V50:W50 -> 0 | X50: ='2実績'!X50:Y50 -> 0 | Z50: =S47 -> 0 | AB50: =SUM(D50:AA50) -> 0 | AG50: 時間
A51: 活動日数 | D51: ='４実績'!D51 -> 0 | F51: ='５実績'!F51 -> 0 | H51: ='6実績'!H51 -> 0 | J51: ='7実績'!J51 -> 0 | L51: ='8実績'!L51:M51 -> 0 | N51: ='9実績'!N51:O51 -> 0 | P51: ='10実績'!P51:Q51 -> 0 | R51: ='11実績'!R51:S51 -> 0 | T51: ='12実績'!T51:U51 -> 0 | V51: ='1実績'!V51:W51 -> 0 | X51: ='2実績'!X51:Y51 -> 0 | Z51: =COUNTIF(S16:U46,">0") -> 0 | AB51: =SUM(D51:AA51) -> 0 | AG51: 活動日数
A52: 休養日数 | D52: ='４実績'!D52 -> 30 | F52: ='５実績'!F52 -> 31 | H52: ='6実績'!H52 -> 30 | J52: ='7実績'!J52 -> 31 | L52: ='8実績'!L52:M52 -> 31 | N52: ='9実績'!N52:O52 -> 30 | P52: ='10実績'!P52:Q52 -> 31 | R52: ='11実績'!R52:S52 -> 30 | T52: ='12実績'!T52:U52 -> 31 | V52: ='1実績'!V52:W52 -> 31 | X52: ='2実績'!X52:Y52 -> 28 | Z52: =COUNTIF(S16:U46,"0:00") -> 31 | AB52: =SUM(D52:AA52) -> 365 | AG52: 休養日数
AB53: =AB50/AB51 ->  | AG53: 平均時間/日

Sheet ４実績
A2: ='4計画'!A2:D2 -> 校長 | E2: ='4計画'!E2:H2 -> 教頭 | I2: ='4計画'!I2:L2 -> 教頭 | M2: ='4計画'!M2:P2 -> 主幹教諭 | Q2: ='4計画'!Q2:T2 -> 0 | U2: ='4計画'!U2:X2 -> 顧問 | Z2: 学校名 | AC2: ='4計画'!AC2:AL3 -> 0 | AM2: 学校 | BU2: ='4計画'!BU2:BX2 -> 0 | BY2: ='4計画'!BY2:CB2 -> 0 | CC2: ='4計画'!CC2:CF2 -> 0 | CG2: ='4計画'!CG2:CJ2 -> 0 | CK2: ='4計画'!CK2:CN2 -> 0 | CO2: ='4計画'!CO2:CR2 -> 0 | CW2: ='4計画'!CW2:DF3 -> 0
A3: 印 | E3: 印 | I3: 印 | M3: 印 | Q3: 印 | U3: 印
Z4: 部活動名 | AC4: ='4計画'!AC4:AL5 -> 0 | AM4: 部 | CW4: ='4計画'!CW4:DF5 -> 0
A6: ※活動計画と違う内容については、校長口頭命令済み
A7: 4 | F7: 月 | I7: 〈月間〉部活動計画・活動実績 | Y7: 部員数 | AB7: 1女 | AD7: 2女 | AF7: 3女 | AH7: 1男 | AJ7: 2男 | AL7: 3男 | AN7: 計
AB8: ='4計画'!AB8:AC8 -> 0 | AD8: ='4計画'!AD8:AE8 -> 0 | AF8: ='4計画'!AF8:AG8 -> 0 | AH8: ='4計画'!AH8:AI8 -> 0 | AJ8: ='4計画'!AJ8:AK8 -> 0 | AL8: ='4計画'!AL8:AM8 -> 0 | AN8: =SUM(AB8:AM8) -> 0 | CV8: ='4計画'!AB8 -> 0 | CX8: ='4計画'!AD8 -> 0 | CZ8: ='4計画'!AF8 -> 0 | DB8: ='4計画'!AH8 -> 0 | DD8: ='4計画'!AJ8 -> 0 | DF8: ='4計画'!AL8 -> 0 | DH8: =SUM(CV8:DG8) -> 0
B10: 職名 | D10: ='4計画'!D10:H11 -> 0 | I10: 顧問 | K10: ='4計画'!K10:S11 -> 0 | V10: 職名 | X10: ='4計画'!X10:AB11 -> 0 | AC10: 副２ | AE10: ='4計画'!AE10:AM11 -> 0 | AT10: FALSE | BX10: ='4計画'!D10 -> 0 | CE10: ='4計画'!K10 -> 0 | CR10: ='4計画'!X10 -> 0 | CY10: ='4計画'!AE10 -> 0
B12: 職名 | D12: ='4計画'!D12:H13 -> 0 | I12: 副顧問 | K12: ='4計画'!K12:S13 -> 0 | V12: 職名 | X12: ='4計画'!X12:AB13 -> 0 | AC12: 副３ | AE12: ='4計画'!AE12:AM13 -> 0 | BX12: ='4計画'!D12 -> 0 | CE12: ='4計画'!K12 -> 0 | CR12: ='4計画'!X12 -> 0 | CY12: ='4計画'!AE12 -> 0
A15: 日 | C15: 曜 | E15: ＡＭ | L15: ＰＭ | S15: 時間 | V15: 内容（練習・大会・OFF等） | AH15: 場所 | AP15: FALSE | AQ15: 特殊業務
A16: 1 | C16: ='4計画'!C16:D16 -> 水 | E16: ='4計画'!E16:G16 -> 00:00:00 | H16: ～ | I16: ='4計画'!I16:K16 -> 00:00:00 | L16: ='4計画'!L16:N16 -> 00:00:00 | O16: ～ | P16: ='4計画'!P16:R16 -> 00:00:00 | S16: =(I16-E16)+(P16-L16) -> 00:00:00 | V16: ='4計画'!V16:AA16 -> 0 | AB16: ='4計画'!AB16:AG16 -> 0 | AH16: ='4計画'!AH16:AO16 -> 0 | AP16: FALSE | BK16: =RIGHT(V16,2) -> 0 | BW16: ='4計画'!C16 -> 水 | BY16: ='4計画'!E16 -> 00:00:00 | CB16: ～ | CC16: ='4計画'!I16 -> 00:00:00 | CF16: ='4計画'!L16 -> 00:00:00 | CI16: ～ | CJ16: ='4計画'!P16 -> 00:00:00 | CM16: =(CC16-BY16)+(CJ16-CF16) -> 00:00:00 | CP16: ='4計画'!V16 -> 0 | CV16: ='4計画'!AB16 -> 0 | DB16: ='4計画'!AH16 -> 0
A17: 2 | C17: ='4計画'!C17:D17 -> 木 | E17: ='4計画'!E17:G17 -> 00:00:00 | H17: ～ | I17: ='4計画'!I17:K17 -> 00:00:00 | L17: ='4計画'!L17:N17 -> 00:00:00 | O17: ～ | P17: ='4計画'!P17:R17 -> 00:00:00 | S17: 00:00:00 | V17: ='4計画'!V17:AA17 -> 0 | AB17: ='4計画'!AB17:AG17 -> 0 | AH17: ='4計画'!AH17:AO17 -> 0 | AP17: FALSE | BK17: =RIGHT(V17,2) -> 0 | BW17: ='4計画'!C17 -> 木 | BY17: ='4計画'!E17 -> 00:00:00 | CB17: ～ | CC17: ='4計画'!I17 -> 00:00:00 | CF17: ='4計画'!L17 -> 00:00:00 | CI17: ～ | CJ17: ='4計画'!P17 -> 00:00:00 | CM17: 00:00:00 | CP17: ='4計画'!V17 -> 0 | CV17: ='4計画'!AB17 -> 0 | DB17: ='4計画'!AH17 -> 0
A18: 3 | C18: ='4計画'!C18:D18 -> 金 | E18: ='4計画'!E18:G18 -> 00:00:00 | H18: ～ | I18: ='4計画'!I18:K18 -> 00:00:00 | L18: ='4計画'!L18:N18 -> 00:00:00 | O18: ～ | P18: ='4計画'!P18:R18 -> 00:00:00 | S18: 00:00:00 | V18: ='4計画'!V18:AA18 -> 0 | AB18: ='4計画'!AB18:AG18 -> 0 | AH18: ='4計画'!AH18:AO18 -> 0 | AP18: FALSE | BK18: 0 | BW18: ='4計画'!C18 -> 金 | BY18: ='4計画'!E18 -> 00:00:00 | CB18: ～ | CC18: ='4計画'!I18 -> 00:00:00 | CF18: ='4計画'!L18 -> 00:00:00 | CI18: ～ | CJ18: ='4計画'!P18 -> 00:00:00 | CM18: 00:00:00 | CP18: ='4計画'!V18 -> 0 | CV18: ='4計画'!AB18 -> 0 | DB18: ='4計画'!AH18 -> 0
A19: 4 | C19: ='4計画'!C19:D19 -> 土 | E19: ='4計画'!E19:G19 -> 00:00:00 | H19: ～ | I19: ='4計画'!I19:K19 -> 00:00:00 | L19: ='4計画'!L19:N19 -> 00:00:00 | O19: ～ | P19: ='4計画'!P19:R19 -> 00:00:00 | S19: 00:00:00 | V19: ='4計画'!V19:AA19 -> 0 | AB19: ='4計画'!AB19:AG19 -> 0 | AH19: ='4計画'!AH19:AO19 -> 0 | AP19: FALSE | BK19: 0 | BW19: ='4計画'!C19 -> 土 | BY19: ='4計画'!E19 -> 00:00:00 | CB19: ～ | CC19: ='4計画'!I19 -> 00:00:00 | CF19: ='4計画'!L19 -> 00:00:00 | CI19: ～ | CJ19: ='4計画'!P19 -> 00:00:00 | CM19: 00:00:00 | CP19: ='4計画'!V19 -> 0 | CV19: ='4計画'!AB19 -> 0 | DB19: ='4計画'!AH19 -> 0
A20: 5 | C20: ='4計画'!C20:D20 -> 日 | E20: ='4計画'!E20:G20 -> 00:00:00 | H20: ～ | I20: ='4計画'!I20:K20 -> 00:00:00 | L20: ='4計画'!L20:N20 -> 00:00:00 | O20: ～ | P20: ='4計画'!P20:R20 -> 00:00:00 | S20: 00:00:00 | V20: ='4計画'!V20:AA20 -> 0 | AB20: ='4計画'!AB20:AG20 -> 0 | AH20: ='4計画'!AH20:AO20 -> 0 | AP20: FALSE | BK20: 0 | BW20: ='4計画'!C20 -> 日 | BY20: ='4計画'!E20 -> 00:00:00 | CB20: ～ | CC20: ='4計画'!I20 -> 00:00:00 | CF20: ='4計画'!L20 -> 00:00:00 | CI20: ～ | CJ20: ='4計画'!P20 -> 00:00:00 | CM20: 00:00:00 | CP20: ='4計画'!V20 -> 0 | CV20: ='4計画'!AB20 -> 0 | DB20: ='4計画'!AH20 -> 0
A21: 6 | C21: ='4計画'!C21:D21 -> 月 | E21: ='4計画'!E21:G21 -> 00:00:00 | H21: ～ | I21: ='4計画'!I21:K21 -> 00:00:00 | L21: ='4計画'!L21:N21 -> 00:00:00 | O21: ～ | P21: ='4計画'!P21:R21 -> 00:00:00 | S21: 00:00:00 | V21: ='4計画'!V21:AA21 -> 0 | AB21: ='4計画'!AB21:AG21 -> 0 | AH21: ='4計画'!AH21:AO21 -> 0 | AP21: FALSE | BK21: 0 | BW21: ='4計画'!C21 -> 月 | BY21: ='4計画'!E21 -> 00:00:00 | CB21: ～ | CC21: ='4計画'!I21 -> 00:00:00 | CF21: ='4計画'!L21 -> 00:00:00 | CI21: ～ | CJ21: ='4計画'!P21 -> 00:00:00 | CM21: 00:00:00 | CP21: ='4計画'!V21 -> 0 | CV21: ='4計画'!AB21 -> 0 | DB21: ='4計画'!AH21 -> 0
A22: 7 | C22: ='4計画'!C22:D22 -> 火 | E22: ='4計画'!E22:G22 -> 00:00:00 | H22: ～ | I22: ='4計画'!I22:K22 -> 00:00:00 | L22: ='4計画'!L22:N22 -> 00:00:00 | O22: ～ | P22: ='4計画'!P22:R22 -> 00:00:00 | S22: 00:00:00 | V22: ='4計画'!V22:AA22 -> 0 | AB22: ='4計画'!AB22:AG22 -> 0 | AH22: ='4計画'!AH22:AO22 -> 0 | AP22: FALSE | BK22: 0 | BW22: ='4計画'!C22 -> 火 | BY22: ='4計画'!E22 -> 00:00:00 | CB22: ～ | CC22: ='4計画'!I22 -> 00:00:00 | CF22: ='4計画'!L22 -> 00:00:00 | CI22: ～ | CJ22: ='4計画'!P22 -> 00:00:00 | CM22: 00:00:00 | CP22: ='4計画'!V22 -> 0 | CV22: ='4計画'!AB22 -> 0 | DB22: ='4計画'!AH22 -> 0
A23: 8 | C23: ='4計画'!C23:D23 -> 水 | E23: ='4計画'!E23:G23 -> 00:00:00 | H23: ～ | I23: ='4計画'!I23:K23 -> 00:00:00 | L23: ='4計画'!L23:N23 -> 00:00:00 | O23: ～ | P23: ='4計画'!P23:R23 -> 00:00:00 | S23: 00:00:00 | V23: ='4計画'!V23:AA23 -> 0 | AB23: ='4計画'!AB23:AG23 -> 0 | AH23: ='4計画'!AH23:AO23 -> 0 | AP23: FALSE | BK23: 0 | BW23: ='4計画'!C23 -> 水 | BY23: ='4計画'!E23 -> 00:00:00 | CB23: ～ | CC23: ='4計画'!I23 -> 00:00:00 | CF23: ='4計画'!L23 -> 00:00:00 | CI23: ～ | CJ23: ='4計画'!P23 -> 00:00:00 | CM23: 00:00:00 | CP23: ='4計画'!V23 -> 0 | CV23: ='4計画'!AB23 -> 0 | DB23: ='4計画'!AH23 -> 0
A24: 9 | C24: ='4計画'!C24:D24 -> 木 | E24: ='4計画'!E24:G24 -> 00:00:00 | H24: ～ | I24: ='4計画'!I24:K24 -> 00:00:00 | L24: ='4計画'!L24:N24 -> 00:00:00 | O24: ～ | P24: ='4計画'!P24:R24 -> 00:00:00 | S24: 00:00:00 | V24: ='4計画'!V24:AA24 -> 0 | AB24: ='4計画'!AB24:AG24 -> 0 | AH24: ='4計画'!AH24:AO24 -> 0 | AP24: FALSE | BK24: 0 | BW24: ='4計画'!C24 -> 木 | BY24: ='4計画'!E24 -> 00:00:00 | CB24: ～ | CC24: ='4計画'!I24 -> 00:00:00 | CF24: ='4計画'!L24 -> 00:00:00 | CI24: ～ | CJ24: ='4計画'!P24 -> 00:00:00 | CM24: 00:00:00 | CP24: ='4計画'!V24 -> 0 | CV24: ='4計画'!AB24 -> 0 | DB24: ='4計画'!AH24 -> 0
A25: 10 | C25: ='4計画'!C25:D25 -> 金 | E25: ='4計画'!E25:G25 -> 00:00:00 | H25: ～ | I25: ='4計画'!I25:K25 -> 00:00:00 | L25: ='4計画'!L25:N25 -> 00:00:00 | O25: ～ | P25: ='4計画'!P25:R25 -> 00:00:00 | S25: 00:00:00 | V25: ='4計画'!V25:AA25 -> 0 | AB25: ='4計画'!AB25:AG25 -> 0 | AH25: ='4計画'!AH25:AO25 -> 0 | AP25: FALSE | BK25: 0 | BW25: ='4計画'!C25 -> 金 | BY25: ='4計画'!E25 -> 00:00:00 | CB25: ～ | CC25: ='4計画'!I25 -> 00:00:00 | CF25: ='4計画'!L25 -> 00:00:00 | CI25: ～ | CJ25: ='4計画'!P25 -> 00:00:00 | CM25: 00:00:00 | CP25: ='4計画'!V25 -> 0 | CV25: ='4計画'!AB25 -> 0 | DB25: ='4計画'!AH25 -> 0
A26: 11 | C26: ='4計画'!C26:D26 -> 土 | E26: ='4計画'!E26:G26 -> 00:00:00 | H26: ～ | I26: ='4計画'!I26:K26 -> 00:00:00 | L26: ='4計画'!L26:N26 -> 00:00:00 | O26: ～ | P26: ='4計画'!P26:R26 -> 00:00:00 | S26: 00:00:00 | V26: ='4計画'!V26:AA26 -> 0 | AB26: ='4計画'!AB26:AG26 -> 0 | AH26: ='4計画'!AH26:AO26 -> 0 | AP26: FALSE | BK26: 0 | BW26: ='4計画'!C26 -> 土 | BY26: ='4計画'!E26 -> 00:00:00 | CB26: ～ | CC26: ='4計画'!I26 -> 00:00:00 | CF26: ='4計画'!L26 -> 00:00:00 | CI26: ～ | CJ26: ='4計画'!P26 -> 00:00:00 | CM26: 00:00:00 | CP26: ='4計画'!V26 -> 0 | CV26: ='4計画'!AB26 -> 0 | DB26: ='4計画'!AH26 -> 0
A27: 12 | C27: ='4計画'!C27:D27 -> 日 | E27: ='4計画'!E27:G27 -> 00:00:00 | H27: ～ | I27: ='4計画'!I27:K27 -> 00:00:00 | L27: ='4計画'!L27:N27 -> 00:00:00 | O27: ～ | P27: ='4計画'!P27:R27 -> 00:00:00 | S27: 00:00:00 | V27: ='4計画'!V27:AA27 -> 0 | AB27: ='4計画'!AB27:AG27 -> 0 | AH27: ='4計画'!AH27:AO27 -> 0 | AP27: FALSE | BK27: 0 | BW27: ='4計画'!C27 -> 日 | BY27: ='4計画'!E27 -> 00:00:00 | CB27: ～ | CC27: ='4計画'!I27 -> 00:00:00 | CF27: ='4計画'!L27 -> 00:00:00 | CI27: ～ | CJ27: ='4計画'!P27 -> 00:00:00 | CM27: 00:00:00 | CP27: ='4計画'!V27 -> 0 | CV27: ='4計画'!AB27 -> 0 | DB27: ='4計画'!AH27 -> 0
A28: 13 | C28: ='4計画'!C28:D28 -> 月 | E28: ='4計画'!E28:G28 -> 00:00:00 | H28: ～ | I28: ='4計画'!I28:K28 -> 00:00:00 | L28: ='4計画'!L28:N28 -> 00:00:00 | O28: ～ | P28: ='4計画'!P28:R28 -> 00:00:00 | S28: 00:00:00 | V28: ='4計画'!V28:AA28 -> 0 | AB28: ='4計画'!AB28:AG28 -> 0 | AH28: ='4計画'!AH28:AO28 -> 0 | AP28: FALSE | BK28: 0 | BW28: ='4計画'!C28 -> 月 | BY28: ='4計画'!E28 -> 00:00:00 | CB28: ～ | CC28: ='4計画'!I28 -> 00:00:00 | CF28: ='4計画'!L28 -> 00:00:00 | CI28: ～ | CJ28: ='4計画'!P28 -> 00:00:00 | CM28: 00:00:00 | CP28: ='4計画'!V28 -> 0 | CV28: ='4計画'!AB28 -> 0 | DB28: ='4計画'!AH28 -> 0
A29: 14 | C29: ='4計画'!C29:D29 -> 火 | E29: ='4計画'!E29:G29 -> 00:00:00 | H29: ～ | I29: ='4計画'!I29:K29 -> 00:00:00 | L29: ='4計画'!L29:N29 -> 00:00:00 | O29: ～ | P29: ='4計画'!P29:R29 -> 00:00:00 | S29: 00:00:00 | V29: ='4計画'!V29:AA29 -> 0 | AB29: ='4計画'!AB29:AG29 -> 0 | AH29: ='4計画'!AH29:AO29 -> 0 | AP29: FALSE | BK29: 0 | BW29: ='4計画'!C29 -> 火 | BY29: ='4計画'!E29 -> 00:00:00 | CB29: ～ | CC29: ='4計画'!I29 -> 00:00:00 | CF29: ='4計画'!L29 -> 00:00:00 | CI29: ～ | CJ29: ='4計画'!P29 -> 00:00:00 | CM29: 00:00:00 | CP29: ='4計画'!V29 -> 0 | CV29: ='4計画'!AB29 -> 0 | DB29: ='4計画'!AH29 -> 0
A30: 15 | C30: ='4計画'!C30:D30 -> 水 | E30: ='4計画'!E30:G30 -> 00:00:00 | H30: ～ | I30: ='4計画'!I30:K30 -> 00:00:00 | L30: ='4計画'!L30:N30 -> 00:00:00 | O30: ～ | P30: ='4計画'!P30:R30 -> 00:00:00 | S30: 00:00:00 | V30: ='4計画'!V30:AA30 -> 0 | AB30: ='4計画'!AB30:AG30 -> 0 | AH30: ='4計画'!AH30:AO30 -> 0 | AP30: FALSE | BK30: 0 | BW30: ='4計画'!C30 -> 水 | BY30: ='4計画'!E30 -> 00:00:00 | CB30: ～ | CC30: ='4計画'!I30 -> 00:00:00 | CF30: ='4計画'!L30 -> 00:00:00 | CI30: ～ | CJ30: ='4計画'!P30 -> 00:00:00 | CM30: 00:00:00 | CP30: ='4計画'!V30 -> 0 | CV30: ='4計画'!AB30 -> 0 | DB30: ='4計画'!AH30 -> 0
A31: 16 | C31: ='4計画'!C31:D31 -> 木 | E31: ='4計画'!E31:G31 -> 00:00:00 | H31: ～ | I31: ='4計画'!I31:K31 -> 00:00:00 | L31: ='4計画'!L31:N31 -> 00:00:00 | O31: ～ | P31: ='4計画'!P31:R31 -> 00:00:00 | S31: 00:00:00 | V31: ='4計画'!V31:AA31 -> 0 | AB31: ='4計画'!AB31:AG31 -> 0 | AH31: ='4計画'!AH31:AO31 -> 0 | AP31: FALSE | BK31: 0 | BW31: ='4計画'!C31 -> 木 | BY31: ='4計画'!E31 -> 00:00:00 | CB31: ～ | CC31: ='4計画'!I31 -> 00:00:00 | CF31: ='4計画'!L31 -> 00:00:00 | CI31: ～ | CJ31: ='4計画'!P31 -> 00:00:00 | CM31: 00:00:00 | CP31: ='4計画'!V31 -> 0 | CV31: ='4計画'!AB31 -> 0 | DB31: ='4計画'!AH31 -> 0
A32: 17 | C32: ='4計画'!C32:D32 -> 金 | E32: ='4計画'!E32:G32 -> 00:00:00 | H32: ～ | I32: ='4計画'!I32:K32 -> 00:00:00 | L32: ='4計画'!L32:N32 -> 00:00:00 | O32: ～ | P32: ='4計画'!P32:R32 -> 00:00:00 | S32: 00:00:00 | V32: ='4計画'!V32:AA32 -> 0 | AB32: ='4計画'!AB32:AG32 -> 0 | AH32: ='4計画'!AH32:AO32 -> 0 | AP32: FALSE | BK32: 0 | BW32: ='4計画'!C32 -> 金 | BY32: ='4計画'!E32 -> 00:00:00 | CB32: ～ | CC32: ='4計画'!I32 -> 00:00:00 | CF32: ='4計画'!L32 -> 00:00:00 | CI32: ～ | CJ32: ='4計画'!P32 -> 00:00:00 | CM32: 00:00:00 | CP32: ='4計画'!V32 -> 0 | CV32: ='4計画'!AB32 -> 0 | DB32: ='4計画'!AH32 -> 0
A33: 18 | C33: ='4計画'!C33:D33 -> 土 | E33: ='4計画'!E33:G33 -> 00:00:00 | H33: ～ | I33: ='4計画'!I33:K33 -> 00:00:00 | L33: ='4計画'!L33:N33 -> 00:00:00 | O33: ～ | P33: ='4計画'!P33:R33 -> 00:00:00 | S33: 00:00:00 | V33: ='4計画'!V33:AA33 -> 0 | AB33: ='4計画'!AB33:AG33 -> 0 | AH33: ='4計画'!AH33:AO33 -> 0 | AP33: FALSE | BK33: 0 | BW33: ='4計画'!C33 -> 土 | BY33: ='4計画'!E33 -> 00:00:00 | CB33: ～ | CC33: ='4計画'!I33 -> 00:00:00 | CF33: ='4計画'!L33 -> 00:00:00 | CI33: ～ | CJ33: ='4計画'!P33 -> 00:00:00 | CM33: 00:00:00 | CP33: ='4計画'!V33 -> 0 | CV33: ='4計画'!AB33 -> 0 | DB33: ='4計画'!AH33 -> 0
A34: 19 | C34: ='4計画'!C34:D34 -> 日 | E34: ='4計画'!E34:G34 -> 00:00:00 | H34: ～ | I34: ='4計画'!I34:K34 -> 00:00:00 | L34: ='4計画'!L34:N34 -> 00:00:00 | O34: ～ | P34: ='4計画'!P34:R34 -> 00:00:00 | S34: 00:00:00 | V34: ='4計画'!V34:AA34 -> 0 | AB34: ='4計画'!AB34:AG34 -> 0 | AH34: ='4計画'!AH34:AO34 -> 0 | AP34: FALSE | BK34: 0 | BW34: ='4計画'!C34 -> 日 | BY34: ='4計画'!E34 -> 00:00:00 | CB34: ～ | CC34: ='4計画'!I34 -> 00:00:00 | CF34: ='4計画'!L34 -> 00:00:00 | CI34: ～ | CJ34: ='4計画'!P34 -> 00:00:00 | CM34: 00:00:00 | CP34: ='4計画'!V34 -> 0 | CV34: ='4計画'!AB34 -> 0 | DB34: ='4計画'!AH34 -> 0
A35: 20 | C35: ='4計画'!C35:D35 -> 月 | E35: ='4計画'!E35:G35 -> 00:00:00 | H35: ～ | I35: ='4計画'!I35:K35 -> 00:00:00 | L35: ='4計画'!L35:N35 -> 00:00:00 | O35: ～ | P35: ='4計画'!P35:R35 -> 00:00:00 | S35: 00:00:00 | V35: ='4計画'!V35:AA35 -> 0 | AB35: ='4計画'!AB35:AG35 -> 0 | AH35: ='4計画'!AH35:AO35 -> 0 | AP35: FALSE | BK35: 0 | BW35: ='4計画'!C35 -> 月 | BY35: ='4計画'!E35 -> 00:00:00 | CB35: ～ | CC35: ='4計画'!I35 -> 00:00:00 | CF35: ='4計画'!L35 -> 00:00:00 | CI35: ～ | CJ35: ='4計画'!P35 -> 00:00:00 | CM35: 00:00:00 | CP35: ='4計画'!V35 -> 0 | CV35: ='4計画'!AB35 -> 0 | DB35: ='4計画'!AH35 -> 0
A36: 21 | C36: ='4計画'!C36:D36 -> 火 | E36: ='4計画'!E36:G36 -> 00:00:00 | H36: ～ | I36: ='4計画'!I36:K36 -> 00:00:00 | L36: ='4計画'!L36:N36 -> 00:00:00 | O36: ～ | P36: ='4計画'!P36:R36 -> 00:00:00 | S36: 00:00:00 | V36: ='4計画'!V36:AA36 -> 0 | AB36: ='4計画'!AB36:AG36 -> 0 | AH36: ='4計画'!AH36:AO36 -> 0 | AP36: FALSE | BK36: 0 | BW36: ='4計画'!C36 -> 火 | BY36: ='4計画'!E36 -> 00:00:00 | CB36: ～ | CC36: ='4計画'!I36 -> 00:00:00 | CF36: ='4計画'!L36 -> 00:00:00 | CI36: ～ | CJ36: ='4計画'!P36 -> 00:00:00 | CM36: 00:00:00 | CP36: ='4計画'!V36 -> 0 | CV36: ='4計画'!AB36 -> 0 | DB36: ='4計画'!AH36 -> 0
A37: 22 | C37: ='4計画'!C37:D37 -> 水 | E37: ='4計画'!E37:G37 -> 00:00:00 | H37: ～ | I37: ='4計画'!I37:K37 -> 00:00:00 | L37: ='4計画'!L37:N37 -> 00:00:00 | O37: ～ | P37: ='4計画'!P37:R37 -> 00:00:00 | S37: 00:00:00 | V37: ='4計画'!V37:AA37 -> 0 | AB37: ='4計画'!AB37:AG37 -> 0 | AH37: ='4計画'!AH37:AO37 -> 0 | AP37: FALSE | BK37: 0 | BW37: ='4計画'!C37 -> 水 | BY37: ='4計画'!E37 -> 00:00:00 | CB37: ～ | CC37: ='4計画'!I37 -> 00:00:00 | CF37: ='4計画'!L37 -> 00:00:00 | CI37: ～ | CJ37: ='4計画'!P37 -> 00:00:00 | CM37: 00:00:00 | CP37: ='4計画'!V37 -> 0 | CV37: ='4計画'!AB37 -> 0 | DB37: ='4計画'!AH37 -> 0
A38: 23 | C38: ='4計画'!C38:D38 -> 木 | E38: ='4計画'!E38:G38 -> 00:00:00 | H38: ～ | I38: ='4計画'!I38:K38 -> 00:00:00 | L38: ='4計画'!L38:N38 -> 00:00:00 | O38: ～ | P38: ='4計画'!P38:R38 -> 00:00:00 | S38: 00:00:00 | V38: ='4計画'!V38:AA38 -> 0 | AB38: ='4計画'!AB38:AG38 -> 0 | AH38: ='4計画'!AH38:AO38 -> 0 | AP38: FALSE | BK38: 0 | BW38: ='4計画'!C38 -> 木 | BY38: ='4計画'!E38 -> 00:00:00 | CB38: ～ | CC38: ='4計画'!I38 -> 00:00:00 | CF38: ='4計画'!L38 -> 00:00:00 | CI38: ～ | CJ38: ='4計画'!P38 -> 00:00:00 | CM38: 00:00:00 | CP38: ='4計画'!V38 -> 0 | CV38: ='4計画'!AB38 -> 0 | DB38: ='4計画'!AH38 -> 0
A39: 24 | C39: ='4計画'!C39:D39 -> 金 | E39: ='4計画'!E39:G39 -> 00:00:00 | H39: ～ | I39: ='4計画'!I39:K39 -> 00:00:00 | L39: ='4計画'!L39:N39 -> 00:00:00 | O39: ～ | P39: ='4計画'!P39:R39 -> 00:00:00 | S39: 00:00:00 | V39: ='4計画'!V39:AA39 -> 0 | AB39: ='4計画'!AB39:AG39 -> 0 | AH39: ='4計画'!AH39:AO39 -> 0 | AP39: FALSE | BK39: 0 | BW39: ='4計画'!C39 -> 金 | BY39: ='4計画'!E39 -> 00:00:00 | CB39: ～ | CC39: ='4計画'!I39 -> 00:00:00 | CF39: ='4計画'!L39 -> 00:00:00 | CI39: ～ | CJ39: ='4計画'!P39 -> 00:00:00 | CM39: 00:00:00 | CP39: ='4計画'!V39 -> 0 | CV39: ='4計画'!AB39 -> 0 | DB39: ='4計画'!AH39 -> 0
A40: 25 | C40: ='4計画'!C40:D40 -> 土 | E40: ='4計画'!E40:G40 -> 00:00:00 | H40: ～ | I40: ='4計画'!I40:K40 -> 00:00:00 | L40: ='4計画'!L40:N40 -> 00:00:00 | O40: ～ | P40: ='4計画'!P40:R40 -> 00:00:00 | S40: 00:00:00 | V40: ='4計画'!V40:AA40 -> 0 | AB40: ='4計画'!AB40:AG40 -> 0 | AH40: ='4計画'!AH40:AO40 -> 0 | AP40: FALSE | BK40: 0 | BW40: ='4計画'!C40 -> 土 | BY40: ='4計画'!E40 -> 00:00:00 | CB40: ～ | CC40: ='4計画'!I40 -> 00:00:00 | CF40: ='4計画'!L40 -> 00:00:00 | CI40: ～ | CJ40: ='4計画'!P40 -> 00:00:00 | CM40: 00:00:00 | CP40: ='4計画'!V40 -> 0 | CV40: ='4計画'!AB40 -> 0 | DB40: ='4計画'!AH40 -> 0
A41: 26 | C41: ='4計画'!C41:D41 -> 日 | E41: ='4計画'!E41:G41 -> 00:00:00 | H41: ～ | I41: ='4計画'!I41:K41 -> 00:00:00 | L41: ='4計画'!L41:N41 -> 00:00:00 | O41: ～ | P41: ='4計画'!P41:R41 -> 00:00:00 | S41: 00:00:00 | V41: ='4計画'!V41:AA41 -> 0 | AB41: ='4計画'!AB41:AG41 -> 0 | AH41: ='4計画'!AH41:AO41 -> 0 | AP41: FALSE | BK41: 0 | BW41: ='4計画'!C41 -> 日 | BY41: ='4計画'!E41 -> 00:00:00 | CB41: ～ | CC41: ='4計画'!I41 -> 00:00:00 | CF41: ='4計画'!L41 -> 00:00:00 | CI41: ～ | CJ41: ='4計画'!P41 -> 00:00:00 | CM41: 00:00:00 | CP41: ='4計画'!V41 -> 0 | CV41: ='4計画'!AB41 -> 0 | DB41: ='4計画'!AH41 -> 0
A42: 27 | C42: ='4計画'!C42:D42 -> 月 | E42: ='4計画'!E42:G42 -> 00:00:00 | H42: ～ | I42: ='4計画'!I42:K42 -> 00:00:00 | L42: ='4計画'!L42:N42 -> 00:00:00 | O42: ～ | P42: ='4計画'!P42:R42 -> 00:00:00 | S42: 00:00:00 | V42: ='4計画'!V42:AA42 -> 0 | AB42: ='4計画'!AB42:AG42 -> 0 | AH42: ='4計画'!AH42:AO42 -> 0 | AP42: FALSE | BK42: 0 | BW42: ='4計画'!C42 -> 月 | BY42: ='4計画'!E42 -> 00:00:00 | CB42: ～ | CC42: ='4計画'!I42 -> 00:00:00 | CF42: ='4計画'!L42 -> 00:00:00 | CI42: ～ | CJ42: ='4計画'!P42 -> 00:00:00 | CM42: 00:00:00 | CP42: ='4計画'!V42 -> 0 | CV42: ='4計画'!AB42 -> 0 | DB42: ='4計画'!AH42 -> 0
A43: 28 | C43: ='4計画'!C43:D43 -> 火 | E43: ='4計画'!E43:G43 -> 00:00:00 | H43: ～ | I43: ='4計画'!I43:K43 -> 00:00:00 | L43: ='4計画'!L43:N43 -> 00:00:00 | O43: ～ | P43: ='4計画'!P43:R43 -> 00:00:00 | S43: 00:00:00 | V43: ='4計画'!V43:AA43 -> 0 | AB43: ='4計画'!AB43:AG43 -> 0 | AH43: ='4計画'!AH43:AO43 -> 0 | AP43: FALSE | BK43: 0 | BW43: ='4計画'!C43 -> 火 | BY43: ='4計画'!E43 -> 00:00:00 | CB43: ～ | CC43: ='4計画'!I43 -> 00:00:00 | CF43: ='4計画'!L43 -> 00:00:00 | CI43: ～ | CJ43: ='4計画'!P43 -> 00:00:00 | CM43: 00:00:00 | CP43: ='4計画'!V43 -> 0 | CV43: ='4計画'!AB43 -> 0 | DB43: ='4計画'!AH43 -> 0
A44: 29 | C44: ='4計画'!C44:D44 -> 水 | E44: ='4計画'!E44:G44 -> 00:00:00 | H44: ～ | I44: ='4計画'!I44:K44 -> 00:00:00 | L44: ='4計画'!L44:N44 -> 00:00:00 | O44: ～ | P44: ='4計画'!P44:R44 -> 00:00:00 | S44: 00:00:00 | V44: ='4計画'!V44:AA44 -> 0 | AB44: ='4計画'!AB44:AG44 -> 0 | AH44: ='4計画'!AH44:AO44 -> 0 | AP44: FALSE | BK44: 0 | BW44: ='4計画'!C44 -> 水 | BY44: ='4計画'!E44 -> 00:00:00 | CB44: ～ | CC44: ='4計画'!I44 -> 00:00:00 | CF44: ='4計画'!L44 -> 00:00:00 | CI44: ～ | CJ44: ='4計画'!P44 -> 00:00:00 | CM44: 00:00:00 | CP44: ='4計画'!V44 -> 0 | CV44: ='4計画'!AB44 -> 0 | DB44: ='4計画'!AH44 -> 0
A45: 30 | C45: ='4計画'!C45:D45 -> 木 | E45: ='4計画'!E45:G45 -> 00:00:00 | H45: ～ | I45: ='4計画'!I45:K45 -> 00:00:00 | L45: ='4計画'!L45:N45 -> 00:00:00 | O45: ～ | P45: ='4計画'!P45:R45 -> 00:00:00 | S45: 00:00:00 | V45: ='4計画'!V45:AA45 -> 0 | AB45: ='4計画'!AB45:AG45 -> 0 | AH45: ='4計画'!AH45:AO45 -> 0 | AP45: FALSE | BK45: 0 | BW45: ='4計画'!C45 -> 木 | BY45: ='4計画'!E45 -> 00:00:00 | CB45: ～ | CC45: ='4計画'!I45 -> 00:00:00 | CF45: ='4計画'!L45 -> 00:00:00 | CI45: ～ | CJ45: ='4計画'!P45 -> 00:00:00 | CM45: 00:00:00 | CP45: ='4計画'!V45 -> 0 | CV45: ='4計画'!AB45 -> 0 | DB45: ='4計画'!AH45 -> 0
C46: ='4計画'!C46:D46 ->  | E46: ='4計画'!E46:G46 -> 00:00:00 | H46: ～ | I46: ='4計画'!I46:K46 -> 00:00:00 | L46: ='4計画'!L46:N46 -> 00:00:00 | O46: ～ | P46: ='4計画'!P46:R46 -> 00:00:00 | S46: 00:00:00 | V46: ='4計画'!V46:AA46 -> 0 | AB46: ='4計画'!AB46:AG46 -> 0 | AH46: ='4計画'!AH46:AO46 -> 0 | AP46: FALSE | BK46: 0 | BW46: ='4計画'!C46 ->  | BY46: ='4計画'!E46 -> 00:00:00 | CB46: ～ | CC46: ='4計画'!I46 -> 00:00:00 | CF46: ='4計画'!L46 -> 00:00:00 | CI46: ～ | CJ46: ='4計画'!P46 -> 00:00:00 | CM46: 00:00:00 | CP46: ='4計画'!V46 -> 0 | CV46: ='4計画'!AB46 -> 0 | DB46: ='4計画'!AH46 -> 0
S47: =SUM(S16:U46) -> 0 | CM47: =SUM(CM16:CO46) -> 0
A49: 月 | D49: 4 | F49: 5 | H49: 6 | J49: 7 | L49: 8 | N49: 9 | P49: 10 | R49: 11 | T49: 12 | V49: 1 | X49: 2 | Z49: 3 | AB49: 計
A50: 時間 | D50: =S47 -> 0 | AB50: =SUM(D50:AA50) -> 0 | AG50: 時間 | BX50: =CM47 -> 0 | CV50: =SUM(BX50:CU50) -> 0
A51: 活動日数 | D51: =COUNTIF(S16:U45,">0") -> 0 | AB51: =SUM(D51:AA51) -> 0 | AG51: 活動日数 | BX51: =COUNTIF(CM16:CO45,">0") -> 0 | CV51: =SUM(BX51:CU51) -> 0
A52: 休養日数 | D52: =COUNTIF(S16:U45,"0:00") -> 30 | AB52: =SUM(D52:AA52) -> 30 | AG52: 休養日数 | BX52: =COUNTIF(CM16:CO45,"0:00") -> 30 | CV52: =SUM(BX52:CU52) -> 30
AB53: =AB50/AB51 ->  | AG53: 平均時間/日 | CV53: =CV50/CV51 -> 

Sheet ５実績
A2: ='5計画'!A2:D2 -> 校長 | E2: ='5計画'!E2:H2 -> 教頭 | I2: ='5計画'!I2:L2 -> 教頭 | M2: ='5計画'!M2:P2 -> 主幹教諭 | Q2: ='5計画'!Q2:T2 -> 0 | U2: ='5計画'!U2:X2 -> 顧問 | Z2: 学校名 | AC2: ='5計画'!AC2:AL3 -> 0 | AM2: 学校 | BU2: ='5計画'!BU2:BX2 -> 0 | BY2: ='5計画'!BY2:CB2 -> 0 | CC2: ='5計画'!CC2:CF2 -> 0 | CG2: ='5計画'!CG2:CJ2 -> 0 | CK2: ='5計画'!CK2:CN2 -> 0 | CO2: ='5計画'!CO2:CR2 -> 0 | CW2: ='5計画'!CW2:DF3 -> 0
A3: 印 | E3: 印 | I3: 印 | M3: 印 | Q3: 印 | U3: 印
Z4: 部活動名 | AC4: ='5計画'!AC4:AL5 -> 0 | AM4: 部 | CW4: ='5計画'!CW4:DF5 -> 0
A6: ※活動計画と違う内容については、校長口頭命令済み
A7: 5 | F7: 月 | I7: 〈月間〉部活動計画・活動実績 | Y7: 部員数 | AB7: 1女 | AD7: 2女 | AF7: 3女 | AH7: 1男 | AJ7: 2男 | AL7: 3男 | AN7: 計
AB8: ='5計画'!AB8:AC8 -> 0 | AD8: ='5計画'!AD8:AE8 -> 0 | AF8: ='5計画'!AF8:AG8 -> 0 | AH8: ='5計画'!AH8:AI8 -> 0 | AJ8: ='5計画'!AJ8:AK8 -> 0 | AL8: ='5計画'!AL8:AM8 -> 0 | AN8: =SUM(AB8:AM8) -> 0 | CV8: ='5計画'!AB8 -> 0 | CX8: ='5計画'!AD8 -> 0 | CZ8: ='5計画'!AF8 -> 0 | DB8: ='5計画'!AH8 -> 0 | DD8: ='5計画'!AJ8 -> 0 | DF8: ='5計画'!AL8 -> 0 | DH8: =SUM(CV8:DG8) -> 0
B10: 職名 | D10: ='5計画'!D10:H11 -> 0 | I10: 顧問 | K10: ='5計画'!K10:S11 -> 0 | V10: 職名 | X10: ='5計画'!X10:AB11 -> 0 | AC10: 副２ | AE10: ='5計画'!AE10:AM11 -> 0 | BX10: ='5計画'!D10 -> 0 | CE10: ='5計画'!K10 -> 0 | CR10: ='5計画'!X10 -> 0 | CY10: ='5計画'!AE10 -> 0
B12: 職名 | D12: ='5計画'!D12:H13 -> 0 | I12: 副顧問 | K12: ='5計画'!K12:S13 -> 0 | V12: 職名 | X12: ='5計画'!X12:AB13 -> 0 | AC12: 副３ | AE12: ='5計画'!AE12:AM13 -> 0 | BX12: ='5計画'!D12 -> 0 | CE12: ='5計画'!K12 -> 0 | CR12: ='5計画'!X12 -> 0 | CY12: ='5計画'!AE12 -> 0
A15: 日 | C15: 曜 | E15: ＡＭ | L15: ＰＭ | S15: 時間 | V15: 内容（練習・大会・OFF等） | AH15: 場所 | AP15: FALSE | AQ15: 特殊業務
A16: 1 | C16: ='5計画'!C16:D16 -> 金 | E16: ='5計画'!E16:G16 -> 00:00:00 | H16: ～ | I16: ='5計画'!I16:K16 -> 00:00:00 | L16: ='5計画'!L16:N16 -> 00:00:00 | O16: ～ | P16: ='5計画'!P16:R16 -> 00:00:00 | S16: =(I16-E16)+(P16-L16) -> 00:00:00 | V16: ='5計画'!V16:AA16 -> 0 | AB16: ='5計画'!AB16:AG16 -> 0 | AH16: ='5計画'!AH16:AO16 -> 0 | AP16: FALSE | BK16: =RIGHT(V16,2) -> 0 | BW16: ='5計画'!C16 -> 金 | BY16: ='5計画'!E16 -> 00:00:00 | CB16: ～ | CC16: ='5計画'!I16 -> 00:00:00 | CF16: ='5計画'!L16 -> 00:00:00 | CI16: ～ | CJ16: ='5計画'!P16 -> 00:00:00 | CM16: =(CC16-BY16)+(CJ16-CF16) -> 00:00:00 | CP16: ='5計画'!V16 -> 0 | CV16: ='5計画'!AB16 -> 0 | DB16: ='5計画'!AH16 -> 0
A17: 2 | C17: ='5計画'!C17:D17 -> 土 | E17: ='5計画'!E17:G17 -> 00:00:00 | H17: ～ | I17: ='5計画'!I17:K17 -> 00:00:00 | L17: ='5計画'!L17:N17 -> 00:00:00 | O17: ～ | P17: ='5計画'!P17:R17 -> 00:00:00 | S17: 00:00:00 | V17: ='5計画'!V17:AA17 -> 0 | AB17: ='5計画'!AB17:AG17 -> 0 | AH17: ='5計画'!AH17:AO17 -> 0 | AP17: FALSE | BK17: =RIGHT(V17,2) -> 0 | BW17: ='5計画'!C17 -> 土 | BY17: ='5計画'!E17 -> 00:00:00 | CB17: ～ | CC17: ='5計画'!I17 -> 00:00:00 | CF17: ='5計画'!L17 -> 00:00:00 | CI17: ～ | CJ17: ='5計画'!P17 -> 00:00:00 | CM17: 00:00:00 | CP17: ='5計画'!V17 -> 0 | CV17: ='5計画'!AB17 -> 0 | DB17: ='5計画'!AH17 -> 0
A18: 3 | C18: ='5計画'!C18:D18 -> 日 | E18: ='5計画'!E18:G18 -> 00:00:00 | H18: ～ | I18: ='5計画'!I18:K18 -> 00:00:00 | L18: ='5計画'!L18:N18 -> 00:00:00 | O18: ～ | P18: ='5計画'!P18:R18 -> 00:00:00 | S18: 00:00:00 | V18: ='5計画'!V18:AA18 -> 0 | AB18: ='5計画'!AB18:AG18 -> 0 | AH18: ='5計画'!AH18:AO18 -> 0 | AP18: FALSE | BK18: 0 | BW18: ='5計画'!C18 -> 日 | BY18: ='5計画'!E18 -> 00:00:00 | CB18: ～ | CC18: ='5計画'!I18 -> 00:00:00 | CF18: ='5計画'!L18 -> 00:00:00 | CI18: ～ | CJ18: ='5計画'!P18 -> 00:00:00 | CM18: 00:00:00 | CP18: ='5計画'!V18 -> 0 | CV18: ='5計画'!AB18 -> 0 | DB18: ='5計画'!AH18 -> 0
A19: 4 | C19: ='5計画'!C19:D19 -> 月 | E19: ='5計画'!E19:G19 -> 00:00:00 | H19: ～ | I19: ='5計画'!I19:K19 -> 00:00:00 | L19: ='5計画'!L19:N19 -> 00:00:00 | O19: ～ | P19: ='5計画'!P19:R19 -> 00:00:00 | S19: 00:00:00 | V19: ='5計画'!V19:AA19 -> 0 | AB19: ='5計画'!AB19:AG19 -> 0 | AH19: ='5計画'!AH19:AO19 -> 0 | AP19: FALSE | BK19: 0 | BW19: ='5計画'!C19 -> 月 | BY19: ='5計画'!E19 -> 00:00:00 | CB19: ～ | CC19: ='5計画'!I19 -> 00:00:00 | CF19: ='5計画'!L19 -> 00:00:00 | CI19: ～ | CJ19: ='5計画'!P19 -> 00:00:00 | CM19: 00:00:00 | CP19: ='5計画'!V19 -> 0 | CV19: ='5計画'!AB19 -> 0 | DB19: ='5計画'!AH19 -> 0
A20: 5 | C20: ='5計画'!C20:D20 -> 火 | E20: ='5計画'!E20:G20 -> 00:00:00 | H20: ～ | I20: ='5計画'!I20:K20 -> 00:00:00 | L20: ='5計画'!L20:N20 -> 00:00:00 | O20: ～ | P20: ='5計画'!P20:R20 -> 00:00:00 | S20: 00:00:00 | V20: ='5計画'!V20:AA20 -> 0 | AB20: ='5計画'!AB20:AG20 -> 0 | AH20: ='5計画'!AH20:AO20 -> 0 | AP20: FALSE | BK20: 0 | BW20: ='5計画'!C20 -> 火 | BY20: ='5計画'!E20 -> 00:00:00 | CB20: ～ | CC20: ='5計画'!I20 -> 00:00:00 | CF20: ='5計画'!L20 -> 00:00:00 | CI20: ～ | CJ20: ='5計画'!P20 -> 00:00:00 | CM20: 00:00:00 | CP20: ='5計画'!V20 -> 0 | CV20: ='5計画'!AB20 -> 0 | DB20: ='5計画'!AH20 -> 0
A21: 6 | C21: ='5計画'!C21:D21 -> 水 | E21: ='5計画'!E21:G21 -> 00:00:00 | H21: ～ | I21: ='5計画'!I21:K21 -> 00:00:00 | L21: ='5計画'!L21:N21 -> 00:00:00 | O21: ～ | P21: ='5計画'!P21:R21 -> 00:00:00 | S21: 00:00:00 | V21: ='5計画'!V21:AA21 -> 0 | AB21: ='5計画'!AB21:AG21 -> 0 | AH21: ='5計画'!AH21:AO21 -> 0 | AP21: FALSE | BK21: 0 | BW21: ='5計画'!C21 -> 水 | BY21: ='5計画'!E21 -> 00:00:00 | CB21: ～ | CC21: ='5計画'!I21 -> 00:00:00 | CF21: ='5計画'!L21 -> 00:00:00 | CI21: ～ | CJ21: ='5計画'!P21 -> 00:00:00 | CM21: 00:00:00 | CP21: ='5計画'!V21 -> 0 | CV21: ='5計画'!AB21 -> 0 | DB21: ='5計画'!AH21 -> 0
A22: 7 | C22: ='5計画'!C22:D22 -> 木 | E22: ='5計画'!E22:G22 -> 00:00:00 | H22: ～ | I22: ='5計画'!I22:K22 -> 00:00:00 | L22: ='5計画'!L22:N22 -> 00:00:00 | O22: ～ | P22: ='5計画'!P22:R22 -> 00:00:00 | S22: 00:00:00 | V22: ='5計画'!V22:AA22 -> 0 | AB22: ='5計画'!AB22:AG22 -> 0 | AH22: ='5計画'!AH22:AO22 -> 0 | AP22: FALSE | BK22: 0 | BW22: ='5計画'!C22 -> 木 | BY22: ='5計画'!E22 -> 00:00:00 | CB22: ～ | CC22: ='5計画'!I22 -> 00:00:00 | CF22: ='5計画'!L22 -> 00:00:00 | CI22: ～ | CJ22: ='5計画'!P22 -> 00:00:00 | CM22: 00:00:00 | CP22: ='5計画'!V22 -> 0 | CV22: ='5計画'!AB22 -> 0 | DB22: ='5計画'!AH22 -> 0
A23: 8 | C23: ='5計画'!C23:D23 -> 金 | E23: ='5計画'!E23:G23 -> 00:00:00 | H23: ～ | I23: ='5計画'!I23:K23 -> 00:00:00 | L23: ='5計画'!L23:N23 -> 00:00:00 | O23: ～ | P23: ='5計画'!P23:R23 -> 00:00:00 | S23: 00:00:00 | V23: ='5計画'!V23:AA23 -> 0 | AB23: ='5計画'!AB23:AG23 -> 0 | AH23: ='5計画'!AH23:AO23 -> 0 | AP23: FALSE | BK23: 0 | BW23: ='5計画'!C23 -> 金 | BY23: ='5計画'!E23 -> 00:00:00 | CB23: ～ | CC23: ='5計画'!I23 -> 00:00:00 | CF23: ='5計画'!L23 -> 00:00:00 | CI23: ～ | CJ23: ='5計画'!P23 -> 00:00:00 | CM23: 00:00:00 | CP23: ='5計画'!V23 -> 0 | CV23: ='5計画'!AB23 -> 0 | DB23: ='5計画'!AH23 -> 0
A24: 9 | C24: ='5計画'!C24:D24 -> 土 | E24: ='5計画'!E24:G24 -> 00:00:00 | H24: ～ | I24: ='5計画'!I24:K24 -> 00:00:00 | L24: ='5計画'!L24:N24 -> 00:00:00 | O24: ～ | P24: ='5計画'!P24:R24 -> 00:00:00 | S24: 00:00:00 | V24: ='5計画'!V24:AA24 -> 0 | AB24: ='5計画'!AB24:AG24 -> 0 | AH24: ='5計画'!AH24:AO24 -> 0 | AP24: FALSE | BK24: 0 | BW24: ='5計画'!C24 -> 土 | BY24: ='5計画'!E24 -> 00:00:00 | CB24: ～ | CC24: ='5計画'!I24 -> 00:00:00 | CF24: ='5計画'!L24 -> 00:00:00 | CI24: ～ | CJ24: ='5計画'!P24 -> 00:00:00 | CM24: 00:00:00 | CP24: ='5計画'!V24 -> 0 | CV24: ='5計画'!AB24 -> 0 | DB24: ='5計画'!AH24 -> 0
A25: 10 | C25: ='5計画'!C25:D25 -> 日 | E25: ='5計画'!E25:G25 -> 00:00:00 | H25: ～ | I25: ='5計画'!I25:K25 -> 00:00:00 | L25: ='5計画'!L25:N25 -> 00:00:00 | O25: ～ | P25: ='5計画'!P25:R25 -> 00:00:00 | S25: 00:00:00 | V25: ='5計画'!V25:AA25 -> 0 | AB25: ='5計画'!AB25:AG25 -> 0 | AH25: ='5計画'!AH25:AO25 -> 0 | AP25: FALSE | BK25: 0 | BW25: ='5計画'!C25 -> 日 | BY25: ='5計画'!E25 -> 00:00:00 | CB25: ～ | CC25: ='5計画'!I25 -> 00:00:00 | CF25: ='5計画'!L25 -> 00:00:00 | CI25: ～ | CJ25: ='5計画'!P25 -> 00:00:00 | CM25: 00:00:00 | CP25: ='5計画'!V25 -> 0 | CV25: ='5計画'!AB25 -> 0 | DB25: ='5計画'!AH25 -> 0
A26: 11 | C26: ='5計画'!C26:D26 -> 月 | E26: ='5計画'!E26:G26 -> 00:00:00 | H26: ～ | I26: ='5計画'!I26:K26 -> 00:00:00 | L26: ='5計画'!L26:N26 -> 00:00:00 | O26: ～ | P26: ='5計画'!P26:R26 -> 00:00:00 | S26: 00:00:00 | V26: ='5計画'!V26:AA26 -> 0 | AB26: ='5計画'!AB26:AG26 -> 0 | AH26: ='5計画'!AH26:AO26 -> 0 | AP26: FALSE | BK26: 0 | BW26: ='5計画'!C26 -> 月 | BY26: ='5計画'!E26 -> 00:00:00 | CB26: ～ | CC26: ='5計画'!I26 -> 00:00:00 | CF26: ='5計画'!L26 -> 00:00:00 | CI26: ～ | CJ26: ='5計画'!P26 -> 00:00:00 | CM26: 00:00:00 | CP26: ='5計画'!V26 -> 0 | CV26: ='5計画'!AB26 -> 0 | DB26: ='5計画'!AH26 -> 0
A27: 12 | C27: ='5計画'!C27:D27 -> 火 | E27: ='5計画'!E27:G27 -> 00:00:00 | H27: ～ | I27: ='5計画'!I27:K27 -> 00:00:00 | L27: ='5計画'!L27:N27 -> 00:00:00 | O27: ～ | P27: ='5計画'!P27:R27 -> 00:00:00 | S27: 00:00:00 | V27: ='5計画'!V27:AA27 -> 0 | AB27: ='5計画'!AB27:AG27 -> 0 | AH27: ='5計画'!AH27:AO27 -> 0 | AP27: FALSE | BK27: 0 | BW27: ='5計画'!C27 -> 火 | BY27: ='5計画'!E27 -> 00:00:00 | CB27: ～ | CC27: ='5計画'!I27 -> 00:00:00 | CF27: ='5計画'!L27 -> 00:00:00 | CI27: ～ | CJ27: ='5計画'!P27 -> 00:00:00 | CM27: 00:00:00 | CP27: ='5計画'!V27 -> 0 | CV27: ='5計画'!AB27 -> 0 | DB27: ='5計画'!AH27 -> 0
A28: 13 | C28: ='5計画'!C28:D28 -> 水 | E28: ='5計画'!E28:G28 -> 00:00:00 | H28: ～ | I28: ='5計画'!I28:K28 -> 00:00:00 | L28: ='5計画'!L28:N28 -> 00:00:00 | O28: ～ | P28: ='5計画'!P28:R28 -> 00:00:00 | S28: 00:00:00 | V28: ='5計画'!V28:AA28 -> 0 | AB28: ='5計画'!AB28:AG28 -> 0 | AH28: ='5計画'!AH28:AO28 -> 0 | AP28: FALSE | BK28: 0 | BW28: ='5計画'!C28 -> 水 | BY28: ='5計画'!E28 -> 00:00:00 | CB28: ～ | CC28: ='5計画'!I28 -> 00:00:00 | CF28: ='5計画'!L28 -> 00:00:00 | CI28: ～ | CJ28: ='5計画'!P28 -> 00:00:00 | CM28: 00:00:00 | CP28: ='5計画'!V28 -> 0 | CV28: ='5計画'!AB28 -> 0 | DB28: ='5計画'!AH28 -> 0
A29: 14 | C29: ='5計画'!C29:D29 -> 木 | E29: ='5計画'!E29:G29 -> 00:00:00 | H29: ～ | I29: ='5計画'!I29:K29 -> 00:00:00 | L29: ='5計画'!L29:N29 -> 00:00:00 | O29: ～ | P29: ='5計画'!P29:R29 -> 00:00:00 | S29: 00:00:00 | V29: ='5計画'!V29:AA29 -> 0 | AB29: ='5計画'!AB29:AG29 -> 0 | AH29: ='5計画'!AH29:AO29 -> 0 | AP29: FALSE | BK29: 0 | BW29: ='5計画'!C29 -> 木 | BY29: ='5計画'!E29 -> 00:00:00 | CB29: ～ | CC29: ='5計画'!I29 -> 00:00:00 | CF29: ='5計画'!L29 -> 00:00:00 | CI29: ～ | CJ29: ='5計画'!P29 -> 00:00:00 | CM29: 00:00:00 | CP29: ='5計画'!V29 -> 0 | CV29: ='5計画'!AB29 -> 0 | DB29: ='5計画'!AH29 -> 0
A30: 15 | C30: ='5計画'!C30:D30 -> 金 | E30: ='5計画'!E30:G30 -> 00:00:00 | H30: ～ | I30: ='5計画'!I30:K30 -> 00:00:00 | L30: ='5計画'!L30:N30 -> 00:00:00 | O30: ～ | P30: ='5計画'!P30:R30 -> 00:00:00 | S30: 00:00:00 | V30: ='5計画'!V30:AA30 -> 0 | AB30: ='5計画'!AB30:AG30 -> 0 | AH30: ='5計画'!AH30:AO30 -> 0 | AP30: FALSE | BK30: 0 | BW30: ='5計画'!C30 -> 金 | BY30: ='5計画'!E30 -> 00:00:00 | CB30: ～ | CC30: ='5計画'!I30 -> 00:00:00 | CF30: ='5計画'!L30 -> 00:00:00 | CI30: ～ | CJ30: ='5計画'!P30 -> 00:00:00 | CM30: 00:00:00 | CP30: ='5計画'!V30 -> 0 | CV30: ='5計画'!AB30 -> 0 | DB30: ='5計画'!AH30 -> 0
A31: 16 | C31: ='5計画'!C31:D31 -> 土 | E31: ='5計画'!E31:G31 -> 00:00:00 | H31: ～ | I31: ='5計画'!I31:K31 -> 00:00:00 | L31: ='5計画'!L31:N31 -> 00:00:00 | O31: ～ | P31: ='5計画'!P31:R31 -> 00:00:00 | S31: 00:00:00 | V31: ='5計画'!V31:AA31 -> 0 | AB31: ='5計画'!AB31:AG31 -> 0 | AH31: ='5計画'!AH31:AO31 -> 0 | AP31: FALSE | BK31: 0 | BW31: ='5計画'!C31 -> 土 | BY31: ='5計画'!E31 -> 00:00:00 | CB31: ～ | CC31: ='5計画'!I31 -> 00:00:00 | CF31: ='5計画'!L31 -> 00:00:00 | CI31: ～ | CJ31: ='5計画'!P31 -> 00:00:00 | CM31: 00:00:00 | CP31: ='5計画'!V31 -> 0 | CV31: ='5計画'!AB31 -> 0 | DB31: ='5計画'!AH31 -> 0
A32: 17 | C32: ='5計画'!C32:D32 -> 日 | E32: ='5計画'!E32:G32 -> 00:00:00 | H32: ～ | I32: ='5計画'!I32:K32 -> 00:00:00 | L32: ='5計画'!L32:N32 -> 00:00:00 | O32: ～ | P32: ='5計画'!P32:R32 -> 00:00:00 | S32: 00:00:00 | V32: ='5計画'!V32:AA32 -> 0 | AB32: ='5計画'!AB32:AG32 -> 0 | AH32: ='5計画'!AH32:AO32 -> 0 | AP32: FALSE | BK32: 0 | BW32: ='5計画'!C32 -> 日 | BY32: ='5計画'!E32 -> 00:00:00 | CB32: ～ | CC32: ='5計画'!I32 -> 00:00:00 | CF32: ='5計画'!L32 -> 00:00:00 | CI32: ～ | CJ32: ='5計画'!P32 -> 00:00:00 | CM32: 00:00:00 | CP32: ='5計画'!V32 -> 0 | CV32: ='5計画'!AB32 -> 0 | DB32: ='5計画'!AH32 -> 0
A33: 18 | C33: ='5計画'!C33:D33 -> 月 | E33: ='5計画'!E33:G33 -> 00:00:00 | H33: ～ | I33: ='5計画'!I33:K33 -> 00:00:00 | L33: ='5計画'!L33:N33 -> 00:00:00 | O33: ～ | P33: ='5計画'!P33:R33 -> 00:00:00 | S33: 00:00:00 | V33: ='5計画'!V33:AA33 -> 0 | AB33: ='5計画'!AB33:AG33 -> 0 | AH33: ='5計画'!AH33:AO33 -> 0 | AP33: FALSE | BK33: 0 | BW33: ='5計画'!C33 -> 月 | BY33: ='5計画'!E33 -> 00:00:00 | CB33: ～ | CC33: ='5計画'!I33 -> 00:00:00 | CF33: ='5計画'!L33 -> 00:00:00 | CI33: ～ | CJ33: ='5計画'!P33 -> 00:00:00 | CM33: 00:00:00 | CP33: ='5計画'!V33 -> 0 | CV33: ='5計画'!AB33 -> 0 | DB33: ='5計画'!AH33 -> 0
A34: 19 | C34: ='5計画'!C34:D34 -> 火 | E34: ='5計画'!E34:G34 -> 00:00:00 | H34: ～ | I34: ='5計画'!I34:K34 -> 00:00:00 | L34: ='5計画'!L34:N34 -> 00:00:00 | O34: ～ | P34: ='5計画'!P34:R34 -> 00:00:00 | S34: 00:00:00 | V34: ='5計画'!V34:AA34 -> 0 | AB34: ='5計画'!AB34:AG34 -> 0 | AH34: ='5計画'!AH34:AO34 -> 0 | AP34: FALSE | BK34: 0 | BW34: ='5計画'!C34 -> 火 | BY34: ='5計画'!E34 -> 00:00:00 | CB34: ～ | CC34: ='5計画'!I34 -> 00:00:00 | CF34: ='5計画'!L34 -> 00:00:00 | CI34: ～ | CJ34: ='5計画'!P34 -> 00:00:00 | CM34: 00:00:00 | CP34: ='5計画'!V34 -> 0 | CV34: ='5計画'!AB34 -> 0 | DB34: ='5計画'!AH34 -> 0
A35: 20 | C35: ='5計画'!C35:D35 -> 水 | E35: ='5計画'!E35:G35 -> 00:00:00 | H35: ～ | I35: ='5計画'!I35:K35 -> 00:00:00 | L35: ='5計画'!L35:N35 -> 00:00:00 | O35: ～ | P35: ='5計画'!P35:R35 -> 00:00:00 | S35: 00:00:00 | V35: ='5計画'!V35:AA35 -> 0 | AB35: ='5計画'!AB35:AG35 -> 0 | AH35: ='5計画'!AH35:AO35 -> 0 | AP35: FALSE | BK35: 0 | BW35: ='5計画'!C35 -> 水 | BY35: ='5計画'!E35 -> 00:00:00 | CB35: ～ | CC35: ='5計画'!I35 -> 00:00:00 | CF35: ='5計画'!L35 -> 00:00:00 | CI35: ～ | CJ35: ='5計画'!P35 -> 00:00:00 | CM35: 00:00:00 | CP35: ='5計画'!V35 -> 0 | CV35: ='5計画'!AB35 -> 0 | DB35: ='5計画'!AH35 -> 0
A36: 21 | C36: ='5計画'!C36:D36 -> 木 | E36: ='5計画'!E36:G36 -> 00:00:00 | H36: ～ | I36: ='5計画'!I36:K36 -> 00:00:00 | L36: ='5計画'!L36:N36 -> 00:00:00 | O36: ～ | P36: ='5計画'!P36:R36 -> 00:00:00 | S36: 00:00:00 | V36: ='5計画'!V36:AA36 -> 0 | AB36: ='5計画'!AB36:AG36 -> 0 | AH36: ='5計画'!AH36:AO36 -> 0 | AP36: FALSE | BK36: 0 | BW36: ='5計画'!C36 -> 木 | BY36: ='5計画'!E36 -> 00:00:00 | CB36: ～ | CC36: ='5計画'!I36 -> 00:00:00 | CF36: ='5計画'!L36 -> 00:00:00 | CI36: ～ | CJ36: ='5計画'!P36 -> 00:00:00 | CM36: 00:00:00 | CP36: ='5計画'!V36 -> 0 | CV36: ='5計画'!AB36 -> 0 | DB36: ='5計画'!AH36 -> 0
A37: 22 | C37: ='5計画'!C37:D37 -> 金 | E37: ='5計画'!E37:G37 -> 00:00:00 | H37: ～ | I37: ='5計画'!I37:K37 -> 00:00:00 | L37: ='5計画'!L37:N37 -> 00:00:00 | O37: ～ | P37: ='5計画'!P37:R37 -> 00:00:00 | S37: 00:00:00 | V37: ='5計画'!V37:AA37 -> 0 | AB37: ='5計画'!AB37:AG37 -> 0 | AH37: ='5計画'!AH37:AO37 -> 0 | AP37: FALSE | BK37: 0 | BW37: ='5計画'!C37 -> 金 | BY37: ='5計画'!E37 -> 00:00:00 | CB37: ～ | CC37: ='5計画'!I37 -> 00:00:00 | CF37: ='5計画'!L37 -> 00:00:00 | CI37: ～ | CJ37: ='5計画'!P37 -> 00:00:00 | CM37: 00:00:00 | CP37: ='5計画'!V37 -> 0 | CV37: ='5計画'!AB37 -> 0 | DB37: ='5計画'!AH37 -> 0
A38: 23 | C38: ='5計画'!C38:D38 -> 土 | E38: ='5計画'!E38:G38 -> 00:00:00 | H38: ～ | I38: ='5計画'!I38:K38 -> 00:00:00 | L38: ='5計画'!L38:N38 -> 00:00:00 | O38: ～ | P38: ='5計画'!P38:R38 -> 00:00:00 | S38: 00:00:00 | V38: ='5計画'!V38:AA38 -> 0 | AB38: ='5計画'!AB38:AG38 -> 0 | AH38: ='5計画'!AH38:AO38 -> 0 | AP38: FALSE | BK38: 0 | BW38: ='5計画'!C38 -> 土 | BY38: ='5計画'!E38 -> 00:00:00 | CB38: ～ | CC38: ='5計画'!I38 -> 00:00:00 | CF38: ='5計画'!L38 -> 00:00:00 | CI38: ～ | CJ38: ='5計画'!P38 -> 00:00:00 | CM38: 00:00:00 | CP38: ='5計画'!V38 -> 0 | CV38: ='5計画'!AB38 -> 0 | DB38: ='5計画'!AH38 -> 0
A39: 24 | C39: ='5計画'!C39:D39 -> 日 | E39: ='5計画'!E39:G39 -> 00:00:00 | H39: ～ | I39: ='5計画'!I39:K39 -> 00:00:00 | L39: ='5計画'!L39:N39 -> 00:00:00 | O39: ～ | P39: ='5計画'!P39:R39 -> 00:00:00 | S39: 00:00:00 | V39: ='5計画'!V39:AA39 -> 0 | AB39: ='5計画'!AB39:AG39 -> 0 | AH39: ='5計画'!AH39:AO39 -> 0 | AP39: FALSE | BK39: 0 | BW39: ='5計画'!C39 -> 日 | BY39: ='5計画'!E39 -> 00:00:00 | CB39: ～ | CC39: ='5計画'!I39 -> 00:00:00 | CF39: ='5計画'!L39 -> 00:00:00 | CI39: ～ | CJ39: ='5計画'!P39 -> 00:00:00 | CM39: 00:00:00 | CP39: ='5計画'!V39 -> 0 | CV39: ='5計画'!AB39 -> 0 | DB39: ='5計画'!AH39 -> 0
A40: 25 | C40: ='5計画'!C40:D40 -> 月 | E40: ='5計画'!E40:G40 -> 00:00:00 | H40: ～ | I40: ='5計画'!I40:K40 -> 00:00:00 | L40: ='5計画'!L40:N40 -> 00:00:00 | O40: ～ | P40: ='5計画'!P40:R40 -> 00:00:00 | S40: 00:00:00 | V40: ='5計画'!V40:AA40 -> 0 | AB40: ='5計画'!AB40:AG40 -> 0 | AH40: ='5計画'!AH40:AO40 -> 0 | AP40: FALSE | BK40: 0 | BW40: ='5計画'!C40 -> 月 | BY40: ='5計画'!E40 -> 00:00:00 | CB40: ～ | CC40: ='5計画'!I40 -> 00:00:00 | CF40: ='5計画'!L40 -> 00:00:00 | CI40: ～ | CJ40: ='5計画'!P40 -> 00:00:00 | CM40: 00:00:00 | CP40: ='5計画'!V40 -> 0 | CV40: ='5計画'!AB40 -> 0 | DB40: ='5計画'!AH40 -> 0
A41: 26 | C41: ='5計画'!C41:D41 -> 火 | E41: ='5計画'!E41:G41 -> 00:00:00 | H41: ～ | I41: ='5計画'!I41:K41 -> 00:00:00 | L41: ='5計画'!L41:N41 -> 00:00:00 | O41: ～ | P41: ='5計画'!P41:R41 -> 00:00:00 | S41: 00:00:00 | V41: ='5計画'!V41:AA41 -> 0 | AB41: ='5計画'!AB41:AG41 -> 0 | AH41: ='5計画'!AH41:AO41 -> 0 | AP41: FALSE | BK41: 0 | BW41: ='5計画'!C41 -> 火 | BY41: ='5計画'!E41 -> 00:00:00 | CB41: ～ | CC41: ='5計画'!I41 -> 00:00:00 | CF41: ='5計画'!L41 -> 00:00:00 | CI41: ～ | CJ41: ='5計画'!P41 -> 00:00:00 | CM41: 00:00:00 | CP41: ='5計画'!V41 -> 0 | CV41: ='5計画'!AB41 -> 0 | DB41: ='5計画'!AH41 -> 0
A42: 27 | C42: ='5計画'!C42:D42 -> 水 | E42: ='5計画'!E42:G42 -> 00:00:00 | H42: ～ | I42: ='5計画'!I42:K42 -> 00:00:00 | L42: ='5計画'!L42:N42 -> 00:00:00 | O42: ～ | P42: ='5計画'!P42:R42 -> 00:00:00 | S42: 00:00:00 | V42: ='5計画'!V42:AA42 -> 0 | AB42: ='5計画'!AB42:AG42 -> 0 | AH42: ='5計画'!AH42:AO42 -> 0 | AP42: FALSE | BK42: 0 | BW42: ='5計画'!C42 -> 水 | BY42: ='5計画'!E42 -> 00:00:00 | CB42: ～ | CC42: ='5計画'!I42 -> 00:00:00 | CF42: ='5計画'!L42 -> 00:00:00 | CI42: ～ | CJ42: ='5計画'!P42 -> 00:00:00 | CM42: 00:00:00 | CP42: ='5計画'!V42 -> 0 | CV42: ='5計画'!AB42 -> 0 | DB42: ='5計画'!AH42 -> 0
A43: 28 | C43: ='5計画'!C43:D43 -> 木 | E43: ='5計画'!E43:G43 -> 00:00:00 | H43: ～ | I43: ='5計画'!I43:K43 -> 00:00:00 | L43: ='5計画'!L43:N43 -> 00:00:00 | O43: ～ | P43: ='5計画'!P43:R43 -> 00:00:00 | S43: 00:00:00 | V43: ='5計画'!V43:AA43 -> 0 | AB43: ='5計画'!AB43:AG43 -> 0 | AH43: ='5計画'!AH43:AO43 -> 0 | AP43: FALSE | BK43: 0 | BW43: ='5計画'!C43 -> 木 | BY43: ='5計画'!E43 -> 00:00:00 | CB43: ～ | CC43: ='5計画'!I43 -> 00:00:00 | CF43: ='5計画'!L43 -> 00:00:00 | CI43: ～ | CJ43: ='5計画'!P43 -> 00:00:00 | CM43: 00:00:00 | CP43: ='5計画'!V43 -> 0 | CV43: ='5計画'!AB43 -> 0 | DB43: ='5計画'!AH43 -> 0
A44: 29 | C44: ='5計画'!C44:D44 -> 金 | E44: ='5計画'!E44:G44 -> 00:00:00 | H44: ～ | I44: ='5計画'!I44:K44 -> 00:00:00 | L44: ='5計画'!L44:N44 -> 00:00:00 | O44: ～ | P44: ='5計画'!P44:R44 -> 00:00:00 | S44: 00:00:00 | V44: ='5計画'!V44:AA44 -> 0 | AB44: ='5計画'!AB44:AG44 -> 0 | AH44: ='5計画'!AH44:AO44 -> 0 | AP44: FALSE | BK44: 0 | BW44: ='5計画'!C44 -> 金 | BY44: ='5計画'!E44 -> 00:00:00 | CB44: ～ | CC44: ='5計画'!I44 -> 00:00:00 | CF44: ='5計画'!L44 -> 00:00:00 | CI44: ～ | CJ44: ='5計画'!P44 -> 00:00:00 | CM44: 00:00:00 | CP44: ='5計画'!V44 -> 0 | CV44: ='5計画'!AB44 -> 0 | DB44: ='5計画'!AH44 -> 0
A45: 30 | C45: ='5計画'!C45:D45 -> 土 | E45: ='5計画'!E45:G45 -> 00:00:00 | H45: ～ | I45: ='5計画'!I45:K45 -> 00:00:00 | L45: ='5計画'!L45:N45 -> 00:00:00 | O45: ～ | P45: ='5計画'!P45:R45 -> 00:00:00 | S45: 00:00:00 | V45: ='5計画'!V45:AA45 -> 0 | AB45: ='5計画'!AB45:AG45 -> 0 | AH45: ='5計画'!AH45:AO45 -> 0 | AP45: FALSE | BK45: 0 | BW45: ='5計画'!C45 -> 土 | BY45: ='5計画'!E45 -> 00:00:00 | CB45: ～ | CC45: ='5計画'!I45 -> 00:00:00 | CF45: ='5計画'!L45 -> 00:00:00 | CI45: ～ | CJ45: ='5計画'!P45 -> 00:00:00 | CM45: 00:00:00 | CP45: ='5計画'!V45 -> 0 | CV45: ='5計画'!AB45 -> 0 | DB45: ='5計画'!AH45 -> 0
A46: 31 | C46: ='5計画'!C46:D46 -> 日 | E46: ='5計画'!E46:G46 -> 00:00:00 | H46: ～ | I46: ='5計画'!I46:K46 -> 00:00:00 | L46: ='5計画'!L46:N46 -> 00:00:00 | O46: ～ | P46: ='5計画'!P46:R46 -> 00:00:00 | S46: 00:00:00 | V46: ='5計画'!V46:AA46 -> 0 | AB46: ='5計画'!AB46:AG46 -> 0 | AH46: ='5計画'!AH46:AO46 -> 0 | AP46: FALSE | BK46: 0 | BW46: ='5計画'!C46 -> 日 | BY46: ='5計画'!E46 -> 00:00:00 | CB46: ～ | CC46: ='5計画'!I46 -> 00:00:00 | CF46: ='5計画'!L46 -> 00:00:00 | CI46: ～ | CJ46: ='5計画'!P46 -> 00:00:00 | CM46: 00:00:00 | CP46: ='5計画'!V46 -> 0 | CV46: ='5計画'!AB46 -> 0 | DB46: ='5計画'!AH46 -> 0
S47: =SUM(S16:U46) -> 0 | CM47: =SUM(CM16:CO46) -> 0
A49: 月 | D49: 4 | F49: 5 | H49: 6 | J49: 7 | L49: 8 | N49: 9 | P49: 10 | R49: 11 | T49: 12 | V49: 1 | X49: 2 | Z49: 3 | AB49: 計
A50: 時間 | D50: ='４実績'!D50 -> 0 | F50: =S47 -> 0 | AB50: =SUM(D50:AA50) -> 0 | AG50: 時間 | BX50: ='４実績'!D50 -> 0 | BZ50: =CM47 -> 0 | CV50: =SUM(BX50:CU50) -> 0
A51: 活動日数 | D51: ='４実績'!D51 -> 0 | F51: =COUNTIF(S16:U46,">0") -> 0 | AB51: =SUM(D51:AA51) -> 0 | AG51: 活動日数 | BX51: ='４実績'!D51 -> 0 | BZ51: =COUNTIF(CM16:CO46,">0") -> 0 | CV51: =SUM(BX51:CU51) -> 0
A52: 休養日数 | D52: ='４実績'!D52 -> 30 | F52: =COUNTIF(S16:U46,"0:00") -> 31 | AB52: =SUM(D52:AA52) -> 61 | AG52: 休養日数 | BX52: ='４実績'!D52 -> 30 | BZ52: =COUNTIF(CM16:CO46,"0:00") -> 31 | CV52: =SUM(BX52:CU52) -> 61
AB53: =AB50/AB51 ->  | AG53: 平均時間/日 | CV53: =CV50/CV51 -> 

Sheet 6実績
A2: ='６計画'!A2:D2 -> 校長 | E2: ='６計画'!E2:H2 -> 教頭 | I2: ='６計画'!I2:L2 -> 教頭 | M2: ='６計画'!M2:P2 -> 主幹教諭 | Q2: ='６計画'!Q2:T2 -> 0 | U2: ='６計画'!U2:X2 -> 顧問 | Z2: 学校名 | AC2: ='６計画'!AC2:AL3 -> 0 | AM2: 学校 | BU2: ='６計画'!BU2:BX2 -> 0 | BY2: ='６計画'!BY2:CB2 -> 0 | CC2: ='６計画'!CC2:CF2 -> 0 | CG2: ='６計画'!CG2:CJ2 -> 0 | CK2: ='６計画'!CK2:CN2 -> 0 | CO2: ='６計画'!CO2:CR2 -> 0 | CW2: ='６計画'!CW2:DF3 -> 0
A3: 印 | E3: 印 | I3: 印 | M3: 印 | Q3: 印 | U3: 印
Z4: 部活動名 | AC4: ='６計画'!AC4:AL5 -> 0 | AM4: 部 | CW4: ='６計画'!CW4:DF5 -> 0
A6: ※活動計画と違う内容については、校長口頭命令済み
A7: 6 | F7: 月 | I7: 〈月間〉部活動計画・活動実績 | Y7: 部員数 | AB7: 1女 | AD7: 2女 | AF7: 3女 | AH7: 1男 | AJ7: 2男 | AL7: 3男 | AN7: 計
AB8: ='６計画'!AB8:AC8 -> 0 | AD8: ='６計画'!AD8:AE8 -> 0 | AF8: ='６計画'!AF8:AG8 -> 0 | AH8: ='６計画'!AH8:AI8 -> 0 | AJ8: ='６計画'!AJ8:AK8 -> 0 | AL8: ='６計画'!AL8:AM8 -> 0 | AN8: =SUM(AB8:AM8) -> 0 | CV8: ='６計画'!AB8 -> 0 | CX8: ='６計画'!AD8 -> 0 | CZ8: ='６計画'!AF8 -> 0 | DB8: ='６計画'!AH8 -> 0 | DD8: ='６計画'!AJ8 -> 0 | DF8: ='６計画'!AL8 -> 0 | DH8: =SUM(CV8:DG8) -> 0
B10: 職名 | D10: ='６計画'!D10:H11 -> 0 | I10: 顧問 | K10: ='６計画'!K10:S11 -> 0 | V10: 職名 | X10: ='６計画'!X10:AB11 -> 0 | AC10: 副２ | AE10: ='６計画'!AE10:AM11 -> 0 | BX10: ='６計画'!D10 -> 0 | CE10: ='６計画'!K10 -> 0 | CR10: ='６計画'!X10 -> 0 | CY10: ='６計画'!AE10 -> 0
B12: 職名 | D12: ='６計画'!D12:H13 -> 0 | I12: 副顧問 | K12: ='６計画'!K12:S13 -> 0 | V12: 職名 | X12: ='６計画'!X12:AB13 -> 0 | AC12: 副３ | AE12: ='６計画'!AE12:AM13 -> 0 | BX12: ='６計画'!D12 -> 0 | CE12: ='６計画'!K12 -> 0 | CR12: ='６計画'!X12 -> 0 | CY12: ='６計画'!AE12 -> 0
A15: 日 | C15: 曜 | E15: ＡＭ | L15: ＰＭ | S15: 時間 | V15: 内容（練習・大会・OFF等） | AH15: 場所 | AP15: FALSE | AQ15: 特殊業務
A16: 1 | C16: ='６計画'!C16:D16 -> 月 | E16: ='６計画'!E16:G16 -> 00:00:00 | H16: ～ | I16: ='６計画'!I16:K16 -> 00:00:00 | L16: ='６計画'!L16:N16 -> 00:00:00 | O16: ～ | P16: ='６計画'!P16:R16 -> 00:00:00 | S16: =(I16-E16)+(P16-L16) -> 00:00:00 | V16: ='６計画'!V16:AA16 -> 0 | AB16: ='６計画'!AB16:AG16 -> 0 | AH16: ='６計画'!AH16:AO16 -> 0 | AP16: FALSE | BK16: =RIGHT(V16,2) -> 0 | BW16: ='６計画'!C16 -> 月 | BY16: ='６計画'!E16 -> 00:00:00 | CB16: ～ | CC16: ='６計画'!I16 -> 00:00:00 | CF16: ='６計画'!L16 -> 00:00:00 | CI16: ～ | CJ16: ='６計画'!P16 -> 00:00:00 | CM16: =(CC16-BY16)+(CJ16-CF16) -> 00:00:00 | CP16: ='６計画'!V16 -> 0 | CV16: ='６計画'!AB16 -> 0 | DB16: ='６計画'!AH16 -> 0
A17: 2 | C17: ='６計画'!C17:D17 -> 火 | E17: ='６計画'!E17:G17 -> 00:00:00 | H17: ～ | I17: ='６計画'!I17:K17 -> 00:00:00 | L17: ='６計画'!L17:N17 -> 00:00:00 | O17: ～ | P17: ='６計画'!P17:R17 -> 00:00:00 | S17: 00:00:00 | V17: ='６計画'!V17:AA17 -> 0 | AB17: ='６計画'!AB17:AG17 -> 0 | AH17: ='６計画'!AH17:AO17 -> 0 | AP17: FALSE | BK17: =RIGHT(V17,2) -> 0 | BW17: ='６計画'!C17 -> 火 | BY17: ='６計画'!E17 -> 00:00:00 | CB17: ～ | CC17: ='６計画'!I17 -> 00:00:00 | CF17: ='６計画'!L17 -> 00:00:00 | CI17: ～ | CJ17: ='６計画'!P17 -> 00:00:00 | CM17: 00:00:00 | CP17: ='６計画'!V17 -> 0 | CV17: ='６計画'!AB17 -> 0 | DB17: ='６計画'!AH17 -> 0
A18: 3 | C18: ='６計画'!C18:D18 -> 水 | E18: ='６計画'!E18:G18 -> 00:00:00 | H18: ～ | I18: ='６計画'!I18:K18 -> 00:00:00 | L18: ='６計画'!L18:N18 -> 00:00:00 | O18: ～ | P18: ='６計画'!P18:R18 -> 00:00:00 | S18: 00:00:00 | V18: ='６計画'!V18:AA18 -> 0 | AB18: ='６計画'!AB18:AG18 -> 0 | AH18: ='６計画'!AH18:AO18 -> 0 | AP18: FALSE | BK18: 0 | BW18: ='６計画'!C18 -> 水 | BY18: ='６計画'!E18 -> 00:00:00 | CB18: ～ | CC18: ='６計画'!I18 -> 00:00:00 | CF18: ='６計画'!L18 -> 00:00:00 | CI18: ～ | CJ18: ='６計画'!P18 -> 00:00:00 | CM18: 00:00:00 | CP18: ='６計画'!V18 -> 0 | CV18: ='６計画'!AB18 -> 0 | DB18: ='６計画'!AH18 -> 0
A19: 4 | C19: ='６計画'!C19:D19 -> 木 | E19: ='６計画'!E19:G19 -> 00:00:00 | H19: ～ | I19: ='６計画'!I19:K19 -> 00:00:00 | L19: ='６計画'!L19:N19 -> 00:00:00 | O19: ～ | P19: ='６計画'!P19:R19 -> 00:00:00 | S19: 00:00:00 | V19: ='６計画'!V19:AA19 -> 0 | AB19: ='６計画'!AB19:AG19 -> 0 | AH19: ='６計画'!AH19:AO19 -> 0 | AP19: FALSE | BK19: 0 | BW19: ='６計画'!C19 -> 木 | BY19: ='６計画'!E19 -> 00:00:00 | CB19: ～ | CC19: ='６計画'!I19 -> 00:00:00 | CF19: ='６計画'!L19 -> 00:00:00 | CI19: ～ | CJ19: ='６計画'!P19 -> 00:00:00 | CM19: 00:00:00 | CP19: ='６計画'!V19 -> 0 | CV19: ='６計画'!AB19 -> 0 | DB19: ='６計画'!AH19 -> 0
A20: 5 | C20: ='６計画'!C20:D20 -> 金 | E20: ='６計画'!E20:G20 -> 00:00:00 | H20: ～ | I20: ='６計画'!I20:K20 -> 00:00:00 | L20: ='６計画'!L20:N20 -> 00:00:00 | O20: ～ | P20: ='６計画'!P20:R20 -> 00:00:00 | S20: 00:00:00 | V20: ='６計画'!V20:AA20 -> 0 | AB20: ='６計画'!AB20:AG20 -> 0 | AH20: ='６計画'!AH20:AO20 -> 0 | AP20: FALSE | BK20: 0 | BW20: ='６計画'!C20 -> 金 | BY20: ='６計画'!E20 -> 00:00:00 | CB20: ～ | CC20: ='６計画'!I20 -> 00:00:00 | CF20: ='６計画'!L20 -> 00:00:00 | CI20: ～ | CJ20: ='６計画'!P20 -> 00:00:00 | CM20: 00:00:00 | CP20: ='６計画'!V20 -> 0 | CV20: ='６計画'!AB20 -> 0 | DB20: ='６計画'!AH20 -> 0
A21: 6 | C21: ='６計画'!C21:D21 -> 土 | E21: ='６計画'!E21:G21 -> 00:00:00 | H21: ～ | I21: ='６計画'!I21:K21 -> 00:00:00 | L21: ='６計画'!L21:N21 -> 00:00:00 | O21: ～ | P21: ='６計画'!P21:R21 -> 00:00:00 | S21: 00:00:00 | V21: ='６計画'!V21:AA21 -> 0 | AB21: ='６計画'!AB21:AG21 -> 0 | AH21: ='６計画'!AH21:AO21 -> 0 | AP21: FALSE | BK21: 0 | BW21: ='６計画'!C21 -> 土 | BY21: ='６計画'!E21 -> 00:00:00 | CB21: ～ | CC21: ='６計画'!I21 -> 00:00:00 | CF21: ='６計画'!L21 -> 00:00:00 | CI21: ～ | CJ21: ='６計画'!P21 -> 00:00:00 | CM21: 00:00:00 | CP21: ='６計画'!V21 -> 0 | CV21: ='６計画'!AB21 -> 0 | DB21: ='６計画'!AH21 -> 0
A22: 7 | C22: ='６計画'!C22:D22 -> 日 | E22: ='６計画'!E22:G22 -> 00:00:00 | H22: ～ | I22: ='６計画'!I22:K22 -> 00:00:00 | L22: ='６計画'!L22:N22 -> 00:00:00 | O22: ～ | P22: ='６計画'!P22:R22 -> 00:00:00 | S22: 00:00:00 | V22: ='６計画'!V22:AA22 -> 0 | AB22: ='６計画'!AB22:AG22 -> 0 | AH22: ='６計画'!AH22:AO22 -> 0 | AP22: FALSE | BK22: 0 | BW22: ='６計画'!C22 -> 日 | BY22: ='６計画'!E22 -> 00:00:00 | CB22: ～ | CC22: ='６計画'!I22 -> 00:00:00 | CF22: ='６計画'!L22 -> 00:00:00 | CI22: ～ | CJ22: ='６計画'!P22 -> 00:00:00 | CM22: 00:00:00 | CP22: ='６計画'!V22 -> 0 | CV22: ='６計画'!AB22 -> 0 | DB22: ='６計画'!AH22 -> 0
A23: 8 | C23: ='６計画'!C23:D23 -> 月 | E23: ='６計画'!E23:G23 -> 00:00:00 | H23: ～ | I23: ='６計画'!I23:K23 -> 00:00:00 | L23: ='６計画'!L23:N23 -> 00:00:00 | O23: ～ | P23: ='６計画'!P23:R23 -> 00:00:00 | S23: 00:00:00 | V23: ='６計画'!V23:AA23 -> 0 | AB23: ='６計画'!AB23:AG23 -> 0 | AH23: ='６計画'!AH23:AO23 -> 0 | AP23: FALSE | BK23: 0 | BW23: ='６計画'!C23 -> 月 | BY23: ='６計画'!E23 -> 00:00:00 | CB23: ～ | CC23: ='６計画'!I23 -> 00:00:00 | CF23: ='６計画'!L23 -> 00:00:00 | CI23: ～ | CJ23: ='６計画'!P23 -> 00:00:00 | CM23: 00:00:00 | CP23: ='６計画'!V23 -> 0 | CV23: ='６計画'!AB23 -> 0 | DB23: ='６計画'!AH23 -> 0
A24: 9 | C24: ='６計画'!C24:D24 -> 火 | E24: ='６計画'!E24:G24 -> 00:00:00 | H24: ～ | I24: ='６計画'!I24:K24 -> 00:00:00 | L24: ='６計画'!L24:N24 -> 00:00:00 | O24: ～ | P24: ='６計画'!P24:R24 -> 00:00:00 | S24: 00:00:00 | V24: ='６計画'!V24:AA24 -> 0 | AB24: ='６計画'!AB24:AG24 -> 0 | AH24: ='６計画'!AH24:AO24 -> 0 | AP24: FALSE | BK24: 0 | BW24: ='６計画'!C24 -> 火 | BY24: ='６計画'!E24 -> 00:00:00 | CB24: ～ | CC24: ='６計画'!I24 -> 00:00:00 | CF24: ='６計画'!L24 -> 00:00:00 | CI24: ～ | CJ24: ='６計画'!P24 -> 00:00:00 | CM24: 00:00:00 | CP24: ='６計画'!V24 -> 0 | CV24: ='６計画'!AB24 -> 0 | DB24: ='６計画'!AH24 -> 0
A25: 10 | C25: ='６計画'!C25:D25 -> 水 | E25: ='６計画'!E25:G25 -> 00:00:00 | H25: ～ | I25: ='６計画'!I25:K25 -> 00:00:00 | L25: ='６計画'!L25:N25 -> 00:00:00 | O25: ～ | P25: ='６計画'!P25:R25 -> 00:00:00 | S25: 00:00:00 | V25: ='６計画'!V25:AA25 -> 0 | AB25: ='６計画'!AB25:AG25 -> 0 | AH25: ='６計画'!AH25:AO25 -> 0 | AP25: FALSE | BK25: 0 | BW25: ='６計画'!C25 -> 水 | BY25: ='６計画'!E25 -> 00:00:00 | CB25: ～ | CC25: ='６計画'!I25 -> 00:00:00 | CF25: ='６計画'!L25 -> 00:00:00 | CI25: ～ | CJ25: ='６計画'!P25 -> 00:00:00 | CM25: 00:00:00 | CP25: ='６計画'!V25 -> 0 | CV25: ='６計画'!AB25 -> 0 | DB25: ='６計画'!AH25 -> 0
A26: 11 | C26: ='６計画'!C26:D26 -> 木 | E26: ='６計画'!E26:G26 -> 00:00:00 | H26: ～ | I26: ='６計画'!I26:K26 -> 00:00:00 | L26: ='６計画'!L26:N26 -> 00:00:00 | O26: ～ | P26: ='６計画'!P26:R26 -> 00:00:00 | S26: 00:00:00 | V26: ='６計画'!V26:AA26 -> 0 | AB26: ='６計画'!AB26:AG26 -> 0 | AH26: ='６計画'!AH26:AO26 -> 0 | AP26: FALSE | BK26: 0 | BW26: ='６計画'!C26 -> 木 | BY26: ='６計画'!E26 -> 00:00:00 | CB26: ～ | CC26: ='６計画'!I26 -> 00:00:00 | CF26: ='６計画'!L26 -> 00:00:00 | CI26: ～ | CJ26: ='６計画'!P26 -> 00:00:00 | CM26: 00:00:00 | CP26: ='６計画'!V26 -> 0 | CV26: ='６計画'!AB26 -> 0 | DB26: ='６計画'!AH26 -> 0
A27: 12 | C27: ='６計画'!C27:D27 -> 金 | E27: ='６計画'!E27:G27 -> 00:00:00 | H27: ～ | I27: ='６計画'!I27:K27 -> 00:00:00 | L27: ='６計画'!L27:N27 -> 00:00:00 | O27: ～ | P27: ='６計画'!P27:R27 -> 00:00:00 | S27: 00:00:00 | V27: ='６計画'!V27:AA27 -> 0 | AB27: ='６計画'!AB27:AG27 -> 0 | AH27: ='６計画'!AH27:AO27 -> 0 | AP27: FALSE | BK27: 0 | BW27: ='６計画'!C27 -> 金 | BY27: ='６計画'!E27 -> 00:00:00 | CB27: ～ | CC27: ='６計画'!I27 -> 00:00:00 | CF27: ='６計画'!L27 -> 00:00:00 | CI27: ～ | CJ27: ='６計画'!P27 -> 00:00:00 | CM27: 00:00:00 | CP27: ='６計画'!V27 -> 0 | CV27: ='６計画'!AB27 -> 0 | DB27: ='６計画'!AH27 -> 0
A28: 13 | C28: ='６計画'!C28:D28 -> 土 | E28: ='６計画'!E28:G28 -> 00:00:00 | H28: ～ | I28: ='６計画'!I28:K28 -> 00:00:00 | L28: ='６計画'!L28:N28 -> 00:00:00 | O28: ～ | P28: ='６計画'!P28:R28 -> 00:00:00 | S28: 00:00:00 | V28: ='６計画'!V28:AA28 -> 0 | AB28: ='６計画'!AB28:AG28 -> 0 | AH28: ='６計画'!AH28:AO28 -> 0 | AP28: FALSE | BK28: 0 | BW28: ='６計画'!C28 -> 土 | BY28: ='６計画'!E28 -> 00:00:00 | CB28: ～ | CC28: ='６計画'!I28 -> 00:00:00 | CF28: ='６計画'!L28 -> 00:00:00 | CI28: ～ | CJ28: ='６計画'!P28 -> 00:00:00 | CM28: 00:00:00 | CP28: ='６計画'!V28 -> 0 | CV28: ='６計画'!AB28 -> 0 | DB28: ='６計画'!AH28 -> 0
A29: 14 | C29: ='６計画'!C29:D29 -> 日 | E29: ='６計画'!E29:G29 -> 00:00:00 | H29: ～ | I29: ='６計画'!I29:K29 -> 00:00:00 | L29: ='６計画'!L29:N29 -> 00:00:00 | O29: ～ | P29: ='６計画'!P29:R29 -> 00:00:00 | S29: 00:00:00 | V29: ='６計画'!V29:AA29 -> 0 | AB29: ='６計画'!AB29:AG29 -> 0 | AH29: ='６計画'!AH29:AO29 -> 0 | AP29: FALSE | BK29: 0 | BW29: ='６計画'!C29 -> 日 | BY29: ='６計画'!E29 -> 00:00:00 | CB29: ～ | CC29: ='６計画'!I29 -> 00:00:00 | CF29: ='６計画'!L29 -> 00:00:00 | CI29: ～ | CJ29: ='６計画'!P29 -> 00:00:00 | CM29: 00:00:00 | CP29: ='６計画'!V29 -> 0 | CV29: ='６計画'!AB29 -> 0 | DB29: ='６計画'!AH29 -> 0
A30: 15 | C30: ='６計画'!C30:D30 -> 月 | E30: ='６計画'!E30:G30 -> 00:00:00 | H30: ～ | I30: ='６計画'!I30:K30 -> 00:00:00 | L30: ='６計画'!L30:N30 -> 00:00:00 | O30: ～ | P30: ='６計画'!P30:R30 -> 00:00:00 | S30: 00:00:00 | V30: ='６計画'!V30:AA30 -> 0 | AB30: ='６計画'!AB30:AG30 -> 0 | AH30: ='６計画'!AH30:AO30 -> 0 | AP30: FALSE | BK30: 0 | BW30: ='６計画'!C30 -> 月 | BY30: ='６計画'!E30 -> 00:00:00 | CB30: ～ | CC30: ='６計画'!I30 -> 00:00:00 | CF30: ='６計画'!L30 -> 00:00:00 | CI30: ～ | CJ30: ='６計画'!P30 -> 00:00:00 | CM30: 00:00:00 | CP30: ='６計画'!V30 -> 0 | CV30: ='６計画'!AB30 -> 0 | DB30: ='６計画'!AH30 -> 0
A31: 16 | C31: ='６計画'!C31:D31 -> 火 | E31: ='６計画'!E31:G31 -> 00:00:00 | H31: ～ | I31: ='６計画'!I31:K31 -> 00:00:00 | L31: ='６計画'!L31:N31 -> 00:00:00 | O31: ～ | P31: ='６計画'!P31:R31 -> 00:00:00 | S31: 00:00:00 | V31: ='６計画'!V31:AA31 -> 0 | AB31: ='６計画'!AB31:AG31 -> 0 | AH31: ='６計画'!AH31:AO31 -> 0 | AP31: FALSE | BK31: 0 | BW31: ='６計画'!C31 -> 火 | BY31: ='６計画'!E31 -> 00:00:00 | CB31: ～ | CC31: ='６計画'!I31 -> 00:00:00 | CF31: ='６計画'!L31 -> 00:00:00 | CI31: ～ | CJ31: ='６計画'!P31 -> 00:00:00 | CM31: 00:00:00 | CP31: ='６計画'!V31 -> 0 | CV31: ='６計画'!AB31 -> 0 | DB31: ='６計画'!AH31 -> 0
A32: 17 | C32: ='６計画'!C32:D32 -> 水 | E32: ='６計画'!E32:G32 -> 00:00:00 | H32: ～ | I32: ='６計画'!I32:K32 -> 00:00:00 | L32: ='６計画'!L32:N32 -> 00:00:00 | O32: ～ | P32: ='６計画'!P32:R32 -> 00:00:00 | S32: 00:00:00 | V32: ='６計画'!V32:AA32 -> 0 | AB32: ='６計画'!AB32:AG32 -> 0 | AH32: ='６計画'!AH32:AO32 -> 0 | AP32: FALSE | BK32: 0 | BW32: ='６計画'!C32 -> 水 | BY32: ='６計画'!E32 -> 00:00:00 | CB32: ～ | CC32: ='６計画'!I32 -> 00:00:00 | CF32: ='６計画'!L32 -> 00:00:00 | CI32: ～ | CJ32: ='６計画'!P32 -> 00:00:00 | CM32: 00:00:00 | CP32: ='６計画'!V32 -> 0 | CV32: ='６計画'!AB32 -> 0 | DB32: ='６計画'!AH32 -> 0
A33: 18 | C33: ='６計画'!C33:D33 -> 木 | E33: ='６計画'!E33:G33 -> 00:00:00 | H33: ～ | I33: ='６計画'!I33:K33 -> 00:00:00 | L33: ='６計画'!L33:N33 -> 00:00:00 | O33: ～ | P33: ='６計画'!P33:R33 -> 00:00:00 | S33: 00:00:00 | V33: ='６計画'!V33:AA33 -> 0 | AB33: ='６計画'!AB33:AG33 -> 0 | AH33: ='６計画'!AH33:AO33 -> 0 | AP33: FALSE | BK33: 0 | BW33: ='６計画'!C33 -> 木 | BY33: ='６計画'!E33 -> 00:00:00 | CB33: ～ | CC33: ='６計画'!I33 -> 00:00:00 | CF33: ='６計画'!L33 -> 00:00:00 | CI33: ～ | CJ33: ='６計画'!P33 -> 00:00:00 | CM33: 00:00:00 | CP33: ='６計画'!V33 -> 0 | CV33: ='６計画'!AB33 -> 0 | DB33: ='６計画'!AH33 -> 0
A34: 19 | C34: ='６計画'!C34:D34 -> 金 | E34: ='６計画'!E34:G34 -> 00:00:00 | H34: ～ | I34: ='６計画'!I34:K34 -> 00:00:00 | L34: ='６計画'!L34:N34 -> 00:00:00 | O34: ～ | P34: ='６計画'!P34:R34 -> 00:00:00 | S34: 00:00:00 | V34: ='６計画'!V34:AA34 -> 0 | AB34: ='６計画'!AB34:AG34 -> 0 | AH34: ='６計画'!AH34:AO34 -> 0 | AP34: FALSE | BK34: 0 | BW34: ='６計画'!C34 -> 金 | BY34: ='６計画'!E34 -> 00:00:00 | CB34: ～ | CC34: ='６計画'!I34 -> 00:00:00 | CF34: ='６計画'!L34 -> 00:00:00 | CI34: ～ | CJ34: ='６計画'!P34 -> 00:00:00 | CM34: 00:00:00 | CP34: ='６計画'!V34 -> 0 | CV34: ='６計画'!AB34 -> 0 | DB34: ='６計画'!AH34 -> 0
A35: 20 | C35: ='６計画'!C35:D35 -> 土 | E35: ='６計画'!E35:G35 -> 00:00:00 | H35: ～ | I35: ='６計画'!I35:K35 -> 00:00:00 | L35: ='６計画'!L35:N35 -> 00:00:00 | O35: ～ | P35: ='６計画'!P35:R35 -> 00:00:00 | S35: 00:00:00 | V35: ='６計画'!V35:AA35 -> 0 | AB35: ='６計画'!AB35:AG35 -> 0 | AH35: ='６計画'!AH35:AO35 -> 0 | AP35: FALSE | BK35: 0 | BW35: ='６計画'!C35 -> 土 | BY35: ='６計画'!E35 -> 00:00:00 | CB35: ～ | CC35: ='６計画'!I35 -> 00:00:00 | CF35: ='６計画'!L35 -> 00:00:00 | CI35: ～ | CJ35: ='６計画'!P35 -> 00:00:00 | CM35: 00:00:00 | CP35: ='６計画'!V35 -> 0 | CV35: ='６計画'!AB35 -> 0 | DB35: ='６計画'!AH35 -> 0
A36: 21 | C36: ='６計画'!C36:D36 -> 日 | E36: ='６計画'!E36:G36 -> 00:00:00 | H36: ～ | I36: ='６計画'!I36:K36 -> 00:00:00 | L36: ='６計画'!L36:N36 -> 00:00:00 | O36: ～ | P36: ='６計画'!P36:R36 -> 00:00:00 | S36: 00:00:00 | V36: ='６計画'!V36:AA36 -> 0 | AB36: ='６計画'!AB36:AG36 -> 0 | AH36: ='６計画'!AH36:AO36 -> 0 | AP36: FALSE | BK36: 0 | BW36: ='６計画'!C36 -> 日 | BY36: ='６計画'!E36 -> 00:00:00 | CB36: ～ | CC36: ='６計画'!I36 -> 00:00:00 | CF36: ='６計画'!L36 -> 00:00:00 | CI36: ～ | CJ36: ='６計画'!P36 -> 00:00:00 | CM36: 00:00:00 | CP36: ='６計画'!V36 -> 0 | CV36: ='６計画'!AB36 -> 0 | DB36: ='６計画'!AH36 -> 0
A37: 22 | C37: ='６計画'!C37:D37 -> 月 | E37: ='６計画'!E37:G37 -> 00:00:00 | H37: ～ | I37: ='６計画'!I37:K37 -> 00:00:00 | L37: ='６計画'!L37:N37 -> 00:00:00 | O37: ～ | P37: ='６計画'!P37:R37 -> 00:00:00 | S37: 00:00:00 | V37: ='６計画'!V37:AA37 -> 0 | AB37: ='６計画'!AB37:AG37 -> 0 | AH37: ='６計画'!AH37:AO37 -> 0 | AP37: FALSE | BK37: 0 | BW37: ='６計画'!C37 -> 月 | BY37: ='６計画'!E37 -> 00:00:00 | CB37: ～ | CC37: ='６計画'!I37 -> 00:00:00 | CF37: ='６計画'!L37 -> 00:00:00 | CI37: ～ | CJ37: ='６計画'!P37 -> 00:00:00 | CM37: 00:00:00 | CP37: ='６計画'!V37 -> 0 | CV37: ='６計画'!AB37 -> 0 | DB37: ='６計画'!AH37 -> 0
A38: 23 | C38: ='６計画'!C38:D38 -> 火 | E38: ='６計画'!E38:G38 -> 00:00:00 | H38: ～ | I38: ='６計画'!I38:K38 -> 00:00:00 | L38: ='６計画'!L38:N38 -> 00:00:00 | O38: ～ | P38: ='６計画'!P38:R38 -> 00:00:00 | S38: 00:00:00 | V38: ='６計画'!V38:AA38 -> 0 | AB38: ='６計画'!AB38:AG38 -> 0 | AH38: ='６計画'!AH38:AO38 -> 0 | AP38: FALSE | BK38: 0 | BW38: ='６計画'!C38 -> 火 | BY38: ='６計画'!E38 -> 00:00:00 | CB38: ～ | CC38: ='６計画'!I38 -> 00:00:00 | CF38: ='６計画'!L38 -> 00:00:00 | CI38: ～ | CJ38: ='６計画'!P38 -> 00:00:00 | CM38: 00:00:00 | CP38: ='６計画'!V38 -> 0 | CV38: ='６計画'!AB38 -> 0 | DB38: ='６計画'!AH38 -> 0
A39: 24 | C39: ='６計画'!C39:D39 -> 水 | E39: ='６計画'!E39:G39 -> 00:00:00 | H39: ～ | I39: ='６計画'!I39:K39 -> 00:00:00 | L39: ='６計画'!L39:N39 -> 00:00:00 | O39: ～ | P39: ='６計画'!P39:R39 -> 00:00:00 | S39: 00:00:00 | V39: ='６計画'!V39:AA39 -> 0 | AB39: ='６計画'!AB39:AG39 -> 0 | AH39: ='６計画'!AH39:AO39 -> 0 | AP39: FALSE | BK39: 0 | BW39: ='６計画'!C39 -> 水 | BY39: ='６計画'!E39 -> 00:00:00 | CB39: ～ | CC39: ='６計画'!I39 -> 00:00:00 | CF39: ='６計画'!L39 -> 00:00:00 | CI39: ～ | CJ39: ='６計画'!P39 -> 00:00:00 | CM39: 00:00:00 | CP39: ='６計画'!V39 -> 0 | CV39: ='６計画'!AB39 -> 0 | DB39: ='６計画'!AH39 -> 0
A40: 25 | C40: ='６計画'!C40:D40 -> 木 | E40: ='６計画'!E40:G40 -> 00:00:00 | H40: ～ | I40: ='６計画'!I40:K40 -> 00:00:00 | L40: ='６計画'!L40:N40 -> 00:00:00 | O40: ～ | P40: ='６計画'!P40:R40 -> 00:00:00 | S40: 00:00:00 | V40: ='６計画'!V40:AA40 -> 0 | AB40: ='６計画'!AB40:AG40 -> 0 | AH40: ='６計画'!AH40:AO40 -> 0 | AP40: FALSE | BK40: 0 | BW40: ='６計画'!C40 -> 木 | BY40: ='６計画'!E40 -> 00:00:00 | CB40: ～ | CC40: ='６計画'!I40 -> 00:00:00 | CF40: ='６計画'!L40 -> 00:00:00 | CI40: ～ | CJ40: ='６計画'!P40 -> 00:00:00 | CM40: 00:00:00 | CP40: ='６計画'!V40 -> 0 | CV40: ='６計画'!AB40 -> 0 | DB40: ='６計画'!AH40 -> 0
A41: 26 | C41: ='６計画'!C41:D41 -> 金 | E41: ='６計画'!E41:G41 -> 00:00:00 | H41: ～ | I41: ='６計画'!I41:K41 -> 00:00:00 | L41: ='６計画'!L41:N41 -> 00:00:00 | O41: ～ | P41: ='６計画'!P41:R41 -> 00:00:00 | S41: 00:00:00 | V41: ='６計画'!V41:AA41 -> 0 | AB41: ='６計画'!AB41:AG41 -> 0 | AH41: ='６計画'!AH41:AO41 -> 0 | AP41: FALSE | BK41: 0 | BW41: ='６計画'!C41 -> 金 | BY41: ='６計画'!E41 -> 00:00:00 | CB41: ～ | CC41: ='６計画'!I41 -> 00:00:00 | CF41: ='６計画'!L41 -> 00:00:00 | CI41: ～ | CJ41: ='６計画'!P41 -> 00:00:00 | CM41: 00:00:00 | CP41: ='６計画'!V41 -> 0 | CV41: ='６計画'!AB41 -> 0 | DB41: ='６計画'!AH41 -> 0
A42: 27 | C42: ='６計画'!C42:D42 -> 土 | E42: ='６計画'!E42:G42 -> 00:00:00 | H42: ～ | I42: ='６計画'!I42:K42 -> 00:00:00 | L42: ='６計画'!L42:N42 -> 00:00:00 | O42: ～ | P42: ='６計画'!P42:R42 -> 00:00:00 | S42: 00:00:00 | V42: ='６計画'!V42:AA42 -> 0 | AB42: ='６計画'!AB42:AG42 -> 0 | AH42: ='６計画'!AH42:AO42 -> 0 | AP42: FALSE | BK42: 0 | BW42: ='６計画'!C42 -> 土 | BY42: ='６計画'!E42 -> 00:00:00 | CB42: ～ | CC42: ='６計画'!I42 -> 00:00:00 | CF42: ='６計画'!L42 -> 00:00:00 | CI42: ～ | CJ42: ='６計画'!P42 -> 00:00:00 | CM42: 00:00:00 | CP42: ='６計画'!V42 -> 0 | CV42: ='６計画'!AB42 -> 0 | DB42: ='６計画'!AH42 -> 0
A43: 28 | C43: ='６計画'!C43:D43 -> 日 | E43: ='６計画'!E43:G43 -> 00:00:00 | H43: ～ | I43: ='６計画'!I43:K43 -> 00:00:00 | L43: ='６計画'!L43:N43 -> 00:00:00 | O43: ～ | P43: ='６計画'!P43:R43 -> 00:00:00 | S43: 00:00:00 | V43: ='６計画'!V43:AA43 -> 0 | AB43: ='６計画'!AB43:AG43 -> 0 | AH43: ='６計画'!AH43:AO43 -> 0 | AP43: FALSE | BK43: 0 | BW43: ='６計画'!C43 -> 日 | BY43: ='６計画'!E43 -> 00:00:00 | CB43: ～ | CC43: ='６計画'!I43 -> 00:00:00 | CF43: ='６計画'!L43 -> 00:00:00 | CI43: ～ | CJ43: ='６計画'!P43 -> 00:00:00 | CM43: 00:00:00 | CP43: ='６計画'!V43 -> 0 | CV43: ='６計画'!AB43 -> 0 | DB43: ='６計画'!AH43 -> 0
A44: 29 | C44: ='６計画'!C44:D44 -> 月 | E44: ='６計画'!E44:G44 -> 00:00:00 | H44: ～ | I44: ='６計画'!I44:K44 -> 00:00:00 | L44: ='６計画'!L44:N44 -> 00:00:00 | O44: ～ | P44: ='６計画'!P44:R44 -> 00:00:00 | S44: 00:00:00 | V44: ='６計画'!V44:AA44 -> 0 | AB44: ='６計画'!AB44:AG44 -> 0 | AH44: ='６計画'!AH44:AO44 -> 0 | AP44: FALSE | BK44: 0 | BW44: ='６計画'!C44 -> 月 | BY44: ='６計画'!E44 -> 00:00:00 | CB44: ～ | CC44: ='６計画'!I44 -> 00:00:00 | CF44: ='６計画'!L44 -> 00:00:00 | CI44: ～ | CJ44: ='６計画'!P44 -> 00:00:00 | CM44: 00:00:00 | CP44: ='６計画'!V44 -> 0 | CV44: ='６計画'!AB44 -> 0 | DB44: ='６計画'!AH44 -> 0
A45: 30 | C45: ='６計画'!C45:D45 -> 火 | E45: ='６計画'!E45:G45 -> 00:00:00 | H45: ～ | I45: ='６計画'!I45:K45 -> 00:00:00 | L45: ='６計画'!L45:N45 -> 00:00:00 | O45: ～ | P45: ='６計画'!P45:R45 -> 00:00:00 | S45: 00:00:00 | V45: ='６計画'!V45:AA45 -> 0 | AB45: ='６計画'!AB45:AG45 -> 0 | AH45: ='６計画'!AH45:AO45 -> 0 | AP45: FALSE | BK45: 0 | BW45: ='６計画'!C45 -> 火 | BY45: ='６計画'!E45 -> 00:00:00 | CB45: ～ | CC45: ='６計画'!I45 -> 00:00:00 | CF45: ='６計画'!L45 -> 00:00:00 | CI45: ～ | CJ45: ='６計画'!P45 -> 00:00:00 | CM45: 00:00:00 | CP45: ='６計画'!V45 -> 0 | CV45: ='６計画'!AB45 -> 0 | DB45: ='６計画'!AH45 -> 0
C46: ='６計画'!C46:D46 ->  | E46: ='６計画'!E46:G46 -> 00:00:00 | H46: ～ | I46: ='６計画'!I46:K46 -> 00:00:00 | L46: ='６計画'!L46:N46 -> 00:00:00 | O46: ～ | P46: ='６計画'!P46:R46 -> 00:00:00 | S46: 00:00:00 | V46: ='６計画'!V46:AA46 -> 0 | AB46: ='６計画'!AB46:AG46 -> 0 | AH46: ='６計画'!AH46:AO46 -> 0 | AP46: FALSE | BK46: 0 | BW46: ='６計画'!C46 ->  | BY46: ='６計画'!E46 -> 00:00:00 | CB46: ～ | CC46: ='６計画'!I46 -> 00:00:00 | CF46: ='６計画'!L46 -> 00:00:00 | CI46: ～ | CJ46: ='６計画'!P46 -> 00:00:00 | CM46: 00:00:00 | CP46: ='６計画'!V46 -> 0 | CV46: ='６計画'!AB46 -> 0 | DB46: ='６計画'!AH46 -> 0
S47: =SUM(S16:U46) -> 0 | CM47: =SUM(CM16:CO46) -> 0
A49: 月 | D49: 4 | F49: 5 | H49: 6 | J49: 7 | L49: 8 | N49: 9 | P49: 10 | R49: 11 | T49: 12 | V49: 1 | X49: 2 | Z49: 3 | AB49: 計
A50: 時間 | D50: ='４実績'!D50 -> 0 | F50: ='５実績'!F50 -> 0 | H50: =S47 -> 0 | AB50: =SUM(D50:AA50) -> 0 | AG50: 時間 | BX50: ='４実績'!D50 -> 0 | BZ50: ='５実績'!F50 -> 0 | CB50: =CM47 -> 0 | CV50: =SUM(BX50:CU50) -> 0
A51: 活動日数 | D51: ='４実績'!D51 -> 0 | F51: ='５実績'!F51 -> 0 | H51: =COUNTIF(S16:U45,">0") -> 0 | AB51: =SUM(D51:AA51) -> 0 | AG51: 活動日数 | BX51: ='４実績'!D51 -> 0 | BZ51: ='５実績'!F51 -> 0 | CB51: =COUNTIF(CM16:CO45,">0") -> 0 | CV51: =SUM(BX51:CU51) -> 0
A52: 休養日数 | D52: ='４実績'!D52 -> 30 | F52: ='５実績'!F52 -> 31 | H52: =COUNTIF(S16:U45,"0:00") -> 30 | AB52: =SUM(D52:AA52) -> 91 | AG52: 休養日数 | BX52: ='４実績'!D52 -> 30 | BZ52: ='５実績'!F52 -> 31 | CB52: =COUNTIF(CM16:CO45,"0:00") -> 30 | CV52: =SUM(BX52:CU52) -> 91
AB53: =AB50/AB51 ->  | AG53: 平均時間/日 | CV53: =CV50/CV51 -> 

Sheet 7実績
A2: ='7計画'!A2:D2 -> 校長 | E2: ='7計画'!E2:H2 -> 教頭 | I2: ='7計画'!I2:L2 -> 教頭 | M2: ='7計画'!M2:P2 -> 主幹教諭 | Q2: ='7計画'!Q2:T2 -> 0 | U2: ='7計画'!U2:X2 -> 顧問 | Z2: 学校名 | AC2: ='7計画'!AC2:AL3 -> 0 | AM2: 学校 | BU2: ='7計画'!BU2:BX2 -> 0 | BY2: ='7計画'!BY2:CB2 -> 0 | CC2: ='7計画'!CC2:CF2 -> 0 | CG2: ='7計画'!CG2:CJ2 -> 0 | CK2: ='7計画'!CK2:CN2 -> 0 | CO2: ='7計画'!CO2:CR2 -> 0 | CW2: ='7計画'!CW2:DF3 -> 0
A3: 印 | E3: 印 | I3: 印 | M3: 印 | Q3: 印 | U3: 印
Z4: 部活動名 | AC4: ='7計画'!AC4:AL5 -> 0 | AM4: 部 | CW4: ='7計画'!CW4:DF5 -> 0
A6: ※活動計画と違う内容については、校長口頭命令済み
A7: 7 | F7: 月 | I7: 〈月間〉部活動計画・活動実績 | Y7: 部員数 | AB7: 1女 | AD7: 2女 | AF7: 3女 | AH7: 1男 | AJ7: 2男 | AL7: 3男 | AN7: 計
AB8: ='7計画'!AB8:AC8 -> 0 | AD8: ='7計画'!AD8:AE8 -> 0 | AF8: ='7計画'!AF8:AG8 -> 0 | AH8: ='7計画'!AH8:AI8 -> 0 | AJ8: ='7計画'!AJ8:AK8 -> 0 | AL8: ='7計画'!AL8:AM8 -> 0 | AN8: =SUM(AB8:AM8) -> 0 | CV8: ='7計画'!AB8 -> 0 | CX8: ='7計画'!AD8 -> 0 | CZ8: ='7計画'!AF8 -> 0 | DB8: ='7計画'!AH8 -> 0 | DD8: ='7計画'!AJ8 -> 0 | DF8: ='7計画'!AL8 -> 0 | DH8: =SUM(CV8:DG8) -> 0
B10: 職名 | D10: ='7計画'!D10:H11 -> 0 | I10: 顧問 | K10: ='7計画'!K10:S11 -> 0 | V10: 職名 | X10: ='7計画'!X10:AB11 -> 0 | AC10: 副２ | AE10: ='7計画'!AE10:AM11 -> 0 | BX10: ='7計画'!D10 -> 0 | CE10: ='7計画'!K10 -> 0 | CR10: ='7計画'!X10 -> 0 | CY10: ='7計画'!AE10 -> 0
B12: 職名 | D12: ='7計画'!D12:H13 -> 0 | I12: 副顧問 | K12: ='7計画'!K12:S13 -> 0 | V12: 職名 | X12: ='7計画'!X12:AB13 -> 0 | AC12: 副３ | AE12: ='7計画'!AE12:AM13 -> 0 | BX12: ='7計画'!D12 -> 0 | CE12: ='7計画'!K12 -> 0 | CR12: ='7計画'!X12 -> 0 | CY12: ='7計画'!AE12 -> 0
A15: 日 | C15: 曜 | E15: ＡＭ | L15: ＰＭ | S15: 時間 | V15: 内容（練習・大会・OFF等） | AH15: 場所 | AP15: FALSE | AQ15: 特殊業務
A16: 1 | C16: ='7計画'!C16:D16 -> 水 | E16: ='7計画'!E16:G16 -> 00:00:00 | H16: ～ | I16: ='7計画'!I16:K16 -> 00:00:00 | L16: ='7計画'!L16:N16 -> 00:00:00 | O16: ～ | P16: ='7計画'!P16:R16 -> 00:00:00 | S16: =(I16-E16)+(P16-L16) -> 00:00:00 | V16: ='7計画'!V16:AA16 -> 0 | AB16: ='7計画'!AB16:AG16 -> 0 | AH16: ='7計画'!AH16:AO16 -> 0 | AP16: FALSE | BK16: =RIGHT(V16,2) -> 0 | BW16: ='7計画'!C16 -> 水 | BY16: ='7計画'!E16 -> 00:00:00 | CB16: ～ | CC16: ='7計画'!I16 -> 00:00:00 | CF16: ='7計画'!L16 -> 00:00:00 | CI16: ～ | CJ16: ='7計画'!P16 -> 00:00:00 | CM16: =(CC16-BY16)+(CJ16-CF16) -> 00:00:00 | CP16: ='7計画'!V16 -> 0 | CV16: ='7計画'!AB16 -> 0 | DB16: ='7計画'!AH16 -> 0
A17: 2 | C17: ='7計画'!C17:D17 -> 木 | E17: ='7計画'!E17:G17 -> 00:00:00 | H17: ～ | I17: ='7計画'!I17:K17 -> 00:00:00 | L17: ='7計画'!L17:N17 -> 00:00:00 | O17: ～ | P17: ='7計画'!P17:R17 -> 00:00:00 | S17: 00:00:00 | V17: ='7計画'!V17:AA17 -> 0 | AB17: ='7計画'!AB17:AG17 -> 0 | AH17: ='7計画'!AH17:AO17 -> 0 | AP17: FALSE | BK17: =RIGHT(V17,2) -> 0 | BW17: ='7計画'!C17 -> 木 | BY17: ='7計画'!E17 -> 00:00:00 | CB17: ～ | CC17: ='7計画'!I17 -> 00:00:00 | CF17: ='7計画'!L17 -> 00:00:00 | CI17: ～ | CJ17: ='7計画'!P17 -> 00:00:00 | CM17: 00:00:00 | CP17: ='7計画'!V17 -> 0 | CV17: ='7計画'!AB17 -> 0 | DB17: ='7計画'!AH17 -> 0
A18: 3 | C18: ='7計画'!C18:D18 -> 金 | E18: ='7計画'!E18:G18 -> 00:00:00 | H18: ～ | I18: ='7計画'!I18:K18 -> 00:00:00 | L18: ='7計画'!L18:N18 -> 00:00:00 | O18: ～ | P18: ='7計画'!P18:R18 -> 00:00:00 | S18: 00:00:00 | V18: ='7計画'!V18:AA18 -> 0 | AB18: ='7計画'!AB18:AG18 -> 0 | AH18: ='7計画'!AH18:AO18 -> 0 | AP18: FALSE | BK18: 0 | BW18: ='7計画'!C18 -> 金 | BY18: ='7計画'!E18 -> 00:00:00 | CB18: ～ | CC18: ='7計画'!I18 -> 00:00:00 | CF18: ='7計画'!L18 -> 00:00:00 | CI18: ～ | CJ18: ='7計画'!P18 -> 00:00:00 | CM18: 00:00:00 | CP18: ='7計画'!V18 -> 0 | CV18: ='7計画'!AB18 -> 0 | DB18: ='7計画'!AH18 -> 0
A19: 4 | C19: ='7計画'!C19:D19 -> 土 | E19: ='7計画'!E19:G19 -> 00:00:00 | H19: ～ | I19: ='7計画'!I19:K19 -> 00:00:00 | L19: ='7計画'!L19:N19 -> 00:00:00 | O19: ～ | P19: ='7計画'!P19:R19 -> 00:00:00 | S19: 00:00:00 | V19: ='7計画'!V19:AA19 -> 0 | AB19: ='7計画'!AB19:AG19 -> 0 | AH19: ='7計画'!AH19:AO19 -> 0 | AP19: FALSE | BK19: 0 | BW19: ='7計画'!C19 -> 土 | BY19: ='7計画'!E19 -> 00:00:00 | CB19: ～ | CC19: ='7計画'!I19 -> 00:00:00 | CF19: ='7計画'!L19 -> 00:00:00 | CI19: ～ | CJ19: ='7計画'!P19 -> 00:00:00 | CM19: 00:00:00 | CP19: ='7計画'!V19 -> 0 | CV19: ='7計画'!AB19 -> 0 | DB19: ='7計画'!AH19 -> 0
A20: 5 | C20: ='7計画'!C20:D20 -> 日 | E20: ='7計画'!E20:G20 -> 00:00:00 | H20: ～ | I20: ='7計画'!I20:K20 -> 00:00:00 | L20: ='7計画'!L20:N20 -> 00:00:00 | O20: ～ | P20: ='7計画'!P20:R20 -> 00:00:00 | S20: 00:00:00 | V20: ='7計画'!V20:AA20 -> 0 | AB20: ='7計画'!AB20:AG20 -> 0 | AH20: ='7計画'!AH20:AO20 -> 0 | AP20: FALSE | BK20: 0 | BW20: ='7計画'!C20 -> 日 | BY20: ='7計画'!E20 -> 00:00:00 | CB20: ～ | CC20: ='7計画'!I20 -> 00:00:00 | CF20: ='7計画'!L20 -> 00:00:00 | CI20: ～ | CJ20: ='7計画'!P20 -> 00:00:00 | CM20: 00:00:00 | CP20: ='7計画'!V20 -> 0 | CV20: ='7計画'!AB20 -> 0 | DB20: ='7計画'!AH20 -> 0
A21: 6 | C21: ='7計画'!C21:D21 -> 月 | E21: ='7計画'!E21:G21 -> 00:00:00 | H21: ～ | I21: ='7計画'!I21:K21 -> 00:00:00 | L21: ='7計画'!L21:N21 -> 00:00:00 | O21: ～ | P21: ='7計画'!P21:R21 -> 00:00:00 | S21: 00:00:00 | V21: ='7計画'!V21:AA21 -> 0 | AB21: ='7計画'!AB21:AG21 -> 0 | AH21: ='7計画'!AH21:AO21 -> 0 | AP21: FALSE | BK21: 0 | BW21: ='7計画'!C21 -> 月 | BY21: ='7計画'!E21 -> 00:00:00 | CB21: ～ | CC21: ='7計画'!I21 -> 00:00:00 | CF21: ='7計画'!L21 -> 00:00:00 | CI21: ～ | CJ21: ='7計画'!P21 -> 00:00:00 | CM21: 00:00:00 | CP21: ='7計画'!V21 -> 0 | CV21: ='7計画'!AB21 -> 0 | DB21: ='7計画'!AH21 -> 0
A22: 7 | C22: ='7計画'!C22:D22 -> 火 | E22: ='7計画'!E22:G22 -> 00:00:00 | H22: ～ | I22: ='7計画'!I22:K22 -> 00:00:00 | L22: ='7計画'!L22:N22 -> 00:00:00 | O22: ～ | P22: ='7計画'!P22:R22 -> 00:00:00 | S22: 00:00:00 | V22: ='7計画'!V22:AA22 -> 0 | AB22: ='7計画'!AB22:AG22 -> 0 | AH22: ='7計画'!AH22:AO22 -> 0 | AP22: FALSE | BK22: 0 | BW22: ='7計画'!C22 -> 火 | BY22: ='7計画'!E22 -> 00:00:00 | CB22: ～ | CC22: ='7計画'!I22 -> 00:00:00 | CF22: ='7計画'!L22 -> 00:00:00 | CI22: ～ | CJ22: ='7計画'!P22 -> 00:00:00 | CM22: 00:00:00 | CP22: ='7計画'!V22 -> 0 | CV22: ='7計画'!AB22 -> 0 | DB22: ='7計画'!AH22 -> 0
A23: 8 | C23: ='7計画'!C23:D23 -> 水 | E23: ='7計画'!E23:G23 -> 00:00:00 | H23: ～ | I23: ='7計画'!I23:K23 -> 00:00:00 | L23: ='7計画'!L23:N23 -> 00:00:00 | O23: ～ | P23: ='7計画'!P23:R23 -> 00:00:00 | S23: 00:00:00 | V23: ='7計画'!V23:AA23 -> 0 | AB23: ='7計画'!AB23:AG23 -> 0 | AH23: ='7計画'!AH23:AO23 -> 0 | AP23: FALSE | BK23: 0 | BW23: ='7計画'!C23 -> 水 | BY23: ='7計画'!E23 -> 00:00:00 | CB23: ～ | CC23: ='7計画'!I23 -> 00:00:00 | CF23: ='7計画'!L23 -> 00:00:00 | CI23: ～ | CJ23: ='7計画'!P23 -> 00:00:00 | CM23: 00:00:00 | CP23: ='7計画'!V23 -> 0 | CV23: ='7計画'!AB23 -> 0 | DB23: ='7計画'!AH23 -> 0
A24: 9 | C24: ='7計画'!C24:D24 -> 木 | E24: ='7計画'!E24:G24 -> 00:00:00 | H24: ～ | I24: ='7計画'!I24:K24 -> 00:00:00 | L24: ='7計画'!L24:N24 -> 00:00:00 | O24: ～ | P24: ='7計画'!P24:R24 -> 00:00:00 | S24: 00:00:00 | V24: ='7計画'!V24:AA24 -> 0 | AB24: ='7計画'!AB24:AG24 -> 0 | AH24: ='7計画'!AH24:AO24 -> 0 | AP24: FALSE | BK24: 0 | BW24: ='7計画'!C24 -> 木 | BY24: ='7計画'!E24 -> 00:00:00 | CB24: ～ | CC24: ='7計画'!I24 -> 00:00:00 | CF24: ='7計画'!L24 -> 00:00:00 | CI24: ～ | CJ24: ='7計画'!P24 -> 00:00:00 | CM24: 00:00:00 | CP24: ='7計画'!V24 -> 0 | CV24: ='7計画'!AB24 -> 0 | DB24: ='7計画'!AH24 -> 0
A25: 10 | C25: ='7計画'!C25:D25 -> 金 | E25: ='7計画'!E25:G25 -> 00:00:00 | H25: ～ | I25: ='7計画'!I25:K25 -> 00:00:00 | L25: ='7計画'!L25:N25 -> 00:00:00 | O25: ～ | P25: ='7計画'!P25:R25 -> 00:00:00 | S25: 00:00:00 | V25: ='7計画'!V25:AA25 -> 0 | AB25: ='7計画'!AB25:AG25 -> 0 | AH25: ='7計画'!AH25:AO25 -> 0 | AP25: FALSE | BK25: 0 | BW25: ='7計画'!C25 -> 金 | BY25: ='7計画'!E25 -> 00:00:00 | CB25: ～ | CC25: ='7計画'!I25 -> 00:00:00 | CF25: ='7計画'!L25 -> 00:00:00 | CI25: ～ | CJ25: ='7計画'!P25 -> 00:00:00 | CM25: 00:00:00 | CP25: ='7計画'!V25 -> 0 | CV25: ='7計画'!AB25 -> 0 | DB25: ='7計画'!AH25 -> 0
A26: 11 | C26: ='7計画'!C26:D26 -> 土 | E26: ='7計画'!E26:G26 -> 00:00:00 | H26: ～ | I26: ='7計画'!I26:K26 -> 00:00:00 | L26: ='7計画'!L26:N26 -> 00:00:00 | O26: ～ | P26: ='7計画'!P26:R26 -> 00:00:00 | S26: 00:00:00 | V26: ='7計画'!V26:AA26 -> 0 | AB26: ='7計画'!AB26:AG26 -> 0 | AH26: ='7計画'!AH26:AO26 -> 0 | AP26: FALSE | BK26: 0 | BW26: ='7計画'!C26 -> 土 | BY26: ='7計画'!E26 -> 00:00:00 | CB26: ～ | CC26: ='7計画'!I26 -> 00:00:00 | CF26: ='7計画'!L26 -> 00:00:00 | CI26: ～ | CJ26: ='7計画'!P26 -> 00:00:00 | CM26: 00:00:00 | CP26: ='7計画'!V26 -> 0 | CV26: ='7計画'!AB26 -> 0 | DB26: ='7計画'!AH26 -> 0
A27: 12 | C27: ='7計画'!C27:D27 -> 日 | E27: ='7計画'!E27:G27 -> 00:00:00 | H27: ～ | I27: ='7計画'!I27:K27 -> 00:00:00 | L27: ='7計画'!L27:N27 -> 00:00:00 | O27: ～ | P27: ='7計画'!P27:R27 -> 00:00:00 | S27: 00:00:00 | V27: ='7計画'!V27:AA27 -> 0 | AB27: ='7計画'!AB27:AG27 -> 0 | AH27: ='7計画'!AH27:AO27 -> 0 | AP27: FALSE | BK27: 0 | BW27: ='7計画'!C27 -> 日 | BY27: ='7計画'!E27 -> 00:00:00 | CB27: ～ | CC27: ='7計画'!I27 -> 00:00:00 | CF27: ='7計画'!L27 -> 00:00:00 | CI27: ～ | CJ27: ='7計画'!P27 -> 00:00:00 | CM27: 00:00:00 | CP27: ='7計画'!V27 -> 0 | CV27: ='7計画'!AB27 -> 0 | DB27: ='7計画'!AH27 -> 0
A28: 13 | C28: ='7計画'!C28:D28 -> 月 | E28: ='7計画'!E28:G28 -> 00:00:00 | H28: ～ | I28: ='7計画'!I28:K28 -> 00:00:00 | L28: ='7計画'!L28:N28 -> 00:00:00 | O28: ～ | P28: ='7計画'!P28:R28 -> 00:00:00 | S28: 00:00:00 | V28: ='7計画'!V28:AA28 -> 0 | AB28: ='7計画'!AB28:AG28 -> 0 | AH28: ='7計画'!AH28:AO28 -> 0 | AP28: FALSE | BK28: 0 | BW28: ='7計画'!C28 -> 月 | BY28: ='7計画'!E28 -> 00:00:00 | CB28: ～ | CC28: ='7計画'!I28 -> 00:00:00 | CF28: ='7計画'!L28 -> 00:00:00 | CI28: ～ | CJ28: ='7計画'!P28 -> 00:00:00 | CM28: 00:00:00 | CP28: ='7計画'!V28 -> 0 | CV28: ='7計画'!AB28 -> 0 | DB28: ='7計画'!AH28 -> 0
A29: 14 | C29: ='7計画'!C29:D29 -> 火 | E29: ='7計画'!E29:G29 -> 00:00:00 | H29: ～ | I29: ='7計画'!I29:K29 -> 00:00:00 | L29: ='7計画'!L29:N29 -> 00:00:00 | O29: ～ | P29: ='7計画'!P29:R29 -> 00:00:00 | S29: 00:00:00 | V29: ='7計画'!V29:AA29 -> 0 | AB29: ='7計画'!AB29:AG29 -> 0 | AH29: ='7計画'!AH29:AO29 -> 0 | AP29: FALSE | BK29: 0 | BW29: ='7計画'!C29 -> 火 | BY29: ='7計画'!E29 -> 00:00:00 | CB29: ～ | CC29: ='7計画'!I29 -> 00:00:00 | CF29: ='7計画'!L29 -> 00:00:00 | CI29: ～ | CJ29: ='7計画'!P29 -> 00:00:00 | CM29: 00:00:00 | CP29: ='7計画'!V29 -> 0 | CV29: ='7計画'!AB29 -> 0 | DB29: ='7計画'!AH29 -> 0
A30: 15 | C30: ='7計画'!C30:D30 -> 水 | E30: ='7計画'!E30:G30 -> 00:00:00 | H30: ～ | I30: ='7計画'!I30:K30 -> 00:00:00 | L30: ='7計画'!L30:N30 -> 00:00:00 | O30: ～ | P30: ='7計画'!P30:R30 -> 00:00:00 | S30: 00:00:00 | V30: ='7計画'!V30:AA30 -> 0 | AB30: ='7計画'!AB30:AG30 -> 0 | AH30: ='7計画'!AH30:AO30 -> 0 | AP30: FALSE | BK30: 0 | BW30: ='7計画'!C30 -> 水 | BY30: ='7計画'!E30 -> 00:00:00 | CB30: ～ | CC30: ='7計画'!I30 -> 00:00:00 | CF30: ='7計画'!L30 -> 00:00:00 | CI30: ～ | CJ30: ='7計画'!P30 -> 00:00:00 | CM30: 00:00:00 | CP30: ='7計画'!V30 -> 0 | CV30: ='7計画'!AB30 -> 0 | DB30: ='7計画'!AH30 -> 0
A31: 16 | C31: ='7計画'!C31:D31 -> 木 | E31: ='7計画'!E31:G31 -> 00:00:00 | H31: ～ | I31: ='7計画'!I31:K31 -> 00:00:00 | L31: ='7計画'!L31:N31 -> 00:00:00 | O31: ～ | P31: ='7計画'!P31:R31 -> 00:00:00 | S31: 00:00:00 | V31: ='7計画'!V31:AA31 -> 0 | AB31: ='7計画'!AB31:AG31 -> 0 | AH31: ='7計画'!AH31:AO31 -> 0 | AP31: FALSE | BK31: 0 | BW31: ='7計画'!C31 -> 木 | BY31: ='7計画'!E31 -> 00:00:00 | CB31: ～ | CC31: ='7計画'!I31 -> 00:00:00 | CF31: ='7計画'!L31 -> 00:00:00 | CI31: ～ | CJ31: ='7計画'!P31 -> 00:00:00 | CM31: 00:00:00 | CP31: ='7計画'!V31 -> 0 | CV31: ='7計画'!AB31 -> 0 | DB31: ='7計画'!AH31 -> 0
A32: 17 | C32: ='7計画'!C32:D32 -> 金 | E32: ='7計画'!E32:G32 -> 00:00:00 | H32: ～ | I32: ='7計画'!I32:K32 -> 00:00:00 | L32: ='7計画'!L32:N32 -> 00:00:00 | O32: ～ | P32: ='7計画'!P32:R32 -> 00:00:00 | S32: 00:00:00 | V32: ='7計画'!V32:AA32 -> 0 | AB32: ='7計画'!AB32:AG32 -> 0 | AH32: ='7計画'!AH32:AO32 -> 0 | AP32: FALSE | BK32: 0 | BW32: ='7計画'!C32 -> 金 | BY32: ='7計画'!E32 -> 00:00:00 | CB32: ～ | CC32: ='7計画'!I32 -> 00:00:00 | CF32: ='7計画'!L32 -> 00:00:00 | CI32: ～ | CJ32: ='7計画'!P32 -> 00:00:00 | CM32: 00:00:00 | CP32: ='7計画'!V32 -> 0 | CV32: ='7計画'!AB32 -> 0 | DB32: ='7計画'!AH32 -> 0
A33: 18 | C33: ='7計画'!C33:D33 -> 土 | E33: ='7計画'!E33:G33 -> 00:00:00 | H33: ～ | I33: ='7計画'!I33:K33 -> 00:00:00 | L33: ='7計画'!L33:N33 -> 00:00:00 | O33: ～ | P33: ='7計画'!P33:R33 -> 00:00:00 | S33: 00:00:00 | V33: ='7計画'!V33:AA33 -> 0 | AB33: ='7計画'!AB33:AG33 -> 0 | AH33: ='7計画'!AH33:AO33 -> 0 | AP33: FALSE | BK33: 0 | BW33: ='7計画'!C33 -> 土 | BY33: ='7計画'!E33 -> 00:00:00 | CB33: ～ | CC33: ='7計画'!I33 -> 00:00:00 | CF33: ='7計画'!L33 -> 00:00:00 | CI33: ～ | CJ33: ='7計画'!P33 -> 00:00:00 | CM33: 00:00:00 | CP33: ='7計画'!V33 -> 0 | CV33: ='7計画'!AB33 -> 0 | DB33: ='7計画'!AH33 -> 0
A34: 19 | C34: ='7計画'!C34:D34 -> 日 | E34: ='7計画'!E34:G34 -> 00:00:00 | H34: ～ | I34: ='7計画'!I34:K34 -> 00:00:00 | L34: ='7計画'!L34:N34 -> 00:00:00 | O34: ～ | P34: ='7計画'!P34:R34 -> 00:00:00 | S34: 00:00:00 | V34: ='7計画'!V34:AA34 -> 0 | AB34: ='7計画'!AB34:AG34 -> 0 | AH34: ='7計画'!AH34:AO34 -> 0 | AP34: FALSE | BK34: 0 | BW34: ='7計画'!C34 -> 日 | BY34: ='7計画'!E34 -> 00:00:00 | CB34: ～ | CC34: ='7計画'!I34 -> 00:00:00 | CF34: ='7計画'!L34 -> 00:00:00 | CI34: ～ | CJ34: ='7計画'!P34 -> 00:00:00 | CM34: 00:00:00 | CP34: ='7計画'!V34 -> 0 | CV34: ='7計画'!AB34 -> 0 | DB34: ='7計画'!AH34 -> 0
A35: 20 | C35: ='7計画'!C35:D35 -> 月 | E35: ='7計画'!E35:G35 -> 00:00:00 | H35: ～ | I35: ='7計画'!I35:K35 -> 00:00:00 | L35: ='7計画'!L35:N35 -> 00:00:00 | O35: ～ | P35: ='7計画'!P35:R35 -> 00:00:00 | S35: 00:00:00 | V35: ='7計画'!V35:AA35 -> 0 | AB35: ='7計画'!AB35:AG35 -> 0 | AH35: ='7計画'!AH35:AO35 -> 0 | AP35: FALSE | BK35: 0 | BW35: ='7計画'!C35 -> 月 | BY35: ='7計画'!E35 -> 00:00:00 | CB35: ～ | CC35: ='7計画'!I35 -> 00:00:00 | CF35: ='7計画'!L35 -> 00:00:00 | CI35: ～ | CJ35: ='7計画'!P35 -> 00:00:00 | CM35: 00:00:00 | CP35: ='7計画'!V35 -> 0 | CV35: ='7計画'!AB35 -> 0 | DB35: ='7計画'!AH35 -> 0
A36: 21 | C36: ='7計画'!C36:D36 -> 火 | E36: ='7計画'!E36:G36 -> 00:00:00 | H36: ～ | I36: ='7計画'!I36:K36 -> 00:00:00 | L36: ='7計画'!L36:N36 -> 00:00:00 | O36: ～ | P36: ='7計画'!P36:R36 -> 00:00:00 | S36: 00:00:00 | V36: ='7計画'!V36:AA36 -> 0 | AB36: ='7計画'!AB36:AG36 -> 0 | AH36: ='7計画'!AH36:AO36 -> 0 | AP36: FALSE | BK36: 0 | BW36: ='7計画'!C36 -> 火 | BY36: ='7計画'!E36 -> 00:00:00 | CB36: ～ | CC36: ='7計画'!I36 -> 00:00:00 | CF36: ='7計画'!L36 -> 00:00:00 | CI36: ～ | CJ36: ='7計画'!P36 -> 00:00:00 | CM36: 00:00:00 | CP36: ='7計画'!V36 -> 0 | CV36: ='7計画'!AB36 -> 0 | DB36: ='7計画'!AH36 -> 0
A37: 22 | C37: ='7計画'!C37:D37 -> 水 | E37: ='7計画'!E37:G37 -> 00:00:00 | H37: ～ | I37: ='7計画'!I37:K37 -> 00:00:00 | L37: ='7計画'!L37:N37 -> 00:00:00 | O37: ～ | P37: ='7計画'!P37:R37 -> 00:00:00 | S37: 00:00:00 | V37: ='7計画'!V37:AA37 -> 0 | AB37: ='7計画'!AB37:AG37 -> 0 | AH37: ='7計画'!AH37:AO37 -> 0 | AP37: FALSE | BK37: 0 | BW37: ='7計画'!C37 -> 水 | BY37: ='7計画'!E37 -> 00:00:00 | CB37: ～ | CC37: ='7計画'!I37 -> 00:00:00 | CF37: ='7計画'!L37 -> 00:00:00 | CI37: ～ | CJ37: ='7計画'!P37 -> 00:00:00 | CM37: 00:00:00 | CP37: ='7計画'!V37 -> 0 | CV37: ='7計画'!AB37 -> 0 | DB37: ='7計画'!AH37 -> 0
A38: 23 | C38: ='7計画'!C38:D38 -> 木 | E38: ='7計画'!E38:G38 -> 00:00:00 | H38: ～ | I38: ='7計画'!I38:K38 -> 00:00:00 | L38: ='7計画'!L38:N38 -> 00:00:00 | O38: ～ | P38: ='7計画'!P38:R38 -> 00:00:00 | S38: 00:00:00 | V38: ='7計画'!V38:AA38 -> 0 | AB38: ='7計画'!AB38:AG38 -> 0 | AH38: ='7計画'!AH38:AO38 -> 0 | AP38: FALSE | BK38: 0 | BW38: ='7計画'!C38 -> 木 | BY38: ='7計画'!E38 -> 00:00:00 | CB38: ～ | CC38: ='7計画'!I38 -> 00:00:00 | CF38: ='7計画'!L38 -> 00:00:00 | CI38: ～ | CJ38: ='7計画'!P38 -> 00:00:00 | CM38: 00:00:00 | CP38: ='7計画'!V38 -> 0 | CV38: ='7計画'!AB38 -> 0 | DB38: ='7計画'!AH38 -> 0
A39: 24 | C39: ='7計画'!C39:D39 -> 金 | E39: ='7計画'!E39:G39 -> 00:00:00 | H39: ～ | I39: ='7計画'!I39:K39 -> 00:00:00 | L39: ='7計画'!L39:N39 -> 00:00:00 | O39: ～ | P39: ='7計画'!P39:R39 -> 00:00:00 | S39: 00:00:00 | V39: ='7計画'!V39:AA39 -> 0 | AB39: ='7計画'!AB39:AG39 -> 0 | AH39: ='7計画'!AH39:AO39 -> 0 | AP39: FALSE | BK39: 0 | BW39: ='7計画'!C39 -> 金 | BY39: ='7計画'!E39 -> 00:00:00 | CB39: ～ | CC39: ='7計画'!I39 -> 00:00:00 | CF39: ='7計画'!L39 -> 00:00:00 | CI39: ～ | CJ39: ='7計画'!P39 -> 00:00:00 | CM39: 00:00:00 | CP39: ='7計画'!V39 -> 0 | CV39: ='7計画'!AB39 -> 0 | DB39: ='7計画'!AH39 -> 0
A40: 25 | C40: ='7計画'!C40:D40 -> 土 | E40: ='7計画'!E40:G40 -> 00:00:00 | H40: ～ | I40: ='7計画'!I40:K40 -> 00:00:00 | L40: ='7計画'!L40:N40 -> 00:00:00 | O40: ～ | P40: ='7計画'!P40:R40 -> 00:00:00 | S40: 00:00:00 | V40: ='7計画'!V40:AA40 -> 0 | AB40: ='7計画'!AB40:AG40 -> 0 | AH40: ='7計画'!AH40:AO40 -> 0 | AP40: FALSE | BK40: 0 | BW40: ='7計画'!C40 -> 土 | BY40: ='7計画'!E40 -> 00:00:00 | CB40: ～ | CC40: ='7計画'!I40 -> 00:00:00 | CF40: ='7計画'!L40 -> 00:00:00 | CI40: ～ | CJ40: ='7計画'!P40 -> 00:00:00 | CM40: 00:00:00 | CP40: ='7計画'!V40 -> 0 | CV40: ='7計画'!AB40 -> 0 | DB40: ='7計画'!AH40 -> 0
A41: 26 | C41: ='7計画'!C41:D41 -> 日 | E41: ='7計画'!E41:G41 -> 00:00:00 | H41: ～ | I41: ='7計画'!I41:K41 -> 00:00:00 | L41: ='7計画'!L41:N41 -> 00:00:00 | O41: ～ | P41: ='7計画'!P41:R41 -> 00:00:00 | S41: 00:00:00 | V41: ='7計画'!V41:AA41 -> 0 | AB41: ='7計画'!AB41:AG41 -> 0 | AH41: ='7計画'!AH41:AO41 -> 0 | AP41: FALSE | BK41: 0 | BW41: ='7計画'!C41 -> 日 | BY41: ='7計画'!E41 -> 00:00:00 | CB41: ～ | CC41: ='7計画'!I41 -> 00:00:00 | CF41: ='7計画'!L41 -> 00:00:00 | CI41: ～ | CJ41: ='7計画'!P41 -> 00:00:00 | CM41: 00:00:00 | CP41: ='7計画'!V41 -> 0 | CV41: ='7計画'!AB41 -> 0 | DB41: ='7計画'!AH41 -> 0
A42: 27 | C42: ='7計画'!C42:D42 -> 月 | E42: ='7計画'!E42:G42 -> 00:00:00 | H42: ～ | I42: ='7計画'!I42:K42 -> 00:00:00 | L42: ='7計画'!L42:N42 -> 00:00:00 | O42: ～ | P42: ='7計画'!P42:R42 -> 00:00:00 | S42: 00:00:00 | V42: ='7計画'!V42:AA42 -> 0 | AB42: ='7計画'!AB42:AG42 -> 0 | AH42: ='7計画'!AH42:AO42 -> 0 | AP42: FALSE | BK42: 0 | BW42: ='7計画'!C42 -> 月 | BY42: ='7計画'!E42 -> 00:00:00 | CB42: ～ | CC42: ='7計画'!I42 -> 00:00:00 | CF42: ='7計画'!L42 -> 00:00:00 | CI42: ～ | CJ42: ='7計画'!P42 -> 00:00:00 | CM42: 00:00:00 | CP42: ='7計画'!V42 -> 0 | CV42: ='7計画'!AB42 -> 0 | DB42: ='7計画'!AH42 -> 0
A43: 28 | C43: ='7計画'!C43:D43 -> 火 | E43: ='7計画'!E43:G43 -> 00:00:00 | H43: ～ | I43: ='7計画'!I43:K43 -> 00:00:00 | L43: ='7計画'!L43:N43 -> 00:00:00 | O43: ～ | P43: ='7計画'!P43:R43 -> 00:00:00 | S43: 00:00:00 | V43: ='7計画'!V43:AA43 -> 0 | AB43: ='7計画'!AB43:AG43 -> 0 | AH43: ='7計画'!AH43:AO43 -> 0 | AP43: FALSE | BK43: 0 | BW43: ='7計画'!C43 -> 火 | BY43: ='7計画'!E43 -> 00:00:00 | CB43: ～ | CC43: ='7計画'!I43 -> 00:00:00 | CF43: ='7計画'!L43 -> 00:00:00 | CI43: ～ | CJ43: ='7計画'!P43 -> 00:00:00 | CM43: 00:00:00 | CP43: ='7計画'!V43 -> 0 | CV43: ='7計画'!AB43 -> 0 | DB43: ='7計画'!AH43 -> 0
A44: 29 | C44: ='7計画'!C44:D44 -> 水 | E44: ='7計画'!E44:G44 -> 00:00:00 | H44: ～ | I44: ='7計画'!I44:K44 -> 00:00:00 | L44: ='7計画'!L44:N44 -> 00:00:00 | O44: ～ | P44: ='7計画'!P44:R44 -> 00:00:00 | S44: 00:00:00 | V44: ='7計画'!V44:AA44 -> 0 | AB44: ='7計画'!AB44:AG44 -> 0 | AH44: ='7計画'!AH44:AO44 -> 0 | AP44: FALSE | BK44: 0 | BW44: ='7計画'!C44 -> 水 | BY44: ='7計画'!E44 -> 00:00:00 | CB44: ～ | CC44: ='7計画'!I44 -> 00:00:00 | CF44: ='7計画'!L44 -> 00:00:00 | CI44: ～ | CJ44: ='7計画'!P44 -> 00:00:00 | CM44: 00:00:00 | CP44: ='7計画'!V44 -> 0 | CV44: ='7計画'!AB44 -> 0 | DB44: ='7計画'!AH44 -> 0
A45: 30 | C45: ='7計画'!C45:D45 -> 木 | E45: ='7計画'!E45:G45 -> 00:00:00 | H45: ～ | I45: ='7計画'!I45:K45 -> 00:00:00 | L45: ='7計画'!L45:N45 -> 00:00:00 | O45: ～ | P45: ='7計画'!P45:R45 -> 00:00:00 | S45: 00:00:00 | V45: ='7計画'!V45:AA45 -> 0 | AB45: ='7計画'!AB45:AG45 -> 0 | AH45: ='7計画'!AH45:AO45 -> 0 | AP45: FALSE | BK45: 0 | BW45: ='7計画'!C45 -> 木 | BY45: ='7計画'!E45 -> 00:00:00 | CB45: ～ | CC45: ='7計画'!I45 -> 00:00:00 | CF45: ='7計画'!L45 -> 00:00:00 | CI45: ～ | CJ45: ='7計画'!P45 -> 00:00:00 | CM45: 00:00:00 | CP45: ='7計画'!V45 -> 0 | CV45: ='7計画'!AB45 -> 0 | DB45: ='7計画'!AH45 -> 0
A46: 31 | C46: ='7計画'!C46:D46 -> 金 | E46: ='7計画'!E46:G46 -> 00:00:00 | H46: ～ | I46: ='7計画'!I46:K46 -> 00:00:00 | L46: ='7計画'!L46:N46 -> 00:00:00 | O46: ～ | P46: ='7計画'!P46:R46 -> 00:00:00 | S46: 00:00:00 | V46: ='7計画'!V46:AA46 -> 0 | AB46: ='7計画'!AB46:AG46 -> 0 | AH46: ='7計画'!AH46:AO46 -> 0 | AP46: FALSE | BK46: 0 | BU46: 31 | BW46: ='7計画'!C46 -> 金 | BY46: ='7計画'!E46 -> 00:00:00 | CB46: ～ | CC46: ='7計画'!I46 -> 00:00:00 | CF46: ='7計画'!L46 -> 00:00:00 | CI46: ～ | CJ46: ='7計画'!P46 -> 00:00:00 | CM46: 00:00:00 | CP46: ='7計画'!V46 -> 0 | CV46: ='7計画'!AB46 -> 0 | DB46: ='7計画'!AH46 -> 0
S47: =SUM(S16:U46) -> 0 | CM47: =SUM(CM16:CO46) -> 0
A49: 月 | D49: 4 | F49: 5 | H49: 6 | J49: 7 | L49: 8 | N49: 9 | P49: 10 | R49: 11 | T49: 12 | V49: 1 | X49: 2 | Z49: 3 | AB49: 計
A50: 時間 | D50: ='４実績'!D50 -> 0 | F50: ='５実績'!F50 -> 0 | H50: ='6実績'!H50 -> 0 | J50: =S47 -> 0 | AB50: =SUM(D50:AA50) -> 0 | AG50: 時間 | BX50: ='４実績'!D50 -> 0 | BZ50: ='５実績'!F50 -> 0 | CB50: ='6実績'!H50 -> 0 | CD50: =CM47 -> 0 | CV50: =SUM(BX50:CU50) -> 0
A51: 活動日数 | D51: ='４実績'!D51 -> 0 | F51: ='５実績'!F51 -> 0 | H51: ='6実績'!H51 -> 0 | J51: =COUNTIF(S16:U46,">0") -> 0 | AB51: =SUM(D51:AA51) -> 0 | AG51: 活動日数 | BX51: ='４実績'!D51 -> 0 | BZ51: ='５実績'!F51 -> 0 | CB51: ='6実績'!H51 -> 0 | CD51: =COUNTIF(CM16:CO46,">0") -> 0 | CV51: =SUM(BX51:CU51) -> 0
A52: 休養日数 | D52: ='４実績'!D52 -> 30 | F52: ='５実績'!F52 -> 31 | H52: ='6実績'!H52 -> 30 | J52: =COUNTIF(S16:U46,"0:00") -> 31 | AB52: =SUM(D52:AA52) -> 122 | AG52: 休養日数 | BX52: ='４実績'!D52 -> 30 | BZ52: ='５実績'!F52 -> 31 | CB52: ='6実績'!H52 -> 30 | CD52: =COUNTIF(CM16:CO46,"0:00") -> 31 | CV52: =SUM(BX52:CU52) -> 122
AB53: =AB50/AB51 ->  | AG53: 平均時間/日 | CV53: =CV50/CV51 -> 

Sheet 8実績
A2: ='8計画'!A2:D2 -> 校長 | E2: ='8計画'!E2:H2 -> 教頭 | I2: ='8計画'!I2:L2 -> 教頭 | M2: ='8計画'!M2:P2 -> 主幹教諭 | Q2: ='8計画'!Q2:T2 -> 0 | U2: ='8計画'!U2:X2 -> 顧問 | Z2: 学校名 | AC2: ='8計画'!AC2:AL3 -> 0 | AM2: 学校 | BU2: ='8計画'!BU2:BX2 -> 0 | BY2: ='8計画'!BY2:CB2 -> 0 | CC2: ='8計画'!CC2:CF2 -> 0 | CG2: ='8計画'!CG2:CJ2 -> 0 | CK2: ='8計画'!CK2:CN2 -> 0 | CO2: ='8計画'!CO2:CR2 -> 0 | CW2: ='8計画'!CW2:DF3 -> 0
A3: 印 | E3: 印 | I3: 印 | M3: 印 | Q3: 印 | U3: 印
Z4: 部活動名 | AC4: ='8計画'!AC4:AL5 -> 0 | AM4: 部 | CW4: ='8計画'!CW4:DF5 -> 0
A6: ※活動計画と違う内容については、校長口頭命令済み
A7: 8 | F7: 月 | I7: 〈月間〉部活動計画・活動実績 | Y7: 部員数 | AB7: 1女 | AD7: 2女 | AF7: 3女 | AH7: 1男 | AJ7: 2男 | AL7: 3男 | AN7: 計
AB8: ='8計画'!AB8:AC8 -> 0 | AD8: ='8計画'!AD8:AE8 -> 0 | AF8: ='8計画'!AF8:AG8 -> 0 | AH8: ='8計画'!AH8:AI8 -> 0 | AJ8: ='8計画'!AJ8:AK8 -> 0 | AL8: ='8計画'!AL8:AM8 -> 0 | AN8: =SUM(AB8:AM8) -> 0 | CV8: ='8計画'!AB8 -> 0 | CX8: ='8計画'!AD8 -> 0 | CZ8: ='8計画'!AF8 -> 0 | DB8: ='8計画'!AH8 -> 0 | DD8: ='8計画'!AJ8 -> 0 | DF8: ='8計画'!AL8 -> 0 | DH8: =SUM(CV8:DG8) -> 0
B10: 職名 | D10: ='8計画'!D10:H11 -> 0 | I10: 顧問 | K10: ='8計画'!K10:S11 -> 0 | V10: 職名 | X10: ='8計画'!X10:AB11 -> 0 | AC10: 副２ | AE10: ='8計画'!AE10:AM11 -> 0 | BX10: ='8計画'!D10 -> 0 | CE10: ='8計画'!K10 -> 0 | CR10: ='8計画'!X10 -> 0 | CY10: ='8計画'!AE10 -> 0
B12: 職名 | D12: ='8計画'!D12:H13 -> 0 | I12: 副顧問 | K12: ='8計画'!K12:S13 -> 0 | V12: 職名 | X12: ='8計画'!X12:AB13 -> 0 | AC12: 副３ | AE12: ='8計画'!AE12:AM13 -> 0 | BX12: ='8計画'!D12 -> 0 | CE12: ='8計画'!K12 -> 0 | CR12: ='8計画'!X12 -> 0 | CY12: ='8計画'!AE12 -> 0
A15: 日 | C15: 曜 | E15: ＡＭ | L15: ＰＭ | S15: 時間 | V15: 内容（練習・大会・OFF等） | AH15: 場所 | AP15: FALSE | AQ15: 特殊業務
A16: 1 | C16: ='8計画'!C16:D16 -> 土 | E16: ='8計画'!E16:G16 -> 00:00:00 | H16: ～ | I16: ='8計画'!I16:K16 -> 00:00:00 | L16: ='8計画'!L16:N16 -> 00:00:00 | O16: ～ | P16: ='8計画'!P16:R16 -> 00:00:00 | S16: =(I16-E16)+(P16-L16) -> 00:00:00 | V16: ='8計画'!V16:AA16 -> 0 | AB16: ='8計画'!AB16:AG16 -> 0 | AH16: ='8計画'!AH16:AO16 -> 0 | AP16: FALSE | BK16: =RIGHT(V16,2) -> 0 | BW16: ='8計画'!C16 -> 土 | BY16: ='8計画'!E16 -> 00:00:00 | CB16: ～ | CC16: ='8計画'!I16 -> 00:00:00 | CF16: ='8計画'!L16 -> 00:00:00 | CI16: ～ | CJ16: ='8計画'!P16 -> 00:00:00 | CM16: =(CC16-BY16)+(CJ16-CF16) -> 00:00:00 | CP16: ='8計画'!V16 -> 0 | CV16: ='8計画'!AB16 -> 0 | DB16: ='8計画'!AH16 -> 0
A17: 2 | C17: ='8計画'!C17:D17 -> 日 | E17: ='8計画'!E17:G17 -> 00:00:00 | H17: ～ | I17: ='8計画'!I17:K17 -> 00:00:00 | L17: ='8計画'!L17:N17 -> 00:00:00 | O17: ～ | P17: ='8計画'!P17:R17 -> 00:00:00 | S17: 00:00:00 | V17: ='8計画'!V17:AA17 -> 0 | AB17: ='8計画'!AB17:AG17 -> 0 | AH17: ='8計画'!AH17:AO17 -> 0 | AP17: FALSE | BK17: =RIGHT(V17,2) -> 0 | BW17: ='8計画'!C17 -> 日 | BY17: ='8計画'!E17 -> 00:00:00 | CB17: ～ | CC17: ='8計画'!I17 -> 00:00:00 | CF17: ='8計画'!L17 -> 00:00:00 | CI17: ～ | CJ17: ='8計画'!P17 -> 00:00:00 | CM17: 00:00:00 | CP17: ='8計画'!V17 -> 0 | CV17: ='8計画'!AB17 -> 0 | DB17: ='8計画'!AH17 -> 0
A18: 3 | C18: ='8計画'!C18:D18 -> 月 | E18: ='8計画'!E18:G18 -> 00:00:00 | H18: ～ | I18: ='8計画'!I18:K18 -> 00:00:00 | L18: ='8計画'!L18:N18 -> 00:00:00 | O18: ～ | P18: ='8計画'!P18:R18 -> 00:00:00 | S18: 00:00:00 | V18: ='8計画'!V18:AA18 -> 0 | AB18: ='8計画'!AB18:AG18 -> 0 | AH18: ='8計画'!AH18:AO18 -> 0 | AP18: FALSE | BK18: 0 | BW18: ='8計画'!C18 -> 月 | BY18: ='8計画'!E18 -> 00:00:00 | CB18: ～ | CC18: ='8計画'!I18 -> 00:00:00 | CF18: ='8計画'!L18 -> 00:00:00 | CI18: ～ | CJ18: ='8計画'!P18 -> 00:00:00 | CM18: 00:00:00 | CP18: ='8計画'!V18 -> 0 | CV18: ='8計画'!AB18 -> 0 | DB18: ='8計画'!AH18 -> 0
A19: 4 | C19: ='8計画'!C19:D19 -> 火 | E19: ='8計画'!E19:G19 -> 00:00:00 | H19: ～ | I19: ='8計画'!I19:K19 -> 00:00:00 | L19: ='8計画'!L19:N19 -> 00:00:00 | O19: ～ | P19: ='8計画'!P19:R19 -> 00:00:00 | S19: 00:00:00 | V19: ='8計画'!V19:AA19 -> 0 | AB19: ='8計画'!AB19:AG19 -> 0 | AH19: ='8計画'!AH19:AO19 -> 0 | AP19: FALSE | BK19: 0 | BW19: ='8計画'!C19 -> 火 | BY19: ='8計画'!E19 -> 00:00:00 | CB19: ～ | CC19: ='8計画'!I19 -> 00:00:00 | CF19: ='8計画'!L19 -> 00:00:00 | CI19: ～ | CJ19: ='8計画'!P19 -> 00:00:00 | CM19: 00:00:00 | CP19: ='8計画'!V19 -> 0 | CV19: ='8計画'!AB19 -> 0 | DB19: ='8計画'!AH19 -> 0
A20: 5 | C20: ='8計画'!C20:D20 -> 水 | E20: ='8計画'!E20:G20 -> 00:00:00 | H20: ～ | I20: ='8計画'!I20:K20 -> 00:00:00 | L20: ='8計画'!L20:N20 -> 00:00:00 | O20: ～ | P20: ='8計画'!P20:R20 -> 00:00:00 | S20: 00:00:00 | V20: ='8計画'!V20:AA20 -> 0 | AB20: ='8計画'!AB20:AG20 -> 0 | AH20: ='8計画'!AH20:AO20 -> 0 | AP20: FALSE | BK20: 0 | BW20: ='8計画'!C20 -> 水 | BY20: ='8計画'!E20 -> 00:00:00 | CB20: ～ | CC20: ='8計画'!I20 -> 00:00:00 | CF20: ='8計画'!L20 -> 00:00:00 | CI20: ～ | CJ20: ='8計画'!P20 -> 00:00:00 | CM20: 00:00:00 | CP20: ='8計画'!V20 -> 0 | CV20: ='8計画'!AB20 -> 0 | DB20: ='8計画'!AH20 -> 0
A21: 6 | C21: ='8計画'!C21:D21 -> 木 | E21: ='8計画'!E21:G21 -> 00:00:00 | H21: ～ | I21: ='8計画'!I21:K21 -> 00:00:00 | L21: ='8計画'!L21:N21 -> 00:00:00 | O21: ～ | P21: ='8計画'!P21:R21 -> 00:00:00 | S21: 00:00:00 | V21: ='8計画'!V21:AA21 -> 0 | AB21: ='8計画'!AB21:AG21 -> 0 | AH21: ='8計画'!AH21:AO21 -> 0 | AP21: FALSE | BK21: 0 | BW21: ='8計画'!C21 -> 木 | BY21: ='8計画'!E21 -> 00:00:00 | CB21: ～ | CC21: ='8計画'!I21 -> 00:00:00 | CF21: ='8計画'!L21 -> 00:00:00 | CI21: ～ | CJ21: ='8計画'!P21 -> 00:00:00 | CM21: 00:00:00 | CP21: ='8計画'!V21 -> 0 | CV21: ='8計画'!AB21 -> 0 | DB21: ='8計画'!AH21 -> 0
A22: 7 | C22: ='8計画'!C22:D22 -> 金 | E22: ='8計画'!E22:G22 -> 00:00:00 | H22: ～ | I22: ='8計画'!I22:K22 -> 00:00:00 | L22: ='8計画'!L22:N22 -> 00:00:00 | O22: ～ | P22: ='8計画'!P22:R22 -> 00:00:00 | S22: 00:00:00 | V22: ='8計画'!V22:AA22 -> 0 | AB22: ='8計画'!AB22:AG22 -> 0 | AH22: ='8計画'!AH22:AO22 -> 0 | AP22: FALSE | BK22: 0 | BW22: ='8計画'!C22 -> 金 | BY22: ='8計画'!E22 -> 00:00:00 | CB22: ～ | CC22: ='8計画'!I22 -> 00:00:00 | CF22: ='8計画'!L22 -> 00:00:00 | CI22: ～ | CJ22: ='8計画'!P22 -> 00:00:00 | CM22: 00:00:00 | CP22: ='8計画'!V22 -> 0 | CV22: ='8計画'!AB22 -> 0 | DB22: ='8計画'!AH22 -> 0
A23: 8 | C23: ='8計画'!C23:D23 -> 土 | E23: ='8計画'!E23:G23 -> 00:00:00 | H23: ～ | I23: ='8計画'!I23:K23 -> 00:00:00 | L23: ='8計画'!L23:N23 -> 00:00:00 | O23: ～ | P23: ='8計画'!P23:R23 -> 00:00:00 | S23: 00:00:00 | V23: ='8計画'!V23:AA23 -> 0 | AB23: ='8計画'!AB23:AG23 -> 0 | AH23: ='8計画'!AH23:AO23 -> 0 | AP23: FALSE | BK23: 0 | BW23: ='8計画'!C23 -> 土 | BY23: ='8計画'!E23 -> 00:00:00 | CB23: ～ | CC23: ='8計画'!I23 -> 00:00:00 | CF23: ='8計画'!L23 -> 00:00:00 | CI23: ～ | CJ23: ='8計画'!P23 -> 00:00:00 | CM23: 00:00:00 | CP23: ='8計画'!V23 -> 0 | CV23: ='8計画'!AB23 -> 0 | DB23: ='8計画'!AH23 -> 0
A24: 9 | C24: ='8計画'!C24:D24 -> 日 | E24: ='8計画'!E24:G24 -> 00:00:00 | H24: ～ | I24: ='8計画'!I24:K24 -> 00:00:00 | L24: ='8計画'!L24:N24 -> 00:00:00 | O24: ～ | P24: ='8計画'!P24:R24 -> 00:00:00 | S24: 00:00:00 | V24: ='8計画'!V24:AA24 -> 0 | AB24: ='8計画'!AB24:AG24 -> 0 | AH24: ='8計画'!AH24:AO24 -> 0 | AP24: FALSE | BK24: 0 | BW24: ='8計画'!C24 -> 日 | BY24: ='8計画'!E24 -> 00:00:00 | CB24: ～ | CC24: ='8計画'!I24 -> 00:00:00 | CF24: ='8計画'!L24 -> 00:00:00 | CI24: ～ | CJ24: ='8計画'!P24 -> 00:00:00 | CM24: 00:00:00 | CP24: ='8計画'!V24 -> 0 | CV24: ='8計画'!AB24 -> 0 | DB24: ='8計画'!AH24 -> 0
A25: 10 | C25: ='8計画'!C25:D25 -> 月 | E25: ='8計画'!E25:G25 -> 00:00:00 | H25: ～ | I25: ='8計画'!I25:K25 -> 00:00:00 | L25: ='8計画'!L25:N25 -> 00:00:00 | O25: ～ | P25: ='8計画'!P25:R25 -> 00:00:00 | S25: 00:00:00 | V25: ='8計画'!V25:AA25 -> 0 | AB25: ='8計画'!AB25:AG25 -> 0 | AH25: ='8計画'!AH25:AO25 -> 0 | AP25: FALSE | BK25: 0 | BW25: ='8計画'!C25 -> 月 | BY25: ='8計画'!E25 -> 00:00:00 | CB25: ～ | CC25: ='8計画'!I25 -> 00:00:00 | CF25: ='8計画'!L25 -> 00:00:00 | CI25: ～ | CJ25: ='8計画'!P25 -> 00:00:00 | CM25: 00:00:00 | CP25: ='8計画'!V25 -> 0 | CV25: ='8計画'!AB25 -> 0 | DB25: ='8計画'!AH25 -> 0
A26: 11 | C26: ='8計画'!C26:D26 -> 火 | E26: ='8計画'!E26:G26 -> 00:00:00 | H26: ～ | I26: ='8計画'!I26:K26 -> 00:00:00 | L26: ='8計画'!L26:N26 -> 00:00:00 | O26: ～ | P26: ='8計画'!P26:R26 -> 00:00:00 | S26: 00:00:00 | V26: ='8計画'!V26:AA26 -> 0 | AB26: ='8計画'!AB26:AG26 -> 0 | AH26: ='8計画'!AH26:AO26 -> 0 | AP26: FALSE | BK26: 0 | BW26: ='8計画'!C26 -> 火 | BY26: ='8計画'!E26 -> 00:00:00 | CB26: ～ | CC26: ='8計画'!I26 -> 00:00:00 | CF26: ='8計画'!L26 -> 00:00:00 | CI26: ～ | CJ26: ='8計画'!P26 -> 00:00:00 | CM26: 00:00:00 | CP26: ='8計画'!V26 -> 0 | CV26: ='8計画'!AB26 -> 0 | DB26: ='8計画'!AH26 -> 0
A27: 12 | C27: ='8計画'!C27:D27 -> 水 | E27: ='8計画'!E27:G27 -> 00:00:00 | H27: ～ | I27: ='8計画'!I27:K27 -> 00:00:00 | L27: ='8計画'!L27:N27 -> 00:00:00 | O27: ～ | P27: ='8計画'!P27:R27 -> 00:00:00 | S27: 00:00:00 | V27: ='8計画'!V27:AA27 -> 0 | AB27: ='8計画'!AB27:AG27 -> 0 | AH27: ='8計画'!AH27:AO27 -> 0 | AP27: FALSE | BK27: 0 | BW27: ='8計画'!C27 -> 水 | BY27: ='8計画'!E27 -> 00:00:00 | CB27: ～ | CC27: ='8計画'!I27 -> 00:00:00 | CF27: ='8計画'!L27 -> 00:00:00 | CI27: ～ | CJ27: ='8計画'!P27 -> 00:00:00 | CM27: 00:00:00 | CP27: ='8計画'!V27 -> 0 | CV27: ='8計画'!AB27 -> 0 | DB27: ='8計画'!AH27 -> 0
A28: 13 | C28: ='8計画'!C28:D28 -> 木 | E28: ='8計画'!E28:G28 -> 00:00:00 | H28: ～ | I28: ='8計画'!I28:K28 -> 00:00:00 | L28: ='8計画'!L28:N28 -> 00:00:00 | O28: ～ | P28: ='8計画'!P28:R28 -> 00:00:00 | S28: 00:00:00 | V28: ='8計画'!V28:AA28 -> 0 | AB28: ='8計画'!AB28:AG28 -> 0 | AH28: ='8計画'!AH28:AO28 -> 0 | AP28: FALSE | BK28: 0 | BW28: ='8計画'!C28 -> 木 | BY28: ='8計画'!E28 -> 00:00:00 | CB28: ～ | CC28: ='8計画'!I28 -> 00:00:00 | CF28: ='8計画'!L28 -> 00:00:00 | CI28: ～ | CJ28: ='8計画'!P28 -> 00:00:00 | CM28: 00:00:00 | CP28: ='8計画'!V28 -> 0 | CV28: ='8計画'!AB28 -> 0 | DB28: ='8計画'!AH28 -> 0
A29: 14 | C29: ='8計画'!C29:D29 -> 金 | E29: ='8計画'!E29:G29 -> 00:00:00 | H29: ～ | I29: ='8計画'!I29:K29 -> 00:00:00 | L29: ='8計画'!L29:N29 -> 00:00:00 | O29: ～ | P29: ='8計画'!P29:R29 -> 00:00:00 | S29: 00:00:00 | V29: ='8計画'!V29:AA29 -> 0 | AB29: ='8計画'!AB29:AG29 -> 0 | AH29: ='8計画'!AH29:AO29 -> 0 | AP29: FALSE | BK29: 0 | BW29: ='8計画'!C29 -> 金 | BY29: ='8計画'!E29 -> 00:00:00 | CB29: ～ | CC29: ='8計画'!I29 -> 00:00:00 | CF29: ='8計画'!L29 -> 00:00:00 | CI29: ～ | CJ29: ='8計画'!P29 -> 00:00:00 | CM29: 00:00:00 | CP29: ='8計画'!V29 -> 0 | CV29: ='8計画'!AB29 -> 0 | DB29: ='8計画'!AH29 -> 0
A30: 15 | C30: ='8計画'!C30:D30 -> 土 | E30: ='8計画'!E30:G30 -> 00:00:00 | H30: ～ | I30: ='8計画'!I30:K30 -> 00:00:00 | L30: ='8計画'!L30:N30 -> 00:00:00 | O30: ～ | P30: ='8計画'!P30:R30 -> 00:00:00 | S30: 00:00:00 | V30: ='8計画'!V30:AA30 -> 0 | AB30: ='8計画'!AB30:AG30 -> 0 | AH30: ='8計画'!AH30:AO30 -> 0 | AP30: FALSE | BK30: 0 | BW30: ='8計画'!C30 -> 土 | BY30: ='8計画'!E30 -> 00:00:00 | CB30: ～ | CC30: ='8計画'!I30 -> 00:00:00 | CF30: ='8計画'!L30 -> 00:00:00 | CI30: ～ | CJ30: ='8計画'!P30 -> 00:00:00 | CM30: 00:00:00 | CP30: ='8計画'!V30 -> 0 | CV30: ='8計画'!AB30 -> 0 | DB30: ='8計画'!AH30 -> 0
A31: 16 | C31: ='8計画'!C31:D31 -> 日 | E31: ='8計画'!E31:G31 -> 00:00:00 | H31: ～ | I31: ='8計画'!I31:K31 -> 00:00:00 | L31: ='8計画'!L31:N31 -> 00:00:00 | O31: ～ | P31: ='8計画'!P31:R31 -> 00:00:00 | S31: 00:00:00 | V31: ='8計画'!V31:AA31 -> 0 | AB31: ='8計画'!AB31:AG31 -> 0 | AH31: ='8計画'!AH31:AO31 -> 0 | AP31: FALSE | BK31: 0 | BW31: ='8計画'!C31 -> 日 | BY31: ='8計画'!E31 -> 00:00:00 | CB31: ～ | CC31: ='8計画'!I31 -> 00:00:00 | CF31: ='8計画'!L31 -> 00:00:00 | CI31: ～ | CJ31: ='8計画'!P31 -> 00:00:00 | CM31: 00:00:00 | CP31: ='8計画'!V31 -> 0 | CV31: ='8計画'!AB31 -> 0 | DB31: ='8計画'!AH31 -> 0
A32: 17 | C32: ='8計画'!C32:D32 -> 月 | E32: ='8計画'!E32:G32 -> 00:00:00 | H32: ～ | I32: ='8計画'!I32:K32 -> 00:00:00 | L32: ='8計画'!L32:N32 -> 00:00:00 | O32: ～ | P32: ='8計画'!P32:R32 -> 00:00:00 | S32: 00:00:00 | V32: ='8計画'!V32:AA32 -> 0 | AB32: ='8計画'!AB32:AG32 -> 0 | AH32: ='8計画'!AH32:AO32 -> 0 | AP32: FALSE | BK32: 0 | BW32: ='8計画'!C32 -> 月 | BY32: ='8計画'!E32 -> 00:00:00 | CB32: ～ | CC32: ='8計画'!I32 -> 00:00:00 | CF32: ='8計画'!L32 -> 00:00:00 | CI32: ～ | CJ32: ='8計画'!P32 -> 00:00:00 | CM32: 00:00:00 | CP32: ='8計画'!V32 -> 0 | CV32: ='8計画'!AB32 -> 0 | DB32: ='8計画'!AH32 -> 0
A33: 18 | C33: ='8計画'!C33:D33 -> 火 | E33: ='8計画'!E33:G33 -> 00:00:00 | H33: ～ | I33: ='8計画'!I33:K33 -> 00:00:00 | L33: ='8計画'!L33:N33 -> 00:00:00 | O33: ～ | P33: ='8計画'!P33:R33 -> 00:00:00 | S33: 00:00:00 | V33: ='8計画'!V33:AA33 -> 0 | AB33: ='8計画'!AB33:AG33 -> 0 | AH33: ='8計画'!AH33:AO33 -> 0 | AP33: FALSE | BK33: 0 | BW33: ='8計画'!C33 -> 火 | BY33: ='8計画'!E33 -> 00:00:00 | CB33: ～ | CC33: ='8計画'!I33 -> 00:00:00 | CF33: ='8計画'!L33 -> 00:00:00 | CI33: ～ | CJ33: ='8計画'!P33 -> 00:00:00 | CM33: 00:00:00 | CP33: ='8計画'!V33 -> 0 | CV33: ='8計画'!AB33 -> 0 | DB33: ='8計画'!AH33 -> 0
A34: 19 | C34: ='8計画'!C34:D34 -> 水 | E34: ='8計画'!E34:G34 -> 00:00:00 | H34: ～ | I34: ='8計画'!I34:K34 -> 00:00:00 | L34: ='8計画'!L34:N34 -> 00:00:00 | O34: ～ | P34: ='8計画'!P34:R34 -> 00:00:00 | S34: 00:00:00 | V34: ='8計画'!V34:AA34 -> 0 | AB34: ='8計画'!AB34:AG34 -> 0 | AH34: ='8計画'!AH34:AO34 -> 0 | AP34: FALSE | BK34: 0 | BW34: ='8計画'!C34 -> 水 | BY34: ='8計画'!E34 -> 00:00:00 | CB34: ～ | CC34: ='8計画'!I34 -> 00:00:00 | CF34: ='8計画'!L34 -> 00:00:00 | CI34: ～ | CJ34: ='8計画'!P34 -> 00:00:00 | CM34: 00:00:00 | CP34: ='8計画'!V34 -> 0 | CV34: ='8計画'!AB34 -> 0 | DB34: ='8計画'!AH34 -> 0
A35: 20 | C35: ='8計画'!C35:D35 -> 木 | E35: ='8計画'!E35:G35 -> 00:00:00 | H35: ～ | I35: ='8計画'!I35:K35 -> 00:00:00 | L35: ='8計画'!L35:N35 -> 00:00:00 | O35: ～ | P35: ='8計画'!P35:R35 -> 00:00:00 | S35: 00:00:00 | V35: ='8計画'!V35:AA35 -> 0 | AB35: ='8計画'!AB35:AG35 -> 0 | AH35: ='8計画'!AH35:AO35 -> 0 | AP35: FALSE | BK35: 0 | BW35: ='8計画'!C35 -> 木 | BY35: ='8計画'!E35 -> 00:00:00 | CB35: ～ | CC35: ='8計画'!I35 -> 00:00:00 | CF35: ='8計画'!L35 -> 00:00:00 | CI35: ～ | CJ35: ='8計画'!P35 -> 00:00:00 | CM35: 00:00:00 | CP35: ='8計画'!V35 -> 0 | CV35: ='8計画'!AB35 -> 0 | DB35: ='8計画'!AH35 -> 0
A36: 21 | C36: ='8計画'!C36:D36 -> 金 | E36: ='8計画'!E36:G36 -> 00:00:00 | H36: ～ | I36: ='8計画'!I36:K36 -> 00:00:00 | L36: ='8計画'!L36:N36 -> 00:00:00 | O36: ～ | P36: ='8計画'!P36:R36 -> 00:00:00 | S36: 00:00:00 | V36: ='8計画'!V36:AA36 -> 0 | AB36: ='8計画'!AB36:AG36 -> 0 | AH36: ='8計画'!AH36:AO36 -> 0 | AP36: FALSE | BK36: 0 | BW36: ='8計画'!C36 -> 金 | BY36: ='8計画'!E36 -> 00:00:00 | CB36: ～ | CC36: ='8計画'!I36 -> 00:00:00 | CF36: ='8計画'!L36 -> 00:00:00 | CI36: ～ | CJ36: ='8計画'!P36 -> 00:00:00 | CM36: 00:00:00 | CP36: ='8計画'!V36 -> 0 | CV36: ='8計画'!AB36 -> 0 | DB36: ='8計画'!AH36 -> 0
A37: 22 | C37: ='8計画'!C37:D37 -> 土 | E37: ='8計画'!E37:G37 -> 00:00:00 | H37: ～ | I37: ='8計画'!I37:K37 -> 00:00:00 | L37: ='8計画'!L37:N37 -> 00:00:00 | O37: ～ | P37: ='8計画'!P37:R37 -> 00:00:00 | S37: 00:00:00 | V37: ='8計画'!V37:AA37 -> 0 | AB37: ='8計画'!AB37:AG37 -> 0 | AH37: ='8計画'!AH37:AO37 -> 0 | AP37: FALSE | BK37: 0 | BW37: ='8計画'!C37 -> 土 | BY37: ='8計画'!E37 -> 00:00:00 | CB37: ～ | CC37: ='8計画'!I37 -> 00:00:00 | CF37: ='8計画'!L37 -> 00:00:00 | CI37: ～ | CJ37: ='8計画'!P37 -> 00:00:00 | CM37: 00:00:00 | CP37: ='8計画'!V37 -> 0 | CV37: ='8計画'!AB37 -> 0 | DB37: ='8計画'!AH37 -> 0
A38: 23 | C38: ='8計画'!C38:D38 -> 日 | E38: ='8計画'!E38:G38 -> 00:00:00 | H38: ～ | I38: ='8計画'!I38:K38 -> 00:00:00 | L38: ='8計画'!L38:N38 -> 00:00:00 | O38: ～ | P38: ='8計画'!P38:R38 -> 00:00:00 | S38: 00:00:00 | V38: ='8計画'!V38:AA38 -> 0 | AB38: ='8計画'!AB38:AG38 -> 0 | AH38: ='8計画'!AH38:AO38 -> 0 | AP38: FALSE | BK38: 0 | BW38: ='8計画'!C38 -> 日 | BY38: ='8計画'!E38 -> 00:00:00 | CB38: ～ | CC38: ='8計画'!I38 -> 00:00:00 | CF38: ='8計画'!L38 -> 00:00:00 | CI38: ～ | CJ38: ='8計画'!P38 -> 00:00:00 | CM38: 00:00:00 | CP38: ='8計画'!V38 -> 0 | CV38: ='8計画'!AB38 -> 0 | DB38: ='8計画'!AH38 -> 0
A39: 24 | C39: ='8計画'!C39:D39 -> 月 | E39: ='8計画'!E39:G39 -> 00:00:00 | H39: ～ | I39: ='8計画'!I39:K39 -> 00:00:00 | L39: ='8計画'!L39:N39 -> 00:00:00 | O39: ～ | P39: ='8計画'!P39:R39 -> 00:00:00 | S39: 00:00:00 | V39: ='8計画'!V39:AA39 -> 0 | AB39: ='8計画'!AB39:AG39 -> 0 | AH39: ='8計画'!AH39:AO39 -> 0 | AP39: FALSE | BK39: 0 | BW39: ='8計画'!C39 -> 月 | BY39: ='8計画'!E39 -> 00:00:00 | CB39: ～ | CC39: ='8計画'!I39 -> 00:00:00 | CF39: ='8計画'!L39 -> 00:00:00 | CI39: ～ | CJ39: ='8計画'!P39 -> 00:00:00 | CM39: 00:00:00 | CP39: ='8計画'!V39 -> 0 | CV39: ='8計画'!AB39 -> 0 | DB39: ='8計画'!AH39 -> 0
A40: 25 | C40: ='8計画'!C40:D40 -> 火 | E40: ='8計画'!E40:G40 -> 00:00:00 | H40: ～ | I40: ='8計画'!I40:K40 -> 00:00:00 | L40: ='8計画'!L40:N40 -> 00:00:00 | O40: ～ | P40: ='8計画'!P40:R40 -> 00:00:00 | S40: 00:00:00 | V40: ='8計画'!V40:AA40 -> 0 | AB40: ='8計画'!AB40:AG40 -> 0 | AH40: ='8計画'!AH40:AO40 -> 0 | AP40: FALSE | BK40: 0 | BW40: ='8計画'!C40 -> 火 | BY40: ='8計画'!E40 -> 00:00:00 | CB40: ～ | CC40: ='8計画'!I40 -> 00:00:00 | CF40: ='8計画'!L40 -> 00:00:00 | CI40: ～ | CJ40: ='8計画'!P40 -> 00:00:00 | CM40: 00:00:00 | CP40: ='8計画'!V40 -> 0 | CV40: ='8計画'!AB40 -> 0 | DB40: ='8計画'!AH40 -> 0
A41: 26 | C41: ='8計画'!C41:D41 -> 水 | E41: ='8計画'!E41:G41 -> 00:00:00 | H41: ～ | I41: ='8計画'!I41:K41 -> 00:00:00 | L41: ='8計画'!L41:N41 -> 00:00:00 | O41: ～ | P41: ='8計画'!P41:R41 -> 00:00:00 | S41: 00:00:00 | V41: ='8計画'!V41:AA41 -> 0 | AB41: ='8計画'!AB41:AG41 -> 0 | AH41: ='8計画'!AH41:AO41 -> 0 | AP41: FALSE | BK41: 0 | BW41: ='8計画'!C41 -> 水 | BY41: ='8計画'!E41 -> 00:00:00 | CB41: ～ | CC41: ='8計画'!I41 -> 00:00:00 | CF41: ='8計画'!L41 -> 00:00:00 | CI41: ～ | CJ41: ='8計画'!P41 -> 00:00:00 | CM41: 00:00:00 | CP41: ='8計画'!V41 -> 0 | CV41: ='8計画'!AB41 -> 0 | DB41: ='8計画'!AH41 -> 0
A42: 27 | C42: ='8計画'!C42:D42 -> 木 | E42: ='8計画'!E42:G42 -> 00:00:00 | H42: ～ | I42: ='8計画'!I42:K42 -> 00:00:00 | L42: ='8計画'!L42:N42 -> 00:00:00 | O42: ～ | P42: ='8計画'!P42:R42 -> 00:00:00 | S42: 00:00:00 | V42: ='8計画'!V42:AA42 -> 0 | AB42: ='8計画'!AB42:AG42 -> 0 | AH42: ='8計画'!AH42:AO42 -> 0 | AP42: FALSE | BK42: 0 | BW42: ='8計画'!C42 -> 木 | BY42: ='8計画'!E42 -> 00:00:00 | CB42: ～ | CC42: ='8計画'!I42 -> 00:00:00 | CF42: ='8計画'!L42 -> 00:00:00 | CI42: ～ | CJ42: ='8計画'!P42 -> 00:00:00 | CM42: 00:00:00 | CP42: ='8計画'!V42 -> 0 | CV42: ='8計画'!AB42 -> 0 | DB42: ='8計画'!AH42 -> 0
A43: 28 | C43: ='8計画'!C43:D43 -> 金 | E43: ='8計画'!E43:G43 -> 00:00:00 | H43: ～ | I43: ='8計画'!I43:K43 -> 00:00:00 | L43: ='8計画'!L43:N43 -> 00:00:00 | O43: ～ | P43: ='8計画'!P43:R43 -> 00:00:00 | S43: 00:00:00 | V43: ='8計画'!V43:AA43 -> 0 | AB43: ='8計画'!AB43:AG43 -> 0 | AH43: ='8計画'!AH43:AO43 -> 0 | AP43: FALSE | BK43: 0 | BW43: ='8計画'!C43 -> 金 | BY43: ='8計画'!E43 -> 00:00:00 | CB43: ～ | CC43: ='8計画'!I43 -> 00:00:00 | CF43: ='8計画'!L43 -> 00:00:00 | CI43: ～ | CJ43: ='8計画'!P43 -> 00:00:00 | CM43: 00:00:00 | CP43: ='8計画'!V43 -> 0 | CV43: ='8計画'!AB43 -> 0 | DB43: ='8計画'!AH43 -> 0
A44: 29 | C44: ='8計画'!C44:D44 -> 土 | E44: ='8計画'!E44:G44 -> 00:00:00 | H44: ～ | I44: ='8計画'!I44:K44 -> 00:00:00 | L44: ='8計画'!L44:N44 -> 00:00:00 | O44: ～ | P44: ='8計画'!P44:R44 -> 00:00:00 | S44: 00:00:00 | V44: ='8計画'!V44:AA44 -> 0 | AB44: ='8計画'!AB44:AG44 -> 0 | AH44: ='8計画'!AH44:AO44 -> 0 | AP44: FALSE | BK44: 0 | BW44: ='8計画'!C44 -> 土 | BY44: ='8計画'!E44 -> 00:00:00 | CB44: ～ | CC44: ='8計画'!I44 -> 00:00:00 | CF44: ='8計画'!L44 -> 00:00:00 | CI44: ～ | CJ44: ='8計画'!P44 -> 00:00:00 | CM44: 00:00:00 | CP44: ='8計画'!V44 -> 0 | CV44: ='8計画'!AB44 -> 0 | DB44: ='8計画'!AH44 -> 0
A45: 30 | C45: ='8計画'!C45:D45 -> 日 | E45: ='8計画'!E45:G45 -> 00:00:00 | H45: ～ | I45: ='8計画'!I45:K45 -> 00:00:00 | L45: ='8計画'!L45:N45 -> 00:00:00 | O45: ～ | P45: ='8計画'!P45:R45 -> 00:00:00 | S45: 00:00:00 | V45: ='8計画'!V45:AA45 -> 0 | AB45: ='8計画'!AB45:AG45 -> 0 | AH45: ='8計画'!AH45:AO45 -> 0 | AP45: FALSE | BK45: 0 | BW45: ='8計画'!C45 -> 日 | BY45: ='8計画'!E45 -> 00:00:00 | CB45: ～ | CC45: ='8計画'!I45 -> 00:00:00 | CF45: ='8計画'!L45 -> 00:00:00 | CI45: ～ | CJ45: ='8計画'!P45 -> 00:00:00 | CM45: 00:00:00 | CP45: ='8計画'!V45 -> 0 | CV45: ='8計画'!AB45 -> 0 | DB45: ='8計画'!AH45 -> 0
A46: 31 | C46: ='8計画'!C46:D46 -> 月 | E46: ='8計画'!E46:G46 -> 00:00:00 | H46: ～ | I46: ='8計画'!I46:K46 -> 00:00:00 | L46: ='8計画'!L46:N46 -> 00:00:00 | O46: ～ | P46: ='8計画'!P46:R46 -> 00:00:00 | S46: 00:00:00 | V46: ='8計画'!V46:AA46 -> 0 | AB46: ='8計画'!AB46:AG46 -> 0 | AH46: ='8計画'!AH46:AO46 -> 0 | AP46: FALSE | BK46: 0 | BW46: ='8計画'!C46 -> 月 | BY46: ='8計画'!E46 -> 00:00:00 | CB46: ～ | CC46: ='8計画'!I46 -> 00:00:00 | CF46: ='8計画'!L46 -> 00:00:00 | CI46: ～ | CJ46: ='8計画'!P46 -> 00:00:00 | CM46: 00:00:00 | CP46: ='8計画'!V46 -> 0 | CV46: ='8計画'!AB46 -> 0 | DB46: ='8計画'!AH46 -> 0
S47: =SUM(S16:U46) -> 0 | CM47: =SUM(CM16:CO46) -> 0
A49: 月 | D49: 4 | F49: 5 | H49: 6 | J49: 7 | L49: 8 | N49: 9 | P49: 10 | R49: 11 | T49: 12 | V49: 1 | X49: 2 | Z49: 3 | AB49: 計
A50: 時間 | D50: ='４実績'!D50 -> 0 | F50: ='５実績'!F50 -> 0 | H50: ='6実績'!H50 -> 0 | J50: ='7実績'!J50 -> 0 | L50: =S47 -> 0 | AB50: =SUM(D50:AA50) -> 0 | AG50: 時間 | BX50: ='４実績'!D50 -> 0 | BZ50: ='５実績'!F50 -> 0 | CB50: ='6実績'!H50 -> 0 | CD50: ='7実績'!J50 -> 0 | CF50: =CM47 -> 0 | CV50: =SUM(BX50:CU50) -> 0
A51: 活動日数 | D51: ='４実績'!D51 -> 0 | F51: ='５実績'!F51 -> 0 | H51: ='6実績'!H51 -> 0 | J51: ='7実績'!J51 -> 0 | L51: =COUNTIF(S16:U46,">0") -> 0 | AB51: =SUM(D51:AA51) -> 0 | AG51: 活動日数 | BX51: ='４実績'!D51 -> 0 | BZ51: ='５実績'!F51 -> 0 | CB51: ='6実績'!H51 -> 0 | CD51: ='7実績'!J51 -> 0 | CF51: =COUNTIF(CM16:CO46,">0") -> 0 | CV51: =SUM(BX51:CU51) -> 0
A52: 休養日数 | D52: ='４実績'!D52 -> 30 | F52: ='５実績'!F52 -> 31 | H52: ='6実績'!H52 -> 30 | J52: ='7実績'!J52 -> 31 | L52: =COUNTIF(S16:U46,"0:00") -> 31 | AB52: =SUM(D52:AA52) -> 153 | AG52: 休養日数 | BX52: ='４実績'!D52 -> 30 | BZ52: ='５実績'!F52 -> 31 | CB52: ='6実績'!H52 -> 30 | CD52: ='7実績'!J52 -> 31 | CF52: =COUNTIF(CM16:CO46,"0:00") -> 31 | CV52: =SUM(BX52:CU52) -> 153
AB53: =AB50/AB51 ->  | AG53: 平均時間/日 | CV53: =CV50/CV51 -> 

Sheet 9実績
A2: ='9計画'!A2:D2 -> 校長 | E2: ='9計画'!E2:H2 -> 教頭 | I2: ='9計画'!I2:L2 -> 教頭 | M2: ='9計画'!M2:P2 -> 主幹教諭 | Q2: ='9計画'!Q2:T2 -> 0 | U2: ='9計画'!U2:X2 -> 顧問 | Z2: 学校名 | AC2: ='9計画'!AC2:AL3 -> 0 | AM2: 学校 | BU2: ='9計画'!BU2:BX2 -> 0 | BY2: ='9計画'!BY2:CB2 -> 0 | CC2: ='9計画'!CC2:CF2 -> 0 | CG2: ='9計画'!CG2:CJ2 -> 0 | CK2: ='9計画'!CK2:CN2 -> 0 | CO2: ='9計画'!CO2:CR2 -> 0 | CW2: ='9計画'!CW2:DF3 -> 0
A3: 印 | E3: 印 | I3: 印 | M3: 印 | Q3: 印 | U3: 印
Z4: 部活動名 | AC4: ='9計画'!AC4:AL5 -> 0 | AM4: 部 | CW4: ='9計画'!CW4:DF5 -> 0
A6: ※活動計画と違う内容については、校長口頭命令済み
A7: 9 | F7: 月 | I7: 〈月間〉部活動計画・活動実績 | Y7: 部員数 | AB7: 1女 | AD7: 2女 | AF7: 3女 | AH7: 1男 | AJ7: 2男 | AL7: 3男 | AN7: 計
AB8: ='9計画'!AB8:AC8 -> 0 | AD8: ='9計画'!AD8:AE8 -> 0 | AF8: ='9計画'!AF8:AG8 -> 0 | AH8: ='9計画'!AH8:AI8 -> 0 | AJ8: ='9計画'!AJ8:AK8 -> 0 | AL8: ='9計画'!AL8:AM8 -> 0 | AN8: =SUM(AB8:AM8) -> 0 | CV8: ='9計画'!AB8 -> 0 | CX8: ='9計画'!AD8 -> 0 | CZ8: ='9計画'!AF8 -> 0 | DB8: ='9計画'!AH8 -> 0 | DD8: ='9計画'!AJ8 -> 0 | DF8: ='9計画'!AL8 -> 0 | DH8: =SUM(CV8:DG8) -> 0
B10: 職名 | D10: ='9計画'!D10:H11 -> 0 | I10: 顧問 | K10: ='9計画'!K10:S11 -> 0 | V10: 職名 | X10: ='9計画'!X10:AB11 -> 0 | AC10: 副２ | AE10: ='9計画'!AE10:AM11 -> 0 | BX10: ='9計画'!D10 -> 0 | CE10: ='9計画'!K10 -> 0 | CR10: ='9計画'!X10 -> 0 | CY10: ='9計画'!AE10 -> 0
B12: 職名 | D12: ='9計画'!D12:H13 -> 0 | I12: 副顧問 | K12: ='9計画'!K12:S13 -> 0 | V12: 職名 | X12: ='9計画'!X12:AB13 -> 0 | AC12: 副３ | AE12: ='9計画'!AE12:AM13 -> 0 | BX12: ='9計画'!D12 -> 0 | CE12: ='9計画'!K12 -> 0 | CR12: ='9計画'!X12 -> 0 | CY12: ='9計画'!AE12 -> 0
A15: 日 | C15: 曜 | E15: ＡＭ | L15: ＰＭ | S15: 時間 | V15: 内容（練習・大会・OFF等） | AH15: 場所 | AP15: FALSE | AQ15: 特殊業務
A16: 1 | C16: ='9計画'!C16:D16 -> 火 | E16: ='9計画'!E16:G16 -> 00:00:00 | H16: ～ | I16: ='9計画'!I16:K16 -> 00:00:00 | L16: ='9計画'!L16:N16 -> 00:00:00 | O16: ～ | P16: ='9計画'!P16:R16 -> 00:00:00 | S16: =(I16-E16)+(P16-L16) -> 00:00:00 | V16: ='9計画'!V16:AA16 -> 0 | AB16: ='9計画'!AB16:AG16 -> 0 | AH16: ='9計画'!AH16:AO16 -> 0 | AP16: FALSE | BK16: =RIGHT(V16,2) -> 0 | BW16: ='9計画'!C16 -> 火 | BY16: ='9計画'!E16 -> 00:00:00 | CB16: ～ | CC16: ='9計画'!I16 -> 00:00:00 | CF16: ='9計画'!L16 -> 00:00:00 | CI16: ～ | CJ16: ='9計画'!P16 -> 00:00:00 | CM16: =(CC16-BY16)+(CJ16-CF16) -> 00:00:00 | CP16: ='9計画'!V16 -> 00:00:00 | CV16: ='9計画'!AB16 -> 0 | DB16: ='9計画'!AH16 -> 0
A17: 2 | C17: ='9計画'!C17:D17 -> 水 | E17: ='9計画'!E17:G17 -> 00:00:00 | H17: ～ | I17: ='9計画'!I17:K17 -> 00:00:00 | L17: ='9計画'!L17:N17 -> 00:00:00 | O17: ～ | P17: ='9計画'!P17:R17 -> 00:00:00 | S17: 00:00:00 | V17: ='9計画'!V17:AA17 -> 0 | AB17: ='9計画'!AB17:AG17 -> 0 | AH17: ='9計画'!AH17:AO17 -> 0 | AP17: FALSE | BK17: =RIGHT(V17,2) -> 0 | BW17: ='9計画'!C17 -> 水 | BY17: ='9計画'!E17 -> 00:00:00 | CB17: ～ | CC17: ='9計画'!I17 -> 00:00:00 | CF17: ='9計画'!L17 -> 00:00:00 | CI17: ～ | CJ17: ='9計画'!P17 -> 00:00:00 | CM17: 00:00:00 | CP17: ='9計画'!V17 -> 00:00:00 | CV17: ='9計画'!AB17 -> 0 | DB17: ='9計画'!AH17 -> 0
A18: 3 | C18: ='9計画'!C18:D18 -> 木 | E18: ='9計画'!E18:G18 -> 00:00:00 | H18: ～ | I18: ='9計画'!I18:K18 -> 00:00:00 | L18: ='9計画'!L18:N18 -> 00:00:00 | O18: ～ | P18: ='9計画'!P18:R18 -> 00:00:00 | S18: 00:00:00 | V18: ='9計画'!V18:AA18 -> 0 | AB18: ='9計画'!AB18:AG18 -> 0 | AH18: ='9計画'!AH18:AO18 -> 0 | AP18: FALSE | BK18: 0 | BW18: ='9計画'!C18 -> 木 | BY18: ='9計画'!E18 -> 00:00:00 | CB18: ～ | CC18: ='9計画'!I18 -> 00:00:00 | CF18: ='9計画'!L18 -> 00:00:00 | CI18: ～ | CJ18: ='9計画'!P18 -> 00:00:00 | CM18: 00:00:00 | CP18: ='9計画'!V18 -> 00:00:00 | CV18: ='9計画'!AB18 -> 0 | DB18: ='9計画'!AH18 -> 0
A19: 4 | C19: ='9計画'!C19:D19 -> 金 | E19: ='9計画'!E19:G19 -> 00:00:00 | H19: ～ | I19: ='9計画'!I19:K19 -> 00:00:00 | L19: ='9計画'!L19:N19 -> 00:00:00 | O19: ～ | P19: ='9計画'!P19:R19 -> 00:00:00 | S19: 00:00:00 | V19: ='9計画'!V19:AA19 -> 0 | AB19: ='9計画'!AB19:AG19 -> 0 | AH19: ='9計画'!AH19:AO19 -> 0 | AP19: FALSE | BK19: 0 | BW19: ='9計画'!C19 -> 金 | BY19: ='9計画'!E19 -> 00:00:00 | CB19: ～ | CC19: ='9計画'!I19 -> 00:00:00 | CF19: ='9計画'!L19 -> 00:00:00 | CI19: ～ | CJ19: ='9計画'!P19 -> 00:00:00 | CM19: 00:00:00 | CP19: ='9計画'!V19 -> 00:00:00 | CV19: ='9計画'!AB19 -> 0 | DB19: ='9計画'!AH19 -> 0
A20: 5 | C20: ='9計画'!C20:D20 -> 土 | E20: ='9計画'!E20:G20 -> 00:00:00 | H20: ～ | I20: ='9計画'!I20:K20 -> 00:00:00 | L20: ='9計画'!L20:N20 -> 00:00:00 | O20: ～ | P20: ='9計画'!P20:R20 -> 00:00:00 | S20: 00:00:00 | V20: ='9計画'!V20:AA20 -> 0 | AB20: ='9計画'!AB20:AG20 -> 0 | AH20: ='9計画'!AH20:AO20 -> 0 | AP20: FALSE | BK20: 0 | BW20: ='9計画'!C20 -> 土 | BY20: ='9計画'!E20 -> 00:00:00 | CB20: ～ | CC20: ='9計画'!I20 -> 00:00:00 | CF20: ='9計画'!L20 -> 00:00:00 | CI20: ～ | CJ20: ='9計画'!P20 -> 00:00:00 | CM20: 00:00:00 | CP20: ='9計画'!V20 -> 00:00:00 | CV20: ='9計画'!AB20 -> 0 | DB20: ='9計画'!AH20 -> 0
A21: 6 | C21: ='9計画'!C21:D21 -> 日 | E21: ='9計画'!E21:G21 -> 00:00:00 | H21: ～ | I21: ='9計画'!I21:K21 -> 00:00:00 | L21: ='9計画'!L21:N21 -> 00:00:00 | O21: ～ | P21: ='9計画'!P21:R21 -> 00:00:00 | S21: 00:00:00 | V21: ='9計画'!V21:AA21 -> 0 | AB21: ='9計画'!AB21:AG21 -> 0 | AH21: ='9計画'!AH21:AO21 -> 0 | AP21: FALSE | BK21: 0 | BW21: ='9計画'!C21 -> 日 | BY21: ='9計画'!E21 -> 00:00:00 | CB21: ～ | CC21: ='9計画'!I21 -> 00:00:00 | CF21: ='9計画'!L21 -> 00:00:00 | CI21: ～ | CJ21: ='9計画'!P21 -> 00:00:00 | CM21: 00:00:00 | CP21: ='9計画'!V21 -> 00:00:00 | CV21: ='9計画'!AB21 -> 0 | DB21: ='9計画'!AH21 -> 0
A22: 7 | C22: ='9計画'!C22:D22 -> 月 | E22: ='9計画'!E22:G22 -> 00:00:00 | H22: ～ | I22: ='9計画'!I22:K22 -> 00:00:00 | L22: ='9計画'!L22:N22 -> 00:00:00 | O22: ～ | P22: ='9計画'!P22:R22 -> 00:00:00 | S22: 00:00:00 | V22: ='9計画'!V22:AA22 -> 0 | AB22: ='9計画'!AB22:AG22 -> 0 | AH22: ='9計画'!AH22:AO22 -> 0 | AP22: FALSE | BK22: 0 | BW22: ='9計画'!C22 -> 月 | BY22: ='9計画'!E22 -> 00:00:00 | CB22: ～ | CC22: ='9計画'!I22 -> 00:00:00 | CF22: ='9計画'!L22 -> 00:00:00 | CI22: ～ | CJ22: ='9計画'!P22 -> 00:00:00 | CM22: 00:00:00 | CP22: ='9計画'!V22 -> 00:00:00 | CV22: ='9計画'!AB22 -> 0 | DB22: ='9計画'!AH22 -> 0
A23: 8 | C23: ='9計画'!C23:D23 -> 火 | E23: ='9計画'!E23:G23 -> 00:00:00 | H23: ～ | I23: ='9計画'!I23:K23 -> 00:00:00 | L23: ='9計画'!L23:N23 -> 00:00:00 | O23: ～ | P23: ='9計画'!P23:R23 -> 00:00:00 | S23: 00:00:00 | V23: ='9計画'!V23:AA23 -> 0 | AB23: ='9計画'!AB23:AG23 -> 0 | AH23: ='9計画'!AH23:AO23 -> 0 | AP23: FALSE | BK23: 0 | BW23: ='9計画'!C23 -> 火 | BY23: ='9計画'!E23 -> 00:00:00 | CB23: ～ | CC23: ='9計画'!I23 -> 00:00:00 | CF23: ='9計画'!L23 -> 00:00:00 | CI23: ～ | CJ23: ='9計画'!P23 -> 00:00:00 | CM23: 00:00:00 | CP23: ='9計画'!V23 -> 00:00:00 | CV23: ='9計画'!AB23 -> 0 | DB23: ='9計画'!AH23 -> 0
A24: 9 | C24: ='9計画'!C24:D24 -> 水 | E24: ='9計画'!E24:G24 -> 00:00:00 | H24: ～ | I24: ='9計画'!I24:K24 -> 00:00:00 | L24: ='9計画'!L24:N24 -> 00:00:00 | O24: ～ | P24: ='9計画'!P24:R24 -> 00:00:00 | S24: 00:00:00 | V24: ='9計画'!V24:AA24 -> 0 | AB24: ='9計画'!AB24:AG24 -> 0 | AH24: ='9計画'!AH24:AO24 -> 0 | AP24: FALSE | BK24: 0 | BW24: ='9計画'!C24 -> 水 | BY24: ='9計画'!E24 -> 00:00:00 | CB24: ～ | CC24: ='9計画'!I24 -> 00:00:00 | CF24: ='9計画'!L24 -> 00:00:00 | CI24: ～ | CJ24: ='9計画'!P24 -> 00:00:00 | CM24: 00:00:00 | CP24: ='9計画'!V24 -> 00:00:00 | CV24: ='9計画'!AB24 -> 0 | DB24: ='9計画'!AH24 -> 0
A25: 10 | C25: ='9計画'!C25:D25 -> 木 | E25: ='9計画'!E25:G25 -> 00:00:00 | H25: ～ | I25: ='9計画'!I25:K25 -> 00:00:00 | L25: ='9計画'!L25:N25 -> 00:00:00 | O25: ～ | P25: ='9計画'!P25:R25 -> 00:00:00 | S25: 00:00:00 | V25: ='9計画'!V25:AA25 -> 0 | AB25: ='9計画'!AB25:AG25 -> 0 | AH25: ='9計画'!AH25:AO25 -> 0 | AP25: FALSE | BK25: 0 | BW25: ='9計画'!C25 -> 木 | BY25: ='9計画'!E25 -> 00:00:00 | CB25: ～ | CC25: ='9計画'!I25 -> 00:00:00 | CF25: ='9計画'!L25 -> 00:00:00 | CI25: ～ | CJ25: ='9計画'!P25 -> 00:00:00 | CM25: 00:00:00 | CP25: ='9計画'!V25 -> 00:00:00 | CV25: ='9計画'!AB25 -> 0 | DB25: ='9計画'!AH25 -> 0
A26: 11 | C26: ='9計画'!C26:D26 -> 金 | E26: ='9計画'!E26:G26 -> 00:00:00 | H26: ～ | I26: ='9計画'!I26:K26 -> 00:00:00 | L26: ='9計画'!L26:N26 -> 00:00:00 | O26: ～ | P26: ='9計画'!P26:R26 -> 00:00:00 | S26: 00:00:00 | V26: ='9計画'!V26:AA26 -> 0 | AB26: ='9計画'!AB26:AG26 -> 0 | AH26: ='9計画'!AH26:AO26 -> 0 | AP26: FALSE | BK26: 0 | BW26: ='9計画'!C26 -> 金 | BY26: ='9計画'!E26 -> 00:00:00 | CB26: ～ | CC26: ='9計画'!I26 -> 00:00:00 | CF26: ='9計画'!L26 -> 00:00:00 | CI26: ～ | CJ26: ='9計画'!P26 -> 00:00:00 | CM26: 00:00:00 | CP26: ='9計画'!V26 -> 00:00:00 | CV26: ='9計画'!AB26 -> 0 | DB26: ='9計画'!AH26 -> 0
A27: 12 | C27: ='9計画'!C27:D27 -> 土 | E27: ='9計画'!E27:G27 -> 00:00:00 | H27: ～ | I27: ='9計画'!I27:K27 -> 00:00:00 | L27: ='9計画'!L27:N27 -> 00:00:00 | O27: ～ | P27: ='9計画'!P27:R27 -> 00:00:00 | S27: 00:00:00 | V27: ='9計画'!V27:AA27 -> 0 | AB27: ='9計画'!AB27:AG27 -> 0 | AH27: ='9計画'!AH27:AO27 -> 0 | AP27: FALSE | BK27: 0 | BW27: ='9計画'!C27 -> 土 | BY27: ='9計画'!E27 -> 00:00:00 | CB27: ～ | CC27: ='9計画'!I27 -> 00:00:00 | CF27: ='9計画'!L27 -> 00:00:00 | CI27: ～ | CJ27: ='9計画'!P27 -> 00:00:00 | CM27: 00:00:00 | CP27: ='9計画'!V27 -> 00:00:00 | CV27: ='9計画'!AB27 -> 0 | DB27: ='9計画'!AH27 -> 0
A28: 13 | C28: ='9計画'!C28:D28 -> 日 | E28: ='9計画'!E28:G28 -> 00:00:00 | H28: ～ | I28: ='9計画'!I28:K28 -> 00:00:00 | L28: ='9計画'!L28:N28 -> 00:00:00 | O28: ～ | P28: ='9計画'!P28:R28 -> 00:00:00 | S28: 00:00:00 | V28: ='9計画'!V28:AA28 -> 0 | AB28: ='9計画'!AB28:AG28 -> 0 | AH28: ='9計画'!AH28:AO28 -> 0 | AP28: FALSE | BK28: 0 | BW28: ='9計画'!C28 -> 日 | BY28: ='9計画'!E28 -> 00:00:00 | CB28: ～ | CC28: ='9計画'!I28 -> 00:00:00 | CF28: ='9計画'!L28 -> 00:00:00 | CI28: ～ | CJ28: ='9計画'!P28 -> 00:00:00 | CM28: 00:00:00 | CP28: ='9計画'!V28 -> 00:00:00 | CV28: ='9計画'!AB28 -> 0 | DB28: ='9計画'!AH28 -> 0
A29: 14 | C29: ='9計画'!C29:D29 -> 月 | E29: ='9計画'!E29:G29 -> 00:00:00 | H29: ～ | I29: ='9計画'!I29:K29 -> 00:00:00 | L29: ='9計画'!L29:N29 -> 00:00:00 | O29: ～ | P29: ='9計画'!P29:R29 -> 00:00:00 | S29: 00:00:00 | V29: ='9計画'!V29:AA29 -> 0 | AB29: ='9計画'!AB29:AG29 -> 0 | AH29: ='9計画'!AH29:AO29 -> 0 | AP29: FALSE | BK29: 0 | BW29: ='9計画'!C29 -> 月 | BY29: ='9計画'!E29 -> 00:00:00 | CB29: ～ | CC29: ='9計画'!I29 -> 00:00:00 | CF29: ='9計画'!L29 -> 00:00:00 | CI29: ～ | CJ29: ='9計画'!P29 -> 00:00:00 | CM29: 00:00:00 | CP29: ='9計画'!V29 -> 00:00:00 | CV29: ='9計画'!AB29 -> 0 | DB29: ='9計画'!AH29 -> 0
A30: 15 | C30: ='9計画'!C30:D30 -> 火 | E30: ='9計画'!E30:G30 -> 00:00:00 | H30: ～ | I30: ='9計画'!I30:K30 -> 00:00:00 | L30: ='9計画'!L30:N30 -> 00:00:00 | O30: ～ | P30: ='9計画'!P30:R30 -> 00:00:00 | S30: 00:00:00 | V30: ='9計画'!V30:AA30 -> 0 | AB30: ='9計画'!AB30:AG30 -> 0 | AH30: ='9計画'!AH30:AO30 -> 0 | AP30: FALSE | BK30: 0 | BW30: ='9計画'!C30 -> 火 | BY30: ='9計画'!E30 -> 00:00:00 | CB30: ～ | CC30: ='9計画'!I30 -> 00:00:00 | CF30: ='9計画'!L30 -> 00:00:00 | CI30: ～ | CJ30: ='9計画'!P30 -> 00:00:00 | CM30: 00:00:00 | CP30: ='9計画'!V30 -> 00:00:00 | CV30: ='9計画'!AB30 -> 0 | DB30: ='9計画'!AH30 -> 0
A31: 16 | C31: ='9計画'!C31:D31 -> 水 | E31: ='9計画'!E31:G31 -> 00:00:00 | H31: ～ | I31: ='9計画'!I31:K31 -> 00:00:00 | L31: ='9計画'!L31:N31 -> 00:00:00 | O31: ～ | P31: ='9計画'!P31:R31 -> 00:00:00 | S31: 00:00:00 | V31: ='9計画'!V31:AA31 -> 0 | AB31: ='9計画'!AB31:AG31 -> 0 | AH31: ='9計画'!AH31:AO31 -> 0 | AP31: FALSE | BK31: 0 | BW31: ='9計画'!C31 -> 水 | BY31: ='9計画'!E31 -> 00:00:00 | CB31: ～ | CC31: ='9計画'!I31 -> 00:00:00 | CF31: ='9計画'!L31 -> 00:00:00 | CI31: ～ | CJ31: ='9計画'!P31 -> 00:00:00 | CM31: 00:00:00 | CP31: ='9計画'!V31 -> 00:00:00 | CV31: ='9計画'!AB31 -> 0 | DB31: ='9計画'!AH31 -> 0
A32: 17 | C32: ='9計画'!C32:D32 -> 木 | E32: ='9計画'!E32:G32 -> 00:00:00 | H32: ～ | I32: ='9計画'!I32:K32 -> 00:00:00 | L32: ='9計画'!L32:N32 -> 00:00:00 | O32: ～ | P32: ='9計画'!P32:R32 -> 00:00:00 | S32: 00:00:00 | V32: ='9計画'!V32:AA32 -> 0 | AB32: ='9計画'!AB32:AG32 -> 0 | AH32: ='9計画'!AH32:AO32 -> 0 | AP32: FALSE | BK32: 0 | BW32: ='9計画'!C32 -> 木 | BY32: ='9計画'!E32 -> 00:00:00 | CB32: ～ | CC32: ='9計画'!I32 -> 00:00:00 | CF32: ='9計画'!L32 -> 00:00:00 | CI32: ～ | CJ32: ='9計画'!P32 -> 00:00:00 | CM32: 00:00:00 | CP32: ='9計画'!V32 -> 00:00:00 | CV32: ='9計画'!AB32 -> 0 | DB32: ='9計画'!AH32 -> 0
A33: 18 | C33: ='9計画'!C33:D33 -> 金 | E33: ='9計画'!E33:G33 -> 00:00:00 | H33: ～ | I33: ='9計画'!I33:K33 -> 00:00:00 | L33: ='9計画'!L33:N33 -> 00:00:00 | O33: ～ | P33: ='9計画'!P33:R33 -> 00:00:00 | S33: 00:00:00 | V33: ='9計画'!V33:AA33 -> 0 | AB33: ='9計画'!AB33:AG33 -> 0 | AH33: ='9計画'!AH33:AO33 -> 0 | AP33: FALSE | BK33: 0 | BW33: ='9計画'!C33 -> 金 | BY33: ='9計画'!E33 -> 00:00:00 | CB33: ～ | CC33: ='9計画'!I33 -> 00:00:00 | CF33: ='9計画'!L33 -> 00:00:00 | CI33: ～ | CJ33: ='9計画'!P33 -> 00:00:00 | CM33: 00:00:00 | CP33: ='9計画'!V33 -> 00:00:00 | CV33: ='9計画'!AB33 -> 0 | DB33: ='9計画'!AH33 -> 0
A34: 19 | C34: ='9計画'!C34:D34 -> 土 | E34: ='9計画'!E34:G34 -> 00:00:00 | H34: ～ | I34: ='9計画'!I34:K34 -> 00:00:00 | L34: ='9計画'!L34:N34 -> 00:00:00 | O34: ～ | P34: ='9計画'!P34:R34 -> 00:00:00 | S34: 00:00:00 | V34: ='9計画'!V34:AA34 -> 0 | AB34: ='9計画'!AB34:AG34 -> 0 | AH34: ='9計画'!AH34:AO34 -> 0 | AP34: FALSE | BK34: 0 | BW34: ='9計画'!C34 -> 土 | BY34: ='9計画'!E34 -> 00:00:00 | CB34: ～ | CC34: ='9計画'!I34 -> 00:00:00 | CF34: ='9計画'!L34 -> 00:00:00 | CI34: ～ | CJ34: ='9計画'!P34 -> 00:00:00 | CM34: 00:00:00 | CP34: ='9計画'!V34 -> 00:00:00 | CV34: ='9計画'!AB34 -> 0 | DB34: ='9計画'!AH34 -> 0
A35: 20 | C35: ='9計画'!C35:D35 -> 日 | E35: ='9計画'!E35:G35 -> 00:00:00 | H35: ～ | I35: ='9計画'!I35:K35 -> 00:00:00 | L35: ='9計画'!L35:N35 -> 00:00:00 | O35: ～ | P35: ='9計画'!P35:R35 -> 00:00:00 | S35: 00:00:00 | V35: ='9計画'!V35:AA35 -> 0 | AB35: ='9計画'!AB35:AG35 -> 0 | AH35: ='9計画'!AH35:AO35 -> 0 | AP35: FALSE | BK35: 0 | BW35: ='9計画'!C35 -> 日 | BY35: ='9計画'!E35 -> 00:00:00 | CB35: ～ | CC35: ='9計画'!I35 -> 00:00:00 | CF35: ='9計画'!L35 -> 00:00:00 | CI35: ～ | CJ35: ='9計画'!P35 -> 00:00:00 | CM35: 00:00:00 | CP35: ='9計画'!V35 -> 00:00:00 | CV35: ='9計画'!AB35 -> 0 | DB35: ='9計画'!AH35 -> 0
A36: 21 | C36: ='9計画'!C36:D36 -> 月 | E36: ='9計画'!E36:G36 -> 00:00:00 | H36: ～ | I36: ='9計画'!I36:K36 -> 00:00:00 | L36: ='9計画'!L36:N36 -> 00:00:00 | O36: ～ | P36: ='9計画'!P36:R36 -> 00:00:00 | S36: 00:00:00 | V36: ='9計画'!V36:AA36 -> 0 | AB36: ='9計画'!AB36:AG36 -> 0 | AH36: ='9計画'!AH36:AO36 -> 0 | AP36: FALSE | BK36: 0 | BW36: ='9計画'!C36 -> 月 | BY36: ='9計画'!E36 -> 00:00:00 | CB36: ～ | CC36: ='9計画'!I36 -> 00:00:00 | CF36: ='9計画'!L36 -> 00:00:00 | CI36: ～ | CJ36: ='9計画'!P36 -> 00:00:00 | CM36: 00:00:00 | CP36: ='9計画'!V36 -> 00:00:00 | CV36: ='9計画'!AB36 -> 0 | DB36: ='9計画'!AH36 -> 0
A37: 22 | C37: ='9計画'!C37:D37 -> 火 | E37: ='9計画'!E37:G37 -> 00:00:00 | H37: ～ | I37: ='9計画'!I37:K37 -> 00:00:00 | L37: ='9計画'!L37:N37 -> 00:00:00 | O37: ～ | P37: ='9計画'!P37:R37 -> 00:00:00 | S37: 00:00:00 | V37: ='9計画'!V37:AA37 -> 0 | AB37: ='9計画'!AB37:AG37 -> 0 | AH37: ='9計画'!AH37:AO37 -> 0 | AP37: FALSE | BK37: 0 | BW37: ='9計画'!C37 -> 火 | BY37: ='9計画'!E37 -> 00:00:00 | CB37: ～ | CC37: ='9計画'!I37 -> 00:00:00 | CF37: ='9計画'!L37 -> 00:00:00 | CI37: ～ | CJ37: ='9計画'!P37 -> 00:00:00 | CM37: 00:00:00 | CP37: ='9計画'!V37 -> 00:00:00 | CV37: ='9計画'!AB37 -> 0 | DB37: ='9計画'!AH37 -> 0
A38: 23 | C38: ='9計画'!C38:D38 -> 水 | E38: ='9計画'!E38:G38 -> 00:00:00 | H38: ～ | I38: ='9計画'!I38:K38 -> 00:00:00 | L38: ='9計画'!L38:N38 -> 00:00:00 | O38: ～ | P38: ='9計画'!P38:R38 -> 00:00:00 | S38: 00:00:00 | V38: ='9計画'!V38:AA38 -> 0 | AB38: ='9計画'!AB38:AG38 -> 0 | AH38: ='9計画'!AH38:AO38 -> 0 | AP38: FALSE | BK38: 0 | BW38: ='9計画'!C38 -> 水 | BY38: ='9計画'!E38 -> 00:00:00 | CB38: ～ | CC38: ='9計画'!I38 -> 00:00:00 | CF38: ='9計画'!L38 -> 00:00:00 | CI38: ～ | CJ38: ='9計画'!P38 -> 00:00:00 | CM38: 00:00:00 | CP38: ='9計画'!V38 -> 00:00:00 | CV38: ='9計画'!AB38 -> 0 | DB38: ='9計画'!AH38 -> 0
A39: 24 | C39: ='9計画'!C39:D39 -> 木 | E39: ='9計画'!E39:G39 -> 00:00:00 | H39: ～ | I39: ='9計画'!I39:K39 -> 00:00:00 | L39: ='9計画'!L39:N39 -> 00:00:00 | O39: ～ | P39: ='9計画'!P39:R39 -> 00:00:00 | S39: 00:00:00 | V39: ='9計画'!V39:AA39 -> 0 | AB39: ='9計画'!AB39:AG39 -> 0 | AH39: ='9計画'!AH39:AO39 -> 0 | AP39: FALSE | BK39: 0 | BW39: ='9計画'!C39 -> 木 | BY39: ='9計画'!E39 -> 00:00:00 | CB39: ～ | CC39: ='9計画'!I39 -> 00:00:00 | CF39: ='9計画'!L39 -> 00:00:00 | CI39: ～ | CJ39: ='9計画'!P39 -> 00:00:00 | CM39: 00:00:00 | CP39: ='9計画'!V39 -> 00:00:00 | CV39: ='9計画'!AB39 -> 0 | DB39: ='9計画'!AH39 -> 0
A40: 25 | C40: ='9計画'!C40:D40 -> 金 | E40: ='9計画'!E40:G40 -> 00:00:00 | H40: ～ | I40: ='9計画'!I40:K40 -> 00:00:00 | L40: ='9計画'!L40:N40 -> 00:00:00 | O40: ～ | P40: ='9計画'!P40:R40 -> 00:00:00 | S40: 00:00:00 | V40: ='9計画'!V40:AA40 -> 0 | AB40: ='9計画'!AB40:AG40 -> 0 | AH40: ='9計画'!AH40:AO40 -> 0 | AP40: FALSE | BK40: 0 | BW40: ='9計画'!C40 -> 金 | BY40: ='9計画'!E40 -> 00:00:00 | CB40: ～ | CC40: ='9計画'!I40 -> 00:00:00 | CF40: ='9計画'!L40 -> 00:00:00 | CI40: ～ | CJ40: ='9計画'!P40 -> 00:00:00 | CM40: 00:00:00 | CP40: ='9計画'!V40 -> 00:00:00 | CV40: ='9計画'!AB40 -> 0 | DB40: ='9計画'!AH40 -> 0
A41: 26 | C41: ='9計画'!C41:D41 -> 土 | E41: ='9計画'!E41:G41 -> 00:00:00 | H41: ～ | I41: ='9計画'!I41:K41 -> 00:00:00 | L41: ='9計画'!L41:N41 -> 00:00:00 | O41: ～ | P41: ='9計画'!P41:R41 -> 00:00:00 | S41: 00:00:00 | V41: ='9計画'!V41:AA41 -> 0 | AB41: ='9計画'!AB41:AG41 -> 0 | AH41: ='9計画'!AH41:AO41 -> 0 | AP41: FALSE | BK41: 0 | BW41: ='9計画'!C41 -> 土 | BY41: ='9計画'!E41 -> 00:00:00 | CB41: ～ | CC41: ='9計画'!I41 -> 00:00:00 | CF41: ='9計画'!L41 -> 00:00:00 | CI41: ～ | CJ41: ='9計画'!P41 -> 00:00:00 | CM41: 00:00:00 | CP41: ='9計画'!V41 -> 00:00:00 | CV41: ='9計画'!AB41 -> 0 | DB41: ='9計画'!AH41 -> 0
A42: 27 | C42: ='9計画'!C42:D42 -> 日 | E42: ='9計画'!E42:G42 -> 00:00:00 | H42: ～ | I42: ='9計画'!I42:K42 -> 00:00:00 | L42: ='9計画'!L42:N42 -> 00:00:00 | O42: ～ | P42: ='9計画'!P42:R42 -> 00:00:00 | S42: 00:00:00 | V42: ='9計画'!V42:AA42 -> 0 | AB42: ='9計画'!AB42:AG42 -> 0 | AH42: ='9計画'!AH42:AO42 -> 0 | AP42: FALSE | BK42: 0 | BW42: ='9計画'!C42 -> 日 | BY42: ='9計画'!E42 -> 00:00:00 | CB42: ～ | CC42: ='9計画'!I42 -> 00:00:00 | CF42: ='9計画'!L42 -> 00:00:00 | CI42: ～ | CJ42: ='9計画'!P42 -> 00:00:00 | CM42: 00:00:00 | CP42: ='9計画'!V42 -> 00:00:00 | CV42: ='9計画'!AB42 -> 0 | DB42: ='9計画'!AH42 -> 0
A43: 28 | C43: ='9計画'!C43:D43 -> 月 | E43: ='9計画'!E43:G43 -> 00:00:00 | H43: ～ | I43: ='9計画'!I43:K43 -> 00:00:00 | L43: ='9計画'!L43:N43 -> 00:00:00 | O43: ～ | P43: ='9計画'!P43:R43 -> 00:00:00 | S43: 00:00:00 | V43: ='9計画'!V43:AA43 -> 0 | AB43: ='9計画'!AB43:AG43 -> 0 | AH43: ='9計画'!AH43:AO43 -> 0 | AP43: FALSE | BK43: 0 | BW43: ='9計画'!C43 -> 月 | BY43: ='9計画'!E43 -> 00:00:00 | CB43: ～ | CC43: ='9計画'!I43 -> 00:00:00 | CF43: ='9計画'!L43 -> 00:00:00 | CI43: ～ | CJ43: ='9計画'!P43 -> 00:00:00 | CM43: 00:00:00 | CP43: ='9計画'!V43 -> 00:00:00 | CV43: ='9計画'!AB43 -> 0 | DB43: ='9計画'!AH43 -> 0
A44: 29 | C44: ='9計画'!C44:D44 -> 火 | E44: ='9計画'!E44:G44 -> 00:00:00 | H44: ～ | I44: ='9計画'!I44:K44 -> 00:00:00 | L44: ='9計画'!L44:N44 -> 00:00:00 | O44: ～ | P44: ='9計画'!P44:R44 -> 00:00:00 | S44: 00:00:00 | V44: ='9計画'!V44:AA44 -> 0 | AB44: ='9計画'!AB44:AG44 -> 0 | AH44: ='9計画'!AH44:AO44 -> 0 | AP44: FALSE | BK44: 0 | BW44: ='9計画'!C44 -> 火 | BY44: ='9計画'!E44 -> 00:00:00 | CB44: ～ | CC44: ='9計画'!I44 -> 00:00:00 | CF44: ='9計画'!L44 -> 00:00:00 | CI44: ～ | CJ44: ='9計画'!P44 -> 00:00:00 | CM44: 00:00:00 | CP44: ='9計画'!V44 -> 00:00:00 | CV44: ='9計画'!AB44 -> 0 | DB44: ='9計画'!AH44 -> 0
A45: 30 | C45: ='9計画'!C45:D45 -> 水 | E45: ='9計画'!E45:G45 -> 00:00:00 | H45: ～ | I45: ='9計画'!I45:K45 -> 00:00:00 | L45: ='9計画'!L45:N45 -> 00:00:00 | O45: ～ | P45: ='9計画'!P45:R45 -> 00:00:00 | S45: 00:00:00 | V45: ='9計画'!V45:AA45 -> 0 | AB45: ='9計画'!AB45:AG45 -> 0 | AH45: ='9計画'!AH45:AO45 -> 0 | AP45: FALSE | BK45: 0 | BW45: ='9計画'!C45 -> 水 | BY45: ='9計画'!E45 -> 00:00:00 | CB45: ～ | CC45: ='9計画'!I45 -> 00:00:00 | CF45: ='9計画'!L45 -> 00:00:00 | CI45: ～ | CJ45: ='9計画'!P45 -> 00:00:00 | CM45: 00:00:00 | CP45: ='9計画'!V45 -> 00:00:00 | CV45: ='9計画'!AB45 -> 0 | DB45: ='9計画'!AH45 -> 0
C46: ='9計画'!C46:D46 ->  | E46: ='9計画'!E46:G46 -> 00:00:00 | H46: ～ | I46: ='9計画'!I46:K46 -> 00:00:00 | L46: ='9計画'!L46:N46 -> 00:00:00 | O46: ～ | P46: ='9計画'!P46:R46 -> 00:00:00 | S46: 00:00:00 | V46: ='9計画'!V46:AA46 -> 0 | AB46: ='9計画'!AB46:AG46 -> 0 | AH46: ='9計画'!AH46:AO46 -> 0 | AP46: FALSE | BK46: 0 | BW46: ='9計画'!C46 ->  | BY46: ='9計画'!E46 -> 00:00:00 | CB46: ～ | CC46: ='9計画'!I46 -> 00:00:00 | CF46: ='9計画'!L46 -> 00:00:00 | CI46: ～ | CJ46: ='9計画'!P46 -> 00:00:00 | CM46: 00:00:00 | CP46: ='9計画'!V46 -> 00:00:00 | CV46: ='9計画'!AB46 -> 0 | DB46: ='9計画'!AH46 -> 0
S47: =SUM(S16:U46) -> 0 | CM47: =SUM(CM16:CO46) -> 0
A49: 月 | D49: 4 | F49: 5 | H49: 6 | J49: 7 | L49: 8 | N49: 9 | P49: 10 | R49: 11 | T49: 12 | V49: 1 | X49: 2 | Z49: 3 | AB49: 計
A50: 時間 | D50: ='４実績'!D50 -> 0 | F50: ='５実績'!F50 -> 0 | H50: ='6実績'!H50 -> 0 | J50: ='7実績'!J50 -> 0 | L50: ='8実績'!L50:M50 -> 0 | N50: =S47 -> 0 | AB50: =SUM(D50:AA50) -> 0 | AG50: 時間 | BX50: ='４実績'!D50 -> 0 | BZ50: ='５実績'!F50 -> 0 | CB50: ='6実績'!H50 -> 0 | CD50: ='7実績'!J50 -> 0 | CF50: ='8実績'!L50 -> 0 | CH50: =CM47 -> 0 | CV50: =SUM(BX50:CU50) -> 0
A51: 活動日数 | D51: ='４実績'!D51 -> 0 | F51: ='５実績'!F51 -> 0 | H51: ='6実績'!H51 -> 0 | J51: ='7実績'!J51 -> 0 | L51: ='8実績'!L51:M51 -> 0 | N51: =COUNTIF(S16:U46,">0") -> 0 | AB51: =SUM(D51:AA51) -> 0 | AG51: 活動日数 | BX51: ='４実績'!D51 -> 0 | BZ51: ='５実績'!F51 -> 0 | CB51: ='6実績'!H51 -> 0 | CD51: ='7実績'!J51 -> 0 | CF51: ='8実績'!L51 -> 0 | CH51: =COUNTIF(CM16:CO46,">0") -> 0 | CV51: =SUM(BX51:CU51) -> 0
A52: 休養日数 | D52: ='４実績'!D52 -> 30 | F52: ='５実績'!F52 -> 31 | H52: ='6実績'!H52 -> 30 | J52: ='7実績'!J52 -> 31 | L52: ='8実績'!L52:M52 -> 31 | N52: =COUNTIF(S16:U45,"0:00") -> 30 | AB52: =SUM(D52:AA52) -> 183 | AG52: 休養日数 | BX52: ='４実績'!D52 -> 30 | BZ52: ='５実績'!F52 -> 31 | CB52: ='6実績'!H52 -> 30 | CD52: ='7実績'!J52 -> 31 | CF52: ='8実績'!L52 -> 31 | CH52: =COUNTIF(CM16:CO45,"0:00") -> 30 | CV52: =SUM(BX52:CU52) -> 183
AB53: =AB50/AB51 ->  | AG53: 平均時間/日 | CV53: =CV50/CV51 -> 

Sheet 10実績
A2: ='10計画'!A2:D2 -> 校長 | E2: ='10計画'!E2:H2 -> 教頭 | I2: ='10計画'!I2:L2 -> 教頭 | M2: ='10計画'!M2:P2 -> 主幹教諭 | Q2: ='10計画'!Q2:T2 -> 0 | U2: ='10計画'!U2:X2 -> 顧問 | Z2: 学校名 | AC2: ='10計画'!AC2:AL3 -> 0 | AM2: 学校 | BU2: ='10計画'!BU2:BX2 -> 0 | BY2: ='10計画'!BY2:CB2 -> 0 | CC2: ='10計画'!CC2:CF2 -> 0 | CG2: ='10計画'!CG2:CJ2 -> 0 | CK2: ='10計画'!CK2:CN2 -> 0 | CO2: ='10計画'!CO2:CR2 -> 0 | CW2: ='10計画'!CW2:DF3 -> 0
A3: 印 | E3: 印 | I3: 印 | M3: 印 | Q3: 印 | U3: 印
Z4: 部活動名 | AC4: ='10計画'!AC4:AL5 -> 0 | AM4: 部 | CW4: ='10計画'!CW4:DF5 -> 0
A6: ※活動計画と違う内容については、校長口頭命令済み
A7: 10 | F7: 月 | I7: 〈月間〉部活動計画・活動実績 | Y7: 部員数 | AB7: 1女 | AD7: 2女 | AF7: 3女 | AH7: 1男 | AJ7: 2男 | AL7: 3男 | AN7: 計
AB8: ='10計画'!AB8:AC8 -> 0 | AD8: ='10計画'!AD8:AE8 -> 0 | AF8: ='10計画'!AF8:AG8 -> 0 | AH8: ='10計画'!AH8:AI8 -> 0 | AJ8: ='10計画'!AJ8:AK8 -> 0 | AL8: ='10計画'!AL8:AM8 -> 0 | AN8: =SUM(AB8:AM8) -> 0 | CV8: ='10計画'!AB8 -> 0 | CX8: ='10計画'!AD8 -> 0 | CZ8: ='10計画'!AF8 -> 0 | DB8: ='10計画'!AH8 -> 0 | DD8: ='10計画'!AJ8 -> 0 | DF8: ='10計画'!AL8 -> 0 | DH8: =SUM(CV8:DG8) -> 0
B10: 職名 | D10: ='10計画'!D10:H11 -> 0 | I10: 顧問 | K10: ='10計画'!K10:S11 -> 0 | V10: 職名 | X10: ='10計画'!X10:AB11 -> 0 | AC10: 副２ | AE10: ='10計画'!AE10:AM11 -> 0 | BX10: ='10計画'!D10 -> 0 | CE10: ='10計画'!K10 -> 0 | CR10: ='10計画'!X10 -> 0 | CY10: ='10計画'!AE10 -> 0
B12: 職名 | D12: ='10計画'!D12:H13 -> 0 | I12: 副顧問 | K12: ='10計画'!K12:S13 -> 0 | V12: 職名 | X12: ='10計画'!X12:AB13 -> 0 | AC12: 副３ | AE12: ='10計画'!AE12:AM13 -> 0 | BX12: ='10計画'!D12 -> 0 | CE12: ='10計画'!K12 -> 0 | CR12: ='10計画'!X12 -> 0 | CY12: ='10計画'!AE12 -> 0
A15: 日 | C15: 曜 | E15: ＡＭ | L15: ＰＭ | S15: 時間 | V15: 内容（練習・大会・OFF等） | AH15: 場所 | AP15: FALSE | AQ15: 特殊業務
A16: 1 | C16: ='10計画'!C16:D16 -> 木 | E16: ='10計画'!E16:G16 -> 00:00:00 | H16: ～ | I16: ='10計画'!I16:K16 -> 00:00:00 | L16: ='10計画'!L16:N16 -> 00:00:00 | O16: ～ | P16: ='10計画'!P16:R16 -> 00:00:00 | S16: =(I16-E16)+(P16-L16) -> 00:00:00 | V16: ='10計画'!V16:AA16 -> 0 | AB16: ='10計画'!AB16:AG16 -> 0 | AH16: ='10計画'!AH16:AO16 -> 0 | AP16: FALSE | BK16: =RIGHT(V16,2) -> 0 | BW16: ='10計画'!C16 -> 木 | BY16: ='10計画'!E16 -> 00:00:00 | CB16: ～ | CC16: ='10計画'!I16 -> 00:00:00 | CF16: ='10計画'!L16 -> 00:00:00 | CI16: ～ | CJ16: ='10計画'!P16 -> 00:00:00 | CM16: =(CC16-BY16)+(CJ16-CF16) -> 00:00:00 | CP16: ='10計画'!V16 -> 0 | CV16: ='10計画'!AB16 -> 0 | DB16: ='10計画'!AH16 -> 0
A17: 2 | C17: ='10計画'!C17:D17 -> 金 | E17: ='10計画'!E17:G17 -> 00:00:00 | H17: ～ | I17: ='10計画'!I17:K17 -> 00:00:00 | L17: ='10計画'!L17:N17 -> 00:00:00 | O17: ～ | P17: ='10計画'!P17:R17 -> 00:00:00 | S17: 00:00:00 | V17: ='10計画'!V17:AA17 -> 0 | AB17: ='10計画'!AB17:AG17 -> 0 | AH17: ='10計画'!AH17:AO17 -> 0 | AP17: FALSE | BK17: =RIGHT(V17,2) -> 0 | BW17: ='10計画'!C17 -> 金 | BY17: ='10計画'!E17 -> 00:00:00 | CB17: ～ | CC17: ='10計画'!I17 -> 00:00:00 | CF17: ='10計画'!L17 -> 00:00:00 | CI17: ～ | CJ17: ='10計画'!P17 -> 00:00:00 | CM17: 00:00:00 | CP17: ='10計画'!V17 -> 0 | CV17: ='10計画'!AB17 -> 0 | DB17: ='10計画'!AH17 -> 0
A18: 3 | C18: ='10計画'!C18:D18 -> 土 | E18: ='10計画'!E18:G18 -> 00:00:00 | H18: ～ | I18: ='10計画'!I18:K18 -> 00:00:00 | L18: ='10計画'!L18:N18 -> 00:00:00 | O18: ～ | P18: ='10計画'!P18:R18 -> 00:00:00 | S18: 00:00:00 | V18: ='10計画'!V18:AA18 -> 0 | AB18: ='10計画'!AB18:AG18 -> 0 | AH18: ='10計画'!AH18:AO18 -> 0 | AP18: FALSE | BK18: 0 | BW18: ='10計画'!C18 -> 土 | BY18: ='10計画'!E18 -> 00:00:00 | CB18: ～ | CC18: ='10計画'!I18 -> 00:00:00 | CF18: ='10計画'!L18 -> 00:00:00 | CI18: ～ | CJ18: ='10計画'!P18 -> 00:00:00 | CM18: 00:00:00 | CP18: ='10計画'!V18 -> 0 | CV18: ='10計画'!AB18 -> 0 | DB18: ='10計画'!AH18 -> 0
A19: 4 | C19: ='10計画'!C19:D19 -> 日 | E19: ='10計画'!E19:G19 -> 00:00:00 | H19: ～ | I19: ='10計画'!I19:K19 -> 00:00:00 | L19: ='10計画'!L19:N19 -> 00:00:00 | O19: ～ | P19: ='10計画'!P19:R19 -> 00:00:00 | S19: 00:00:00 | V19: ='10計画'!V19:AA19 -> 0 | AB19: ='10計画'!AB19:AG19 -> 0 | AH19: ='10計画'!AH19:AO19 -> 0 | AP19: FALSE | BK19: 0 | BW19: ='10計画'!C19 -> 日 | BY19: ='10計画'!E19 -> 00:00:00 | CB19: ～ | CC19: ='10計画'!I19 -> 00:00:00 | CF19: ='10計画'!L19 -> 00:00:00 | CI19: ～ | CJ19: ='10計画'!P19 -> 00:00:00 | CM19: 00:00:00 | CP19: ='10計画'!V19 -> 0 | CV19: ='10計画'!AB19 -> 0 | DB19: ='10計画'!AH19 -> 0
A20: 5 | C20: ='10計画'!C20:D20 -> 月 | E20: ='10計画'!E20:G20 -> 00:00:00 | H20: ～ | I20: ='10計画'!I20:K20 -> 00:00:00 | L20: ='10計画'!L20:N20 -> 00:00:00 | O20: ～ | P20: ='10計画'!P20:R20 -> 00:00:00 | S20: 00:00:00 | V20: ='10計画'!V20:AA20 -> 0 | AB20: ='10計画'!AB20:AG20 -> 0 | AH20: ='10計画'!AH20:AO20 -> 0 | AP20: FALSE | BK20: 0 | BW20: ='10計画'!C20 -> 月 | BY20: ='10計画'!E20 -> 00:00:00 | CB20: ～ | CC20: ='10計画'!I20 -> 00:00:00 | CF20: ='10計画'!L20 -> 00:00:00 | CI20: ～ | CJ20: ='10計画'!P20 -> 00:00:00 | CM20: 00:00:00 | CP20: ='10計画'!V20 -> 0 | CV20: ='10計画'!AB20 -> 0 | DB20: ='10計画'!AH20 -> 0
A21: 6 | C21: ='10計画'!C21:D21 -> 火 | E21: ='10計画'!E21:G21 -> 00:00:00 | H21: ～ | I21: ='10計画'!I21:K21 -> 00:00:00 | L21: ='10計画'!L21:N21 -> 00:00:00 | O21: ～ | P21: ='10計画'!P21:R21 -> 00:00:00 | S21: 00:00:00 | V21: ='10計画'!V21:AA21 -> 0 | AB21: ='10計画'!AB21:AG21 -> 0 | AH21: ='10計画'!AH21:AO21 -> 0 | AP21: FALSE | BK21: 0 | BW21: ='10計画'!C21 -> 火 | BY21: ='10計画'!E21 -> 00:00:00 | CB21: ～ | CC21: ='10計画'!I21 -> 00:00:00 | CF21: ='10計画'!L21 -> 00:00:00 | CI21: ～ | CJ21: ='10計画'!P21 -> 00:00:00 | CM21: 00:00:00 | CP21: ='10計画'!V21 -> 0 | CV21: ='10計画'!AB21 -> 0 | DB21: ='10計画'!AH21 -> 0
A22: 7 | C22: ='10計画'!C22:D22 -> 水 | E22: ='10計画'!E22:G22 -> 00:00:00 | H22: ～ | I22: ='10計画'!I22:K22 -> 00:00:00 | L22: ='10計画'!L22:N22 -> 00:00:00 | O22: ～ | P22: ='10計画'!P22:R22 -> 00:00:00 | S22: 00:00:00 | V22: ='10計画'!V22:AA22 -> 0 | AB22: ='10計画'!AB22:AG22 -> 0 | AH22: ='10計画'!AH22:AO22 -> 0 | AP22: FALSE | BK22: 0 | BW22: ='10計画'!C22 -> 水 | BY22: ='10計画'!E22 -> 00:00:00 | CB22: ～ | CC22: ='10計画'!I22 -> 00:00:00 | CF22: ='10計画'!L22 -> 00:00:00 | CI22: ～ | CJ22: ='10計画'!P22 -> 00:00:00 | CM22: 00:00:00 | CP22: ='10計画'!V22 -> 0 | CV22: ='10計画'!AB22 -> 0 | DB22: ='10計画'!AH22 -> 0
A23: 8 | C23: ='10計画'!C23:D23 -> 木 | E23: ='10計画'!E23:G23 -> 00:00:00 | H23: ～ | I23: ='10計画'!I23:K23 -> 00:00:00 | L23: ='10計画'!L23:N23 -> 00:00:00 | O23: ～ | P23: ='10計画'!P23:R23 -> 00:00:00 | S23: 00:00:00 | V23: ='10計画'!V23:AA23 -> 0 | AB23: ='10計画'!AB23:AG23 -> 0 | AH23: ='10計画'!AH23:AO23 -> 0 | AP23: FALSE | BK23: 0 | BW23: ='10計画'!C23 -> 木 | BY23: ='10計画'!E23 -> 00:00:00 | CB23: ～ | CC23: ='10計画'!I23 -> 00:00:00 | CF23: ='10計画'!L23 -> 00:00:00 | CI23: ～ | CJ23: ='10計画'!P23 -> 00:00:00 | CM23: 00:00:00 | CP23: ='10計画'!V23 -> 0 | CV23: ='10計画'!AB23 -> 0 | DB23: ='10計画'!AH23 -> 0
A24: 9 | C24: ='10計画'!C24:D24 -> 金 | E24: ='10計画'!E24:G24 -> 00:00:00 | H24: ～ | I24: ='10計画'!I24:K24 -> 00:00:00 | L24: ='10計画'!L24:N24 -> 00:00:00 | O24: ～ | P24: ='10計画'!P24:R24 -> 00:00:00 | S24: 00:00:00 | V24: ='10計画'!V24:AA24 -> 0 | AB24: ='10計画'!AB24:AG24 -> 0 | AH24: ='10計画'!AH24:AO24 -> 0 | AP24: FALSE | BK24: 0 | BW24: ='10計画'!C24 -> 金 | BY24: ='10計画'!E24 -> 00:00:00 | CB24: ～ | CC24: ='10計画'!I24 -> 00:00:00 | CF24: ='10計画'!L24 -> 00:00:00 | CI24: ～ | CJ24: ='10計画'!P24 -> 00:00:00 | CM24: 00:00:00 | CP24: ='10計画'!V24 -> 0 | CV24: ='10計画'!AB24 -> 0 | DB24: ='10計画'!AH24 -> 0
A25: 10 | C25: ='10計画'!C25:D25 -> 土 | E25: ='10計画'!E25:G25 -> 00:00:00 | H25: ～ | I25: ='10計画'!I25:K25 -> 00:00:00 | L25: ='10計画'!L25:N25 -> 00:00:00 | O25: ～ | P25: ='10計画'!P25:R25 -> 00:00:00 | S25: 00:00:00 | V25: ='10計画'!V25:AA25 -> 0 | AB25: ='10計画'!AB25:AG25 -> 0 | AH25: ='10計画'!AH25:AO25 -> 0 | AP25: FALSE | BK25: 0 | BW25: ='10計画'!C25 -> 土 | BY25: ='10計画'!E25 -> 00:00:00 | CB25: ～ | CC25: ='10計画'!I25 -> 00:00:00 | CF25: ='10計画'!L25 -> 00:00:00 | CI25: ～ | CJ25: ='10計画'!P25 -> 00:00:00 | CM25: 00:00:00 | CP25: ='10計画'!V25 -> 0 | CV25: ='10計画'!AB25 -> 0 | DB25: ='10計画'!AH25 -> 0
A26: 11 | C26: ='10計画'!C26:D26 -> 日 | E26: ='10計画'!E26:G26 -> 00:00:00 | H26: ～ | I26: ='10計画'!I26:K26 -> 00:00:00 | L26: ='10計画'!L26:N26 -> 00:00:00 | O26: ～ | P26: ='10計画'!P26:R26 -> 00:00:00 | S26: 00:00:00 | V26: ='10計画'!V26:AA26 -> 0 | AB26: ='10計画'!AB26:AG26 -> 0 | AH26: ='10計画'!AH26:AO26 -> 0 | AP26: FALSE | BK26: 0 | BW26: ='10計画'!C26 -> 日 | BY26: ='10計画'!E26 -> 00:00:00 | CB26: ～ | CC26: ='10計画'!I26 -> 00:00:00 | CF26: ='10計画'!L26 -> 00:00:00 | CI26: ～ | CJ26: ='10計画'!P26 -> 00:00:00 | CM26: 00:00:00 | CP26: ='10計画'!V26 -> 0 | CV26: ='10計画'!AB26 -> 0 | DB26: ='10計画'!AH26 -> 0
A27: 12 | C27: ='10計画'!C27:D27 -> 月 | E27: ='10計画'!E27:G27 -> 00:00:00 | H27: ～ | I27: ='10計画'!I27:K27 -> 00:00:00 | L27: ='10計画'!L27:N27 -> 00:00:00 | O27: ～ | P27: ='10計画'!P27:R27 -> 00:00:00 | S27: 00:00:00 | V27: ='10計画'!V27:AA27 -> 0 | AB27: ='10計画'!AB27:AG27 -> 0 | AH27: ='10計画'!AH27:AO27 -> 0 | AP27: FALSE | BK27: 0 | BW27: ='10計画'!C27 -> 月 | BY27: ='10計画'!E27 -> 00:00:00 | CB27: ～ | CC27: ='10計画'!I27 -> 00:00:00 | CF27: ='10計画'!L27 -> 00:00:00 | CI27: ～ | CJ27: ='10計画'!P27 -> 00:00:00 | CM27: 00:00:00 | CP27: ='10計画'!V27 -> 0 | CV27: ='10計画'!AB27 -> 0 | DB27: ='10計画'!AH27 -> 0
A28: 13 | C28: ='10計画'!C28:D28 -> 火 | E28: ='10計画'!E28:G28 -> 00:00:00 | H28: ～ | I28: ='10計画'!I28:K28 -> 00:00:00 | L28: ='10計画'!L28:N28 -> 00:00:00 | O28: ～ | P28: ='10計画'!P28:R28 -> 00:00:00 | S28: 00:00:00 | V28: ='10計画'!V28:AA28 -> 0 | AB28: ='10計画'!AB28:AG28 -> 0 | AH28: ='10計画'!AH28:AO28 -> 0 | AP28: FALSE | BK28: 0 | BW28: ='10計画'!C28 -> 火 | BY28: ='10計画'!E28 -> 00:00:00 | CB28: ～ | CC28: ='10計画'!I28 -> 00:00:00 | CF28: ='10計画'!L28 -> 00:00:00 | CI28: ～ | CJ28: ='10計画'!P28 -> 00:00:00 | CM28: 00:00:00 | CP28: ='10計画'!V28 -> 0 | CV28: ='10計画'!AB28 -> 0 | DB28: ='10計画'!AH28 -> 0
A29: 14 | C29: ='10計画'!C29:D29 -> 水 | E29: ='10計画'!E29:G29 -> 00:00:00 | H29: ～ | I29: ='10計画'!I29:K29 -> 00:00:00 | L29: ='10計画'!L29:N29 -> 00:00:00 | O29: ～ | P29: ='10計画'!P29:R29 -> 00:00:00 | S29: 00:00:00 | V29: ='10計画'!V29:AA29 -> 0 | AB29: ='10計画'!AB29:AG29 -> 0 | AH29: ='10計画'!AH29:AO29 -> 0 | AP29: FALSE | BK29: 0 | BW29: ='10計画'!C29 -> 水 | BY29: ='10計画'!E29 -> 00:00:00 | CB29: ～ | CC29: ='10計画'!I29 -> 00:00:00 | CF29: ='10計画'!L29 -> 00:00:00 | CI29: ～ | CJ29: ='10計画'!P29 -> 00:00:00 | CM29: 00:00:00 | CP29: ='10計画'!V29 -> 0 | CV29: ='10計画'!AB29 -> 0 | DB29: ='10計画'!AH29 -> 0
A30: 15 | C30: ='10計画'!C30:D30 -> 木 | E30: ='10計画'!E30:G30 -> 00:00:00 | H30: ～ | I30: ='10計画'!I30:K30 -> 00:00:00 | L30: ='10計画'!L30:N30 -> 00:00:00 | O30: ～ | P30: ='10計画'!P30:R30 -> 00:00:00 | S30: 00:00:00 | V30: ='10計画'!V30:AA30 -> 0 | AB30: ='10計画'!AB30:AG30 -> 0 | AH30: ='10計画'!AH30:AO30 -> 0 | AP30: FALSE | BK30: 0 | BW30: ='10計画'!C30 -> 木 | BY30: ='10計画'!E30 -> 00:00:00 | CB30: ～ | CC30: ='10計画'!I30 -> 00:00:00 | CF30: ='10計画'!L30 -> 00:00:00 | CI30: ～ | CJ30: ='10計画'!P30 -> 00:00:00 | CM30: 00:00:00 | CP30: ='10計画'!V30 -> 0 | CV30: ='10計画'!AB30 -> 0 | DB30: ='10計画'!AH30 -> 0
A31: 16 | C31: ='10計画'!C31:D31 -> 金 | E31: ='10計画'!E31:G31 -> 00:00:00 | H31: ～ | I31: ='10計画'!I31:K31 -> 00:00:00 | L31: ='10計画'!L31:N31 -> 00:00:00 | O31: ～ | P31: ='10計画'!P31:R31 -> 00:00:00 | S31: 00:00:00 | V31: ='10計画'!V31:AA31 -> 0 | AB31: ='10計画'!AB31:AG31 -> 0 | AH31: ='10計画'!AH31:AO31 -> 0 | AP31: FALSE | BK31: 0 | BW31: ='10計画'!C31 -> 金 | BY31: ='10計画'!E31 -> 00:00:00 | CB31: ～ | CC31: ='10計画'!I31 -> 00:00:00 | CF31: ='10計画'!L31 -> 00:00:00 | CI31: ～ | CJ31: ='10計画'!P31 -> 00:00:00 | CM31: 00:00:00 | CP31: ='10計画'!V31 -> 0 | CV31: ='10計画'!AB31 -> 0 | DB31: ='10計画'!AH31 -> 0
A32: 17 | C32: ='10計画'!C32:D32 -> 土 | E32: ='10計画'!E32:G32 -> 00:00:00 | H32: ～ | I32: ='10計画'!I32:K32 -> 00:00:00 | L32: ='10計画'!L32:N32 -> 00:00:00 | O32: ～ | P32: ='10計画'!P32:R32 -> 00:00:00 | S32: 00:00:00 | V32: ='10計画'!V32:AA32 -> 0 | AB32: ='10計画'!AB32:AG32 -> 0 | AH32: ='10計画'!AH32:AO32 -> 0 | AP32: FALSE | BK32: 0 | BW32: ='10計画'!C32 -> 土 | BY32: ='10計画'!E32 -> 00:00:00 | CB32: ～ | CC32: ='10計画'!I32 -> 00:00:00 | CF32: ='10計画'!L32 -> 00:00:00 | CI32: ～ | CJ32: ='10計画'!P32 -> 00:00:00 | CM32: 00:00:00 | CP32: ='10計画'!V32 -> 0 | CV32: ='10計画'!AB32 -> 0 | DB32: ='10計画'!AH32 -> 0
A33: 18 | C33: ='10計画'!C33:D33 -> 日 | E33: ='10計画'!E33:G33 -> 00:00:00 | H33: ～ | I33: ='10計画'!I33:K33 -> 00:00:00 | L33: ='10計画'!L33:N33 -> 00:00:00 | O33: ～ | P33: ='10計画'!P33:R33 -> 00:00:00 | S33: 00:00:00 | V33: ='10計画'!V33:AA33 -> 0 | AB33: ='10計画'!AB33:AG33 -> 0 | AH33: ='10計画'!AH33:AO33 -> 0 | AP33: FALSE | BK33: 0 | BW33: ='10計画'!C33 -> 日 | BY33: ='10計画'!E33 -> 00:00:00 | CB33: ～ | CC33: ='10計画'!I33 -> 00:00:00 | CF33: ='10計画'!L33 -> 00:00:00 | CI33: ～ | CJ33: ='10計画'!P33 -> 00:00:00 | CM33: 00:00:00 | CP33: ='10計画'!V33 -> 0 | CV33: ='10計画'!AB33 -> 0 | DB33: ='10計画'!AH33 -> 0
A34: 19 | C34: ='10計画'!C34:D34 -> 月 | E34: ='10計画'!E34:G34 -> 00:00:00 | H34: ～ | I34: ='10計画'!I34:K34 -> 00:00:00 | L34: ='10計画'!L34:N34 -> 00:00:00 | O34: ～ | P34: ='10計画'!P34:R34 -> 00:00:00 | S34: 00:00:00 | V34: ='10計画'!V34:AA34 -> 0 | AB34: ='10計画'!AB34:AG34 -> 0 | AH34: ='10計画'!AH34:AO34 -> 0 | AP34: FALSE | BK34: 0 | BW34: ='10計画'!C34 -> 月 | BY34: ='10計画'!E34 -> 00:00:00 | CB34: ～ | CC34: ='10計画'!I34 -> 00:00:00 | CF34: ='10計画'!L34 -> 00:00:00 | CI34: ～ | CJ34: ='10計画'!P34 -> 00:00:00 | CM34: 00:00:00 | CP34: ='10計画'!V34 -> 0 | CV34: ='10計画'!AB34 -> 0 | DB34: ='10計画'!AH34 -> 0
A35: 20 | C35: ='10計画'!C35:D35 -> 火 | E35: ='10計画'!E35:G35 -> 00:00:00 | H35: ～ | I35: ='10計画'!I35:K35 -> 00:00:00 | L35: ='10計画'!L35:N35 -> 00:00:00 | O35: ～ | P35: ='10計画'!P35:R35 -> 00:00:00 | S35: 00:00:00 | V35: ='10計画'!V35:AA35 -> 0 | AB35: ='10計画'!AB35:AG35 -> 0 | AH35: ='10計画'!AH35:AO35 -> 0 | AP35: FALSE | BK35: 0 | BW35: ='10計画'!C35 -> 火 | BY35: ='10計画'!E35 -> 00:00:00 | CB35: ～ | CC35: ='10計画'!I35 -> 00:00:00 | CF35: ='10計画'!L35 -> 00:00:00 | CI35: ～ | CJ35: ='10計画'!P35 -> 00:00:00 | CM35: 00:00:00 | CP35: ='10計画'!V35 -> 0 | CV35: ='10計画'!AB35 -> 0 | DB35: ='10計画'!AH35 -> 0
A36: 21 | C36: ='10計画'!C36:D36 -> 水 | E36: ='10計画'!E36:G36 -> 00:00:00 | H36: ～ | I36: ='10計画'!I36:K36 -> 00:00:00 | L36: ='10計画'!L36:N36 -> 00:00:00 | O36: ～ | P36: ='10計画'!P36:R36 -> 00:00:00 | S36: 00:00:00 | V36: ='10計画'!V36:AA36 -> 0 | AB36: ='10計画'!AB36:AG36 -> 0 | AH36: ='10計画'!AH36:AO36 -> 0 | AP36: FALSE | BK36: 0 | BW36: ='10計画'!C36 -> 水 | BY36: ='10計画'!E36 -> 00:00:00 | CB36: ～ | CC36: ='10計画'!I36 -> 00:00:00 | CF36: ='10計画'!L36 -> 00:00:00 | CI36: ～ | CJ36: ='10計画'!P36 -> 00:00:00 | CM36: 00:00:00 | CP36: ='10計画'!V36 -> 0 | CV36: ='10計画'!AB36 -> 0 | DB36: ='10計画'!AH36 -> 0
A37: 22 | C37: ='10計画'!C37:D37 -> 木 | E37: ='10計画'!E37:G37 -> 00:00:00 | H37: ～ | I37: ='10計画'!I37:K37 -> 00:00:00 | L37: ='10計画'!L37:N37 -> 00:00:00 | O37: ～ | P37: ='10計画'!P37:R37 -> 00:00:00 | S37: 00:00:00 | V37: ='10計画'!V37:AA37 -> 0 | AB37: ='10計画'!AB37:AG37 -> 0 | AH37: ='10計画'!AH37:AO37 -> 0 | AP37: FALSE | BK37: 0 | BW37: ='10計画'!C37 -> 木 | BY37: ='10計画'!E37 -> 00:00:00 | CB37: ～ | CC37: ='10計画'!I37 -> 00:00:00 | CF37: ='10計画'!L37 -> 00:00:00 | CI37: ～ | CJ37: ='10計画'!P37 -> 00:00:00 | CM37: 00:00:00 | CP37: ='10計画'!V37 -> 0 | CV37: ='10計画'!AB37 -> 0 | DB37: ='10計画'!AH37 -> 0
A38: 23 | C38: ='10計画'!C38:D38 -> 金 | E38: ='10計画'!E38:G38 -> 00:00:00 | H38: ～ | I38: ='10計画'!I38:K38 -> 00:00:00 | L38: ='10計画'!L38:N38 -> 00:00:00 | O38: ～ | P38: ='10計画'!P38:R38 -> 00:00:00 | S38: 00:00:00 | V38: ='10計画'!V38:AA38 -> 0 | AB38: ='10計画'!AB38:AG38 -> 0 | AH38: ='10計画'!AH38:AO38 -> 0 | AP38: FALSE | BK38: 0 | BW38: ='10計画'!C38 -> 金 | BY38: ='10計画'!E38 -> 00:00:00 | CB38: ～ | CC38: ='10計画'!I38 -> 00:00:00 | CF38: ='10計画'!L38 -> 00:00:00 | CI38: ～ | CJ38: ='10計画'!P38 -> 00:00:00 | CM38: 00:00:00 | CP38: ='10計画'!V38 -> 0 | CV38: ='10計画'!AB38 -> 0 | DB38: ='10計画'!AH38 -> 0
A39: 24 | C39: ='10計画'!C39:D39 -> 土 | E39: ='10計画'!E39:G39 -> 00:00:00 | H39: ～ | I39: ='10計画'!I39:K39 -> 00:00:00 | L39: ='10計画'!L39:N39 -> 00:00:00 | O39: ～ | P39: ='10計画'!P39:R39 -> 00:00:00 | S39: 00:00:00 | V39: ='10計画'!V39:AA39 -> 0 | AB39: ='10計画'!AB39:AG39 -> 0 | AH39: ='10計画'!AH39:AO39 -> 0 | AP39: FALSE | BK39: 0 | BW39: ='10計画'!C39 -> 土 | BY39: ='10計画'!E39 -> 00:00:00 | CB39: ～ | CC39: ='10計画'!I39 -> 00:00:00 | CF39: ='10計画'!L39 -> 00:00:00 | CI39: ～ | CJ39: ='10計画'!P39 -> 00:00:00 | CM39: 00:00:00 | CP39: ='10計画'!V39 -> 0 | CV39: ='10計画'!AB39 -> 0 | DB39: ='10計画'!AH39 -> 0
A40: 25 | C40: ='10計画'!C40:D40 -> 日 | E40: ='10計画'!E40:G40 -> 00:00:00 | H40: ～ | I40: ='10計画'!I40:K40 -> 00:00:00 | L40: ='10計画'!L40:N40 -> 00:00:00 | O40: ～ | P40: ='10計画'!P40:R40 -> 00:00:00 | S40: 00:00:00 | V40: ='10計画'!V40:AA40 -> 0 | AB40: ='10計画'!AB40:AG40 -> 0 | AH40: ='10計画'!AH40:AO40 -> 0 | AP40: FALSE | BK40: 0 | BW40: ='10計画'!C40 -> 日 | BY40: ='10計画'!E40 -> 00:00:00 | CB40: ～ | CC40: ='10計画'!I40 -> 00:00:00 | CF40: ='10計画'!L40 -> 00:00:00 | CI40: ～ | CJ40: ='10計画'!P40 -> 00:00:00 | CM40: 00:00:00 | CP40: ='10計画'!V40 -> 0 | CV40: ='10計画'!AB40 -> 0 | DB40: ='10計画'!AH40 -> 0
A41: 26 | C41: ='10計画'!C41:D41 -> 月 | E41: ='10計画'!E41:G41 -> 00:00:00 | H41: ～ | I41: ='10計画'!I41:K41 -> 00:00:00 | L41: ='10計画'!L41:N41 -> 00:00:00 | O41: ～ | P41: ='10計画'!P41:R41 -> 00:00:00 | S41: 00:00:00 | V41: ='10計画'!V41:AA41 -> 0 | AB41: ='10計画'!AB41:AG41 -> 0 | AH41: ='10計画'!AH41:AO41 -> 0 | AP41: FALSE | BK41: 0 | BW41: ='10計画'!C41 -> 月 | BY41: ='10計画'!E41 -> 00:00:00 | CB41: ～ | CC41: ='10計画'!I41 -> 00:00:00 | CF41: ='10計画'!L41 -> 00:00:00 | CI41: ～ | CJ41: ='10計画'!P41 -> 00:00:00 | CM41: 00:00:00 | CP41: ='10計画'!V41 -> 0 | CV41: ='10計画'!AB41 -> 0 | DB41: ='10計画'!AH41 -> 0
A42: 27 | C42: ='10計画'!C42:D42 -> 火 | E42: ='10計画'!E42:G42 -> 00:00:00 | H42: ～ | I42: ='10計画'!I42:K42 -> 00:00:00 | L42: ='10計画'!L42:N42 -> 00:00:00 | O42: ～ | P42: ='10計画'!P42:R42 -> 00:00:00 | S42: 00:00:00 | V42: ='10計画'!V42:AA42 -> 0 | AB42: ='10計画'!AB42:AG42 -> 0 | AH42: ='10計画'!AH42:AO42 -> 0 | AP42: FALSE | BK42: 0 | BW42: ='10計画'!C42 -> 火 | BY42: ='10計画'!E42 -> 00:00:00 | CB42: ～ | CC42: ='10計画'!I42 -> 00:00:00 | CF42: ='10計画'!L42 -> 00:00:00 | CI42: ～ | CJ42: ='10計画'!P42 -> 00:00:00 | CM42: 00:00:00 | CP42: ='10計画'!V42 -> 0 | CV42: ='10計画'!AB42 -> 0 | DB42: ='10計画'!AH42 -> 0
A43: 28 | C43: ='10計画'!C43:D43 -> 水 | E43: ='10計画'!E43:G43 -> 00:00:00 | H43: ～ | I43: ='10計画'!I43:K43 -> 00:00:00 | L43: ='10計画'!L43:N43 -> 00:00:00 | O43: ～ | P43: ='10計画'!P43:R43 -> 00:00:00 | S43: 00:00:00 | V43: ='10計画'!V43:AA43 -> 0 | AB43: ='10計画'!AB43:AG43 -> 0 | AH43: ='10計画'!AH43:AO43 -> 0 | AP43: FALSE | BK43: 0 | BW43: ='10計画'!C43 -> 水 | BY43: ='10計画'!E43 -> 00:00:00 | CB43: ～ | CC43: ='10計画'!I43 -> 00:00:00 | CF43: ='10計画'!L43 -> 00:00:00 | CI43: ～ | CJ43: ='10計画'!P43 -> 00:00:00 | CM43: 00:00:00 | CP43: ='10計画'!V43 -> 0 | CV43: ='10計画'!AB43 -> 0 | DB43: ='10計画'!AH43 -> 0
A44: 29 | C44: ='10計画'!C44:D44 -> 木 | E44: ='10計画'!E44:G44 -> 00:00:00 | H44: ～ | I44: ='10計画'!I44:K44 -> 00:00:00 | L44: ='10計画'!L44:N44 -> 00:00:00 | O44: ～ | P44: ='10計画'!P44:R44 -> 00:00:00 | S44: 00:00:00 | V44: ='10計画'!V44:AA44 -> 0 | AB44: ='10計画'!AB44:AG44 -> 0 | AH44: ='10計画'!AH44:AO44 -> 0 | AP44: FALSE | BK44: 0 | BW44: ='10計画'!C44 -> 木 | BY44: ='10計画'!E44 -> 00:00:00 | CB44: ～ | CC44: ='10計画'!I44 -> 00:00:00 | CF44: ='10計画'!L44 -> 00:00:00 | CI44: ～ | CJ44: ='10計画'!P44 -> 00:00:00 | CM44: 00:00:00 | CP44: ='10計画'!V44 -> 0 | CV44: ='10計画'!AB44 -> 0 | DB44: ='10計画'!AH44 -> 0
A45: 30 | C45: ='10計画'!C45:D45 -> 金 | E45: ='10計画'!E45:G45 -> 00:00:00 | H45: ～ | I45: ='10計画'!I45:K45 -> 00:00:00 | L45: ='10計画'!L45:N45 -> 00:00:00 | O45: ～ | P45: ='10計画'!P45:R45 -> 00:00:00 | S45: 00:00:00 | V45: ='10計画'!V45:AA45 -> 0 | AB45: ='10計画'!AB45:AG45 -> 0 | AH45: ='10計画'!AH45:AO45 -> 0 | AP45: FALSE | BK45: 0 | BW45: ='10計画'!C45 -> 金 | BY45: ='10計画'!E45 -> 00:00:00 | CB45: ～ | CC45: ='10計画'!I45 -> 00:00:00 | CF45: ='10計画'!L45 -> 00:00:00 | CI45: ～ | CJ45: ='10計画'!P45 -> 00:00:00 | CM45: 00:00:00 | CP45: ='10計画'!V45 -> 0 | CV45: ='10計画'!AB45 -> 0 | DB45: ='10計画'!AH45 -> 0
A46: 31 | C46: ='10計画'!C46:D46 -> 土 | E46: ='10計画'!E46:G46 -> 00:00:00 | H46: ～ | I46: ='10計画'!I46:K46 -> 00:00:00 | L46: ='10計画'!L46:N46 -> 00:00:00 | O46: ～ | P46: ='10計画'!P46:R46 -> 00:00:00 | S46: 00:00:00 | V46: ='10計画'!V46:AA46 -> 0 | AB46: ='10計画'!AB46:AG46 -> 0 | AH46: ='10計画'!AH46:AO46 -> 0 | AP46: FALSE | BK46: 0 | BW46: ='10計画'!C46 -> 土 | BY46: ='10計画'!E46 -> 00:00:00 | CB46: ～ | CC46: ='10計画'!I46 -> 00:00:00 | CF46: ='10計画'!L46 -> 00:00:00 | CI46: ～ | CJ46: ='10計画'!P46 -> 00:00:00 | CM46: 00:00:00 | CP46: ='10計画'!V46 -> 0 | CV46: ='10計画'!AB46 -> 0 | DB46: ='10計画'!AH46 -> 0
S47: =SUM(S16:U46) -> 0 | CM47: =SUM(CM16:CO46) -> 0
A49: 月 | D49: 4 | F49: 5 | H49: 6 | J49: 7 | L49: 8 | N49: 9 | P49: 10 | R49: 11 | T49: 12 | V49: 1 | X49: 2 | Z49: 3 | AB49: 計
A50: 時間 | D50: ='４実績'!D50 -> 0 | F50: ='５実績'!F50 -> 0 | H50: ='6実績'!H50 -> 0 | J50: ='7実績'!J50 -> 0 | L50: ='8実績'!L50:M50 -> 0 | N50: ='9実績'!N50:O50 -> 0 | P50: =S47 -> 0 | AB50: =SUM(D50:AA50) -> 0 | AG50: 時間 | BX50: ='４実績'!D50 -> 0 | BZ50: ='５実績'!F50 -> 0 | CB50: ='6実績'!H50 -> 0 | CD50: ='7実績'!J50 -> 0 | CF50: ='8実績'!L50 -> 0 | CH50: ='9実績'!N50 -> 0 | CJ50: =CM47 -> 0 | CV50: =SUM(BX50:CU50) -> 0
A51: 活動日数 | D51: ='４実績'!D51 -> 0 | F51: ='５実績'!F51 -> 0 | H51: ='6実績'!H51 -> 0 | J51: ='7実績'!J51 -> 0 | L51: ='8実績'!L51:M51 -> 0 | N51: ='9実績'!N51:O51 -> 0 | P51: =COUNTIF(S16:U46,">0") -> 0 | AB51: =SUM(D51:AA51) -> 0 | AG51: 活動日数 | BX51: ='４実績'!D51 -> 0 | BZ51: ='５実績'!F51 -> 0 | CB51: ='6実績'!H51 -> 0 | CD51: ='7実績'!J51 -> 0 | CF51: ='8実績'!L51 -> 0 | CH51: ='9実績'!N51 -> 0 | CJ51: =COUNTIF(CM16:CO46,">0") -> 0 | CV51: =SUM(BX51:CU51) -> 0
A52: 休養日数 | D52: ='４実績'!D52 -> 30 | F52: ='５実績'!F52 -> 31 | H52: ='6実績'!H52 -> 30 | J52: ='7実績'!J52 -> 31 | L52: ='8実績'!L52:M52 -> 31 | N52: ='9実績'!N52:O52 -> 30 | P52: =COUNTIF(S16:U46,"0:00") -> 31 | AB52: =SUM(D52:AA52) -> 214 | AG52: 休養日数 | BX52: ='４実績'!D52 -> 30 | BZ52: ='５実績'!F52 -> 31 | CB52: ='6実績'!H52 -> 30 | CD52: ='7実績'!J52 -> 31 | CF52: ='8実績'!L52 -> 31 | CH52: ='9実績'!N52 -> 30 | CJ52: =COUNTIF(CM16:CO46,"0:00") -> 31 | CV52: =SUM(BX52:CU52) -> 214
AB53: =AB50/AB51 ->  | AG53: 平均時間/日 | CV53: =CV50/CV51 -> 

Sheet 11実績
A2: ='11計画'!A2:D2 -> 校長 | E2: ='11計画'!E2:H2 -> 教頭 | I2: ='11計画'!I2:L2 -> 教頭 | M2: ='11計画'!M2:P2 -> 主幹教諭 | Q2: ='11計画'!Q2:T2 -> 0 | U2: ='11計画'!U2:X2 -> 顧問 | Z2: 学校名 | AC2: ='11計画'!AC2:AL3 -> 0 | AM2: 学校 | BU2: ='11計画'!BU2:BX2 -> 0 | BY2: ='11計画'!BY2:CB2 -> 0 | CC2: ='11計画'!CC2:CF2 -> 0 | CG2: ='11計画'!CG2:CJ2 -> 0 | CK2: ='11計画'!CK2:CN2 -> 0 | CO2: ='11計画'!CO2:CR2 -> 0 | CW2: ='11計画'!CW2:DF3 -> 0
A3: 印 | E3: 印 | I3: 印 | M3: 印 | Q3: 印 | U3: 印
Z4: 部活動名 | AC4: ='11計画'!AC4:AL5 -> 0 | AM4: 部 | CW4: ='11計画'!CW4:DF5 -> 0
A6: ※活動計画と違う内容については、校長口頭命令済み
A7: 11 | F7: 月 | I7: 〈月間〉部活動計画・活動実績 | Y7: 部員数 | AB7: 1女 | AD7: 2女 | AF7: 3女 | AH7: 1男 | AJ7: 2男 | AL7: 3男 | AN7: 計
AB8: ='11計画'!AB8:AC8 -> 0 | AD8: ='11計画'!AD8:AE8 -> 0 | AF8: ='11計画'!AF8:AG8 -> 0 | AH8: ='11計画'!AH8:AI8 -> 0 | AJ8: ='11計画'!AJ8:AK8 -> 0 | AL8: ='11計画'!AL8:AM8 -> 0 | AN8: =SUM(AB8:AM8) -> 0 | CV8: ='11計画'!AB8 -> 0 | CX8: ='11計画'!AD8 -> 0 | CZ8: ='11計画'!AF8 -> 0 | DB8: ='11計画'!AH8 -> 0 | DD8: ='11計画'!AJ8 -> 0 | DF8: ='11計画'!AL8 -> 0 | DH8: =SUM(CV8:DG8) -> 0
B10: 職名 | D10: ='11計画'!D10:H11 -> 0 | I10: 顧問 | K10: ='11計画'!K10:S11 -> 0 | V10: 職名 | X10: ='11計画'!X10:AB11 -> 0 | AC10: 副２ | AE10: ='11計画'!AE10:AM11 -> 0 | BX10: ='11計画'!D10 -> 0 | CE10: ='11計画'!K10 -> 0 | CR10: ='11計画'!X10 -> 0 | CY10: ='11計画'!AE10 -> 0
B12: 職名 | D12: ='11計画'!D12:H13 -> 0 | I12: 副顧問 | K12: ='11計画'!K12:S13 -> 0 | V12: 職名 | X12: ='11計画'!X12:AB13 -> 0 | AC12: 副３ | AE12: ='11計画'!AE12:AM13 -> 0 | BX12: ='11計画'!D12 -> 0 | CE12: ='11計画'!K12 -> 0 | CR12: ='11計画'!X12 -> 0 | CY12: ='11計画'!AE12 -> 0
A15: 日 | C15: 曜 | E15: ＡＭ | L15: ＰＭ | S15: 時間 | V15: 内容（練習・大会・OFF等） | AH15: 場所 | AP15: FALSE | AQ15: 特殊業務
A16: 1 | C16: ='11計画'!C16:D16 -> 日 | E16: ='11計画'!E16:G16 -> 00:00:00 | H16: ～ | I16: ='11計画'!I16:K16 -> 00:00:00 | L16: ='11計画'!L16:N16 -> 00:00:00 | O16: ～ | P16: ='11計画'!P16:R16 -> 00:00:00 | S16: =(I16-E16)+(P16-L16) -> 00:00:00 | V16: ='11計画'!V16:AA16 -> 0 | AB16: ='11計画'!AB16:AG16 -> 0 | AH16: ='11計画'!AH16:AO16 -> 0 | AP16: FALSE | BK16: =RIGHT(V16,2) -> 0 | BW16: ='11計画'!C16 -> 日 | BY16: ='11計画'!E16 -> 00:00:00 | CB16: ～ | CC16: ='11計画'!I16 -> 00:00:00 | CF16: ='11計画'!L16 -> 00:00:00 | CI16: ～ | CJ16: ='11計画'!P16 -> 00:00:00 | CM16: =(CC16-BY16)+(CJ16-CF16) -> 00:00:00 | CP16: ='11計画'!V16 -> 0 | CV16: ='11計画'!AB16 -> 0 | DB16: ='11計画'!AH16 -> 0
A17: 2 | C17: ='11計画'!C17:D17 -> 月 | E17: ='11計画'!E17:G17 -> 00:00:00 | H17: ～ | I17: ='11計画'!I17:K17 -> 00:00:00 | L17: ='11計画'!L17:N17 -> 00:00:00 | O17: ～ | P17: ='11計画'!P17:R17 -> 00:00:00 | S17: 00:00:00 | V17: ='11計画'!V17:AA17 -> 0 | AB17: ='11計画'!AB17:AG17 -> 0 | AH17: ='11計画'!AH17:AO17 -> 0 | AP17: FALSE | BK17: =RIGHT(V17,2) -> 0 | BW17: ='11計画'!C17 -> 月 | BY17: ='11計画'!E17 -> 00:00:00 | CB17: ～ | CC17: ='11計画'!I17 -> 00:00:00 | CF17: ='11計画'!L17 -> 00:00:00 | CI17: ～ | CJ17: ='11計画'!P17 -> 00:00:00 | CM17: 00:00:00 | CP17: ='11計画'!V17 -> 0 | CV17: ='11計画'!AB17 -> 0 | DB17: ='11計画'!AH17 -> 0
A18: 3 | C18: ='11計画'!C18:D18 -> 火 | E18: ='11計画'!E18:G18 -> 00:00:00 | H18: ～ | I18: ='11計画'!I18:K18 -> 00:00:00 | L18: ='11計画'!L18:N18 -> 00:00:00 | O18: ～ | P18: ='11計画'!P18:R18 -> 00:00:00 | S18: 00:00:00 | V18: ='11計画'!V18:AA18 -> 0 | AB18: ='11計画'!AB18:AG18 -> 0 | AH18: ='11計画'!AH18:AO18 -> 0 | AP18: FALSE | BK18: 0 | BW18: ='11計画'!C18 -> 火 | BY18: ='11計画'!E18 -> 00:00:00 | CB18: ～ | CC18: ='11計画'!I18 -> 00:00:00 | CF18: ='11計画'!L18 -> 00:00:00 | CI18: ～ | CJ18: ='11計画'!P18 -> 00:00:00 | CM18: 00:00:00 | CP18: ='11計画'!V18 -> 0 | CV18: ='11計画'!AB18 -> 0 | DB18: ='11計画'!AH18 -> 0
A19: 4 | C19: ='11計画'!C19:D19 -> 水 | E19: ='11計画'!E19:G19 -> 00:00:00 | H19: ～ | I19: ='11計画'!I19:K19 -> 00:00:00 | L19: ='11計画'!L19:N19 -> 00:00:00 | O19: ～ | P19: ='11計画'!P19:R19 -> 00:00:00 | S19: 00:00:00 | V19: ='11計画'!V19:AA19 -> 0 | AB19: ='11計画'!AB19:AG19 -> 0 | AH19: ='11計画'!AH19:AO19 -> 0 | AP19: FALSE | BK19: 0 | BW19: ='11計画'!C19 -> 水 | BY19: ='11計画'!E19 -> 00:00:00 | CB19: ～ | CC19: ='11計画'!I19 -> 00:00:00 | CF19: ='11計画'!L19 -> 00:00:00 | CI19: ～ | CJ19: ='11計画'!P19 -> 00:00:00 | CM19: 00:00:00 | CP19: ='11計画'!V19 -> 0 | CV19: ='11計画'!AB19 -> 0 | DB19: ='11計画'!AH19 -> 0
A20: 5 | C20: ='11計画'!C20:D20 -> 木 | E20: ='11計画'!E20:G20 -> 00:00:00 | H20: ～ | I20: ='11計画'!I20:K20 -> 00:00:00 | L20: ='11計画'!L20:N20 -> 00:00:00 | O20: ～ | P20: ='11計画'!P20:R20 -> 00:00:00 | S20: 00:00:00 | V20: ='11計画'!V20:AA20 -> 0 | AB20: ='11計画'!AB20:AG20 -> 0 | AH20: ='11計画'!AH20:AO20 -> 0 | AP20: FALSE | BK20: 0 | BW20: ='11計画'!C20 -> 木 | BY20: ='11計画'!E20 -> 00:00:00 | CB20: ～ | CC20: ='11計画'!I20 -> 00:00:00 | CF20: ='11計画'!L20 -> 00:00:00 | CI20: ～ | CJ20: ='11計画'!P20 -> 00:00:00 | CM20: 00:00:00 | CP20: ='11計画'!V20 -> 0 | CV20: ='11計画'!AB20 -> 0 | DB20: ='11計画'!AH20 -> 0
A21: 6 | C21: ='11計画'!C21:D21 -> 金 | E21: ='11計画'!E21:G21 -> 00:00:00 | H21: ～ | I21: ='11計画'!I21:K21 -> 00:00:00 | L21: ='11計画'!L21:N21 -> 00:00:00 | O21: ～ | P21: ='11計画'!P21:R21 -> 00:00:00 | S21: 00:00:00 | V21: ='11計画'!V21:AA21 -> 0 | AB21: ='11計画'!AB21:AG21 -> 0 | AH21: ='11計画'!AH21:AO21 -> 0 | AP21: FALSE | BK21: 0 | BW21: ='11計画'!C21 -> 金 | BY21: ='11計画'!E21 -> 00:00:00 | CB21: ～ | CC21: ='11計画'!I21 -> 00:00:00 | CF21: ='11計画'!L21 -> 00:00:00 | CI21: ～ | CJ21: ='11計画'!P21 -> 00:00:00 | CM21: 00:00:00 | CP21: ='11計画'!V21 -> 0 | CV21: ='11計画'!AB21 -> 0 | DB21: ='11計画'!AH21 -> 0
A22: 7 | C22: ='11計画'!C22:D22 -> 土 | E22: ='11計画'!E22:G22 -> 00:00:00 | H22: ～ | I22: ='11計画'!I22:K22 -> 00:00:00 | L22: ='11計画'!L22:N22 -> 00:00:00 | O22: ～ | P22: ='11計画'!P22:R22 -> 00:00:00 | S22: 00:00:00 | V22: ='11計画'!V22:AA22 -> 0 | AB22: ='11計画'!AB22:AG22 -> 0 | AH22: ='11計画'!AH22:AO22 -> 0 | AP22: FALSE | BK22: 0 | BW22: ='11計画'!C22 -> 土 | BY22: ='11計画'!E22 -> 00:00:00 | CB22: ～ | CC22: ='11計画'!I22 -> 00:00:00 | CF22: ='11計画'!L22 -> 00:00:00 | CI22: ～ | CJ22: ='11計画'!P22 -> 00:00:00 | CM22: 00:00:00 | CP22: ='11計画'!V22 -> 0 | CV22: ='11計画'!AB22 -> 0 | DB22: ='11計画'!AH22 -> 0
A23: 8 | C23: ='11計画'!C23:D23 -> 日 | E23: ='11計画'!E23:G23 -> 00:00:00 | H23: ～ | I23: ='11計画'!I23:K23 -> 00:00:00 | L23: ='11計画'!L23:N23 -> 00:00:00 | O23: ～ | P23: ='11計画'!P23:R23 -> 00:00:00 | S23: 00:00:00 | V23: ='11計画'!V23:AA23 -> 0 | AB23: ='11計画'!AB23:AG23 -> 0 | AH23: ='11計画'!AH23:AO23 -> 0 | AP23: FALSE | BK23: 0 | BW23: ='11計画'!C23 -> 日 | BY23: ='11計画'!E23 -> 00:00:00 | CB23: ～ | CC23: ='11計画'!I23 -> 00:00:00 | CF23: ='11計画'!L23 -> 00:00:00 | CI23: ～ | CJ23: ='11計画'!P23 -> 00:00:00 | CM23: 00:00:00 | CP23: ='11計画'!V23 -> 0 | CV23: ='11計画'!AB23 -> 0 | DB23: ='11計画'!AH23 -> 0
A24: 9 | C24: ='11計画'!C24:D24 -> 月 | E24: ='11計画'!E24:G24 -> 00:00:00 | H24: ～ | I24: ='11計画'!I24:K24 -> 00:00:00 | L24: ='11計画'!L24:N24 -> 00:00:00 | O24: ～ | P24: ='11計画'!P24:R24 -> 00:00:00 | S24: 00:00:00 | V24: ='11計画'!V24:AA24 -> 0 | AB24: ='11計画'!AB24:AG24 -> 0 | AH24: ='11計画'!AH24:AO24 -> 0 | AP24: FALSE | BK24: 0 | BW24: ='11計画'!C24 -> 月 | BY24: ='11計画'!E24 -> 00:00:00 | CB24: ～ | CC24: ='11計画'!I24 -> 00:00:00 | CF24: ='11計画'!L24 -> 00:00:00 | CI24: ～ | CJ24: ='11計画'!P24 -> 00:00:00 | CM24: 00:00:00 | CP24: ='11計画'!V24 -> 0 | CV24: ='11計画'!AB24 -> 0 | DB24: ='11計画'!AH24 -> 0
A25: 10 | C25: ='11計画'!C25:D25 -> 火 | E25: ='11計画'!E25:G25 -> 00:00:00 | H25: ～ | I25: ='11計画'!I25:K25 -> 00:00:00 | L25: ='11計画'!L25:N25 -> 00:00:00 | O25: ～ | P25: ='11計画'!P25:R25 -> 00:00:00 | S25: 00:00:00 | V25: ='11計画'!V25:AA25 -> 0 | AB25: ='11計画'!AB25:AG25 -> 0 | AH25: ='11計画'!AH25:AO25 -> 0 | AP25: FALSE | BK25: 0 | BW25: ='11計画'!C25 -> 火 | BY25: ='11計画'!E25 -> 00:00:00 | CB25: ～ | CC25: ='11計画'!I25 -> 00:00:00 | CF25: ='11計画'!L25 -> 00:00:00 | CI25: ～ | CJ25: ='11計画'!P25 -> 00:00:00 | CM25: 00:00:00 | CP25: ='11計画'!V25 -> 0 | CV25: ='11計画'!AB25 -> 0 | DB25: ='11計画'!AH25 -> 0
A26: 11 | C26: ='11計画'!C26:D26 -> 水 | E26: ='11計画'!E26:G26 -> 00:00:00 | H26: ～ | I26: ='11計画'!I26:K26 -> 00:00:00 | L26: ='11計画'!L26:N26 -> 00:00:00 | O26: ～ | P26: ='11計画'!P26:R26 -> 00:00:00 | S26: 00:00:00 | V26: ='11計画'!V26:AA26 -> 0 | AB26: ='11計画'!AB26:AG26 -> 0 | AH26: ='11計画'!AH26:AO26 -> 0 | AP26: FALSE | BK26: 0 | BW26: ='11計画'!C26 -> 水 | BY26: ='11計画'!E26 -> 00:00:00 | CB26: ～ | CC26: ='11計画'!I26 -> 00:00:00 | CF26: ='11計画'!L26 -> 00:00:00 | CI26: ～ | CJ26: ='11計画'!P26 -> 00:00:00 | CM26: 00:00:00 | CP26: ='11計画'!V26 -> 0 | CV26: ='11計画'!AB26 -> 0 | DB26: ='11計画'!AH26 -> 0
A27: 12 | C27: ='11計画'!C27:D27 -> 木 | E27: ='11計画'!E27:G27 -> 00:00:00 | H27: ～ | I27: ='11計画'!I27:K27 -> 00:00:00 | L27: ='11計画'!L27:N27 -> 00:00:00 | O27: ～ | P27: ='11計画'!P27:R27 -> 00:00:00 | S27: 00:00:00 | V27: ='11計画'!V27:AA27 -> 0 | AB27: ='11計画'!AB27:AG27 -> 0 | AH27: ='11計画'!AH27:AO27 -> 0 | AP27: FALSE | BK27: 0 | BW27: ='11計画'!C27 -> 木 | BY27: ='11計画'!E27 -> 00:00:00 | CB27: ～ | CC27: ='11計画'!I27 -> 00:00:00 | CF27: ='11計画'!L27 -> 00:00:00 | CI27: ～ | CJ27: ='11計画'!P27 -> 00:00:00 | CM27: 00:00:00 | CP27: ='11計画'!V27 -> 0 | CV27: ='11計画'!AB27 -> 0 | DB27: ='11計画'!AH27 -> 0
A28: 13 | C28: ='11計画'!C28:D28 -> 金 | E28: ='11計画'!E28:G28 -> 00:00:00 | H28: ～ | I28: ='11計画'!I28:K28 -> 00:00:00 | L28: ='11計画'!L28:N28 -> 00:00:00 | O28: ～ | P28: ='11計画'!P28:R28 -> 00:00:00 | S28: 00:00:00 | V28: ='11計画'!V28:AA28 -> 0 | AB28: ='11計画'!AB28:AG28 -> 0 | AH28: ='11計画'!AH28:AO28 -> 0 | AP28: FALSE | BK28: 0 | BW28: ='11計画'!C28 -> 金 | BY28: ='11計画'!E28 -> 00:00:00 | CB28: ～ | CC28: ='11計画'!I28 -> 00:00:00 | CF28: ='11計画'!L28 -> 00:00:00 | CI28: ～ | CJ28: ='11計画'!P28 -> 00:00:00 | CM28: 00:00:00 | CP28: ='11計画'!V28 -> 0 | CV28: ='11計画'!AB28 -> 0 | DB28: ='11計画'!AH28 -> 0
A29: 14 | C29: ='11計画'!C29:D29 -> 土 | E29: ='11計画'!E29:G29 -> 00:00:00 | H29: ～ | I29: ='11計画'!I29:K29 -> 00:00:00 | L29: ='11計画'!L29:N29 -> 00:00:00 | O29: ～ | P29: ='11計画'!P29:R29 -> 00:00:00 | S29: 00:00:00 | V29: ='11計画'!V29:AA29 -> 0 | AB29: ='11計画'!AB29:AG29 -> 0 | AH29: ='11計画'!AH29:AO29 -> 0 | AP29: FALSE | BK29: 0 | BW29: ='11計画'!C29 -> 土 | BY29: ='11計画'!E29 -> 00:00:00 | CB29: ～ | CC29: ='11計画'!I29 -> 00:00:00 | CF29: ='11計画'!L29 -> 00:00:00 | CI29: ～ | CJ29: ='11計画'!P29 -> 00:00:00 | CM29: 00:00:00 | CP29: ='11計画'!V29 -> 0 | CV29: ='11計画'!AB29 -> 0 | DB29: ='11計画'!AH29 -> 0
A30: 15 | C30: ='11計画'!C30:D30 -> 日 | E30: ='11計画'!E30:G30 -> 00:00:00 | H30: ～ | I30: ='11計画'!I30:K30 -> 00:00:00 | L30: ='11計画'!L30:N30 -> 00:00:00 | O30: ～ | P30: ='11計画'!P30:R30 -> 00:00:00 | S30: 00:00:00 | V30: ='11計画'!V30:AA30 -> 0 | AB30: ='11計画'!AB30:AG30 -> 0 | AH30: ='11計画'!AH30:AO30 -> 0 | AP30: FALSE | BK30: 0 | BW30: ='11計画'!C30 -> 日 | BY30: ='11計画'!E30 -> 00:00:00 | CB30: ～ | CC30: ='11計画'!I30 -> 00:00:00 | CF30: ='11計画'!L30 -> 00:00:00 | CI30: ～ | CJ30: ='11計画'!P30 -> 00:00:00 | CM30: 00:00:00 | CP30: ='11計画'!V30 -> 0 | CV30: ='11計画'!AB30 -> 0 | DB30: ='11計画'!AH30 -> 0
A31: 16 | C31: ='11計画'!C31:D31 -> 月 | E31: ='11計画'!E31:G31 -> 00:00:00 | H31: ～ | I31: ='11計画'!I31:K31 -> 00:00:00 | L31: ='11計画'!L31:N31 -> 00:00:00 | O31: ～ | P31: ='11計画'!P31:R31 -> 00:00:00 | S31: 00:00:00 | V31: ='11計画'!V31:AA31 -> 0 | AB31: ='11計画'!AB31:AG31 -> 0 | AH31: ='11計画'!AH31:AO31 -> 0 | AP31: FALSE | BK31: 0 | BW31: ='11計画'!C31 -> 月 | BY31: ='11計画'!E31 -> 00:00:00 | CB31: ～ | CC31: ='11計画'!I31 -> 00:00:00 | CF31: ='11計画'!L31 -> 00:00:00 | CI31: ～ | CJ31: ='11計画'!P31 -> 00:00:00 | CM31: 00:00:00 | CP31: ='11計画'!V31 -> 0 | CV31: ='11計画'!AB31 -> 0 | DB31: ='11計画'!AH31 -> 0
A32: 17 | C32: ='11計画'!C32:D32 -> 火 | E32: ='11計画'!E32:G32 -> 00:00:00 | H32: ～ | I32: ='11計画'!I32:K32 -> 00:00:00 | L32: ='11計画'!L32:N32 -> 00:00:00 | O32: ～ | P32: ='11計画'!P32:R32 -> 00:00:00 | S32: 00:00:00 | V32: ='11計画'!V32:AA32 -> 0 | AB32: ='11計画'!AB32:AG32 -> 0 | AH32: ='11計画'!AH32:AO32 -> 0 | AP32: FALSE | BK32: 0 | BW32: ='11計画'!C32 -> 火 | BY32: ='11計画'!E32 -> 00:00:00 | CB32: ～ | CC32: ='11計画'!I32 -> 00:00:00 | CF32: ='11計画'!L32 -> 00:00:00 | CI32: ～ | CJ32: ='11計画'!P32 -> 00:00:00 | CM32: 00:00:00 | CP32: ='11計画'!V32 -> 0 | CV32: ='11計画'!AB32 -> 0 | DB32: ='11計画'!AH32 -> 0
A33: 18 | C33: ='11計画'!C33:D33 -> 水 | E33: ='11計画'!E33:G33 -> 00:00:00 | H33: ～ | I33: ='11計画'!I33:K33 -> 00:00:00 | L33: ='11計画'!L33:N33 -> 00:00:00 | O33: ～ | P33: ='11計画'!P33:R33 -> 00:00:00 | S33: 00:00:00 | V33: ='11計画'!V33:AA33 -> 0 | AB33: ='11計画'!AB33:AG33 -> 0 | AH33: ='11計画'!AH33:AO33 -> 0 | AP33: FALSE | BK33: 0 | BW33: ='11計画'!C33 -> 水 | BY33: ='11計画'!E33 -> 00:00:00 | CB33: ～ | CC33: ='11計画'!I33 -> 00:00:00 | CF33: ='11計画'!L33 -> 00:00:00 | CI33: ～ | CJ33: ='11計画'!P33 -> 00:00:00 | CM33: 00:00:00 | CP33: ='11計画'!V33 -> 0 | CV33: ='11計画'!AB33 -> 0 | DB33: ='11計画'!AH33 -> 0
A34: 19 | C34: ='11計画'!C34:D34 -> 木 | E34: ='11計画'!E34:G34 -> 00:00:00 | H34: ～ | I34: ='11計画'!I34:K34 -> 00:00:00 | L34: ='11計画'!L34:N34 -> 00:00:00 | O34: ～ | P34: ='11計画'!P34:R34 -> 00:00:00 | S34: 00:00:00 | V34: ='11計画'!V34:AA34 -> 0 | AB34: ='11計画'!AB34:AG34 -> 0 | AH34: ='11計画'!AH34:AO34 -> 0 | AP34: FALSE | BK34: 0 | BW34: ='11計画'!C34 -> 木 | BY34: ='11計画'!E34 -> 00:00:00 | CB34: ～ | CC34: ='11計画'!I34 -> 00:00:00 | CF34: ='11計画'!L34 -> 00:00:00 | CI34: ～ | CJ34: ='11計画'!P34 -> 00:00:00 | CM34: 00:00:00 | CP34: ='11計画'!V34 -> 0 | CV34: ='11計画'!AB34 -> 0 | DB34: ='11計画'!AH34 -> 0
A35: 20 | C35: ='11計画'!C35:D35 -> 金 | E35: ='11計画'!E35:G35 -> 00:00:00 | H35: ～ | I35: ='11計画'!I35:K35 -> 00:00:00 | L35: ='11計画'!L35:N35 -> 00:00:00 | O35: ～ | P35: ='11計画'!P35:R35 -> 00:00:00 | S35: 00:00:00 | V35: ='11計画'!V35:AA35 -> 0 | AB35: ='11計画'!AB35:AG35 -> 0 | AH35: ='11計画'!AH35:AO35 -> 0 | AP35: FALSE | BK35: 0 | BW35: ='11計画'!C35 -> 金 | BY35: ='11計画'!E35 -> 00:00:00 | CB35: ～ | CC35: ='11計画'!I35 -> 00:00:00 | CF35: ='11計画'!L35 -> 00:00:00 | CI35: ～ | CJ35: ='11計画'!P35 -> 00:00:00 | CM35: 00:00:00 | CP35: ='11計画'!V35 -> 0 | CV35: ='11計画'!AB35 -> 0 | DB35: ='11計画'!AH35 -> 0
A36: 21 | C36: ='11計画'!C36:D36 -> 土 | E36: ='11計画'!E36:G36 -> 00:00:00 | H36: ～ | I36: ='11計画'!I36:K36 -> 00:00:00 | L36: ='11計画'!L36:N36 -> 00:00:00 | O36: ～ | P36: ='11計画'!P36:R36 -> 00:00:00 | S36: 00:00:00 | V36: ='11計画'!V36:AA36 -> 0 | AB36: ='11計画'!AB36:AG36 -> 0 | AH36: ='11計画'!AH36:AO36 -> 0 | AP36: FALSE | BK36: 0 | BW36: ='11計画'!C36 -> 土 | BY36: ='11計画'!E36 -> 00:00:00 | CB36: ～ | CC36: ='11計画'!I36 -> 00:00:00 | CF36: ='11計画'!L36 -> 00:00:00 | CI36: ～ | CJ36: ='11計画'!P36 -> 00:00:00 | CM36: 00:00:00 | CP36: ='11計画'!V36 -> 0 | CV36: ='11計画'!AB36 -> 0 | DB36: ='11計画'!AH36 -> 0
A37: 22 | C37: ='11計画'!C37:D37 -> 日 | E37: ='11計画'!E37:G37 -> 00:00:00 | H37: ～ | I37: ='11計画'!I37:K37 -> 00:00:00 | L37: ='11計画'!L37:N37 -> 00:00:00 | O37: ～ | P37: ='11計画'!P37:R37 -> 00:00:00 | S37: 00:00:00 | V37: ='11計画'!V37:AA37 -> 0 | AB37: ='11計画'!AB37:AG37 -> 0 | AH37: ='11計画'!AH37:AO37 -> 0 | AP37: FALSE | BK37: 0 | BW37: ='11計画'!C37 -> 日 | BY37: ='11計画'!E37 -> 00:00:00 | CB37: ～ | CC37: ='11計画'!I37 -> 00:00:00 | CF37: ='11計画'!L37 -> 00:00:00 | CI37: ～ | CJ37: ='11計画'!P37 -> 00:00:00 | CM37: 00:00:00 | CP37: ='11計画'!V37 -> 0 | CV37: ='11計画'!AB37 -> 0 | DB37: ='11計画'!AH37 -> 0
A38: 23 | C38: ='11計画'!C38:D38 -> 月 | E38: ='11計画'!E38:G38 -> 00:00:00 | H38: ～ | I38: ='11計画'!I38:K38 -> 00:00:00 | L38: ='11計画'!L38:N38 -> 00:00:00 | O38: ～ | P38: ='11計画'!P38:R38 -> 00:00:00 | S38: 00:00:00 | V38: ='11計画'!V38:AA38 -> 0 | AB38: ='11計画'!AB38:AG38 -> 0 | AH38: ='11計画'!AH38:AO38 -> 0 | AP38: FALSE | BK38: 0 | BW38: ='11計画'!C38 -> 月 | BY38: ='11計画'!E38 -> 00:00:00 | CB38: ～ | CC38: ='11計画'!I38 -> 00:00:00 | CF38: ='11計画'!L38 -> 00:00:00 | CI38: ～ | CJ38: ='11計画'!P38 -> 00:00:00 | CM38: 00:00:00 | CP38: ='11計画'!V38 -> 0 | CV38: ='11計画'!AB38 -> 0 | DB38: ='11計画'!AH38 -> 0
A39: 24 | C39: ='11計画'!C39:D39 -> 火 | E39: ='11計画'!E39:G39 -> 00:00:00 | H39: ～ | I39: ='11計画'!I39:K39 -> 00:00:00 | L39: ='11計画'!L39:N39 -> 00:00:00 | O39: ～ | P39: ='11計画'!P39:R39 -> 00:00:00 | S39: 00:00:00 | V39: ='11計画'!V39:AA39 -> 0 | AB39: ='11計画'!AB39:AG39 -> 0 | AH39: ='11計画'!AH39:AO39 -> 0 | AP39: FALSE | BK39: 0 | BW39: ='11計画'!C39 -> 火 | BY39: ='11計画'!E39 -> 00:00:00 | CB39: ～ | CC39: ='11計画'!I39 -> 00:00:00 | CF39: ='11計画'!L39 -> 00:00:00 | CI39: ～ | CJ39: ='11計画'!P39 -> 00:00:00 | CM39: 00:00:00 | CP39: ='11計画'!V39 -> 0 | CV39: ='11計画'!AB39 -> 0 | DB39: ='11計画'!AH39 -> 0
A40: 25 | C40: ='11計画'!C40:D40 -> 水 | E40: ='11計画'!E40:G40 -> 00:00:00 | H40: ～ | I40: ='11計画'!I40:K40 -> 00:00:00 | L40: ='11計画'!L40:N40 -> 00:00:00 | O40: ～ | P40: ='11計画'!P40:R40 -> 00:00:00 | S40: 00:00:00 | V40: ='11計画'!V40:AA40 -> 0 | AB40: ='11計画'!AB40:AG40 -> 0 | AH40: ='11計画'!AH40:AO40 -> 0 | AP40: FALSE | BK40: 0 | BW40: ='11計画'!C40 -> 水 | BY40: ='11計画'!E40 -> 00:00:00 | CB40: ～ | CC40: ='11計画'!I40 -> 00:00:00 | CF40: ='11計画'!L40 -> 00:00:00 | CI40: ～ | CJ40: ='11計画'!P40 -> 00:00:00 | CM40: 00:00:00 | CP40: ='11計画'!V40 -> 0 | CV40: ='11計画'!AB40 -> 0 | DB40: ='11計画'!AH40 -> 0
A41: 26 | C41: ='11計画'!C41:D41 -> 木 | E41: ='11計画'!E41:G41 -> 00:00:00 | H41: ～ | I41: ='11計画'!I41:K41 -> 00:00:00 | L41: ='11計画'!L41:N41 -> 00:00:00 | O41: ～ | P41: ='11計画'!P41:R41 -> 00:00:00 | S41: 00:00:00 | V41: ='11計画'!V41:AA41 -> 0 | AB41: ='11計画'!AB41:AG41 -> 0 | AH41: ='11計画'!AH41:AO41 -> 0 | AP41: FALSE | BK41: 0 | BW41: ='11計画'!C41 -> 木 | BY41: ='11計画'!E41 -> 00:00:00 | CB41: ～ | CC41: ='11計画'!I41 -> 00:00:00 | CF41: ='11計画'!L41 -> 00:00:00 | CI41: ～ | CJ41: ='11計画'!P41 -> 00:00:00 | CM41: 00:00:00 | CP41: ='11計画'!V41 -> 0 | CV41: ='11計画'!AB41 -> 0 | DB41: ='11計画'!AH41 -> 0
A42: 27 | C42: ='11計画'!C42:D42 -> 金 | E42: ='11計画'!E42:G42 -> 00:00:00 | H42: ～ | I42: ='11計画'!I42:K42 -> 00:00:00 | L42: ='11計画'!L42:N42 -> 00:00:00 | O42: ～ | P42: ='11計画'!P42:R42 -> 00:00:00 | S42: 00:00:00 | V42: ='11計画'!V42:AA42 -> 0 | AB42: ='11計画'!AB42:AG42 -> 0 | AH42: ='11計画'!AH42:AO42 -> 0 | AP42: FALSE | BK42: 0 | BW42: ='11計画'!C42 -> 金 | BY42: ='11計画'!E42 -> 00:00:00 | CB42: ～ | CC42: ='11計画'!I42 -> 00:00:00 | CF42: ='11計画'!L42 -> 00:00:00 | CI42: ～ | CJ42: ='11計画'!P42 -> 00:00:00 | CM42: 00:00:00 | CP42: ='11計画'!V42 -> 0 | CV42: ='11計画'!AB42 -> 0 | DB42: ='11計画'!AH42 -> 0
A43: 28 | C43: ='11計画'!C43:D43 -> 土 | E43: ='11計画'!E43:G43 -> 00:00:00 | H43: ～ | I43: ='11計画'!I43:K43 -> 00:00:00 | L43: ='11計画'!L43:N43 -> 00:00:00 | O43: ～ | P43: ='11計画'!P43:R43 -> 00:00:00 | S43: 00:00:00 | V43: ='11計画'!V43:AA43 -> 0 | AB43: ='11計画'!AB43:AG43 -> 0 | AH43: ='11計画'!AH43:AO43 -> 0 | AP43: FALSE | BK43: 0 | BW43: ='11計画'!C43 -> 土 | BY43: ='11計画'!E43 -> 00:00:00 | CB43: ～ | CC43: ='11計画'!I43 -> 00:00:00 | CF43: ='11計画'!L43 -> 00:00:00 | CI43: ～ | CJ43: ='11計画'!P43 -> 00:00:00 | CM43: 00:00:00 | CP43: ='11計画'!V43 -> 0 | CV43: ='11計画'!AB43 -> 0 | DB43: ='11計画'!AH43 -> 0
A44: 29 | C44: ='11計画'!C44:D44 -> 日 | E44: ='11計画'!E44:G44 -> 00:00:00 | H44: ～ | I44: ='11計画'!I44:K44 -> 00:00:00 | L44: ='11計画'!L44:N44 -> 00:00:00 | O44: ～ | P44: ='11計画'!P44:R44 -> 00:00:00 | S44: 00:00:00 | V44: ='11計画'!V44:AA44 -> 0 | AB44: ='11計画'!AB44:AG44 -> 0 | AH44: ='11計画'!AH44:AO44 -> 0 | AP44: FALSE | BK44: 0 | BW44: ='11計画'!C44 -> 日 | BY44: ='11計画'!E44 -> 00:00:00 | CB44: ～ | CC44: ='11計画'!I44 -> 00:00:00 | CF44: ='11計画'!L44 -> 00:00:00 | CI44: ～ | CJ44: ='11計画'!P44 -> 00:00:00 | CM44: 00:00:00 | CP44: ='11計画'!V44 -> 0 | CV44: ='11計画'!AB44 -> 0 | DB44: ='11計画'!AH44 -> 0
A45: 30 | C45: ='11計画'!C45:D45 -> 月 | E45: ='11計画'!E45:G45 -> 00:00:00 | H45: ～ | I45: ='11計画'!I45:K45 -> 00:00:00 | L45: ='11計画'!L45:N45 -> 00:00:00 | O45: ～ | P45: ='11計画'!P45:R45 -> 00:00:00 | S45: 00:00:00 | V45: ='11計画'!V45:AA45 -> 0 | AB45: ='11計画'!AB45:AG45 -> 0 | AH45: ='11計画'!AH45:AO45 -> 0 | AP45: FALSE | BK45: 0 | BW45: ='11計画'!C45 -> 月 | BY45: ='11計画'!E45 -> 00:00:00 | CB45: ～ | CC45: ='11計画'!I45 -> 00:00:00 | CF45: ='11計画'!L45 -> 00:00:00 | CI45: ～ | CJ45: ='11計画'!P45 -> 00:00:00 | CM45: 00:00:00 | CP45: ='11計画'!V45 -> 0 | CV45: ='11計画'!AB45 -> 0 | DB45: ='11計画'!AH45 -> 0
C46: ='11計画'!C46:D46 ->  | E46: ='11計画'!E46:G46 -> 00:00:00 | H46: ～ | I46: ='11計画'!I46:K46 -> 00:00:00 | L46: ='11計画'!L46:N46 -> 00:00:00 | O46: ～ | P46: ='11計画'!P46:R46 -> 00:00:00 | S46: 00:00:00 | V46: ='11計画'!V46:AA46 -> 0 | AB46: ='11計画'!AB46:AG46 -> 0 | AH46: ='11計画'!AH46:AO46 -> 0 | AP46: FALSE | BK46: 0 | BW46: ='11計画'!C46 ->  | BY46: ='11計画'!E46 -> 00:00:00 | CB46: ～ | CC46: ='11計画'!I46 -> 00:00:00 | CF46: ='11計画'!L46 -> 00:00:00 | CI46: ～ | CJ46: ='11計画'!P46 -> 00:00:00 | CM46: 00:00:00 | CP46: ='11計画'!V46 -> 0 | CV46: ='11計画'!AB46 -> 0 | DB46: ='11計画'!AH46 -> 0
S47: =SUM(S16:U46) -> 0 | CM47: =SUM(CM16:CO46) -> 0
A49: 月 | D49: 4 | F49: 5 | H49: 6 | J49: 7 | L49: 8 | N49: 9 | P49: 10 | R49: 11 | T49: 12 | V49: 1 | X49: 2 | Z49: 3 | AB49: 計
A50: 時間 | D50: ='４実績'!D50 -> 0 | F50: ='５実績'!F50 -> 0 | H50: ='6実績'!H50 -> 0 | J50: ='7実績'!J50 -> 0 | L50: ='8実績'!L50:M50 -> 0 | N50: ='9実績'!N50:O50 -> 0 | P50: ='10実績'!P50:Q50 -> 0 | R50: =S47 -> 0 | AB50: =SUM(D50:AA50) -> 0 | AG50: 時間 | BX50: ='４実績'!D50 -> 0 | BZ50: ='５実績'!F50 -> 0 | CB50: ='6実績'!H50 -> 0 | CD50: ='7実績'!J50 -> 0 | CF50: ='8実績'!L50 -> 0 | CH50: ='9実績'!N50 -> 0 | CJ50: ='10実績'!P50 -> 0 | CL50: =CM47 -> 0 | CV50: =SUM(BX50:CU50) -> 0
A51: 活動日数 | D51: ='４実績'!D51 -> 0 | F51: ='５実績'!F51 -> 0 | H51: ='6実績'!H51 -> 0 | J51: ='7実績'!J51 -> 0 | L51: ='8実績'!L51:M51 -> 0 | N51: ='9実績'!N51:O51 -> 0 | P51: ='10実績'!P51:Q51 -> 0 | R51: =COUNTIF(S16:U46,">0") -> 0 | AB51: =SUM(D51:AA51) -> 0 | AG51: 活動日数 | BX51: ='４実績'!D51 -> 0 | BZ51: ='５実績'!F51 -> 0 | CB51: ='6実績'!H51 -> 0 | CD51: ='7実績'!J51 -> 0 | CF51: ='8実績'!L51 -> 0 | CH51: ='9実績'!N51 -> 0 | CJ51: ='10実績'!P51 -> 0 | CL51: =COUNTIF(CM16:CO46,">0") -> 0 | CV51: =SUM(BX51:CU51) -> 0
A52: 休養日数 | D52: ='４実績'!D52 -> 30 | F52: ='５実績'!F52 -> 31 | H52: ='6実績'!H52 -> 30 | J52: ='7実績'!J52 -> 31 | L52: ='8実績'!L52:M52 -> 31 | N52: ='9実績'!N52:O52 -> 30 | P52: ='10実績'!P52:Q52 -> 31 | R52: =COUNTIF(S16:U45,"0:00") -> 30 | AB52: =SUM(D52:AA52) -> 244 | AG52: 休養日数 | BX52: ='４実績'!D52 -> 30 | BZ52: ='５実績'!F52 -> 31 | CB52: ='6実績'!H52 -> 30 | CD52: ='7実績'!J52 -> 31 | CF52: ='8実績'!L52 -> 31 | CH52: ='9実績'!N52 -> 30 | CJ52: ='10実績'!P52 -> 31 | CL52: =COUNTIF(CM16:CO45,"0:00") -> 30 | CV52: =SUM(BX52:CU52) -> 244
AB53: =AB50/AB51 ->  | AG53: 平均時間/日 | CV53: =CV50/CV51 -> 

Sheet 12実績
A2: ='12計画'!A2:D2 -> 校長 | E2: ='12計画'!E2:H2 -> 教頭 | I2: ='12計画'!I2:L2 -> 教頭 | M2: ='12計画'!M2:P2 -> 主幹教諭 | Q2: ='12計画'!Q2:T2 -> 0 | U2: ='12計画'!U2:X2 -> 顧問 | Z2: 学校名 | AC2: ='12計画'!AC2:AL3 -> 0 | AM2: 学校 | BU2: ='12計画'!BU2:BX2 -> 0 | BY2: ='12計画'!BY2:CB2 -> 0 | CC2: ='12計画'!CC2:CF2 -> 0 | CG2: ='12計画'!CG2:CJ2 -> 0 | CK2: ='12計画'!CK2:CN2 -> 0 | CO2: ='12計画'!CO2:CR2 -> 0 | CW2: ='12計画'!CW2:DF3 -> 0
A3: 印 | E3: 印 | I3: 印 | M3: 印 | Q3: 印 | U3: 印
Z4: 部活動名 | AC4: ='12計画'!AC4:AL5 -> 0 | AM4: 部 | CW4: ='12計画'!CW4:DF5 -> 0
A6: ※活動計画と違う内容については、校長口頭命令済み
A7: 12 | F7: 月 | I7: 〈月間〉部活動計画・活動実績 | Y7: 部員数 | AB7: 1女 | AD7: 2女 | AF7: 3女 | AH7: 1男 | AJ7: 2男 | AL7: 3男 | AN7: 計
AB8: ='12計画'!AB8:AC8 -> 0 | AD8: ='12計画'!AD8:AE8 -> 0 | AF8: ='12計画'!AF8:AG8 -> 0 | AH8: ='12計画'!AH8:AI8 -> 0 | AJ8: ='12計画'!AJ8:AK8 -> 0 | AL8: ='12計画'!AL8:AM8 -> 0 | AN8: =SUM(AB8:AM8) -> 0 | CV8: ='12計画'!AB8 -> 0 | CX8: ='12計画'!AD8 -> 0 | CZ8: ='12計画'!AF8 -> 0 | DB8: ='12計画'!AH8 -> 0 | DD8: ='12計画'!AJ8 -> 0 | DF8: ='12計画'!AL8 -> 0 | DH8: =SUM(CV8:DG8) -> 0
B10: 職名 | D10: ='12計画'!D10:H11 -> 0 | I10: 顧問 | K10: ='12計画'!K10:S11 -> 0 | V10: 職名 | X10: ='12計画'!X10:AB11 -> 0 | AC10: 副２ | AE10: ='12計画'!AE10:AM11 -> 0 | BX10: ='12計画'!D10 -> 0 | CE10: ='12計画'!K10 -> 0 | CR10: ='12計画'!X10 -> 0 | CY10: ='12計画'!AE10 -> 0
B12: 職名 | D12: ='12計画'!D12:H13 -> 0 | I12: 副顧問 | K12: ='12計画'!K12:S13 -> 0 | V12: 職名 | X12: ='12計画'!X12:AB13 -> 0 | AC12: 副３ | AE12: ='12計画'!AE12:AM13 -> 0 | BX12: ='12計画'!D12 -> 0 | CE12: ='12計画'!K12 -> 0 | CR12: ='12計画'!X12 -> 0 | CY12: ='12計画'!AE12 -> 0
A15: 日 | C15: 曜 | E15: ＡＭ | L15: ＰＭ | S15: 時間 | V15: 内容（練習・大会・OFF等） | AH15: 場所 | AP15: FALSE | AQ15: 特殊業務
A16: 1 | C16: ='12計画'!C16:D16 -> 火 | E16: ='12計画'!E16:G16 -> 00:00:00 | H16: ～ | I16: ='12計画'!I16:K16 -> 00:00:00 | L16: ='12計画'!L16:N16 -> 00:00:00 | O16: ～ | P16: ='12計画'!P16:R16 -> 00:00:00 | S16: =(I16-E16)+(P16-L16) -> 00:00:00 | V16: ='12計画'!V16:AA16 -> 0 | AB16: ='12計画'!AB16:AG16 -> 0 | AH16: ='12計画'!AH16:AO16 -> 0 | AP16: FALSE | BK16: =RIGHT(V16,2) -> 0 | BW16: ='12計画'!C16 -> 火 | BY16: ='12計画'!E16 -> 00:00:00 | CB16: ～ | CC16: ='12計画'!I16 -> 00:00:00 | CF16: ='12計画'!L16 -> 00:00:00 | CI16: ～ | CJ16: ='12計画'!P16 -> 00:00:00 | CM16: =(CC16-BY16)+(CJ16-CF16) -> 00:00:00 | CP16: ='12計画'!V16 -> 0 | CV16: ='12計画'!AB16 -> 0 | DB16: ='12計画'!AH16 -> 0
A17: 2 | C17: ='12計画'!C17:D17 -> 水 | E17: ='12計画'!E17:G17 -> 00:00:00 | H17: ～ | I17: ='12計画'!I17:K17 -> 00:00:00 | L17: ='12計画'!L17:N17 -> 00:00:00 | O17: ～ | P17: ='12計画'!P17:R17 -> 00:00:00 | S17: 00:00:00 | V17: ='12計画'!V17:AA17 -> 0 | AB17: ='12計画'!AB17:AG17 -> 0 | AH17: ='12計画'!AH17:AO17 -> 0 | AP17: FALSE | BK17: =RIGHT(V17,2) -> 0 | BW17: ='12計画'!C17 -> 水 | BY17: ='12計画'!E17 -> 00:00:00 | CB17: ～ | CC17: ='12計画'!I17 -> 00:00:00 | CF17: ='12計画'!L17 -> 00:00:00 | CI17: ～ | CJ17: ='12計画'!P17 -> 00:00:00 | CM17: 00:00:00 | CP17: ='12計画'!V17 -> 0 | CV17: ='12計画'!AB17 -> 0 | DB17: ='12計画'!AH17 -> 0
A18: 3 | C18: ='12計画'!C18:D18 -> 木 | E18: ='12計画'!E18:G18 -> 00:00:00 | H18: ～ | I18: ='12計画'!I18:K18 -> 00:00:00 | L18: ='12計画'!L18:N18 -> 00:00:00 | O18: ～ | P18: ='12計画'!P18:R18 -> 00:00:00 | S18: 00:00:00 | V18: ='12計画'!V18:AA18 -> 0 | AB18: ='12計画'!AB18:AG18 -> 0 | AH18: ='12計画'!AH18:AO18 -> 0 | AP18: FALSE | BK18: 0 | BW18: ='12計画'!C18 -> 木 | BY18: ='12計画'!E18 -> 00:00:00 | CB18: ～ | CC18: ='12計画'!I18 -> 00:00:00 | CF18: ='12計画'!L18 -> 00:00:00 | CI18: ～ | CJ18: ='12計画'!P18 -> 00:00:00 | CM18: 00:00:00 | CP18: ='12計画'!V18 -> 0 | CV18: ='12計画'!AB18 -> 0 | DB18: ='12計画'!AH18 -> 0
A19: 4 | C19: ='12計画'!C19:D19 -> 金 | E19: ='12計画'!E19:G19 -> 00:00:00 | H19: ～ | I19: ='12計画'!I19:K19 -> 00:00:00 | L19: ='12計画'!L19:N19 -> 00:00:00 | O19: ～ | P19: ='12計画'!P19:R19 -> 00:00:00 | S19: 00:00:00 | V19: ='12計画'!V19:AA19 -> 0 | AB19: ='12計画'!AB19:AG19 -> 0 | AH19: ='12計画'!AH19:AO19 -> 0 | AP19: FALSE | BK19: 0 | BW19: ='12計画'!C19 -> 金 | BY19: ='12計画'!E19 -> 00:00:00 | CB19: ～ | CC19: ='12計画'!I19 -> 00:00:00 | CF19: ='12計画'!L19 -> 00:00:00 | CI19: ～ | CJ19: ='12計画'!P19 -> 00:00:00 | CM19: 00:00:00 | CP19: ='12計画'!V19 -> 0 | CV19: ='12計画'!AB19 -> 0 | DB19: ='12計画'!AH19 -> 0
A20: 5 | C20: ='12計画'!C20:D20 -> 土 | E20: ='12計画'!E20:G20 -> 00:00:00 | H20: ～ | I20: ='12計画'!I20:K20 -> 00:00:00 | L20: ='12計画'!L20:N20 -> 00:00:00 | O20: ～ | P20: ='12計画'!P20:R20 -> 00:00:00 | S20: 00:00:00 | V20: ='12計画'!V20:AA20 -> 0 | AB20: ='12計画'!AB20:AG20 -> 0 | AH20: ='12計画'!AH20:AO20 -> 0 | AP20: FALSE | BK20: 0 | BW20: ='12計画'!C20 -> 土 | BY20: ='12計画'!E20 -> 00:00:00 | CB20: ～ | CC20: ='12計画'!I20 -> 00:00:00 | CF20: ='12計画'!L20 -> 00:00:00 | CI20: ～ | CJ20: ='12計画'!P20 -> 00:00:00 | CM20: 00:00:00 | CP20: ='12計画'!V20 -> 0 | CV20: ='12計画'!AB20 -> 0 | DB20: ='12計画'!AH20 -> 0
A21: 6 | C21: ='12計画'!C21:D21 -> 日 | E21: ='12計画'!E21:G21 -> 00:00:00 | H21: ～ | I21: ='12計画'!I21:K21 -> 00:00:00 | L21: ='12計画'!L21:N21 -> 00:00:00 | O21: ～ | P21: ='12計画'!P21:R21 -> 00:00:00 | S21: 00:00:00 | V21: ='12計画'!V21:AA21 -> 0 | AB21: ='12計画'!AB21:AG21 -> 0 | AH21: ='12計画'!AH21:AO21 -> 0 | AP21: FALSE | BK21: 0 | BW21: ='12計画'!C21 -> 日 | BY21: ='12計画'!E21 -> 00:00:00 | CB21: ～ | CC21: ='12計画'!I21 -> 00:00:00 | CF21: ='12計画'!L21 -> 00:00:00 | CI21: ～ | CJ21: ='12計画'!P21 -> 00:00:00 | CM21: 00:00:00 | CP21: ='12計画'!V21 -> 0 | CV21: ='12計画'!AB21 -> 0 | DB21: ='12計画'!AH21 -> 0
A22: 7 | C22: ='12計画'!C22:D22 -> 月 | E22: ='12計画'!E22:G22 -> 00:00:00 | H22: ～ | I22: ='12計画'!I22:K22 -> 00:00:00 | L22: ='12計画'!L22:N22 -> 00:00:00 | O22: ～ | P22: ='12計画'!P22:R22 -> 00:00:00 | S22: 00:00:00 | V22: ='12計画'!V22:AA22 -> 0 | AB22: ='12計画'!AB22:AG22 -> 0 | AH22: ='12計画'!AH22:AO22 -> 0 | AP22: FALSE | BK22: 0 | BW22: ='12計画'!C22 -> 月 | BY22: ='12計画'!E22 -> 00:00:00 | CB22: ～ | CC22: ='12計画'!I22 -> 00:00:00 | CF22: ='12計画'!L22 -> 00:00:00 | CI22: ～ | CJ22: ='12計画'!P22 -> 00:00:00 | CM22: 00:00:00 | CP22: ='12計画'!V22 -> 0 | CV22: ='12計画'!AB22 -> 0 | DB22: ='12計画'!AH22 -> 0
A23: 8 | C23: ='12計画'!C23:D23 -> 火 | E23: ='12計画'!E23:G23 -> 00:00:00 | H23: ～ | I23: ='12計画'!I23:K23 -> 00:00:00 | L23: ='12計画'!L23:N23 -> 00:00:00 | O23: ～ | P23: ='12計画'!P23:R23 -> 00:00:00 | S23: 00:00:00 | V23: ='12計画'!V23:AA23 -> 0 | AB23: ='12計画'!AB23:AG23 -> 0 | AH23: ='12計画'!AH23:AO23 -> 0 | AP23: FALSE | BK23: 0 | BW23: ='12計画'!C23 -> 火 | BY23: ='12計画'!E23 -> 00:00:00 | CB23: ～ | CC23: ='12計画'!I23 -> 00:00:00 | CF23: ='12計画'!L23 -> 00:00:00 | CI23: ～ | CJ23: ='12計画'!P23 -> 00:00:00 | CM23: 00:00:00 | CP23: ='12計画'!V23 -> 0 | CV23: ='12計画'!AB23 -> 0 | DB23: ='12計画'!AH23 -> 0
A24: 9 | C24: ='12計画'!C24:D24 -> 水 | E24: ='12計画'!E24:G24 -> 00:00:00 | H24: ～ | I24: ='12計画'!I24:K24 -> 00:00:00 | L24: ='12計画'!L24:N24 -> 00:00:00 | O24: ～ | P24: ='12計画'!P24:R24 -> 00:00:00 | S24: 00:00:00 | V24: ='12計画'!V24:AA24 -> 0 | AB24: ='12計画'!AB24:AG24 -> 0 | AH24: ='12計画'!AH24:AO24 -> 0 | AP24: FALSE | BK24: 0 | BW24: ='12計画'!C24 -> 水 | BY24: ='12計画'!E24 -> 00:00:00 | CB24: ～ | CC24: ='12計画'!I24 -> 00:00:00 | CF24: ='12計画'!L24 -> 00:00:00 | CI24: ～ | CJ24: ='12計画'!P24 -> 00:00:00 | CM24: 00:00:00 | CP24: ='12計画'!V24 -> 0 | CV24: ='12計画'!AB24 -> 0 | DB24: ='12計画'!AH24 -> 0
A25: 10 | C25: ='12計画'!C25:D25 -> 木 | E25: ='12計画'!E25:G25 -> 00:00:00 | H25: ～ | I25: ='12計画'!I25:K25 -> 00:00:00 | L25: ='12計画'!L25:N25 -> 00:00:00 | O25: ～ | P25: ='12計画'!P25:R25 -> 00:00:00 | S25: 00:00:00 | V25: ='12計画'!V25:AA25 -> 0 | AB25: ='12計画'!AB25:AG25 -> 0 | AH25: ='12計画'!AH25:AO25 -> 0 | AP25: FALSE | BK25: 0 | BW25: ='12計画'!C25 -> 木 | BY25: ='12計画'!E25 -> 00:00:00 | CB25: ～ | CC25: ='12計画'!I25 -> 00:00:00 | CF25: ='12計画'!L25 -> 00:00:00 | CI25: ～ | CJ25: ='12計画'!P25 -> 00:00:00 | CM25: 00:00:00 | CP25: ='12計画'!V25 -> 0 | CV25: ='12計画'!AB25 -> 0 | DB25: ='12計画'!AH25 -> 0
A26: 11 | C26: ='12計画'!C26:D26 -> 金 | E26: ='12計画'!E26:G26 -> 00:00:00 | H26: ～ | I26: ='12計画'!I26:K26 -> 00:00:00 | L26: ='12計画'!L26:N26 -> 00:00:00 | O26: ～ | P26: ='12計画'!P26:R26 -> 00:00:00 | S26: 00:00:00 | V26: ='12計画'!V26:AA26 -> 0 | AB26: ='12計画'!AB26:AG26 -> 0 | AH26: ='12計画'!AH26:AO26 -> 0 | AP26: FALSE | BK26: 0 | BW26: ='12計画'!C26 -> 金 | BY26: ='12計画'!E26 -> 00:00:00 | CB26: ～ | CC26: ='12計画'!I26 -> 00:00:00 | CF26: ='12計画'!L26 -> 00:00:00 | CI26: ～ | CJ26: ='12計画'!P26 -> 00:00:00 | CM26: 00:00:00 | CP26: ='12計画'!V26 -> 0 | CV26: ='12計画'!AB26 -> 0 | DB26: ='12計画'!AH26 -> 0
A27: 12 | C27: ='12計画'!C27:D27 -> 土 | E27: ='12計画'!E27:G27 -> 00:00:00 | H27: ～ | I27: ='12計画'!I27:K27 -> 00:00:00 | L27: ='12計画'!L27:N27 -> 00:00:00 | O27: ～ | P27: ='12計画'!P27:R27 -> 00:00:00 | S27: 00:00:00 | V27: ='12計画'!V27:AA27 -> 0 | AB27: ='12計画'!AB27:AG27 -> 0 | AH27: ='12計画'!AH27:AO27 -> 0 | AP27: FALSE | BK27: 0 | BW27: ='12計画'!C27 -> 土 | BY27: ='12計画'!E27 -> 00:00:00 | CB27: ～ | CC27: ='12計画'!I27 -> 00:00:00 | CF27: ='12計画'!L27 -> 00:00:00 | CI27: ～ | CJ27: ='12計画'!P27 -> 00:00:00 | CM27: 00:00:00 | CP27: ='12計画'!V27 -> 0 | CV27: ='12計画'!AB27 -> 0 | DB27: ='12計画'!AH27 -> 0
A28: 13 | C28: ='12計画'!C28:D28 -> 日 | E28: ='12計画'!E28:G28 -> 00:00:00 | H28: ～ | I28: ='12計画'!I28:K28 -> 00:00:00 | L28: ='12計画'!L28:N28 -> 00:00:00 | O28: ～ | P28: ='12計画'!P28:R28 -> 00:00:00 | S28: 00:00:00 | V28: ='12計画'!V28:AA28 -> 0 | AB28: ='12計画'!AB28:AG28 -> 0 | AH28: ='12計画'!AH28:AO28 -> 0 | AP28: FALSE | BK28: 0 | BW28: ='12計画'!C28 -> 日 | BY28: ='12計画'!E28 -> 00:00:00 | CB28: ～ | CC28: ='12計画'!I28 -> 00:00:00 | CF28: ='12計画'!L28 -> 00:00:00 | CI28: ～ | CJ28: ='12計画'!P28 -> 00:00:00 | CM28: 00:00:00 | CP28: ='12計画'!V28 -> 0 | CV28: ='12計画'!AB28 -> 0 | DB28: ='12計画'!AH28 -> 0
A29: 14 | C29: ='12計画'!C29:D29 -> 月 | E29: ='12計画'!E29:G29 -> 00:00:00 | H29: ～ | I29: ='12計画'!I29:K29 -> 00:00:00 | L29: ='12計画'!L29:N29 -> 00:00:00 | O29: ～ | P29: ='12計画'!P29:R29 -> 00:00:00 | S29: 00:00:00 | V29: ='12計画'!V29:AA29 -> 0 | AB29: ='12計画'!AB29:AG29 -> 0 | AH29: ='12計画'!AH29:AO29 -> 0 | AP29: FALSE | BK29: 0 | BW29: ='12計画'!C29 -> 月 | BY29: ='12計画'!E29 -> 00:00:00 | CB29: ～ | CC29: ='12計画'!I29 -> 00:00:00 | CF29: ='12計画'!L29 -> 00:00:00 | CI29: ～ | CJ29: ='12計画'!P29 -> 00:00:00 | CM29: 00:00:00 | CP29: ='12計画'!V29 -> 0 | CV29: ='12計画'!AB29 -> 0 | DB29: ='12計画'!AH29 -> 0
A30: 15 | C30: ='12計画'!C30:D30 -> 火 | E30: ='12計画'!E30:G30 -> 00:00:00 | H30: ～ | I30: ='12計画'!I30:K30 -> 00:00:00 | L30: ='12計画'!L30:N30 -> 00:00:00 | O30: ～ | P30: ='12計画'!P30:R30 -> 00:00:00 | S30: 00:00:00 | V30: ='12計画'!V30:AA30 -> 0 | AB30: ='12計画'!AB30:AG30 -> 0 | AH30: ='12計画'!AH30:AO30 -> 0 | AP30: FALSE | BK30: 0 | BW30: ='12計画'!C30 -> 火 | BY30: ='12計画'!E30 -> 00:00:00 | CB30: ～ | CC30: ='12計画'!I30 -> 00:00:00 | CF30: ='12計画'!L30 -> 00:00:00 | CI30: ～ | CJ30: ='12計画'!P30 -> 00:00:00 | CM30: 00:00:00 | CP30: ='12計画'!V30 -> 0 | CV30: ='12計画'!AB30 -> 0 | DB30: ='12計画'!AH30 -> 0
A31: 16 | C31: ='12計画'!C31:D31 -> 水 | E31: ='12計画'!E31:G31 -> 00:00:00 | H31: ～ | I31: ='12計画'!I31:K31 -> 00:00:00 | L31: ='12計画'!L31:N31 -> 00:00:00 | O31: ～ | P31: ='12計画'!P31:R31 -> 00:00:00 | S31: 00:00:00 | V31: ='12計画'!V31:AA31 -> 0 | AB31: ='12計画'!AB31:AG31 -> 0 | AH31: ='12計画'!AH31:AO31 -> 0 | AP31: FALSE | BK31: 0 | BW31: ='12計画'!C31 -> 水 | BY31: ='12計画'!E31 -> 00:00:00 | CB31: ～ | CC31: ='12計画'!I31 -> 00:00:00 | CF31: ='12計画'!L31 -> 00:00:00 | CI31: ～ | CJ31: ='12計画'!P31 -> 00:00:00 | CM31: 00:00:00 | CP31: ='12計画'!V31 -> 0 | CV31: ='12計画'!AB31 -> 0 | DB31: ='12計画'!AH31 -> 0
A32: 17 | C32: ='12計画'!C32:D32 -> 木 | E32: ='12計画'!E32:G32 -> 00:00:00 | H32: ～ | I32: ='12計画'!I32:K32 -> 00:00:00 | L32: ='12計画'!L32:N32 -> 00:00:00 | O32: ～ | P32: ='12計画'!P32:R32 -> 00:00:00 | S32: 00:00:00 | V32: ='12計画'!V32:AA32 -> 0 | AB32: ='12計画'!AB32:AG32 -> 0 | AH32: ='12計画'!AH32:AO32 -> 0 | AP32: FALSE | BK32: 0 | BW32: ='12計画'!C32 -> 木 | BY32: ='12計画'!E32 -> 00:00:00 | CB32: ～ | CC32: ='12計画'!I32 -> 00:00:00 | CF32: ='12計画'!L32 -> 00:00:00 | CI32: ～ | CJ32: ='12計画'!P32 -> 00:00:00 | CM32: 00:00:00 | CP32: ='12計画'!V32 -> 0 | CV32: ='12計画'!AB32 -> 0 | DB32: ='12計画'!AH32 -> 0
A33: 18 | C33: ='12計画'!C33:D33 -> 金 | E33: ='12計画'!E33:G33 -> 00:00:00 | H33: ～ | I33: ='12計画'!I33:K33 -> 00:00:00 | L33: ='12計画'!L33:N33 -> 00:00:00 | O33: ～ | P33: ='12計画'!P33:R33 -> 00:00:00 | S33: 00:00:00 | V33: ='12計画'!V33:AA33 -> 0 | AB33: ='12計画'!AB33:AG33 -> 0 | AH33: ='12計画'!AH33:AO33 -> 0 | AP33: FALSE | BK33: 0 | BW33: ='12計画'!C33 -> 金 | BY33: ='12計画'!E33 -> 00:00:00 | CB33: ～ | CC33: ='12計画'!I33 -> 00:00:00 | CF33: ='12計画'!L33 -> 00:00:00 | CI33: ～ | CJ33: ='12計画'!P33 -> 00:00:00 | CM33: 00:00:00 | CP33: ='12計画'!V33 -> 0 | CV33: ='12計画'!AB33 -> 0 | DB33: ='12計画'!AH33 -> 0
A34: 19 | C34: ='12計画'!C34:D34 -> 土 | E34: ='12計画'!E34:G34 -> 00:00:00 | H34: ～ | I34: ='12計画'!I34:K34 -> 00:00:00 | L34: ='12計画'!L34:N34 -> 00:00:00 | O34: ～ | P34: ='12計画'!P34:R34 -> 00:00:00 | S34: 00:00:00 | V34: ='12計画'!V34:AA34 -> 0 | AB34: ='12計画'!AB34:AG34 -> 0 | AH34: ='12計画'!AH34:AO34 -> 0 | AP34: FALSE | BK34: 0 | BW34: ='12計画'!C34 -> 土 | BY34: ='12計画'!E34 -> 00:00:00 | CB34: ～ | CC34: ='12計画'!I34 -> 00:00:00 | CF34: ='12計画'!L34 -> 00:00:00 | CI34: ～ | CJ34: ='12計画'!P34 -> 00:00:00 | CM34: 00:00:00 | CP34: ='12計画'!V34 -> 0 | CV34: ='12計画'!AB34 -> 0 | DB34: ='12計画'!AH34 -> 0
A35: 20 | C35: ='12計画'!C35:D35 -> 日 | E35: ='12計画'!E35:G35 -> 00:00:00 | H35: ～ | I35: ='12計画'!I35:K35 -> 00:00:00 | L35: ='12計画'!L35:N35 -> 00:00:00 | O35: ～ | P35: ='12計画'!P35:R35 -> 00:00:00 | S35: 00:00:00 | V35: ='12計画'!V35:AA35 -> 0 | AB35: ='12計画'!AB35:AG35 -> 0 | AH35: ='12計画'!AH35:AO35 -> 0 | AP35: FALSE | BK35: 0 | BW35: ='12計画'!C35 -> 日 | BY35: ='12計画'!E35 -> 00:00:00 | CB35: ～ | CC35: ='12計画'!I35 -> 00:00:00 | CF35: ='12計画'!L35 -> 00:00:00 | CI35: ～ | CJ35: ='12計画'!P35 -> 00:00:00 | CM35: 00:00:00 | CP35: ='12計画'!V35 -> 0 | CV35: ='12計画'!AB35 -> 0 | DB35: ='12計画'!AH35 -> 0
A36: 21 | C36: ='12計画'!C36:D36 -> 月 | E36: ='12計画'!E36:G36 -> 00:00:00 | H36: ～ | I36: ='12計画'!I36:K36 -> 00:00:00 | L36: ='12計画'!L36:N36 -> 00:00:00 | O36: ～ | P36: ='12計画'!P36:R36 -> 00:00:00 | S36: 00:00:00 | V36: ='12計画'!V36:AA36 -> 0 | AB36: ='12計画'!AB36:AG36 -> 0 | AH36: ='12計画'!AH36:AO36 -> 0 | AP36: FALSE | BK36: 0 | BW36: ='12計画'!C36 -> 月 | BY36: ='12計画'!E36 -> 00:00:00 | CB36: ～ | CC36: ='12計画'!I36 -> 00:00:00 | CF36: ='12計画'!L36 -> 00:00:00 | CI36: ～ | CJ36: ='12計画'!P36 -> 00:00:00 | CM36: 00:00:00 | CP36: ='12計画'!V36 -> 0 | CV36: ='12計画'!AB36 -> 0 | DB36: ='12計画'!AH36 -> 0
A37: 22 | C37: ='12計画'!C37:D37 -> 火 | E37: ='12計画'!E37:G37 -> 00:00:00 | H37: ～ | I37: ='12計画'!I37:K37 -> 00:00:00 | L37: ='12計画'!L37:N37 -> 00:00:00 | O37: ～ | P37: ='12計画'!P37:R37 -> 00:00:00 | S37: 00:00:00 | V37: ='12計画'!V37:AA37 -> 0 | AB37: ='12計画'!AB37:AG37 -> 0 | AH37: ='12計画'!AH37:AO37 -> 0 | AP37: FALSE | BK37: 0 | BW37: ='12計画'!C37 -> 火 | BY37: ='12計画'!E37 -> 00:00:00 | CB37: ～ | CC37: ='12計画'!I37 -> 00:00:00 | CF37: ='12計画'!L37 -> 00:00:00 | CI37: ～ | CJ37: ='12計画'!P37 -> 00:00:00 | CM37: 00:00:00 | CP37: ='12計画'!V37 -> 0 | CV37: ='12計画'!AB37 -> 0 | DB37: ='12計画'!AH37 -> 0
A38: 23 | C38: ='12計画'!C38:D38 -> 水 | E38: ='12計画'!E38:G38 -> 00:00:00 | H38: ～ | I38: ='12計画'!I38:K38 -> 00:00:00 | L38: ='12計画'!L38:N38 -> 00:00:00 | O38: ～ | P38: ='12計画'!P38:R38 -> 00:00:00 | S38: 00:00:00 | V38: ='12計画'!V38:AA38 -> 0 | AB38: ='12計画'!AB38:AG38 -> 0 | AH38: ='12計画'!AH38:AO38 -> 0 | AP38: FALSE | BK38: 0 | BW38: ='12計画'!C38 -> 水 | BY38: ='12計画'!E38 -> 00:00:00 | CB38: ～ | CC38: ='12計画'!I38 -> 00:00:00 | CF38: ='12計画'!L38 -> 00:00:00 | CI38: ～ | CJ38: ='12計画'!P38 -> 00:00:00 | CM38: 00:00:00 | CP38: ='12計画'!V38 -> 0 | CV38: ='12計画'!AB38 -> 0 | DB38: ='12計画'!AH38 -> 0
A39: 24 | C39: ='12計画'!C39:D39 -> 木 | E39: ='12計画'!E39:G39 -> 00:00:00 | H39: ～ | I39: ='12計画'!I39:K39 -> 00:00:00 | L39: ='12計画'!L39:N39 -> 00:00:00 | O39: ～ | P39: ='12計画'!P39:R39 -> 00:00:00 | S39: 00:00:00 | V39: ='12計画'!V39:AA39 -> 0 | AB39: ='12計画'!AB39:AG39 -> 0 | AH39: ='12計画'!AH39:AO39 -> 0 | AP39: FALSE | BK39: 0 | BW39: ='12計画'!C39 -> 木 | BY39: ='12計画'!E39 -> 00:00:00 | CB39: ～ | CC39: ='12計画'!I39 -> 00:00:00 | CF39: ='12計画'!L39 -> 00:00:00 | CI39: ～ | CJ39: ='12計画'!P39 -> 00:00:00 | CM39: 00:00:00 | CP39: ='12計画'!V39 -> 0 | CV39: ='12計画'!AB39 -> 0 | DB39: ='12計画'!AH39 -> 0
A40: 25 | C40: ='12計画'!C40:D40 -> 金 | E40: ='12計画'!E40:G40 -> 00:00:00 | H40: ～ | I40: ='12計画'!I40:K40 -> 00:00:00 | L40: ='12計画'!L40:N40 -> 00:00:00 | O40: ～ | P40: ='12計画'!P40:R40 -> 00:00:00 | S40: 00:00:00 | V40: ='12計画'!V40:AA40 -> 0 | AB40: ='12計画'!AB40:AG40 -> 0 | AH40: ='12計画'!AH40:AO40 -> 0 | AP40: FALSE | BK40: 0 | BW40: ='12計画'!C40 -> 金 | BY40: ='12計画'!E40 -> 00:00:00 | CB40: ～ | CC40: ='12計画'!I40 -> 00:00:00 | CF40: ='12計画'!L40 -> 00:00:00 | CI40: ～ | CJ40: ='12計画'!P40 -> 00:00:00 | CM40: 00:00:00 | CP40: ='12計画'!V40 -> 0 | CV40: ='12計画'!AB40 -> 0 | DB40: ='12計画'!AH40 -> 0
A41: 26 | C41: ='12計画'!C41:D41 -> 土 | E41: ='12計画'!E41:G41 -> 00:00:00 | H41: ～ | I41: ='12計画'!I41:K41 -> 00:00:00 | L41: ='12計画'!L41:N41 -> 00:00:00 | O41: ～ | P41: ='12計画'!P41:R41 -> 00:00:00 | S41: 00:00:00 | V41: ='12計画'!V41:AA41 -> 0 | AB41: ='12計画'!AB41:AG41 -> 0 | AH41: ='12計画'!AH41:AO41 -> 0 | AP41: FALSE | BK41: 0 | BW41: ='12計画'!C41 -> 土 | BY41: ='12計画'!E41 -> 00:00:00 | CB41: ～ | CC41: ='12計画'!I41 -> 00:00:00 | CF41: ='12計画'!L41 -> 00:00:00 | CI41: ～ | CJ41: ='12計画'!P41 -> 00:00:00 | CM41: 00:00:00 | CP41: ='12計画'!V41 -> 0 | CV41: ='12計画'!AB41 -> 0 | DB41: ='12計画'!AH41 -> 0
A42: 27 | C42: ='12計画'!C42:D42 -> 日 | E42: ='12計画'!E42:G42 -> 00:00:00 | H42: ～ | I42: ='12計画'!I42:K42 -> 00:00:00 | L42: ='12計画'!L42:N42 -> 00:00:00 | O42: ～ | P42: ='12計画'!P42:R42 -> 00:00:00 | S42: 00:00:00 | V42: ='12計画'!V42:AA42 -> 0 | AB42: ='12計画'!AB42:AG42 -> 0 | AH42: ='12計画'!AH42:AO42 -> 0 | AP42: FALSE | BK42: 0 | BW42: ='12計画'!C42 -> 日 | BY42: ='12計画'!E42 -> 00:00:00 | CB42: ～ | CC42: ='12計画'!I42 -> 00:00:00 | CF42: ='12計画'!L42 -> 00:00:00 | CI42: ～ | CJ42: ='12計画'!P42 -> 00:00:00 | CM42: 00:00:00 | CP42: ='12計画'!V42 -> 0 | CV42: ='12計画'!AB42 -> 0 | DB42: ='12計画'!AH42 -> 0
A43: 28 | C43: ='12計画'!C43:D43 -> 月 | E43: ='12計画'!E43:G43 -> 00:00:00 | H43: ～ | I43: ='12計画'!I43:K43 -> 00:00:00 | L43: ='12計画'!L43:N43 -> 00:00:00 | O43: ～ | P43: ='12計画'!P43:R43 -> 00:00:00 | S43: 00:00:00 | V43: ='12計画'!V43:AA43 -> 0 | AB43: ='12計画'!AB43:AG43 -> 0 | AH43: ='12計画'!AH43:AO43 -> 0 | AP43: FALSE | BK43: 0 | BW43: ='12計画'!C43 -> 月 | BY43: ='12計画'!E43 -> 00:00:00 | CB43: ～ | CC43: ='12計画'!I43 -> 00:00:00 | CF43: ='12計画'!L43 -> 00:00:00 | CI43: ～ | CJ43: ='12計画'!P43 -> 00:00:00 | CM43: 00:00:00 | CP43: ='12計画'!V43 -> 0 | CV43: ='12計画'!AB43 -> 0 | DB43: ='12計画'!AH43 -> 0
A44: 29 | C44: ='12計画'!C44:D44 -> 火 | E44: ='12計画'!E44:G44 -> 00:00:00 | H44: ～ | I44: ='12計画'!I44:K44 -> 00:00:00 | L44: ='12計画'!L44:N44 -> 00:00:00 | O44: ～ | P44: ='12計画'!P44:R44 -> 00:00:00 | S44: 00:00:00 | V44: ='12計画'!V44:AA44 -> 0 | AB44: ='12計画'!AB44:AG44 -> 0 | AH44: ='12計画'!AH44:AO44 -> 0 | AP44: FALSE | BK44: 0 | BW44: ='12計画'!C44 -> 火 | BY44: ='12計画'!E44 -> 00:00:00 | CB44: ～ | CC44: ='12計画'!I44 -> 00:00:00 | CF44: ='12計画'!L44 -> 00:00:00 | CI44: ～ | CJ44: ='12計画'!P44 -> 00:00:00 | CM44: 00:00:00 | CP44: ='12計画'!V44 -> 0 | CV44: ='12計画'!AB44 -> 0 | DB44: ='12計画'!AH44 -> 0
A45: 30 | C45: ='12計画'!C45:D45 -> 水 | E45: ='12計画'!E45:G45 -> 00:00:00 | H45: ～ | I45: ='12計画'!I45:K45 -> 00:00:00 | L45: ='12計画'!L45:N45 -> 00:00:00 | O45: ～ | P45: ='12計画'!P45:R45 -> 00:00:00 | S45: 00:00:00 | V45: ='12計画'!V45:AA45 -> 0 | AB45: ='12計画'!AB45:AG45 -> 0 | AH45: ='12計画'!AH45:AO45 -> 0 | AP45: FALSE | BK45: 0 | BW45: ='12計画'!C45 -> 水 | BY45: ='12計画'!E45 -> 00:00:00 | CB45: ～ | CC45: ='12計画'!I45 -> 00:00:00 | CF45: ='12計画'!L45 -> 00:00:00 | CI45: ～ | CJ45: ='12計画'!P45 -> 00:00:00 | CM45: 00:00:00 | CP45: ='12計画'!V45 -> 0 | CV45: ='12計画'!AB45 -> 0 | DB45: ='12計画'!AH45 -> 0
A46: 31 | C46: ='12計画'!C46:D46 -> 木 | E46: ='12計画'!E46:G46 -> 00:00:00 | H46: ～ | I46: ='12計画'!I46:K46 -> 00:00:00 | L46: ='12計画'!L46:N46 -> 00:00:00 | O46: ～ | P46: ='12計画'!P46:R46 -> 00:00:00 | S46: 00:00:00 | V46: ='12計画'!V46:AA46 -> 0 | AB46: ='12計画'!AB46:AG46 -> 0 | AH46: ='12計画'!AH46:AO46 -> 0 | AP46: FALSE | BK46: 0 | BW46: ='12計画'!C46 -> 木 | BY46: ='12計画'!E46 -> 00:00:00 | CB46: ～ | CC46: ='12計画'!I46 -> 00:00:00 | CF46: ='12計画'!L46 -> 00:00:00 | CI46: ～ | CJ46: ='12計画'!P46 -> 00:00:00 | CM46: 00:00:00 | CP46: ='12計画'!V46 -> 0 | CV46: ='12計画'!AB46 -> 0 | DB46: ='12計画'!AH46 -> 0
S47: =SUM(S16:U46) -> 0 | CM47: =SUM(CM16:CO46) -> 0
A49: 月 | D49: 4 | F49: 5 | H49: 6 | J49: 7 | L49: 8 | N49: 9 | P49: 10 | R49: 11 | T49: 12 | V49: 1 | X49: 2 | Z49: 3 | AB49: 計
A50: 時間 | D50: ='４実績'!D50 -> 0 | F50: ='５実績'!F50 -> 0 | H50: ='6実績'!H50 -> 0 | J50: ='7実績'!J50 -> 0 | L50: ='8実績'!L50:M50 -> 0 | N50: ='9実績'!N50:O50 -> 0 | P50: ='10実績'!P50:Q50 -> 0 | R50: ='11実績'!R50:S50 -> 0 | T50: =S47 -> 0 | AB50: =SUM(D50:AA50) -> 0 | AG50: 時間 | BX50: ='４実績'!D50 -> 0 | BZ50: ='５実績'!F50 -> 0 | CB50: ='6実績'!H50 -> 0 | CD50: ='7実績'!J50 -> 0 | CF50: ='8実績'!L50 -> 0 | CH50: ='9実績'!N50 -> 0 | CJ50: ='10実績'!P50 -> 0 | CL50: ='11実績'!R50 -> 0 | CN50: =CM47 -> 0 | CV50: =SUM(BX50:CU50) -> 0
A51: 活動日数 | D51: ='４実績'!D51 -> 0 | F51: ='５実績'!F51 -> 0 | H51: ='6実績'!H51 -> 0 | J51: ='7実績'!J51 -> 0 | L51: ='8実績'!L51:M51 -> 0 | N51: ='9実績'!N51:O51 -> 0 | P51: ='10実績'!P51:Q51 -> 0 | R51: ='11実績'!R51:S51 -> 0 | T51: =COUNTIF(S16:U46,">0") -> 0 | AB51: =SUM(D51:AA51) -> 0 | AG51: 活動日数 | BX51: ='４実績'!D51 -> 0 | BZ51: ='５実績'!F51 -> 0 | CB51: ='6実績'!H51 -> 0 | CD51: ='7実績'!J51 -> 0 | CF51: ='8実績'!L51 -> 0 | CH51: ='9実績'!N51 -> 0 | CJ51: ='10実績'!P51 -> 0 | CL51: ='11実績'!R51 -> 0 | CN51: =COUNTIF(CM16:CO46,">0") -> 0 | CV51: =SUM(BX51:CU51) -> 0
A52: 休養日数 | D52: ='４実績'!D52 -> 30 | F52: ='５実績'!F52 -> 31 | H52: ='6実績'!H52 -> 30 | J52: ='7実績'!J52 -> 31 | L52: ='8実績'!L52:M52 -> 31 | N52: ='9実績'!N52:O52 -> 30 | P52: ='10実績'!P52:Q52 -> 31 | R52: ='11実績'!R52:S52 -> 30 | T52: =COUNTIF(S16:U46,"0:00") -> 31 | AB52: =SUM(D52:AA52) -> 275 | AG52: 休養日数 | BX52: ='４実績'!D52 -> 30 | BZ52: ='５実績'!F52 -> 31 | CB52: ='6実績'!H52 -> 30 | CD52: ='7実績'!J52 -> 31 | CF52: ='8実績'!L52 -> 31 | CH52: ='9実績'!N52 -> 30 | CJ52: ='10実績'!P52 -> 31 | CL52: ='11実績'!R52 -> 30 | CN52: =COUNTIF(CM16:CO46,"0:00") -> 31 | CV52: =SUM(BX52:CU52) -> 275
AB53: =AB50/AB51 ->  | AG53: 平均時間/日 | CV53: =CV50/CV51 -> 

Sheet 1実績
A2: ='1計画'!A2:D2 -> 校長 | E2: ='1計画'!E2:H2 -> 教頭 | I2: ='1計画'!I2:L2 -> 教頭 | M2: ='1計画'!M2:P2 -> 主幹教諭 | Q2: ='1計画'!Q2:T2 -> 0 | U2: ='1計画'!U2:X2 -> 顧問 | Z2: 学校名 | AC2: ='1計画'!AC2:AL3 -> 0 | AM2: 学校 | BU2: ='1計画'!BU2:BX2 -> 0 | BY2: ='1計画'!BY2:CB2 -> 0 | CC2: ='1計画'!CC2:CF2 -> 0 | CG2: ='1計画'!CG2:CJ2 -> 0 | CK2: ='1計画'!CK2:CN2 -> 0 | CO2: ='1計画'!CO2:CR2 -> 0 | CW2: ='1計画'!CW2:DF3 -> 0
A3: 印 | E3: 印 | I3: 印 | M3: 印 | Q3: 印 | U3: 印
Z4: 部活動名 | AC4: ='1計画'!AC4:AL5 -> 0 | AM4: 部 | CW4: ='1計画'!CW4:DF5 -> 0
A6: ※活動計画と違う内容については、校長口頭命令済み
A7: 1 | F7: 月 | I7: 〈月間〉部活動計画・活動実績 | Y7: 部員数 | AB7: 1女 | AD7: 2女 | AF7: 3女 | AH7: 1男 | AJ7: 2男 | AL7: 3男 | AN7: 計
AB8: ='1計画'!AB8:AC8 -> 0 | AD8: ='1計画'!AD8:AE8 -> 0 | AF8: ='1計画'!AF8:AG8 -> 0 | AH8: ='1計画'!AH8:AI8 -> 0 | AJ8: ='1計画'!AJ8:AK8 -> 0 | AL8: ='1計画'!AL8:AM8 -> 0 | AN8: =SUM(AB8:AM8) -> 0 | CV8: ='1計画'!AB8 -> 0 | CX8: ='1計画'!AD8 -> 0 | CZ8: ='1計画'!AF8 -> 0 | DB8: ='1計画'!AH8 -> 0 | DD8: ='1計画'!AJ8 -> 0 | DF8: ='1計画'!AL8 -> 0 | DH8: =SUM(CV8:DG8) -> 0
B10: 職名 | D10: ='1計画'!D10:H11 -> 0 | I10: 顧問 | K10: ='1計画'!K10:S11 -> 0 | V10: 職名 | X10: ='1計画'!X10:AB11 -> 0 | AC10: 副２ | AE10: ='1計画'!AE10:AM11 -> 0 | BX10: ='1計画'!D10 -> 0 | CE10: ='1計画'!K10 -> 0 | CR10: ='1計画'!X10 -> 0 | CY10: ='1計画'!AE10 -> 0
B12: 職名 | D12: ='1計画'!D12:H13 -> 0 | I12: 副顧問 | K12: ='1計画'!K12:S13 -> 0 | V12: 職名 | X12: ='1計画'!X12:AB13 -> 0 | AC12: 副３ | AE12: ='1計画'!AE12:AM13 -> 0 | BX12: ='1計画'!D12 -> 0 | CE12: ='1計画'!K12 -> 0 | CR12: ='1計画'!X12 -> 0 | CY12: ='1計画'!AE12 -> 0
A15: 日 | C15: 曜 | E15: ＡＭ | L15: ＰＭ | S15: 時間 | V15: 内容（練習・大会・OFF等） | AH15: 場所 | AP15: FALSE | AQ15: 特殊業務
A16: 1 | C16: ='1計画'!C16:D16 -> 金 | E16: ='1計画'!E16:G16 -> 00:00:00 | H16: ～ | I16: ='1計画'!I16:K16 -> 00:00:00 | L16: ='1計画'!L16:N16 -> 00:00:00 | O16: ～ | P16: ='1計画'!P16:R16 -> 00:00:00 | S16: =(I16-E16)+(P16-L16) -> 00:00:00 | V16: ='1計画'!V16:AA16 -> 0 | AB16: ='1計画'!AB16:AG16 -> 0 | AH16: ='1計画'!AH16:AO16 -> 0 | AP16: FALSE | BK16: =RIGHT(V16,2) -> 0 | BW16: ='1計画'!C16 -> 金 | BY16: ='1計画'!E16 -> 00:00:00 | CB16: ～ | CC16: ='1計画'!I16 -> 00:00:00 | CF16: ='1計画'!L16 -> 00:00:00 | CI16: ～ | CJ16: ='1計画'!P16 -> 00:00:00 | CM16: =(CC16-BY16)+(CJ16-CF16) -> 00:00:00 | CP16: ='1計画'!V16 -> 0 | CV16: ='1計画'!AB16 -> 0 | DB16: ='1計画'!AH16 -> 0
A17: 2 | C17: ='1計画'!C17:D17 -> 土 | E17: ='1計画'!E17:G17 -> 00:00:00 | H17: ～ | I17: ='1計画'!I17:K17 -> 00:00:00 | L17: ='1計画'!L17:N17 -> 00:00:00 | O17: ～ | P17: ='1計画'!P17:R17 -> 00:00:00 | S17: 00:00:00 | V17: ='1計画'!V17:AA17 -> 0 | AB17: ='1計画'!AB17:AG17 -> 0 | AH17: ='1計画'!AH17:AO17 -> 0 | AP17: FALSE | BK17: =RIGHT(V17,2) -> 0 | BW17: ='1計画'!C17 -> 土 | BY17: ='1計画'!E17 -> 00:00:00 | CB17: ～ | CC17: ='1計画'!I17 -> 00:00:00 | CF17: ='1計画'!L17 -> 00:00:00 | CI17: ～ | CJ17: ='1計画'!P17 -> 00:00:00 | CM17: 00:00:00 | CP17: ='1計画'!V17 -> 0 | CV17: ='1計画'!AB17 -> 0 | DB17: ='1計画'!AH17 -> 0
A18: 3 | C18: ='1計画'!C18:D18 -> 日 | E18: ='1計画'!E18:G18 -> 00:00:00 | H18: ～ | I18: ='1計画'!I18:K18 -> 00:00:00 | L18: ='1計画'!L18:N18 -> 00:00:00 | O18: ～ | P18: ='1計画'!P18:R18 -> 00:00:00 | S18: 00:00:00 | V18: ='1計画'!V18:AA18 -> 0 | AB18: ='1計画'!AB18:AG18 -> 0 | AH18: ='1計画'!AH18:AO18 -> 0 | AP18: FALSE | BK18: 0 | BW18: ='1計画'!C18 -> 日 | BY18: ='1計画'!E18 -> 00:00:00 | CB18: ～ | CC18: ='1計画'!I18 -> 00:00:00 | CF18: ='1計画'!L18 -> 00:00:00 | CI18: ～ | CJ18: ='1計画'!P18 -> 00:00:00 | CM18: 00:00:00 | CP18: ='1計画'!V18 -> 0 | CV18: ='1計画'!AB18 -> 0 | DB18: ='1計画'!AH18 -> 0
A19: 4 | C19: ='1計画'!C19:D19 -> 月 | E19: ='1計画'!E19:G19 -> 00:00:00 | H19: ～ | I19: ='1計画'!I19:K19 -> 00:00:00 | L19: ='1計画'!L19:N19 -> 00:00:00 | O19: ～ | P19: ='1計画'!P19:R19 -> 00:00:00 | S19: 00:00:00 | V19: ='1計画'!V19:AA19 -> 0 | AB19: ='1計画'!AB19:AG19 -> 0 | AH19: ='1計画'!AH19:AO19 -> 0 | AP19: FALSE | BK19: 0 | BW19: ='1計画'!C19 -> 月 | BY19: ='1計画'!E19 -> 00:00:00 | CB19: ～ | CC19: ='1計画'!I19 -> 00:00:00 | CF19: ='1計画'!L19 -> 00:00:00 | CI19: ～ | CJ19: ='1計画'!P19 -> 00:00:00 | CM19: 00:00:00 | CP19: ='1計画'!V19 -> 0 | CV19: ='1計画'!AB19 -> 0 | DB19: ='1計画'!AH19 -> 0
A20: 5 | C20: ='1計画'!C20:D20 -> 火 | E20: ='1計画'!E20:G20 -> 00:00:00 | H20: ～ | I20: ='1計画'!I20:K20 -> 00:00:00 | L20: ='1計画'!L20:N20 -> 00:00:00 | O20: ～ | P20: ='1計画'!P20:R20 -> 00:00:00 | S20: 00:00:00 | V20: ='1計画'!V20:AA20 -> 0 | AB20: ='1計画'!AB20:AG20 -> 0 | AH20: ='1計画'!AH20:AO20 -> 0 | AP20: FALSE | BK20: 0 | BW20: ='1計画'!C20 -> 火 | BY20: ='1計画'!E20 -> 00:00:00 | CB20: ～ | CC20: ='1計画'!I20 -> 00:00:00 | CF20: ='1計画'!L20 -> 00:00:00 | CI20: ～ | CJ20: ='1計画'!P20 -> 00:00:00 | CM20: 00:00:00 | CP20: ='1計画'!V20 -> 0 | CV20: ='1計画'!AB20 -> 0 | DB20: ='1計画'!AH20 -> 0
A21: 6 | C21: ='1計画'!C21:D21 -> 水 | E21: ='1計画'!E21:G21 -> 00:00:00 | H21: ～ | I21: ='1計画'!I21:K21 -> 00:00:00 | L21: ='1計画'!L21:N21 -> 00:00:00 | O21: ～ | P21: ='1計画'!P21:R21 -> 00:00:00 | S21: 00:00:00 | V21: ='1計画'!V21:AA21 -> 0 | AB21: ='1計画'!AB21:AG21 -> 0 | AH21: ='1計画'!AH21:AO21 -> 0 | AP21: FALSE | BK21: 0 | BW21: ='1計画'!C21 -> 水 | BY21: ='1計画'!E21 -> 00:00:00 | CB21: ～ | CC21: ='1計画'!I21 -> 00:00:00 | CF21: ='1計画'!L21 -> 00:00:00 | CI21: ～ | CJ21: ='1計画'!P21 -> 00:00:00 | CM21: 00:00:00 | CP21: ='1計画'!V21 -> 0 | CV21: ='1計画'!AB21 -> 0 | DB21: ='1計画'!AH21 -> 0
A22: 7 | C22: ='1計画'!C22:D22 -> 木 | E22: ='1計画'!E22:G22 -> 00:00:00 | H22: ～ | I22: ='1計画'!I22:K22 -> 00:00:00 | L22: ='1計画'!L22:N22 -> 00:00:00 | O22: ～ | P22: ='1計画'!P22:R22 -> 00:00:00 | S22: 00:00:00 | V22: ='1計画'!V22:AA22 -> 0 | AB22: ='1計画'!AB22:AG22 -> 0 | AH22: ='1計画'!AH22:AO22 -> 0 | AP22: FALSE | BK22: 0 | BW22: ='1計画'!C22 -> 木 | BY22: ='1計画'!E22 -> 00:00:00 | CB22: ～ | CC22: ='1計画'!I22 -> 00:00:00 | CF22: ='1計画'!L22 -> 00:00:00 | CI22: ～ | CJ22: ='1計画'!P22 -> 00:00:00 | CM22: 00:00:00 | CP22: ='1計画'!V22 -> 0 | CV22: ='1計画'!AB22 -> 0 | DB22: ='1計画'!AH22 -> 0
A23: 8 | C23: ='1計画'!C23:D23 -> 金 | E23: ='1計画'!E23:G23 -> 00:00:00 | H23: ～ | I23: ='1計画'!I23:K23 -> 00:00:00 | L23: ='1計画'!L23:N23 -> 00:00:00 | O23: ～ | P23: ='1計画'!P23:R23 -> 00:00:00 | S23: 00:00:00 | V23: ='1計画'!V23:AA23 -> 0 | AB23: ='1計画'!AB23:AG23 -> 0 | AH23: ='1計画'!AH23:AO23 -> 0 | AP23: FALSE | BK23: 0 | BW23: ='1計画'!C23 -> 金 | BY23: ='1計画'!E23 -> 00:00:00 | CB23: ～ | CC23: ='1計画'!I23 -> 00:00:00 | CF23: ='1計画'!L23 -> 00:00:00 | CI23: ～ | CJ23: ='1計画'!P23 -> 00:00:00 | CM23: 00:00:00 | CP23: ='1計画'!V23 -> 0 | CV23: ='1計画'!AB23 -> 0 | DB23: ='1計画'!AH23 -> 0
A24: 9 | C24: ='1計画'!C24:D24 -> 土 | E24: ='1計画'!E24:G24 -> 00:00:00 | H24: ～ | I24: ='1計画'!I24:K24 -> 00:00:00 | L24: ='1計画'!L24:N24 -> 00:00:00 | O24: ～ | P24: ='1計画'!P24:R24 -> 00:00:00 | S24: 00:00:00 | V24: ='1計画'!V24:AA24 -> 0 | AB24: ='1計画'!AB24:AG24 -> 0 | AH24: ='1計画'!AH24:AO24 -> 0 | AP24: FALSE | BK24: 0 | BW24: ='1計画'!C24 -> 土 | BY24: ='1計画'!E24 -> 00:00:00 | CB24: ～ | CC24: ='1計画'!I24 -> 00:00:00 | CF24: ='1計画'!L24 -> 00:00:00 | CI24: ～ | CJ24: ='1計画'!P24 -> 00:00:00 | CM24: 00:00:00 | CP24: ='1計画'!V24 -> 0 | CV24: ='1計画'!AB24 -> 0 | DB24: ='1計画'!AH24 -> 0
A25: 10 | C25: ='1計画'!C25:D25 -> 日 | E25: ='1計画'!E25:G25 -> 00:00:00 | H25: ～ | I25: ='1計画'!I25:K25 -> 00:00:00 | L25: ='1計画'!L25:N25 -> 00:00:00 | O25: ～ | P25: ='1計画'!P25:R25 -> 00:00:00 | S25: 00:00:00 | V25: ='1計画'!V25:AA25 -> 0 | AB25: ='1計画'!AB25:AG25 -> 0 | AH25: ='1計画'!AH25:AO25 -> 0 | AP25: FALSE | BK25: 0 | BW25: ='1計画'!C25 -> 日 | BY25: ='1計画'!E25 -> 00:00:00 | CB25: ～ | CC25: ='1計画'!I25 -> 00:00:00 | CF25: ='1計画'!L25 -> 00:00:00 | CI25: ～ | CJ25: ='1計画'!P25 -> 00:00:00 | CM25: 00:00:00 | CP25: ='1計画'!V25 -> 0 | CV25: ='1計画'!AB25 -> 0 | DB25: ='1計画'!AH25 -> 0
A26: 11 | C26: ='1計画'!C26:D26 -> 月 | E26: ='1計画'!E26:G26 -> 00:00:00 | H26: ～ | I26: ='1計画'!I26:K26 -> 00:00:00 | L26: ='1計画'!L26:N26 -> 00:00:00 | O26: ～ | P26: ='1計画'!P26:R26 -> 00:00:00 | S26: 00:00:00 | V26: ='1計画'!V26:AA26 -> 0 | AB26: ='1計画'!AB26:AG26 -> 0 | AH26: ='1計画'!AH26:AO26 -> 0 | AP26: FALSE | BK26: 0 | BW26: ='1計画'!C26 -> 月 | BY26: ='1計画'!E26 -> 00:00:00 | CB26: ～ | CC26: ='1計画'!I26 -> 00:00:00 | CF26: ='1計画'!L26 -> 00:00:00 | CI26: ～ | CJ26: ='1計画'!P26 -> 00:00:00 | CM26: 00:00:00 | CP26: ='1計画'!V26 -> 0 | CV26: ='1計画'!AB26 -> 0 | DB26: ='1計画'!AH26 -> 0
A27: 12 | C27: ='1計画'!C27:D27 -> 火 | E27: ='1計画'!E27:G27 -> 00:00:00 | H27: ～ | I27: ='1計画'!I27:K27 -> 00:00:00 | L27: ='1計画'!L27:N27 -> 00:00:00 | O27: ～ | P27: ='1計画'!P27:R27 -> 00:00:00 | S27: 00:00:00 | V27: ='1計画'!V27:AA27 -> 0 | AB27: ='1計画'!AB27:AG27 -> 0 | AH27: ='1計画'!AH27:AO27 -> 0 | AP27: FALSE | BK27: 0 | BW27: ='1計画'!C27 -> 火 | BY27: ='1計画'!E27 -> 00:00:00 | CB27: ～ | CC27: ='1計画'!I27 -> 00:00:00 | CF27: ='1計画'!L27 -> 00:00:00 | CI27: ～ | CJ27: ='1計画'!P27 -> 00:00:00 | CM27: 00:00:00 | CP27: ='1計画'!V27 -> 0 | CV27: ='1計画'!AB27 -> 0 | DB27: ='1計画'!AH27 -> 0
A28: 13 | C28: ='1計画'!C28:D28 -> 水 | E28: ='1計画'!E28:G28 -> 00:00:00 | H28: ～ | I28: ='1計画'!I28:K28 -> 00:00:00 | L28: ='1計画'!L28:N28 -> 00:00:00 | O28: ～ | P28: ='1計画'!P28:R28 -> 00:00:00 | S28: 00:00:00 | V28: ='1計画'!V28:AA28 -> 0 | AB28: ='1計画'!AB28:AG28 -> 0 | AH28: ='1計画'!AH28:AO28 -> 0 | AP28: FALSE | BK28: 0 | BW28: ='1計画'!C28 -> 水 | BY28: ='1計画'!E28 -> 00:00:00 | CB28: ～ | CC28: ='1計画'!I28 -> 00:00:00 | CF28: ='1計画'!L28 -> 00:00:00 | CI28: ～ | CJ28: ='1計画'!P28 -> 00:00:00 | CM28: 00:00:00 | CP28: ='1計画'!V28 -> 0 | CV28: ='1計画'!AB28 -> 0 | DB28: ='1計画'!AH28 -> 0
A29: 14 | C29: ='1計画'!C29:D29 -> 木 | E29: ='1計画'!E29:G29 -> 00:00:00 | H29: ～ | I29: ='1計画'!I29:K29 -> 00:00:00 | L29: ='1計画'!L29:N29 -> 00:00:00 | O29: ～ | P29: ='1計画'!P29:R29 -> 00:00:00 | S29: 00:00:00 | V29: ='1計画'!V29:AA29 -> 0 | AB29: ='1計画'!AB29:AG29 -> 0 | AH29: ='1計画'!AH29:AO29 -> 0 | AP29: FALSE | BK29: 0 | BW29: ='1計画'!C29 -> 木 | BY29: ='1計画'!E29 -> 00:00:00 | CB29: ～ | CC29: ='1計画'!I29 -> 00:00:00 | CF29: ='1計画'!L29 -> 00:00:00 | CI29: ～ | CJ29: ='1計画'!P29 -> 00:00:00 | CM29: 00:00:00 | CP29: ='1計画'!V29 -> 0 | CV29: ='1計画'!AB29 -> 0 | DB29: ='1計画'!AH29 -> 0
A30: 15 | C30: ='1計画'!C30:D30 -> 金 | E30: ='1計画'!E30:G30 -> 00:00:00 | H30: ～ | I30: ='1計画'!I30:K30 -> 00:00:00 | L30: ='1計画'!L30:N30 -> 00:00:00 | O30: ～ | P30: ='1計画'!P30:R30 -> 00:00:00 | S30: 00:00:00 | V30: ='1計画'!V30:AA30 -> 0 | AB30: ='1計画'!AB30:AG30 -> 0 | AH30: ='1計画'!AH30:AO30 -> 0 | AP30: FALSE | BK30: 0 | BW30: ='1計画'!C30 -> 金 | BY30: ='1計画'!E30 -> 00:00:00 | CB30: ～ | CC30: ='1計画'!I30 -> 00:00:00 | CF30: ='1計画'!L30 -> 00:00:00 | CI30: ～ | CJ30: ='1計画'!P30 -> 00:00:00 | CM30: 00:00:00 | CP30: ='1計画'!V30 -> 0 | CV30: ='1計画'!AB30 -> 0 | DB30: ='1計画'!AH30 -> 0
A31: 16 | C31: ='1計画'!C31:D31 -> 土 | E31: ='1計画'!E31:G31 -> 00:00:00 | H31: ～ | I31: ='1計画'!I31:K31 -> 00:00:00 | L31: ='1計画'!L31:N31 -> 00:00:00 | O31: ～ | P31: ='1計画'!P31:R31 -> 00:00:00 | S31: 00:00:00 | V31: ='1計画'!V31:AA31 -> 0 | AB31: ='1計画'!AB31:AG31 -> 0 | AH31: ='1計画'!AH31:AO31 -> 0 | AP31: FALSE | BK31: 0 | BW31: ='1計画'!C31 -> 土 | BY31: ='1計画'!E31 -> 00:00:00 | CB31: ～ | CC31: ='1計画'!I31 -> 00:00:00 | CF31: ='1計画'!L31 -> 00:00:00 | CI31: ～ | CJ31: ='1計画'!P31 -> 00:00:00 | CM31: 00:00:00 | CP31: ='1計画'!V31 -> 0 | CV31: ='1計画'!AB31 -> 0 | DB31: ='1計画'!AH31 -> 0
A32: 17 | C32: ='1計画'!C32:D32 -> 日 | E32: ='1計画'!E32:G32 -> 00:00:00 | H32: ～ | I32: ='1計画'!I32:K32 -> 00:00:00 | L32: ='1計画'!L32:N32 -> 00:00:00 | O32: ～ | P32: ='1計画'!P32:R32 -> 00:00:00 | S32: 00:00:00 | V32: ='1計画'!V32:AA32 -> 0 | AB32: ='1計画'!AB32:AG32 -> 0 | AH32: ='1計画'!AH32:AO32 -> 0 | AP32: FALSE | BK32: 0 | BW32: ='1計画'!C32 -> 日 | BY32: ='1計画'!E32 -> 00:00:00 | CB32: ～ | CC32: ='1計画'!I32 -> 00:00:00 | CF32: ='1計画'!L32 -> 00:00:00 | CI32: ～ | CJ32: ='1計画'!P32 -> 00:00:00 | CM32: 00:00:00 | CP32: ='1計画'!V32 -> 0 | CV32: ='1計画'!AB32 -> 0 | DB32: ='1計画'!AH32 -> 0
A33: 18 | C33: ='1計画'!C33:D33 -> 月 | E33: ='1計画'!E33:G33 -> 00:00:00 | H33: ～ | I33: ='1計画'!I33:K33 -> 00:00:00 | L33: ='1計画'!L33:N33 -> 00:00:00 | O33: ～ | P33: ='1計画'!P33:R33 -> 00:00:00 | S33: 00:00:00 | V33: ='1計画'!V33:AA33 -> 0 | AB33: ='1計画'!AB33:AG33 -> 0 | AH33: ='1計画'!AH33:AO33 -> 0 | AP33: FALSE | BK33: 0 | BW33: ='1計画'!C33 -> 月 | BY33: ='1計画'!E33 -> 00:00:00 | CB33: ～ | CC33: ='1計画'!I33 -> 00:00:00 | CF33: ='1計画'!L33 -> 00:00:00 | CI33: ～ | CJ33: ='1計画'!P33 -> 00:00:00 | CM33: 00:00:00 | CP33: ='1計画'!V33 -> 0 | CV33: ='1計画'!AB33 -> 0 | DB33: ='1計画'!AH33 -> 0
A34: 19 | C34: ='1計画'!C34:D34 -> 火 | E34: ='1計画'!E34:G34 -> 00:00:00 | H34: ～ | I34: ='1計画'!I34:K34 -> 00:00:00 | L34: ='1計画'!L34:N34 -> 00:00:00 | O34: ～ | P34: ='1計画'!P34:R34 -> 00:00:00 | S34: 00:00:00 | V34: ='1計画'!V34:AA34 -> 0 | AB34: ='1計画'!AB34:AG34 -> 0 | AH34: ='1計画'!AH34:AO34 -> 0 | AP34: FALSE | BK34: 0 | BW34: ='1計画'!C34 -> 火 | BY34: ='1計画'!E34 -> 00:00:00 | CB34: ～ | CC34: ='1計画'!I34 -> 00:00:00 | CF34: ='1計画'!L34 -> 00:00:00 | CI34: ～ | CJ34: ='1計画'!P34 -> 00:00:00 | CM34: 00:00:00 | CP34: ='1計画'!V34 -> 0 | CV34: ='1計画'!AB34 -> 0 | DB34: ='1計画'!AH34 -> 0
A35: 20 | C35: ='1計画'!C35:D35 -> 水 | E35: ='1計画'!E35:G35 -> 00:00:00 | H35: ～ | I35: ='1計画'!I35:K35 -> 00:00:00 | L35: ='1計画'!L35:N35 -> 00:00:00 | O35: ～ | P35: ='1計画'!P35:R35 -> 00:00:00 | S35: 00:00:00 | V35: ='1計画'!V35:AA35 -> 0 | AB35: ='1計画'!AB35:AG35 -> 0 | AH35: ='1計画'!AH35:AO35 -> 0 | AP35: FALSE | BK35: 0 | BW35: ='1計画'!C35 -> 水 | BY35: ='1計画'!E35 -> 00:00:00 | CB35: ～ | CC35: ='1計画'!I35 -> 00:00:00 | CF35: ='1計画'!L35 -> 00:00:00 | CI35: ～ | CJ35: ='1計画'!P35 -> 00:00:00 | CM35: 00:00:00 | CP35: ='1計画'!V35 -> 0 | CV35: ='1計画'!AB35 -> 0 | DB35: ='1計画'!AH35 -> 0
A36: 21 | C36: ='1計画'!C36:D36 -> 木 | E36: ='1計画'!E36:G36 -> 00:00:00 | H36: ～ | I36: ='1計画'!I36:K36 -> 00:00:00 | L36: ='1計画'!L36:N36 -> 00:00:00 | O36: ～ | P36: ='1計画'!P36:R36 -> 00:00:00 | S36: 00:00:00 | V36: ='1計画'!V36:AA36 -> 0 | AB36: ='1計画'!AB36:AG36 -> 0 | AH36: ='1計画'!AH36:AO36 -> 0 | AP36: FALSE | BK36: 0 | BW36: ='1計画'!C36 -> 木 | BY36: ='1計画'!E36 -> 00:00:00 | CB36: ～ | CC36: ='1計画'!I36 -> 00:00:00 | CF36: ='1計画'!L36 -> 00:00:00 | CI36: ～ | CJ36: ='1計画'!P36 -> 00:00:00 | CM36: 00:00:00 | CP36: ='1計画'!V36 -> 0 | CV36: ='1計画'!AB36 -> 0 | DB36: ='1計画'!AH36 -> 0
A37: 22 | C37: ='1計画'!C37:D37 -> 金 | E37: ='1計画'!E37:G37 -> 00:00:00 | H37: ～ | I37: ='1計画'!I37:K37 -> 00:00:00 | L37: ='1計画'!L37:N37 -> 00:00:00 | O37: ～ | P37: ='1計画'!P37:R37 -> 00:00:00 | S37: 00:00:00 | V37: ='1計画'!V37:AA37 -> 0 | AB37: ='1計画'!AB37:AG37 -> 0 | AH37: ='1計画'!AH37:AO37 -> 0 | AP37: FALSE | BK37: 0 | BW37: ='1計画'!C37 -> 金 | BY37: ='1計画'!E37 -> 00:00:00 | CB37: ～ | CC37: ='1計画'!I37 -> 00:00:00 | CF37: ='1計画'!L37 -> 00:00:00 | CI37: ～ | CJ37: ='1計画'!P37 -> 00:00:00 | CM37: 00:00:00 | CP37: ='1計画'!V37 -> 0 | CV37: ='1計画'!AB37 -> 0 | DB37: ='1計画'!AH37 -> 0
A38: 23 | C38: ='1計画'!C38:D38 -> 土 | E38: ='1計画'!E38:G38 -> 00:00:00 | H38: ～ | I38: ='1計画'!I38:K38 -> 00:00:00 | L38: ='1計画'!L38:N38 -> 00:00:00 | O38: ～ | P38: ='1計画'!P38:R38 -> 00:00:00 | S38: 00:00:00 | V38: ='1計画'!V38:AA38 -> 0 | AB38: ='1計画'!AB38:AG38 -> 0 | AH38: ='1計画'!AH38:AO38 -> 0 | AP38: FALSE | BK38: 0 | BW38: ='1計画'!C38 -> 土 | BY38: ='1計画'!E38 -> 00:00:00 | CB38: ～ | CC38: ='1計画'!I38 -> 00:00:00 | CF38: ='1計画'!L38 -> 00:00:00 | CI38: ～ | CJ38: ='1計画'!P38 -> 00:00:00 | CM38: 00:00:00 | CP38: ='1計画'!V38 -> 0 | CV38: ='1計画'!AB38 -> 0 | DB38: ='1計画'!AH38 -> 0
A39: 24 | C39: ='1計画'!C39:D39 -> 日 | E39: ='1計画'!E39:G39 -> 00:00:00 | H39: ～ | I39: ='1計画'!I39:K39 -> 00:00:00 | L39: ='1計画'!L39:N39 -> 00:00:00 | O39: ～ | P39: ='1計画'!P39:R39 -> 00:00:00 | S39: 00:00:00 | V39: ='1計画'!V39:AA39 -> 0 | AB39: ='1計画'!AB39:AG39 -> 0 | AH39: ='1計画'!AH39:AO39 -> 0 | AP39: FALSE | BK39: 0 | BW39: ='1計画'!C39 -> 日 | BY39: ='1計画'!E39 -> 00:00:00 | CB39: ～ | CC39: ='1計画'!I39 -> 00:00:00 | CF39: ='1計画'!L39 -> 00:00:00 | CI39: ～ | CJ39: ='1計画'!P39 -> 00:00:00 | CM39: 00:00:00 | CP39: ='1計画'!V39 -> 0 | CV39: ='1計画'!AB39 -> 0 | DB39: ='1計画'!AH39 -> 0
A40: 25 | C40: ='1計画'!C40:D40 -> 月 | E40: ='1計画'!E40:G40 -> 00:00:00 | H40: ～ | I40: ='1計画'!I40:K40 -> 00:00:00 | L40: ='1計画'!L40:N40 -> 00:00:00 | O40: ～ | P40: ='1計画'!P40:R40 -> 00:00:00 | S40: 00:00:00 | V40: ='1計画'!V40:AA40 -> 0 | AB40: ='1計画'!AB40:AG40 -> 0 | AH40: ='1計画'!AH40:AO40 -> 0 | AP40: FALSE | BK40: 0 | BW40: ='1計画'!C40 -> 月 | BY40: ='1計画'!E40 -> 00:00:00 | CB40: ～ | CC40: ='1計画'!I40 -> 00:00:00 | CF40: ='1計画'!L40 -> 00:00:00 | CI40: ～ | CJ40: ='1計画'!P40 -> 00:00:00 | CM40: 00:00:00 | CP40: ='1計画'!V40 -> 0 | CV40: ='1計画'!AB40 -> 0 | DB40: ='1計画'!AH40 -> 0
A41: 26 | C41: ='1計画'!C41:D41 -> 火 | E41: ='1計画'!E41:G41 -> 00:00:00 | H41: ～ | I41: ='1計画'!I41:K41 -> 00:00:00 | L41: ='1計画'!L41:N41 -> 00:00:00 | O41: ～ | P41: ='1計画'!P41:R41 -> 00:00:00 | S41: 00:00:00 | V41: ='1計画'!V41:AA41 -> 0 | AB41: ='1計画'!AB41:AG41 -> 0 | AH41: ='1計画'!AH41:AO41 -> 0 | AP41: FALSE | BK41: 0 | BW41: ='1計画'!C41 -> 火 | BY41: ='1計画'!E41 -> 00:00:00 | CB41: ～ | CC41: ='1計画'!I41 -> 00:00:00 | CF41: ='1計画'!L41 -> 00:00:00 | CI41: ～ | CJ41: ='1計画'!P41 -> 00:00:00 | CM41: 00:00:00 | CP41: ='1計画'!V41 -> 0 | CV41: ='1計画'!AB41 -> 0 | DB41: ='1計画'!AH41 -> 0
A42: 27 | C42: ='1計画'!C42:D42 -> 水 | E42: ='1計画'!E42:G42 -> 00:00:00 | H42: ～ | I42: ='1計画'!I42:K42 -> 00:00:00 | L42: ='1計画'!L42:N42 -> 00:00:00 | O42: ～ | P42: ='1計画'!P42:R42 -> 00:00:00 | S42: 00:00:00 | V42: ='1計画'!V42:AA42 -> 0 | AB42: ='1計画'!AB42:AG42 -> 0 | AH42: ='1計画'!AH42:AO42 -> 0 | AP42: FALSE | BK42: 0 | BW42: ='1計画'!C42 -> 水 | BY42: ='1計画'!E42 -> 00:00:00 | CB42: ～ | CC42: ='1計画'!I42 -> 00:00:00 | CF42: ='1計画'!L42 -> 00:00:00 | CI42: ～ | CJ42: ='1計画'!P42 -> 00:00:00 | CM42: 00:00:00 | CP42: ='1計画'!V42 -> 0 | CV42: ='1計画'!AB42 -> 0 | DB42: ='1計画'!AH42 -> 0
A43: 28 | C43: ='1計画'!C43:D43 -> 木 | E43: ='1計画'!E43:G43 -> 00:00:00 | H43: ～ | I43: ='1計画'!I43:K43 -> 00:00:00 | L43: ='1計画'!L43:N43 -> 00:00:00 | O43: ～ | P43: ='1計画'!P43:R43 -> 00:00:00 | S43: 00:00:00 | V43: ='1計画'!V43:AA43 -> 0 | AB43: ='1計画'!AB43:AG43 -> 0 | AH43: ='1計画'!AH43:AO43 -> 0 | AP43: FALSE | BK43: 0 | BW43: ='1計画'!C43 -> 木 | BY43: ='1計画'!E43 -> 00:00:00 | CB43: ～ | CC43: ='1計画'!I43 -> 00:00:00 | CF43: ='1計画'!L43 -> 00:00:00 | CI43: ～ | CJ43: ='1計画'!P43 -> 00:00:00 | CM43: 00:00:00 | CP43: ='1計画'!V43 -> 0 | CV43: ='1計画'!AB43 -> 0 | DB43: ='1計画'!AH43 -> 0
A44: 29 | C44: ='1計画'!C44:D44 -> 金 | E44: ='1計画'!E44:G44 -> 00:00:00 | H44: ～ | I44: ='1計画'!I44:K44 -> 00:00:00 | L44: ='1計画'!L44:N44 -> 00:00:00 | O44: ～ | P44: ='1計画'!P44:R44 -> 00:00:00 | S44: 00:00:00 | V44: ='1計画'!V44:AA44 -> 0 | AB44: ='1計画'!AB44:AG44 -> 0 | AH44: ='1計画'!AH44:AO44 -> 0 | AP44: FALSE | BK44: 0 | BW44: ='1計画'!C44 -> 金 | BY44: ='1計画'!E44 -> 00:00:00 | CB44: ～ | CC44: ='1計画'!I44 -> 00:00:00 | CF44: ='1計画'!L44 -> 00:00:00 | CI44: ～ | CJ44: ='1計画'!P44 -> 00:00:00 | CM44: 00:00:00 | CP44: ='1計画'!V44 -> 0 | CV44: ='1計画'!AB44 -> 0 | DB44: ='1計画'!AH44 -> 0
A45: 30 | C45: ='1計画'!C45:D45 -> 土 | E45: ='1計画'!E45:G45 -> 00:00:00 | H45: ～ | I45: ='1計画'!I45:K45 -> 00:00:00 | L45: ='1計画'!L45:N45 -> 00:00:00 | O45: ～ | P45: ='1計画'!P45:R45 -> 00:00:00 | S45: 00:00:00 | V45: ='1計画'!V45:AA45 -> 0 | AB45: ='1計画'!AB45:AG45 -> 0 | AH45: ='1計画'!AH45:AO45 -> 0 | AP45: FALSE | BK45: 0 | BW45: ='1計画'!C45 -> 土 | BY45: ='1計画'!E45 -> 00:00:00 | CB45: ～ | CC45: ='1計画'!I45 -> 00:00:00 | CF45: ='1計画'!L45 -> 00:00:00 | CI45: ～ | CJ45: ='1計画'!P45 -> 00:00:00 | CM45: 00:00:00 | CP45: ='1計画'!V45 -> 0 | CV45: ='1計画'!AB45 -> 0 | DB45: ='1計画'!AH45 -> 0
A46: 31 | C46: ='1計画'!C46:D46 -> 日 | E46: ='1計画'!E46:G46 -> 00:00:00 | H46: ～ | I46: ='1計画'!I46:K46 -> 00:00:00 | L46: ='1計画'!L46:N46 -> 00:00:00 | O46: ～ | P46: ='1計画'!P46:R46 -> 00:00:00 | S46: 00:00:00 | V46: ='1計画'!V46:AA46 -> 0 | AB46: ='1計画'!AB46:AG46 -> 0 | AH46: ='1計画'!AH46:AO46 -> 0 | AP46: FALSE | BK46: 0 | BW46: ='1計画'!C46 -> 日 | BY46: ='1計画'!E46 -> 00:00:00 | CB46: ～ | CC46: ='1計画'!I46 -> 00:00:00 | CF46: ='1計画'!L46 -> 00:00:00 | CI46: ～ | CJ46: ='1計画'!P46 -> 00:00:00 | CM46: 00:00:00 | CP46: ='1計画'!V46 -> 0 | CV46: ='1計画'!AB46 -> 0 | DB46: ='1計画'!AH46 -> 0
S47: =SUM(S16:U46) -> 0 | CM47: =SUM(CM16:CO46) -> 0
A49: 月 | D49: 4 | F49: 5 | H49: 6 | J49: 7 | L49: 8 | N49: 9 | P49: 10 | R49: 11 | T49: 12 | V49: 1 | X49: 2 | Z49: 3 | AB49: 計
A50: 時間 | D50: ='４実績'!D50 -> 0 | F50: ='５実績'!F50 -> 0 | H50: ='6実績'!H50 -> 0 | J50: ='7実績'!J50 -> 0 | L50: ='8実績'!L50:M50 -> 0 | N50: ='9実績'!N50:O50 -> 0 | P50: ='10実績'!P50:Q50 -> 0 | R50: ='11実績'!R50:S50 -> 0 | T50: ='12実績'!T50:U50 -> 0 | V50: =S47 -> 0 | AB50: =SUM(D50:AA50) -> 0 | AG50: 時間 | BX50: ='４実績'!D50 -> 0 | BZ50: ='５実績'!F50 -> 0 | CB50: ='6実績'!H50 -> 0 | CD50: ='7実績'!J50 -> 0 | CF50: ='8実績'!L50 -> 0 | CH50: ='9実績'!N50 -> 0 | CJ50: ='10実績'!P50 -> 0 | CL50: ='11実績'!R50 -> 0 | CN50: ='12実績'!T50 -> 0 | CP50: =CM47 -> 0 | CV50: =SUM(BX50:CU50) -> 0
A51: 活動日数 | D51: ='４実績'!D51 -> 0 | F51: ='５実績'!F51 -> 0 | H51: ='6実績'!H51 -> 0 | J51: ='7実績'!J51 -> 0 | L51: ='8実績'!L51:M51 -> 0 | N51: ='9実績'!N51:O51 -> 0 | P51: ='10実績'!P51:Q51 -> 0 | R51: ='11実績'!R51:S51 -> 0 | T51: ='12実績'!T51:U51 -> 0 | V51: =COUNTIF(S16:U46,">0") -> 0 | AB51: =SUM(D51:AA51) -> 0 | AG51: 活動日数 | BX51: ='４実績'!D51 -> 0 | BZ51: ='５実績'!F51 -> 0 | CB51: ='6実績'!H51 -> 0 | CD51: ='7実績'!J51 -> 0 | CF51: ='8実績'!L51 -> 0 | CH51: ='9実績'!N51 -> 0 | CJ51: ='10実績'!P51 -> 0 | CL51: ='11実績'!R51 -> 0 | CN51: ='12実績'!T51 -> 0 | CP51: =COUNTIF(CM16:CO46,">0") -> 0 | CV51: =SUM(BX51:CU51) -> 0
A52: 休養日数 | D52: ='４実績'!D52 -> 30 | F52: ='５実績'!F52 -> 31 | H52: ='6実績'!H52 -> 30 | J52: ='7実績'!J52 -> 31 | L52: ='8実績'!L52:M52 -> 31 | N52: ='9実績'!N52:O52 -> 30 | P52: ='10実績'!P52:Q52 -> 31 | R52: ='11実績'!R52:S52 -> 30 | T52: ='12実績'!T52:U52 -> 31 | V52: =COUNTIF(S16:U46,"0:00") -> 31 | AB52: =SUM(D52:AA52) -> 306 | AG52: 休養日数 | BX52: ='４実績'!D52 -> 30 | BZ52: ='５実績'!F52 -> 31 | CB52: ='6実績'!H52 -> 30 | CD52: ='7実績'!J52 -> 31 | CF52: ='8実績'!L52 -> 31 | CH52: ='9実績'!N52 -> 30 | CJ52: ='10実績'!P52 -> 31 | CL52: ='11実績'!R52 -> 30 | CN52: ='12実績'!T52 -> 31 | CP52: =COUNTIF(CM16:CO46,"0:00") -> 31 | CV52: =SUM(BX52:CU52) -> 306
AB53: =AB50/AB51 ->  | AG53: 平均時間/日 | CV53: =CV50/CV51 -> 

Sheet 2実績
A2: ='2計画'!A2:D2 -> 校長 | E2: ='2計画'!E2:H2 -> 教頭 | I2: ='2計画'!I2:L2 -> 教頭 | M2: ='2計画'!M2:P2 -> 主幹教諭 | Q2: ='2計画'!Q2:T2 -> 0 | U2: ='2計画'!U2:X2 -> 顧問 | Z2: 学校名 | AC2: ='2計画'!AC2:AL3 -> 0 | AM2: 学校 | BU2: ='2計画'!BU2:BX2 -> 0 | BY2: ='2計画'!BY2:CB2 -> 0 | CC2: ='2計画'!CC2:CF2 -> 0 | CG2: ='2計画'!CG2:CJ2 -> 0 | CK2: ='2計画'!CK2:CN2 -> 0 | CO2: ='2計画'!CO2:CR2 -> 0 | CW2: ='2計画'!CW2:DF3 -> 0
A3: 印 | E3: 印 | I3: 印 | M3: 印 | Q3: 印 | U3: 印
Z4: 部活動名 | AC4: ='2計画'!AC4:AL5 -> 0 | AM4: 部 | CW4: ='2計画'!CW4:DF5 -> 0
A6: ※活動計画と違う内容については、校長口頭命令済み
A7: 2 | F7: 月 | I7: 〈月間〉部活動計画・活動実績 | Y7: 部員数 | AB7: 1女 | AD7: 2女 | AF7: 3女 | AH7: 1男 | AJ7: 2男 | AL7: 3男 | AN7: 計
AB8: ='2計画'!AB8:AC8 -> 0 | AD8: ='2計画'!AD8:AE8 -> 0 | AF8: ='2計画'!AF8:AG8 -> 0 | AH8: ='2計画'!AH8:AI8 -> 0 | AJ8: ='2計画'!AJ8:AK8 -> 0 | AL8: ='2計画'!AL8:AM8 -> 0 | AN8: =SUM(AB8:AM8) -> 0 | CV8: ='2計画'!AB8 -> 0 | CX8: ='2計画'!AD8 -> 0 | CZ8: ='2計画'!AF8 -> 0 | DB8: ='2計画'!AH8 -> 0 | DD8: ='2計画'!AJ8 -> 0 | DF8: ='2計画'!AL8 -> 0 | DH8: =SUM(CV8:DG8) -> 0
B10: 職名 | D10: ='2計画'!D10:H11 -> 0 | I10: 顧問 | K10: ='2計画'!K10:S11 -> 0 | V10: 職名 | X10: ='2計画'!X10:AB11 -> 0 | AC10: 副２ | AE10: ='2計画'!AE10:AM11 -> 0 | BX10: ='2計画'!D10 -> 0 | CE10: ='2計画'!K10 -> 0 | CR10: ='2計画'!X10 -> 0 | CY10: ='2計画'!AE10 -> 0
B12: 職名 | D12: ='2計画'!D12:H13 -> 0 | I12: 副顧問 | K12: ='2計画'!K12:S13 -> 0 | V12: 職名 | X12: ='2計画'!X12:AB13 -> 0 | AC12: 副３ | AE12: ='2計画'!AE12:AM13 -> 0 | BX12: ='2計画'!D12 -> 0 | CE12: ='2計画'!K12 -> 0 | CR12: ='2計画'!X12 -> 0 | CY12: ='2計画'!AE12 -> 0
A15: 日 | C15: 曜 | E15: ＡＭ | L15: ＰＭ | S15: 時間 | V15: 内容（練習・大会・OFF等） | AH15: 場所 | AP15: FALSE | AQ15: 特殊業務
A16: 1 | C16: ='2計画'!C16:D16 -> 月 | E16: ='2計画'!E16:G16 -> 00:00:00 | H16: ～ | I16: ='2計画'!I16:K16 -> 00:00:00 | L16: ='2計画'!L16:N16 -> 00:00:00 | O16: ～ | P16: ='2計画'!P16:R16 -> 00:00:00 | S16: =(I16-E16)+(P16-L16) -> 00:00:00 | V16: ='2計画'!V16:AA16 -> 0 | AB16: ='2計画'!AB16:AG16 -> 0 | AH16: ='2計画'!AH16:AO16 -> 0 | AP16: FALSE | BK16: =RIGHT(V16,2) -> 0 | BW16: ='2計画'!C16 -> 月 | BY16: ='2計画'!E16 -> 00:00:00 | CB16: ～ | CC16: ='2計画'!I16 -> 00:00:00 | CF16: ='2計画'!L16 -> 00:00:00 | CI16: ～ | CJ16: ='2計画'!P16 -> 00:00:00 | CM16: =(CC16-BY16)+(CJ16-CF16) -> 00:00:00 | CP16: ='2計画'!V16 -> 0 | CV16: ='2計画'!AB16 -> 0 | DB16: ='2計画'!AH16 -> 0
A17: 2 | C17: ='2計画'!C17:D17 -> 火 | E17: ='2計画'!E17:G17 -> 00:00:00 | H17: ～ | I17: ='2計画'!I17:K17 -> 00:00:00 | L17: ='2計画'!L17:N17 -> 00:00:00 | O17: ～ | P17: ='2計画'!P17:R17 -> 00:00:00 | S17: 00:00:00 | V17: ='2計画'!V17:AA17 -> 0 | AB17: ='2計画'!AB17:AG17 -> 0 | AH17: ='2計画'!AH17:AO17 -> 0 | AP17: FALSE | BK17: =RIGHT(V17,2) -> 0 | BW17: ='2計画'!C17 -> 火 | BY17: ='2計画'!E17 -> 00:00:00 | CB17: ～ | CC17: ='2計画'!I17 -> 00:00:00 | CF17: ='2計画'!L17 -> 00:00:00 | CI17: ～ | CJ17: ='2計画'!P17 -> 00:00:00 | CM17: 00:00:00 | CP17: ='2計画'!V17 -> 0 | CV17: ='2計画'!AB17 -> 0 | DB17: ='2計画'!AH17 -> 0
A18: 3 | C18: ='2計画'!C18:D18 -> 水 | E18: ='2計画'!E18:G18 -> 00:00:00 | H18: ～ | I18: ='2計画'!I18:K18 -> 00:00:00 | L18: ='2計画'!L18:N18 -> 00:00:00 | O18: ～ | P18: ='2計画'!P18:R18 -> 00:00:00 | S18: 00:00:00 | V18: ='2計画'!V18:AA18 -> 0 | AB18: ='2計画'!AB18:AG18 -> 0 | AH18: ='2計画'!AH18:AO18 -> 0 | AP18: FALSE | BK18: 0 | BW18: ='2計画'!C18 -> 水 | BY18: ='2計画'!E18 -> 00:00:00 | CB18: ～ | CC18: ='2計画'!I18 -> 00:00:00 | CF18: ='2計画'!L18 -> 00:00:00 | CI18: ～ | CJ18: ='2計画'!P18 -> 00:00:00 | CM18: 00:00:00 | CP18: ='2計画'!V18 -> 0 | CV18: ='2計画'!AB18 -> 0 | DB18: ='2計画'!AH18 -> 0
A19: 4 | C19: ='2計画'!C19:D19 -> 木 | E19: ='2計画'!E19:G19 -> 00:00:00 | H19: ～ | I19: ='2計画'!I19:K19 -> 00:00:00 | L19: ='2計画'!L19:N19 -> 00:00:00 | O19: ～ | P19: ='2計画'!P19:R19 -> 00:00:00 | S19: 00:00:00 | V19: ='2計画'!V19:AA19 -> 0 | AB19: ='2計画'!AB19:AG19 -> 0 | AH19: ='2計画'!AH19:AO19 -> 0 | AP19: FALSE | BK19: 0 | BW19: ='2計画'!C19 -> 木 | BY19: ='2計画'!E19 -> 00:00:00 | CB19: ～ | CC19: ='2計画'!I19 -> 00:00:00 | CF19: ='2計画'!L19 -> 00:00:00 | CI19: ～ | CJ19: ='2計画'!P19 -> 00:00:00 | CM19: 00:00:00 | CP19: ='2計画'!V19 -> 0 | CV19: ='2計画'!AB19 -> 0 | DB19: ='2計画'!AH19 -> 0
A20: 5 | C20: ='2計画'!C20:D20 -> 金 | E20: ='2計画'!E20:G20 -> 00:00:00 | H20: ～ | I20: ='2計画'!I20:K20 -> 00:00:00 | L20: ='2計画'!L20:N20 -> 00:00:00 | O20: ～ | P20: ='2計画'!P20:R20 -> 00:00:00 | S20: 00:00:00 | V20: ='2計画'!V20:AA20 -> 0 | AB20: ='2計画'!AB20:AG20 -> 0 | AH20: ='2計画'!AH20:AO20 -> 0 | AP20: FALSE | BK20: 0 | BW20: ='2計画'!C20 -> 金 | BY20: ='2計画'!E20 -> 00:00:00 | CB20: ～ | CC20: ='2計画'!I20 -> 00:00:00 | CF20: ='2計画'!L20 -> 00:00:00 | CI20: ～ | CJ20: ='2計画'!P20 -> 00:00:00 | CM20: 00:00:00 | CP20: ='2計画'!V20 -> 0 | CV20: ='2計画'!AB20 -> 0 | DB20: ='2計画'!AH20 -> 0
A21: 6 | C21: ='2計画'!C21:D21 -> 土 | E21: ='2計画'!E21:G21 -> 00:00:00 | H21: ～ | I21: ='2計画'!I21:K21 -> 00:00:00 | L21: ='2計画'!L21:N21 -> 00:00:00 | O21: ～ | P21: ='2計画'!P21:R21 -> 00:00:00 | S21: 00:00:00 | V21: ='2計画'!V21:AA21 -> 0 | AB21: ='2計画'!AB21:AG21 -> 0 | AH21: ='2計画'!AH21:AO21 -> 0 | AP21: FALSE | BK21: 0 | BW21: ='2計画'!C21 -> 土 | BY21: ='2計画'!E21 -> 00:00:00 | CB21: ～ | CC21: ='2計画'!I21 -> 00:00:00 | CF21: ='2計画'!L21 -> 00:00:00 | CI21: ～ | CJ21: ='2計画'!P21 -> 00:00:00 | CM21: 00:00:00 | CP21: ='2計画'!V21 -> 0 | CV21: ='2計画'!AB21 -> 0 | DB21: ='2計画'!AH21 -> 0
A22: 7 | C22: ='2計画'!C22:D22 -> 日 | E22: ='2計画'!E22:G22 -> 00:00:00 | H22: ～ | I22: ='2計画'!I22:K22 -> 00:00:00 | L22: ='2計画'!L22:N22 -> 00:00:00 | O22: ～ | P22: ='2計画'!P22:R22 -> 00:00:00 | S22: 00:00:00 | V22: ='2計画'!V22:AA22 -> 0 | AB22: ='2計画'!AB22:AG22 -> 0 | AH22: ='2計画'!AH22:AO22 -> 0 | AP22: FALSE | BK22: 0 | BW22: ='2計画'!C22 -> 日 | BY22: ='2計画'!E22 -> 00:00:00 | CB22: ～ | CC22: ='2計画'!I22 -> 00:00:00 | CF22: ='2計画'!L22 -> 00:00:00 | CI22: ～ | CJ22: ='2計画'!P22 -> 00:00:00 | CM22: 00:00:00 | CP22: ='2計画'!V22 -> 0 | CV22: ='2計画'!AB22 -> 0 | DB22: ='2計画'!AH22 -> 0
A23: 8 | C23: ='2計画'!C23:D23 -> 月 | E23: ='2計画'!E23:G23 -> 00:00:00 | H23: ～ | I23: ='2計画'!I23:K23 -> 00:00:00 | L23: ='2計画'!L23:N23 -> 00:00:00 | O23: ～ | P23: ='2計画'!P23:R23 -> 00:00:00 | S23: 00:00:00 | V23: ='2計画'!V23:AA23 -> 0 | AB23: ='2計画'!AB23:AG23 -> 0 | AH23: ='2計画'!AH23:AO23 -> 0 | AP23: FALSE | BK23: 0 | BW23: ='2計画'!C23 -> 月 | BY23: ='2計画'!E23 -> 00:00:00 | CB23: ～ | CC23: ='2計画'!I23 -> 00:00:00 | CF23: ='2計画'!L23 -> 00:00:00 | CI23: ～ | CJ23: ='2計画'!P23 -> 00:00:00 | CM23: 00:00:00 | CP23: ='2計画'!V23 -> 0 | CV23: ='2計画'!AB23 -> 0 | DB23: ='2計画'!AH23 -> 0
A24: 9 | C24: ='2計画'!C24:D24 -> 火 | E24: ='2計画'!E24:G24 -> 00:00:00 | H24: ～ | I24: ='2計画'!I24:K24 -> 00:00:00 | L24: ='2計画'!L24:N24 -> 00:00:00 | O24: ～ | P24: ='2計画'!P24:R24 -> 00:00:00 | S24: 00:00:00 | V24: ='2計画'!V24:AA24 -> 0 | AB24: ='2計画'!AB24:AG24 -> 0 | AH24: ='2計画'!AH24:AO24 -> 0 | AP24: FALSE | BK24: 0 | BW24: ='2計画'!C24 -> 火 | BY24: ='2計画'!E24 -> 00:00:00 | CB24: ～ | CC24: ='2計画'!I24 -> 00:00:00 | CF24: ='2計画'!L24 -> 00:00:00 | CI24: ～ | CJ24: ='2計画'!P24 -> 00:00:00 | CM24: 00:00:00 | CP24: ='2計画'!V24 -> 0 | CV24: ='2計画'!AB24 -> 0 | DB24: ='2計画'!AH24 -> 0
A25: 10 | C25: ='2計画'!C25:D25 -> 水 | E25: ='2計画'!E25:G25 -> 00:00:00 | H25: ～ | I25: ='2計画'!I25:K25 -> 00:00:00 | L25: ='2計画'!L25:N25 -> 00:00:00 | O25: ～ | P25: ='2計画'!P25:R25 -> 00:00:00 | S25: 00:00:00 | V25: ='2計画'!V25:AA25 -> 0 | AB25: ='2計画'!AB25:AG25 -> 0 | AH25: ='2計画'!AH25:AO25 -> 0 | AP25: FALSE | BK25: 0 | BW25: ='2計画'!C25 -> 水 | BY25: ='2計画'!E25 -> 00:00:00 | CB25: ～ | CC25: ='2計画'!I25 -> 00:00:00 | CF25: ='2計画'!L25 -> 00:00:00 | CI25: ～ | CJ25: ='2計画'!P25 -> 00:00:00 | CM25: 00:00:00 | CP25: ='2計画'!V25 -> 0 | CV25: ='2計画'!AB25 -> 0 | DB25: ='2計画'!AH25 -> 0
A26: 11 | C26: ='2計画'!C26:D26 -> 木 | E26: ='2計画'!E26:G26 -> 00:00:00 | H26: ～ | I26: ='2計画'!I26:K26 -> 00:00:00 | L26: ='2計画'!L26:N26 -> 00:00:00 | O26: ～ | P26: ='2計画'!P26:R26 -> 00:00:00 | S26: 00:00:00 | V26: ='2計画'!V26:AA26 -> 0 | AB26: ='2計画'!AB26:AG26 -> 0 | AH26: ='2計画'!AH26:AO26 -> 0 | AP26: FALSE | BK26: 0 | BW26: ='2計画'!C26 -> 木 | BY26: ='2計画'!E26 -> 00:00:00 | CB26: ～ | CC26: ='2計画'!I26 -> 00:00:00 | CF26: ='2計画'!L26 -> 00:00:00 | CI26: ～ | CJ26: ='2計画'!P26 -> 00:00:00 | CM26: 00:00:00 | CP26: ='2計画'!V26 -> 0 | CV26: ='2計画'!AB26 -> 0 | DB26: ='2計画'!AH26 -> 0
A27: 12 | C27: ='2計画'!C27:D27 -> 金 | E27: ='2計画'!E27:G27 -> 00:00:00 | H27: ～ | I27: ='2計画'!I27:K27 -> 00:00:00 | L27: ='2計画'!L27:N27 -> 00:00:00 | O27: ～ | P27: ='2計画'!P27:R27 -> 00:00:00 | S27: 00:00:00 | V27: ='2計画'!V27:AA27 -> 0 | AB27: ='2計画'!AB27:AG27 -> 0 | AH27: ='2計画'!AH27:AO27 -> 0 | AP27: FALSE | BK27: 0 | BW27: ='2計画'!C27 -> 金 | BY27: ='2計画'!E27 -> 00:00:00 | CB27: ～ | CC27: ='2計画'!I27 -> 00:00:00 | CF27: ='2計画'!L27 -> 00:00:00 | CI27: ～ | CJ27: ='2計画'!P27 -> 00:00:00 | CM27: 00:00:00 | CP27: ='2計画'!V27 -> 0 | CV27: ='2計画'!AB27 -> 0 | DB27: ='2計画'!AH27 -> 0
A28: 13 | C28: ='2計画'!C28:D28 -> 土 | E28: ='2計画'!E28:G28 -> 00:00:00 | H28: ～ | I28: ='2計画'!I28:K28 -> 00:00:00 | L28: ='2計画'!L28:N28 -> 00:00:00 | O28: ～ | P28: ='2計画'!P28:R28 -> 00:00:00 | S28: 00:00:00 | V28: ='2計画'!V28:AA28 -> 0 | AB28: ='2計画'!AB28:AG28 -> 0 | AH28: ='2計画'!AH28:AO28 -> 0 | AP28: FALSE | BK28: 0 | BW28: ='2計画'!C28 -> 土 | BY28: ='2計画'!E28 -> 00:00:00 | CB28: ～ | CC28: ='2計画'!I28 -> 00:00:00 | CF28: ='2計画'!L28 -> 00:00:00 | CI28: ～ | CJ28: ='2計画'!P28 -> 00:00:00 | CM28: 00:00:00 | CP28: ='2計画'!V28 -> 0 | CV28: ='2計画'!AB28 -> 0 | DB28: ='2計画'!AH28 -> 0
A29: 14 | C29: ='2計画'!C29:D29 -> 日 | E29: ='2計画'!E29:G29 -> 00:00:00 | H29: ～ | I29: ='2計画'!I29:K29 -> 00:00:00 | L29: ='2計画'!L29:N29 -> 00:00:00 | O29: ～ | P29: ='2計画'!P29:R29 -> 00:00:00 | S29: 00:00:00 | V29: ='2計画'!V29:AA29 -> 0 | AB29: ='2計画'!AB29:AG29 -> 0 | AH29: ='2計画'!AH29:AO29 -> 0 | AP29: FALSE | BK29: 0 | BW29: ='2計画'!C29 -> 日 | BY29: ='2計画'!E29 -> 00:00:00 | CB29: ～ | CC29: ='2計画'!I29 -> 00:00:00 | CF29: ='2計画'!L29 -> 00:00:00 | CI29: ～ | CJ29: ='2計画'!P29 -> 00:00:00 | CM29: 00:00:00 | CP29: ='2計画'!V29 -> 0 | CV29: ='2計画'!AB29 -> 0 | DB29: ='2計画'!AH29 -> 0
A30: 15 | C30: ='2計画'!C30:D30 -> 月 | E30: ='2計画'!E30:G30 -> 00:00:00 | H30: ～ | I30: ='2計画'!I30:K30 -> 00:00:00 | L30: ='2計画'!L30:N30 -> 00:00:00 | O30: ～ | P30: ='2計画'!P30:R30 -> 00:00:00 | S30: 00:00:00 | V30: ='2計画'!V30:AA30 -> 0 | AB30: ='2計画'!AB30:AG30 -> 0 | AH30: ='2計画'!AH30:AO30 -> 0 | AP30: FALSE | BK30: 0 | BW30: ='2計画'!C30 -> 月 | BY30: ='2計画'!E30 -> 00:00:00 | CB30: ～ | CC30: ='2計画'!I30 -> 00:00:00 | CF30: ='2計画'!L30 -> 00:00:00 | CI30: ～ | CJ30: ='2計画'!P30 -> 00:00:00 | CM30: 00:00:00 | CP30: ='2計画'!V30 -> 0 | CV30: ='2計画'!AB30 -> 0 | DB30: ='2計画'!AH30 -> 0
A31: 16 | C31: ='2計画'!C31:D31 -> 火 | E31: ='2計画'!E31:G31 -> 00:00:00 | H31: ～ | I31: ='2計画'!I31:K31 -> 00:00:00 | L31: ='2計画'!L31:N31 -> 00:00:00 | O31: ～ | P31: ='2計画'!P31:R31 -> 00:00:00 | S31: 00:00:00 | V31: ='2計画'!V31:AA31 -> 0 | AB31: ='2計画'!AB31:AG31 -> 0 | AH31: ='2計画'!AH31:AO31 -> 0 | AP31: FALSE | BK31: 0 | BW31: ='2計画'!C31 -> 火 | BY31: ='2計画'!E31 -> 00:00:00 | CB31: ～ | CC31: ='2計画'!I31 -> 00:00:00 | CF31: ='2計画'!L31 -> 00:00:00 | CI31: ～ | CJ31: ='2計画'!P31 -> 00:00:00 | CM31: 00:00:00 | CP31: ='2計画'!V31 -> 0 | CV31: ='2計画'!AB31 -> 0 | DB31: ='2計画'!AH31 -> 0
A32: 17 | C32: ='2計画'!C32:D32 -> 水 | E32: ='2計画'!E32:G32 -> 00:00:00 | H32: ～ | I32: ='2計画'!I32:K32 -> 00:00:00 | L32: ='2計画'!L32:N32 -> 00:00:00 | O32: ～ | P32: ='2計画'!P32:R32 -> 00:00:00 | S32: 00:00:00 | V32: ='2計画'!V32:AA32 -> 0 | AB32: ='2計画'!AB32:AG32 -> 0 | AH32: ='2計画'!AH32:AO32 -> 0 | AP32: FALSE | BK32: 0 | BW32: ='2計画'!C32 -> 水 | BY32: ='2計画'!E32 -> 00:00:00 | CB32: ～ | CC32: ='2計画'!I32 -> 00:00:00 | CF32: ='2計画'!L32 -> 00:00:00 | CI32: ～ | CJ32: ='2計画'!P32 -> 00:00:00 | CM32: 00:00:00 | CP32: ='2計画'!V32 -> 0 | CV32: ='2計画'!AB32 -> 0 | DB32: ='2計画'!AH32 -> 0
A33: 18 | C33: ='2計画'!C33:D33 -> 木 | E33: ='2計画'!E33:G33 -> 00:00:00 | H33: ～ | I33: ='2計画'!I33:K33 -> 00:00:00 | L33: ='2計画'!L33:N33 -> 00:00:00 | O33: ～ | P33: ='2計画'!P33:R33 -> 00:00:00 | S33: 00:00:00 | V33: ='2計画'!V33:AA33 -> 0 | AB33: ='2計画'!AB33:AG33 -> 0 | AH33: ='2計画'!AH33:AO33 -> 0 | AP33: FALSE | BK33: 0 | BW33: ='2計画'!C33 -> 木 | BY33: ='2計画'!E33 -> 00:00:00 | CB33: ～ | CC33: ='2計画'!I33 -> 00:00:00 | CF33: ='2計画'!L33 -> 00:00:00 | CI33: ～ | CJ33: ='2計画'!P33 -> 00:00:00 | CM33: 00:00:00 | CP33: ='2計画'!V33 -> 0 | CV33: ='2計画'!AB33 -> 0 | DB33: ='2計画'!AH33 -> 0
A34: 19 | C34: ='2計画'!C34:D34 -> 金 | E34: ='2計画'!E34:G34 -> 00:00:00 | H34: ～ | I34: ='2計画'!I34:K34 -> 00:00:00 | L34: ='2計画'!L34:N34 -> 00:00:00 | O34: ～ | P34: ='2計画'!P34:R34 -> 00:00:00 | S34: 00:00:00 | V34: ='2計画'!V34:AA34 -> 0 | AB34: ='2計画'!AB34:AG34 -> 0 | AH34: ='2計画'!AH34:AO34 -> 0 | AP34: FALSE | BK34: 0 | BW34: ='2計画'!C34 -> 金 | BY34: ='2計画'!E34 -> 00:00:00 | CB34: ～ | CC34: ='2計画'!I34 -> 00:00:00 | CF34: ='2計画'!L34 -> 00:00:00 | CI34: ～ | CJ34: ='2計画'!P34 -> 00:00:00 | CM34: 00:00:00 | CP34: ='2計画'!V34 -> 0 | CV34: ='2計画'!AB34 -> 0 | DB34: ='2計画'!AH34 -> 0
A35: 20 | C35: ='2計画'!C35:D35 -> 土 | E35: ='2計画'!E35:G35 -> 00:00:00 | H35: ～ | I35: ='2計画'!I35:K35 -> 00:00:00 | L35: ='2計画'!L35:N35 -> 00:00:00 | O35: ～ | P35: ='2計画'!P35:R35 -> 00:00:00 | S35: 00:00:00 | V35: ='2計画'!V35:AA35 -> 0 | AB35: ='2計画'!AB35:AG35 -> 0 | AH35: ='2計画'!AH35:AO35 -> 0 | AP35: FALSE | BK35: 0 | BW35: ='2計画'!C35 -> 土 | BY35: ='2計画'!E35 -> 00:00:00 | CB35: ～ | CC35: ='2計画'!I35 -> 00:00:00 | CF35: ='2計画'!L35 -> 00:00:00 | CI35: ～ | CJ35: ='2計画'!P35 -> 00:00:00 | CM35: 00:00:00 | CP35: ='2計画'!V35 -> 0 | CV35: ='2計画'!AB35 -> 0 | DB35: ='2計画'!AH35 -> 0
A36: 21 | C36: ='2計画'!C36:D36 -> 日 | E36: ='2計画'!E36:G36 -> 00:00:00 | H36: ～ | I36: ='2計画'!I36:K36 -> 00:00:00 | L36: ='2計画'!L36:N36 -> 00:00:00 | O36: ～ | P36: ='2計画'!P36:R36 -> 00:00:00 | S36: 00:00:00 | V36: ='2計画'!V36:AA36 -> 0 | AB36: ='2計画'!AB36:AG36 -> 0 | AH36: ='2計画'!AH36:AO36 -> 0 | AP36: FALSE | BK36: 0 | BW36: ='2計画'!C36 -> 日 | BY36: ='2計画'!E36 -> 00:00:00 | CB36: ～ | CC36: ='2計画'!I36 -> 00:00:00 | CF36: ='2計画'!L36 -> 00:00:00 | CI36: ～ | CJ36: ='2計画'!P36 -> 00:00:00 | CM36: 00:00:00 | CP36: ='2計画'!V36 -> 0 | CV36: ='2計画'!AB36 -> 0 | DB36: ='2計画'!AH36 -> 0
A37: 22 | C37: ='2計画'!C37:D37 -> 月 | E37: ='2計画'!E37:G37 -> 00:00:00 | H37: ～ | I37: ='2計画'!I37:K37 -> 00:00:00 | L37: ='2計画'!L37:N37 -> 00:00:00 | O37: ～ | P37: ='2計画'!P37:R37 -> 00:00:00 | S37: 00:00:00 | V37: ='2計画'!V37:AA37 -> 0 | AB37: ='2計画'!AB37:AG37 -> 0 | AH37: ='2計画'!AH37:AO37 -> 0 | AP37: FALSE | BK37: 0 | BW37: ='2計画'!C37 -> 月 | BY37: ='2計画'!E37 -> 00:00:00 | CB37: ～ | CC37: ='2計画'!I37 -> 00:00:00 | CF37: ='2計画'!L37 -> 00:00:00 | CI37: ～ | CJ37: ='2計画'!P37 -> 00:00:00 | CM37: 00:00:00 | CP37: ='2計画'!V37 -> 0 | CV37: ='2計画'!AB37 -> 0 | DB37: ='2計画'!AH37 -> 0
A38: 23 | C38: ='2計画'!C38:D38 -> 火 | E38: ='2計画'!E38:G38 -> 00:00:00 | H38: ～ | I38: ='2計画'!I38:K38 -> 00:00:00 | L38: ='2計画'!L38:N38 -> 00:00:00 | O38: ～ | P38: ='2計画'!P38:R38 -> 00:00:00 | S38: 00:00:00 | V38: ='2計画'!V38:AA38 -> 0 | AB38: ='2計画'!AB38:AG38 -> 0 | AH38: ='2計画'!AH38:AO38 -> 0 | AP38: FALSE | BK38: 0 | BW38: ='2計画'!C38 -> 火 | BY38: ='2計画'!E38 -> 00:00:00 | CB38: ～ | CC38: ='2計画'!I38 -> 00:00:00 | CF38: ='2計画'!L38 -> 00:00:00 | CI38: ～ | CJ38: ='2計画'!P38 -> 00:00:00 | CM38: 00:00:00 | CP38: ='2計画'!V38 -> 0 | CV38: ='2計画'!AB38 -> 0 | DB38: ='2計画'!AH38 -> 0
A39: 24 | C39: ='2計画'!C39:D39 -> 水 | E39: ='2計画'!E39:G39 -> 00:00:00 | H39: ～ | I39: ='2計画'!I39:K39 -> 00:00:00 | L39: ='2計画'!L39:N39 -> 00:00:00 | O39: ～ | P39: ='2計画'!P39:R39 -> 00:00:00 | S39: 00:00:00 | V39: ='2計画'!V39:AA39 -> 0 | AB39: ='2計画'!AB39:AG39 -> 0 | AH39: ='2計画'!AH39:AO39 -> 0 | AP39: FALSE | BK39: 0 | BW39: ='2計画'!C39 -> 水 | BY39: ='2計画'!E39 -> 00:00:00 | CB39: ～ | CC39: ='2計画'!I39 -> 00:00:00 | CF39: ='2計画'!L39 -> 00:00:00 | CI39: ～ | CJ39: ='2計画'!P39 -> 00:00:00 | CM39: 00:00:00 | CP39: ='2計画'!V39 -> 0 | CV39: ='2計画'!AB39 -> 0 | DB39: ='2計画'!AH39 -> 0
A40: 25 | C40: ='2計画'!C40:D40 -> 木 | E40: ='2計画'!E40:G40 -> 00:00:00 | H40: ～ | I40: ='2計画'!I40:K40 -> 00:00:00 | L40: ='2計画'!L40:N40 -> 00:00:00 | O40: ～ | P40: ='2計画'!P40:R40 -> 00:00:00 | S40: 00:00:00 | V40: ='2計画'!V40:AA40 -> 0 | AB40: ='2計画'!AB40:AG40 -> 0 | AH40: ='2計画'!AH40:AO40 -> 0 | AP40: FALSE | BK40: 0 | BW40: ='2計画'!C40 -> 木 | BY40: ='2計画'!E40 -> 00:00:00 | CB40: ～ | CC40: ='2計画'!I40 -> 00:00:00 | CF40: ='2計画'!L40 -> 00:00:00 | CI40: ～ | CJ40: ='2計画'!P40 -> 00:00:00 | CM40: 00:00:00 | CP40: ='2計画'!V40 -> 0 | CV40: ='2計画'!AB40 -> 0 | DB40: ='2計画'!AH40 -> 0
A41: 26 | C41: ='2計画'!C41:D41 -> 金 | E41: ='2計画'!E41:G41 -> 00:00:00 | H41: ～ | I41: ='2計画'!I41:K41 -> 00:00:00 | L41: ='2計画'!L41:N41 -> 00:00:00 | O41: ～ | P41: ='2計画'!P41:R41 -> 00:00:00 | S41: 00:00:00 | V41: ='2計画'!V41:AA41 -> 0 | AB41: ='2計画'!AB41:AG41 -> 0 | AH41: ='2計画'!AH41:AO41 -> 0 | AP41: FALSE | BK41: 0 | BW41: ='2計画'!C41 -> 金 | BY41: ='2計画'!E41 -> 00:00:00 | CB41: ～ | CC41: ='2計画'!I41 -> 00:00:00 | CF41: ='2計画'!L41 -> 00:00:00 | CI41: ～ | CJ41: ='2計画'!P41 -> 00:00:00 | CM41: 00:00:00 | CP41: ='2計画'!V41 -> 0 | CV41: ='2計画'!AB41 -> 0 | DB41: ='2計画'!AH41 -> 0
A42: 27 | C42: ='2計画'!C42:D42 -> 土 | E42: ='2計画'!E42:G42 -> 00:00:00 | H42: ～ | I42: ='2計画'!I42:K42 -> 00:00:00 | L42: ='2計画'!L42:N42 -> 00:00:00 | O42: ～ | P42: ='2計画'!P42:R42 -> 00:00:00 | S42: 00:00:00 | V42: ='2計画'!V42:AA42 -> 0 | AB42: ='2計画'!AB42:AG42 -> 0 | AH42: ='2計画'!AH42:AO42 -> 0 | AP42: FALSE | BK42: 0 | BW42: ='2計画'!C42 -> 土 | BY42: ='2計画'!E42 -> 00:00:00 | CB42: ～ | CC42: ='2計画'!I42 -> 00:00:00 | CF42: ='2計画'!L42 -> 00:00:00 | CI42: ～ | CJ42: ='2計画'!P42 -> 00:00:00 | CM42: 00:00:00 | CP42: ='2計画'!V42 -> 0 | CV42: ='2計画'!AB42 -> 0 | DB42: ='2計画'!AH42 -> 0
A43: 28 | C43: ='2計画'!C43:D43 -> 日 | E43: ='2計画'!E43:G43 -> 00:00:00 | H43: ～ | I43: ='2計画'!I43:K43 -> 00:00:00 | L43: ='2計画'!L43:N43 -> 00:00:00 | O43: ～ | P43: ='2計画'!P43:R43 -> 00:00:00 | S43: 00:00:00 | V43: ='2計画'!V43:AA43 -> 0 | AB43: ='2計画'!AB43:AG43 -> 0 | AH43: ='2計画'!AH43:AO43 -> 0 | AP43: FALSE | BK43: 0 | BW43: ='2計画'!C43 -> 日 | BY43: ='2計画'!E43 -> 00:00:00 | CB43: ～ | CC43: ='2計画'!I43 -> 00:00:00 | CF43: ='2計画'!L43 -> 00:00:00 | CI43: ～ | CJ43: ='2計画'!P43 -> 00:00:00 | CM43: 00:00:00 | CP43: ='2計画'!V43 -> 0 | CV43: ='2計画'!AB43 -> 0 | DB43: ='2計画'!AH43 -> 0
C44: ='2計画'!C44:D44 -> 月 | E44: ='2計画'!E44:G44 -> 00:00:00 | H44: ～ | I44: ='2計画'!I44:K44 -> 00:00:00 | L44: ='2計画'!L44:N44 -> 00:00:00 | O44: ～ | P44: ='2計画'!P44:R44 -> 00:00:00 | S44: 00:00:00 | V44: ='2計画'!V44:AA44 -> 0 | AB44: ='2計画'!AB44:AG44 -> 0 | AH44: ='2計画'!AH44:AO44 -> 0 | AP44: FALSE | BK44: 0 | BW44: ='2計画'!C44 -> 月 | BY44: ='2計画'!E44 -> 00:00:00 | CB44: ～ | CC44: ='2計画'!I44 -> 00:00:00 | CF44: ='2計画'!L44 -> 00:00:00 | CI44: ～ | CJ44: ='2計画'!P44 -> 00:00:00 | CM44: 00:00:00 | CP44: ='2計画'!V44 -> 0 | CV44: ='2計画'!AB44 -> 0 | DB44: ='2計画'!AH44 -> 0
C45: ='2計画'!C45:D45 ->  | E45: ='2計画'!E45:G45 -> 00:00:00 | H45: ～ | I45: ='2計画'!I45:K45 -> 00:00:00 | L45: ='2計画'!L45:N45 -> 00:00:00 | O45: ～ | P45: ='2計画'!P45:R45 -> 00:00:00 | S45: 00:00:00 | V45: ='2計画'!V45:AA45 -> 0 | AB45: ='2計画'!AB45:AG45 -> 0 | AH45: ='2計画'!AH45:AO45 -> 0 | AP45: FALSE | BK45: 0 | BW45: ='2計画'!C45 ->  | BY45: ='2計画'!E45 -> 00:00:00 | CB45: ～ | CC45: ='2計画'!I45 -> 00:00:00 | CF45: ='2計画'!L45 -> 00:00:00 | CI45: ～ | CJ45: ='2計画'!P45 -> 00:00:00 | CM45: 00:00:00 | CP45: ='2計画'!V45 -> 0 | CV45: ='2計画'!AB45 -> 0 | DB45: ='2計画'!AH45 -> 0
C46: ='2計画'!C46:D46 ->  | E46: ='2計画'!E46:G46 -> 00:00:00 | H46: ～ | I46: ='2計画'!I46:K46 -> 00:00:00 | L46: ='2計画'!L46:N46 -> 00:00:00 | O46: ～ | P46: ='2計画'!P46:R46 -> 00:00:00 | S46: 00:00:00 | V46: ='2計画'!V46:AA46 -> 0 | AB46: ='2計画'!AB46:AG46 -> 0 | AH46: ='2計画'!AH46:AO46 -> 0 | AP46: FALSE | BK46: 0 | BW46: ='2計画'!C46 ->  | BY46: ='2計画'!E46 -> 00:00:00 | CB46: ～ | CC46: ='2計画'!I46 -> 00:00:00 | CF46: ='2計画'!L46 -> 00:00:00 | CI46: ～ | CJ46: ='2計画'!P46 -> 00:00:00 | CM46: 00:00:00 | CP46: ='2計画'!V46 -> 0 | CV46: ='2計画'!AB46 -> 0 | DB46: ='2計画'!AH46 -> 0
S47: =SUM(S16:U46) -> 0 | CM47: =SUM(CM16:CO46) -> 0
A49: 月 | D49: 4 | F49: 5 | H49: 6 | J49: 7 | L49: 8 | N49: 9 | P49: 10 | R49: 11 | T49: 12 | V49: 1 | X49: 2 | Z49: 3 | AB49: 計
A50: 時間 | D50: ='４実績'!D50 -> 0 | F50: ='５実績'!F50 -> 0 | H50: ='6実績'!H50 -> 0 | J50: ='7実績'!J50 -> 0 | L50: ='8実績'!L50:M50 -> 0 | N50: ='9実績'!N50:O50 -> 0 | P50: ='10実績'!P50:Q50 -> 0 | R50: ='11実績'!R50:S50 -> 0 | T50: ='12実績'!T50:U50 -> 0 | V50: ='1実績'!V50:W50 -> 0 | X50: =S47 -> 0 | AB50: =SUM(D50:AA50) -> 0 | AG50: 時間 | BX50: ='４実績'!D50 -> 0 | BZ50: ='５実績'!F50 -> 0 | CB50: ='6実績'!H50 -> 0 | CD50: ='7実績'!J50 -> 0 | CF50: ='8実績'!L50 -> 0 | CH50: ='9実績'!N50 -> 0 | CJ50: ='10実績'!P50 -> 0 | CL50: ='11実績'!R50 -> 0 | CN50: ='12実績'!T50 -> 0 | CP50: ='1実績'!V50 -> 0 | CR50: =CM47 -> 0 | CV50: =SUM(BX50:CU50) -> 0
A51: 活動日数 | D51: ='４実績'!D51 -> 0 | F51: ='５実績'!F51 -> 0 | H51: ='6実績'!H51 -> 0 | J51: ='7実績'!J51 -> 0 | L51: ='8実績'!L51:M51 -> 0 | N51: ='9実績'!N51:O51 -> 0 | P51: ='10実績'!P51:Q51 -> 0 | R51: ='11実績'!R51:S51 -> 0 | T51: ='12実績'!T51:U51 -> 0 | V51: ='1実績'!V51:W51 -> 0 | X51: =COUNTIF(S16:U46,">0") -> 0 | AB51: =SUM(D51:AA51) -> 0 | AG51: 活動日数 | BX51: ='４実績'!D51 -> 0 | BZ51: ='５実績'!F51 -> 0 | CB51: ='6実績'!H51 -> 0 | CD51: ='7実績'!J51 -> 0 | CF51: ='8実績'!L51 -> 0 | CH51: ='9実績'!N51 -> 0 | CJ51: ='10実績'!P51 -> 0 | CL51: ='11実績'!R51 -> 0 | CN51: ='12実績'!T51 -> 0 | CP51: ='1実績'!V51 -> 0 | CR51: =COUNTIF(CM16:CO46,">0") -> 0 | CV51: =SUM(BX51:CU51) -> 0
A52: 休養日数 | D52: ='４実績'!D52 -> 30 | F52: ='５実績'!F52 -> 31 | H52: ='6実績'!H52 -> 30 | J52: ='7実績'!J52 -> 31 | L52: ='8実績'!L52:M52 -> 31 | N52: ='9実績'!N52:O52 -> 30 | P52: ='10実績'!P52:Q52 -> 31 | R52: ='11実績'!R52:S52 -> 30 | T52: ='12実績'!T52:U52 -> 31 | V52: ='1実績'!V52:W52 -> 31 | X52: =COUNTIF(S16:U43,"0:00") -> 28 | AB52: =SUM(D52:AA52) -> 334 | AG52: 休養日数 | BX52: ='４実績'!D52 -> 30 | BZ52: ='５実績'!F52 -> 31 | CB52: ='6実績'!H52 -> 30 | CD52: ='7実績'!J52 -> 31 | CF52: ='8実績'!L52 -> 31 | CH52: ='9実績'!N52 -> 30 | CJ52: ='10実績'!P52 -> 31 | CL52: ='11実績'!R52 -> 30 | CN52: ='12実績'!T52 -> 31 | CP52: ='1実績'!V52 -> 31 | CR52: =COUNTIF(CM16:CO43,"0:00") -> 28 | CV52: =SUM(BX52:CU52) -> 334
AB53: =AB50/AB51 ->  | AG53: 平均時間/日 | CV53: =CV50/CV51 -> 

Sheet 3実績
A2: ='3計画'!A2:D2 -> 校長 | E2: ='3計画'!E2:H2 -> 教頭 | I2: ='3計画'!I2:L2 -> 教頭 | M2: ='3計画'!M2:P2 -> 主幹教諭 | Q2: ='3計画'!Q2:T2 -> 0 | U2: ='3計画'!U2:X2 -> 顧問 | Z2: 学校名 | AC2: ='3計画'!AC2:AL3 -> 0 | AM2: 学校 | BU2: ='3計画'!BU2:BX2 -> 0 | BY2: ='3計画'!BY2:CB2 -> 0 | CC2: ='3計画'!CC2:CF2 -> 0 | CG2: ='3計画'!CG2:CJ2 -> 0 | CK2: ='3計画'!CK2:CN2 -> 0 | CO2: ='3計画'!CO2:CR2 -> 0 | CW2: ='3計画'!CW2:DF3 -> 0
A3: 印 | E3: 印 | I3: 印 | M3: 印 | Q3: 印 | U3: 印
Z4: 部活動名 | AC4: ='3計画'!AC4:AL5 -> 0 | AM4: 部 | CW4: ='3計画'!CW4:DF5 -> 0
A6: ※活動計画と違う内容については、校長口頭命令済み
A7: 3 | F7: 月 | I7: 〈月間〉部活動計画・活動実績 | Y7: 部員数 | AB7: 1女 | AD7: 2女 | AF7: 3女 | AH7: 1男 | AJ7: 2男 | AL7: 3男 | AN7: 計
AB8: ='3計画'!AB8:AC8 -> 0 | AD8: ='3計画'!AD8:AE8 -> 0 | AF8: ='3計画'!AF8:AG8 -> 0 | AH8: ='3計画'!AH8:AI8 -> 0 | AJ8: ='3計画'!AJ8:AK8 -> 0 | AL8: ='3計画'!AL8:AM8 -> 0 | AN8: =SUM(AB8:AM8) -> 0 | CV8: ='3計画'!AB8 -> 0 | CX8: ='3計画'!AD8 -> 0 | CZ8: ='3計画'!AF8 -> 0 | DB8: ='3計画'!AH8 -> 0 | DD8: ='3計画'!AJ8 -> 0 | DF8: ='3計画'!AL8 -> 0 | DH8: =SUM(CV8:DG8) -> 0
B10: 職名 | D10: ='3計画'!D10:H11 -> 0 | I10: 顧問 | K10: ='3計画'!K10:S11 -> 0 | V10: 職名 | X10: ='3計画'!X10:AB11 -> 0 | AC10: 副２ | AE10: ='3計画'!AE10:AM11 -> 0 | BX10: ='3計画'!D10 -> 0 | CE10: ='3計画'!K10 -> 0 | CR10: ='3計画'!X10 -> 0 | CY10: ='3計画'!AE10 -> 0
B12: 職名 | D12: ='3計画'!D12:H13 -> 0 | I12: 副顧問 | K12: ='3計画'!K12:S13 -> 0 | V12: 職名 | X12: ='3計画'!X12:AB13 -> 0 | AC12: 副３ | AE12: ='3計画'!AE12:AM13 -> 0 | BX12: ='3計画'!D12 -> 0 | CE12: ='3計画'!K12 -> 0 | CR12: ='3計画'!X12 -> 0 | CY12: ='3計画'!AE12 -> 0
A15: 日 | C15: 曜 | E15: ＡＭ | L15: ＰＭ | S15: 時間 | V15: 内容（練習・大会・OFF等） | AH15: 場所 | AP15: FALSE | AQ15: 特殊業務
A16: 1 | C16: ='3計画'!C16:D16 -> 月 | E16: ='3計画'!E16:G16 -> 00:00:00 | H16: ～ | I16: ='3計画'!I16:K16 -> 00:00:00 | L16: ='3計画'!L16:N16 -> 00:00:00 | O16: ～ | P16: ='3計画'!P16:R16 -> 00:00:00 | S16: =(I16-E16)+(P16-L16) -> 00:00:00 | V16: ='3計画'!V16:AA16 -> 0 | AB16: ='3計画'!AB16:AG16 -> 0 | AH16: ='3計画'!AH16:AO16 -> 0 | AP16: FALSE | BK16: =RIGHT(V16,2) -> 0 | BW16: ='3計画'!C16 -> 月 | BY16: ='3計画'!E16 -> 00:00:00 | CB16: ～ | CC16: ='3計画'!I16 -> 00:00:00 | CF16: ='3計画'!L16 -> 00:00:00 | CI16: ～ | CJ16: ='3計画'!P16 -> 00:00:00 | CM16: =(CC16-BY16)+(CJ16-CF16) -> 00:00:00 | CP16: ='3計画'!V16 -> 0 | CV16: ='3計画'!AB16 -> 0 | DB16: ='3計画'!AH16 -> 0
A17: 2 | C17: ='3計画'!C17:D17 -> 火 | E17: ='3計画'!E17:G17 -> 00:00:00 | H17: ～ | I17: ='3計画'!I17:K17 -> 00:00:00 | L17: ='3計画'!L17:N17 -> 00:00:00 | O17: ～ | P17: ='3計画'!P17:R17 -> 00:00:00 | S17: 00:00:00 | V17: ='3計画'!V17:AA17 -> 0 | AB17: ='3計画'!AB17:AG17 -> 0 | AH17: ='3計画'!AH17:AO17 -> 0 | AP17: FALSE | BK17: =RIGHT(V17,2) -> 0 | BW17: ='3計画'!C17 -> 火 | BY17: ='3計画'!E17 -> 00:00:00 | CB17: ～ | CC17: ='3計画'!I17 -> 00:00:00 | CF17: ='3計画'!L17 -> 00:00:00 | CI17: ～ | CJ17: ='3計画'!P17 -> 00:00:00 | CM17: 00:00:00 | CP17: ='3計画'!V17 -> 0 | CV17: ='3計画'!AB17 -> 0 | DB17: ='3計画'!AH17 -> 0
A18: 3 | C18: ='3計画'!C18:D18 -> 水 | E18: ='3計画'!E18:G18 -> 00:00:00 | H18: ～ | I18: ='3計画'!I18:K18 -> 00:00:00 | L18: ='3計画'!L18:N18 -> 00:00:00 | O18: ～ | P18: ='3計画'!P18:R18 -> 00:00:00 | S18: 00:00:00 | V18: ='3計画'!V18:AA18 -> 0 | AB18: ='3計画'!AB18:AG18 -> 0 | AH18: ='3計画'!AH18:AO18 -> 0 | AP18: FALSE | BK18: 0 | BW18: ='3計画'!C18 -> 水 | BY18: ='3計画'!E18 -> 00:00:00 | CB18: ～ | CC18: ='3計画'!I18 -> 00:00:00 | CF18: ='3計画'!L18 -> 00:00:00 | CI18: ～ | CJ18: ='3計画'!P18 -> 00:00:00 | CM18: 00:00:00 | CP18: ='3計画'!V18 -> 0 | CV18: ='3計画'!AB18 -> 0 | DB18: ='3計画'!AH18 -> 0
A19: 4 | C19: ='3計画'!C19:D19 -> 木 | E19: ='3計画'!E19:G19 -> 00:00:00 | H19: ～ | I19: ='3計画'!I19:K19 -> 00:00:00 | L19: ='3計画'!L19:N19 -> 00:00:00 | O19: ～ | P19: ='3計画'!P19:R19 -> 00:00:00 | S19: 00:00:00 | V19: ='3計画'!V19:AA19 -> 0 | AB19: ='3計画'!AB19:AG19 -> 0 | AH19: ='3計画'!AH19:AO19 -> 0 | AP19: FALSE | BK19: 0 | BW19: ='3計画'!C19 -> 木 | BY19: ='3計画'!E19 -> 00:00:00 | CB19: ～ | CC19: ='3計画'!I19 -> 00:00:00 | CF19: ='3計画'!L19 -> 00:00:00 | CI19: ～ | CJ19: ='3計画'!P19 -> 00:00:00 | CM19: 00:00:00 | CP19: ='3計画'!V19 -> 0 | CV19: ='3計画'!AB19 -> 0 | DB19: ='3計画'!AH19 -> 0
A20: 5 | C20: ='3計画'!C20:D20 -> 金 | E20: ='3計画'!E20:G20 -> 00:00:00 | H20: ～ | I20: ='3計画'!I20:K20 -> 00:00:00 | L20: ='3計画'!L20:N20 -> 00:00:00 | O20: ～ | P20: ='3計画'!P20:R20 -> 00:00:00 | S20: 00:00:00 | V20: ='3計画'!V20:AA20 -> 0 | AB20: ='3計画'!AB20:AG20 -> 0 | AH20: ='3計画'!AH20:AO20 -> 0 | AP20: FALSE | BK20: 0 | BW20: ='3計画'!C20 -> 金 | BY20: ='3計画'!E20 -> 00:00:00 | CB20: ～ | CC20: ='3計画'!I20 -> 00:00:00 | CF20: ='3計画'!L20 -> 00:00:00 | CI20: ～ | CJ20: ='3計画'!P20 -> 00:00:00 | CM20: 00:00:00 | CP20: ='3計画'!V20 -> 0 | CV20: ='3計画'!AB20 -> 0 | DB20: ='3計画'!AH20 -> 0
A21: 6 | C21: ='3計画'!C21:D21 -> 土 | E21: ='3計画'!E21:G21 -> 00:00:00 | H21: ～ | I21: ='3計画'!I21:K21 -> 00:00:00 | L21: ='3計画'!L21:N21 -> 00:00:00 | O21: ～ | P21: ='3計画'!P21:R21 -> 00:00:00 | S21: 00:00:00 | V21: ='3計画'!V21:AA21 -> 0 | AB21: ='3計画'!AB21:AG21 -> 0 | AH21: ='3計画'!AH21:AO21 -> 0 | AP21: FALSE | BK21: 0 | BW21: ='3計画'!C21 -> 土 | BY21: ='3計画'!E21 -> 00:00:00 | CB21: ～ | CC21: ='3計画'!I21 -> 00:00:00 | CF21: ='3計画'!L21 -> 00:00:00 | CI21: ～ | CJ21: ='3計画'!P21 -> 00:00:00 | CM21: 00:00:00 | CP21: ='3計画'!V21 -> 0 | CV21: ='3計画'!AB21 -> 0 | DB21: ='3計画'!AH21 -> 0
A22: 7 | C22: ='3計画'!C22:D22 -> 日 | E22: ='3計画'!E22:G22 -> 00:00:00 | H22: ～ | I22: ='3計画'!I22:K22 -> 00:00:00 | L22: ='3計画'!L22:N22 -> 00:00:00 | O22: ～ | P22: ='3計画'!P22:R22 -> 00:00:00 | S22: 00:00:00 | V22: ='3計画'!V22:AA22 -> 0 | AB22: ='3計画'!AB22:AG22 -> 0 | AH22: ='3計画'!AH22:AO22 -> 0 | AP22: FALSE | BK22: 0 | BW22: ='3計画'!C22 -> 日 | BY22: ='3計画'!E22 -> 00:00:00 | CB22: ～ | CC22: ='3計画'!I22 -> 00:00:00 | CF22: ='3計画'!L22 -> 00:00:00 | CI22: ～ | CJ22: ='3計画'!P22 -> 00:00:00 | CM22: 00:00:00 | CP22: ='3計画'!V22 -> 0 | CV22: ='3計画'!AB22 -> 0 | DB22: ='3計画'!AH22 -> 0
A23: 8 | C23: ='3計画'!C23:D23 -> 月 | E23: ='3計画'!E23:G23 -> 00:00:00 | H23: ～ | I23: ='3計画'!I23:K23 -> 00:00:00 | L23: ='3計画'!L23:N23 -> 00:00:00 | O23: ～ | P23: ='3計画'!P23:R23 -> 00:00:00 | S23: 00:00:00 | V23: ='3計画'!V23:AA23 -> 0 | AB23: ='3計画'!AB23:AG23 -> 0 | AH23: ='3計画'!AH23:AO23 -> 0 | AP23: FALSE | BK23: 0 | BW23: ='3計画'!C23 -> 月 | BY23: ='3計画'!E23 -> 00:00:00 | CB23: ～ | CC23: ='3計画'!I23 -> 00:00:00 | CF23: ='3計画'!L23 -> 00:00:00 | CI23: ～ | CJ23: ='3計画'!P23 -> 00:00:00 | CM23: 00:00:00 | CP23: ='3計画'!V23 -> 0 | CV23: ='3計画'!AB23 -> 0 | DB23: ='3計画'!AH23 -> 0
A24: 9 | C24: ='3計画'!C24:D24 -> 火 | E24: ='3計画'!E24:G24 -> 00:00:00 | H24: ～ | I24: ='3計画'!I24:K24 -> 00:00:00 | L24: ='3計画'!L24:N24 -> 00:00:00 | O24: ～ | P24: ='3計画'!P24:R24 -> 00:00:00 | S24: 00:00:00 | V24: ='3計画'!V24:AA24 -> 0 | AB24: ='3計画'!AB24:AG24 -> 0 | AH24: ='3計画'!AH24:AO24 -> 0 | AP24: FALSE | BK24: 0 | BW24: ='3計画'!C24 -> 火 | BY24: ='3計画'!E24 -> 00:00:00 | CB24: ～ | CC24: ='3計画'!I24 -> 00:00:00 | CF24: ='3計画'!L24 -> 00:00:00 | CI24: ～ | CJ24: ='3計画'!P24 -> 00:00:00 | CM24: 00:00:00 | CP24: ='3計画'!V24 -> 0 | CV24: ='3計画'!AB24 -> 0 | DB24: ='3計画'!AH24 -> 0
A25: 10 | C25: ='3計画'!C25:D25 -> 水 | E25: ='3計画'!E25:G25 -> 00:00:00 | H25: ～ | I25: ='3計画'!I25:K25 -> 00:00:00 | L25: ='3計画'!L25:N25 -> 00:00:00 | O25: ～ | P25: ='3計画'!P25:R25 -> 00:00:00 | S25: 00:00:00 | V25: ='3計画'!V25:AA25 -> 0 | AB25: ='3計画'!AB25:AG25 -> 0 | AH25: ='3計画'!AH25:AO25 -> 0 | AP25: FALSE | BK25: 0 | BW25: ='3計画'!C25 -> 水 | BY25: ='3計画'!E25 -> 00:00:00 | CB25: ～ | CC25: ='3計画'!I25 -> 00:00:00 | CF25: ='3計画'!L25 -> 00:00:00 | CI25: ～ | CJ25: ='3計画'!P25 -> 00:00:00 | CM25: 00:00:00 | CP25: ='3計画'!V25 -> 0 | CV25: ='3計画'!AB25 -> 0 | DB25: ='3計画'!AH25 -> 0
A26: 11 | C26: ='3計画'!C26:D26 -> 木 | E26: ='3計画'!E26:G26 -> 00:00:00 | H26: ～ | I26: ='3計画'!I26:K26 -> 00:00:00 | L26: ='3計画'!L26:N26 -> 00:00:00 | O26: ～ | P26: ='3計画'!P26:R26 -> 00:00:00 | S26: 00:00:00 | V26: ='3計画'!V26:AA26 -> 0 | AB26: ='3計画'!AB26:AG26 -> 0 | AH26: ='3計画'!AH26:AO26 -> 0 | AP26: FALSE | BK26: 0 | BW26: ='3計画'!C26 -> 木 | BY26: ='3計画'!E26 -> 00:00:00 | CB26: ～ | CC26: ='3計画'!I26 -> 00:00:00 | CF26: ='3計画'!L26 -> 00:00:00 | CI26: ～ | CJ26: ='3計画'!P26 -> 00:00:00 | CM26: 00:00:00 | CP26: ='3計画'!V26 -> 0 | CV26: ='3計画'!AB26 -> 0 | DB26: ='3計画'!AH26 -> 0
A27: 12 | C27: ='3計画'!C27:D27 -> 金 | E27: ='3計画'!E27:G27 -> 00:00:00 | H27: ～ | I27: ='3計画'!I27:K27 -> 00:00:00 | L27: ='3計画'!L27:N27 -> 00:00:00 | O27: ～ | P27: ='3計画'!P27:R27 -> 00:00:00 | S27: 00:00:00 | V27: ='3計画'!V27:AA27 -> 0 | AB27: ='3計画'!AB27:AG27 -> 0 | AH27: ='3計画'!AH27:AO27 -> 0 | AP27: FALSE | BK27: 0 | BW27: ='3計画'!C27 -> 金 | BY27: ='3計画'!E27 -> 00:00:00 | CB27: ～ | CC27: ='3計画'!I27 -> 00:00:00 | CF27: ='3計画'!L27 -> 00:00:00 | CI27: ～ | CJ27: ='3計画'!P27 -> 00:00:00 | CM27: 00:00:00 | CP27: ='3計画'!V27 -> 0 | CV27: ='3計画'!AB27 -> 0 | DB27: ='3計画'!AH27 -> 0
A28: 13 | C28: ='3計画'!C28:D28 -> 土 | E28: ='3計画'!E28:G28 -> 00:00:00 | H28: ～ | I28: ='3計画'!I28:K28 -> 00:00:00 | L28: ='3計画'!L28:N28 -> 00:00:00 | O28: ～ | P28: ='3計画'!P28:R28 -> 00:00:00 | S28: 00:00:00 | V28: ='3計画'!V28:AA28 -> 0 | AB28: ='3計画'!AB28:AG28 -> 0 | AH28: ='3計画'!AH28:AO28 -> 0 | AP28: FALSE | BK28: 0 | BW28: ='3計画'!C28 -> 土 | BY28: ='3計画'!E28 -> 00:00:00 | CB28: ～ | CC28: ='3計画'!I28 -> 00:00:00 | CF28: ='3計画'!L28 -> 00:00:00 | CI28: ～ | CJ28: ='3計画'!P28 -> 00:00:00 | CM28: 00:00:00 | CP28: ='3計画'!V28 -> 0 | CV28: ='3計画'!AB28 -> 0 | DB28: ='3計画'!AH28 -> 0
A29: 14 | C29: ='3計画'!C29:D29 -> 日 | E29: ='3計画'!E29:G29 -> 00:00:00 | H29: ～ | I29: ='3計画'!I29:K29 -> 00:00:00 | L29: ='3計画'!L29:N29 -> 00:00:00 | O29: ～ | P29: ='3計画'!P29:R29 -> 00:00:00 | S29: 00:00:00 | V29: ='3計画'!V29:AA29 -> 0 | AB29: ='3計画'!AB29:AG29 -> 0 | AH29: ='3計画'!AH29:AO29 -> 0 | AP29: FALSE | BK29: 0 | BW29: ='3計画'!C29 -> 日 | BY29: ='3計画'!E29 -> 00:00:00 | CB29: ～ | CC29: ='3計画'!I29 -> 00:00:00 | CF29: ='3計画'!L29 -> 00:00:00 | CI29: ～ | CJ29: ='3計画'!P29 -> 00:00:00 | CM29: 00:00:00 | CP29: ='3計画'!V29 -> 0 | CV29: ='3計画'!AB29 -> 0 | DB29: ='3計画'!AH29 -> 0
A30: 15 | C30: ='3計画'!C30:D30 -> 月 | E30: ='3計画'!E30:G30 -> 00:00:00 | H30: ～ | I30: ='3計画'!I30:K30 -> 00:00:00 | L30: ='3計画'!L30:N30 -> 00:00:00 | O30: ～ | P30: ='3計画'!P30:R30 -> 00:00:00 | S30: 00:00:00 | V30: ='3計画'!V30:AA30 -> 0 | AB30: ='3計画'!AB30:AG30 -> 0 | AH30: ='3計画'!AH30:AO30 -> 0 | AP30: FALSE | BK30: 0 | BW30: ='3計画'!C30 -> 月 | BY30: ='3計画'!E30 -> 00:00:00 | CB30: ～ | CC30: ='3計画'!I30 -> 00:00:00 | CF30: ='3計画'!L30 -> 00:00:00 | CI30: ～ | CJ30: ='3計画'!P30 -> 00:00:00 | CM30: 00:00:00 | CP30: ='3計画'!V30 -> 0 | CV30: ='3計画'!AB30 -> 0 | DB30: ='3計画'!AH30 -> 0
A31: 16 | C31: ='3計画'!C31:D31 -> 火 | E31: ='3計画'!E31:G31 -> 00:00:00 | H31: ～ | I31: ='3計画'!I31:K31 -> 00:00:00 | L31: ='3計画'!L31:N31 -> 00:00:00 | O31: ～ | P31: ='3計画'!P31:R31 -> 00:00:00 | S31: 00:00:00 | V31: ='3計画'!V31:AA31 -> 0 | AB31: ='3計画'!AB31:AG31 -> 0 | AH31: ='3計画'!AH31:AO31 -> 0 | AP31: FALSE | BK31: 0 | BW31: ='3計画'!C31 -> 火 | BY31: ='3計画'!E31 -> 00:00:00 | CB31: ～ | CC31: ='3計画'!I31 -> 00:00:00 | CF31: ='3計画'!L31 -> 00:00:00 | CI31: ～ | CJ31: ='3計画'!P31 -> 00:00:00 | CM31: 00:00:00 | CP31: ='3計画'!V31 -> 0 | CV31: ='3計画'!AB31 -> 0 | DB31: ='3計画'!AH31 -> 0
A32: 17 | C32: ='3計画'!C32:D32 -> 水 | E32: ='3計画'!E32:G32 -> 00:00:00 | H32: ～ | I32: ='3計画'!I32:K32 -> 00:00:00 | L32: ='3計画'!L32:N32 -> 00:00:00 | O32: ～ | P32: ='3計画'!P32:R32 -> 00:00:00 | S32: 00:00:00 | V32: ='3計画'!V32:AA32 -> 0 | AB32: ='3計画'!AB32:AG32 -> 0 | AH32: ='3計画'!AH32:AO32 -> 0 | AP32: FALSE | BK32: 0 | BW32: ='3計画'!C32 -> 水 | BY32: ='3計画'!E32 -> 00:00:00 | CB32: ～ | CC32: ='3計画'!I32 -> 00:00:00 | CF32: ='3計画'!L32 -> 00:00:00 | CI32: ～ | CJ32: ='3計画'!P32 -> 00:00:00 | CM32: 00:00:00 | CP32: ='3計画'!V32 -> 0 | CV32: ='3計画'!AB32 -> 0 | DB32: ='3計画'!AH32 -> 0
A33: 18 | C33: ='3計画'!C33:D33 -> 木 | E33: ='3計画'!E33:G33 -> 00:00:00 | H33: ～ | I33: ='3計画'!I33:K33 -> 00:00:00 | L33: ='3計画'!L33:N33 -> 00:00:00 | O33: ～ | P33: ='3計画'!P33:R33 -> 00:00:00 | S33: 00:00:00 | V33: ='3計画'!V33:AA33 -> 0 | AB33: ='3計画'!AB33:AG33 -> 0 | AH33: ='3計画'!AH33:AO33 -> 0 | AP33: FALSE | BK33: 0 | BW33: ='3計画'!C33 -> 木 | BY33: ='3計画'!E33 -> 00:00:00 | CB33: ～ | CC33: ='3計画'!I33 -> 00:00:00 | CF33: ='3計画'!L33 -> 00:00:00 | CI33: ～ | CJ33: ='3計画'!P33 -> 00:00:00 | CM33: 00:00:00 | CP33: ='3計画'!V33 -> 0 | CV33: ='3計画'!AB33 -> 0 | DB33: ='3計画'!AH33 -> 0
A34: 19 | C34: ='3計画'!C34:D34 -> 金 | E34: ='3計画'!E34:G34 -> 00:00:00 | H34: ～ | I34: ='3計画'!I34:K34 -> 00:00:00 | L34: ='3計画'!L34:N34 -> 00:00:00 | O34: ～ | P34: ='3計画'!P34:R34 -> 00:00:00 | S34: 00:00:00 | V34: ='3計画'!V34:AA34 -> 0 | AB34: ='3計画'!AB34:AG34 -> 0 | AH34: ='3計画'!AH34:AO34 -> 0 | AP34: FALSE | BK34: 0 | BW34: ='3計画'!C34 -> 金 | BY34: ='3計画'!E34 -> 00:00:00 | CB34: ～ | CC34: ='3計画'!I34 -> 00:00:00 | CF34: ='3計画'!L34 -> 00:00:00 | CI34: ～ | CJ34: ='3計画'!P34 -> 00:00:00 | CM34: 00:00:00 | CP34: ='3計画'!V34 -> 0 | CV34: ='3計画'!AB34 -> 0 | DB34: ='3計画'!AH34 -> 0
A35: 20 | C35: ='3計画'!C35:D35 -> 土 | E35: ='3計画'!E35:G35 -> 00:00:00 | H35: ～ | I35: ='3計画'!I35:K35 -> 00:00:00 | L35: ='3計画'!L35:N35 -> 00:00:00 | O35: ～ | P35: ='3計画'!P35:R35 -> 00:00:00 | S35: 00:00:00 | V35: ='3計画'!V35:AA35 -> 0 | AB35: ='3計画'!AB35:AG35 -> 0 | AH35: ='3計画'!AH35:AO35 -> 0 | AP35: FALSE | BK35: 0 | BW35: ='3計画'!C35 -> 土 | BY35: ='3計画'!E35 -> 00:00:00 | CB35: ～ | CC35: ='3計画'!I35 -> 00:00:00 | CF35: ='3計画'!L35 -> 00:00:00 | CI35: ～ | CJ35: ='3計画'!P35 -> 00:00:00 | CM35: 00:00:00 | CP35: ='3計画'!V35 -> 0 | CV35: ='3計画'!AB35 -> 0 | DB35: ='3計画'!AH35 -> 0
A36: 21 | C36: ='3計画'!C36:D36 -> 日 | E36: ='3計画'!E36:G36 -> 00:00:00 | H36: ～ | I36: ='3計画'!I36:K36 -> 00:00:00 | L36: ='3計画'!L36:N36 -> 00:00:00 | O36: ～ | P36: ='3計画'!P36:R36 -> 00:00:00 | S36: 00:00:00 | V36: ='3計画'!V36:AA36 -> 0 | AB36: ='3計画'!AB36:AG36 -> 0 | AH36: ='3計画'!AH36:AO36 -> 0 | AP36: FALSE | BK36: 0 | BW36: ='3計画'!C36 -> 日 | BY36: ='3計画'!E36 -> 00:00:00 | CB36: ～ | CC36: ='3計画'!I36 -> 00:00:00 | CF36: ='3計画'!L36 -> 00:00:00 | CI36: ～ | CJ36: ='3計画'!P36 -> 00:00:00 | CM36: 00:00:00 | CP36: ='3計画'!V36 -> 0 | CV36: ='3計画'!AB36 -> 0 | DB36: ='3計画'!AH36 -> 0
A37: 22 | C37: ='3計画'!C37:D37 -> 月 | E37: ='3計画'!E37:G37 -> 00:00:00 | H37: ～ | I37: ='3計画'!I37:K37 -> 00:00:00 | L37: ='3計画'!L37:N37 -> 00:00:00 | O37: ～ | P37: ='3計画'!P37:R37 -> 00:00:00 | S37: 00:00:00 | V37: ='3計画'!V37:AA37 -> 0 | AB37: ='3計画'!AB37:AG37 -> 0 | AH37: ='3計画'!AH37:AO37 -> 0 | AP37: FALSE | BK37: 0 | BW37: ='3計画'!C37 -> 月 | BY37: ='3計画'!E37 -> 00:00:00 | CB37: ～ | CC37: ='3計画'!I37 -> 00:00:00 | CF37: ='3計画'!L37 -> 00:00:00 | CI37: ～ | CJ37: ='3計画'!P37 -> 00:00:00 | CM37: 00:00:00 | CP37: ='3計画'!V37 -> 0 | CV37: ='3計画'!AB37 -> 0 | DB37: ='3計画'!AH37 -> 0
A38: 23 | C38: ='3計画'!C38:D38 -> 火 | E38: ='3計画'!E38:G38 -> 00:00:00 | H38: ～ | I38: ='3計画'!I38:K38 -> 00:00:00 | L38: ='3計画'!L38:N38 -> 00:00:00 | O38: ～ | P38: ='3計画'!P38:R38 -> 00:00:00 | S38: 00:00:00 | V38: ='3計画'!V38:AA38 -> 0 | AB38: ='3計画'!AB38:AG38 -> 0 | AH38: ='3計画'!AH38:AO38 -> 0 | AP38: FALSE | BK38: 0 | BW38: ='3計画'!C38 -> 火 | BY38: ='3計画'!E38 -> 00:00:00 | CB38: ～ | CC38: ='3計画'!I38 -> 00:00:00 | CF38: ='3計画'!L38 -> 00:00:00 | CI38: ～ | CJ38: ='3計画'!P38 -> 00:00:00 | CM38: 00:00:00 | CP38: ='3計画'!V38 -> 0 | CV38: ='3計画'!AB38 -> 0 | DB38: ='3計画'!AH38 -> 0
A39: 24 | C39: ='3計画'!C39:D39 -> 水 | E39: ='3計画'!E39:G39 -> 00:00:00 | H39: ～ | I39: ='3計画'!I39:K39 -> 00:00:00 | L39: ='3計画'!L39:N39 -> 00:00:00 | O39: ～ | P39: ='3計画'!P39:R39 -> 00:00:00 | S39: 00:00:00 | V39: ='3計画'!V39:AA39 -> 0 | AB39: ='3計画'!AB39:AG39 -> 0 | AH39: ='3計画'!AH39:AO39 -> 0 | AP39: FALSE | BK39: 0 | BW39: ='3計画'!C39 -> 水 | BY39: ='3計画'!E39 -> 00:00:00 | CB39: ～ | CC39: ='3計画'!I39 -> 00:00:00 | CF39: ='3計画'!L39 -> 00:00:00 | CI39: ～ | CJ39: ='3計画'!P39 -> 00:00:00 | CM39: 00:00:00 | CP39: ='3計画'!V39 -> 0 | CV39: ='3計画'!AB39 -> 0 | DB39: ='3計画'!AH39 -> 0
A40: 25 | C40: ='3計画'!C40:D40 -> 木 | E40: ='3計画'!E40:G40 -> 00:00:00 | H40: ～ | I40: ='3計画'!I40:K40 -> 00:00:00 | L40: ='3計画'!L40:N40 -> 00:00:00 | O40: ～ | P40: ='3計画'!P40:R40 -> 00:00:00 | S40: 00:00:00 | V40: ='3計画'!V40:AA40 -> 0 | AB40: ='3計画'!AB40:AG40 -> 0 | AH40: ='3計画'!AH40:AO40 -> 0 | AP40: FALSE | BK40: 0 | BW40: ='3計画'!C40 -> 木 | BY40: ='3計画'!E40 -> 00:00:00 | CB40: ～ | CC40: ='3計画'!I40 -> 00:00:00 | CF40: ='3計画'!L40 -> 00:00:00 | CI40: ～ | CJ40: ='3計画'!P40 -> 00:00:00 | CM40: 00:00:00 | CP40: ='3計画'!V40 -> 0 | CV40: ='3計画'!AB40 -> 0 | DB40: ='3計画'!AH40 -> 0
A41: 26 | C41: ='3計画'!C41:D41 -> 金 | E41: ='3計画'!E41:G41 -> 00:00:00 | H41: ～ | I41: ='3計画'!I41:K41 -> 00:00:00 | L41: ='3計画'!L41:N41 -> 00:00:00 | O41: ～ | P41: ='3計画'!P41:R41 -> 00:00:00 | S41: 00:00:00 | V41: ='3計画'!V41:AA41 -> 0 | AB41: ='3計画'!AB41:AG41 -> 0 | AH41: ='3計画'!AH41:AO41 -> 0 | AP41: FALSE | BK41: 0 | BW41: ='3計画'!C41 -> 金 | BY41: ='3計画'!E41 -> 00:00:00 | CB41: ～ | CC41: ='3計画'!I41 -> 00:00:00 | CF41: ='3計画'!L41 -> 00:00:00 | CI41: ～ | CJ41: ='3計画'!P41 -> 00:00:00 | CM41: 00:00:00 | CP41: ='3計画'!V41 -> 0 | CV41: ='3計画'!AB41 -> 0 | DB41: ='3計画'!AH41 -> 0
A42: 27 | C42: ='3計画'!C42:D42 -> 土 | E42: ='3計画'!E42:G42 -> 00:00:00 | H42: ～ | I42: ='3計画'!I42:K42 -> 00:00:00 | L42: ='3計画'!L42:N42 -> 00:00:00 | O42: ～ | P42: ='3計画'!P42:R42 -> 00:00:00 | S42: 00:00:00 | V42: ='3計画'!V42:AA42 -> 0 | AB42: ='3計画'!AB42:AG42 -> 0 | AH42: ='3計画'!AH42:AO42 -> 0 | AP42: FALSE | BK42: 0 | BW42: ='3計画'!C42 -> 土 | BY42: ='3計画'!E42 -> 00:00:00 | CB42: ～ | CC42: ='3計画'!I42 -> 00:00:00 | CF42: ='3計画'!L42 -> 00:00:00 | CI42: ～ | CJ42: ='3計画'!P42 -> 00:00:00 | CM42: 00:00:00 | CP42: ='3計画'!V42 -> 0 | CV42: ='3計画'!AB42 -> 0 | DB42: ='3計画'!AH42 -> 0
A43: 28 | C43: ='3計画'!C43:D43 -> 日 | E43: ='3計画'!E43:G43 -> 00:00:00 | H43: ～ | I43: ='3計画'!I43:K43 -> 00:00:00 | L43: ='3計画'!L43:N43 -> 00:00:00 | O43: ～ | P43: ='3計画'!P43:R43 -> 00:00:00 | S43: 00:00:00 | V43: ='3計画'!V43:AA43 -> 0 | AB43: ='3計画'!AB43:AG43 -> 0 | AH43: ='3計画'!AH43:AO43 -> 0 | AP43: FALSE | BK43: 0 | BW43: ='3計画'!C43 -> 日 | BY43: ='3計画'!E43 -> 00:00:00 | CB43: ～ | CC43: ='3計画'!I43 -> 00:00:00 | CF43: ='3計画'!L43 -> 00:00:00 | CI43: ～ | CJ43: ='3計画'!P43 -> 00:00:00 | CM43: 00:00:00 | CP43: ='3計画'!V43 -> 0 | CV43: ='3計画'!AB43 -> 0 | DB43: ='3計画'!AH43 -> 0
A44: 29 | C44: ='3計画'!C44:D44 -> 月 | E44: ='3計画'!E44:G44 -> 00:00:00 | H44: ～ | I44: ='3計画'!I44:K44 -> 00:00:00 | L44: ='3計画'!L44:N44 -> 00:00:00 | O44: ～ | P44: ='3計画'!P44:R44 -> 00:00:00 | S44: 00:00:00 | V44: ='3計画'!V44:AA44 -> 0 | AB44: ='3計画'!AB44:AG44 -> 0 | AH44: ='3計画'!AH44:AO44 -> 0 | AP44: FALSE | BK44: 0 | BW44: ='3計画'!C44 -> 月 | BY44: ='3計画'!E44 -> 00:00:00 | CB44: ～ | CC44: ='3計画'!I44 -> 00:00:00 | CF44: ='3計画'!L44 -> 00:00:00 | CI44: ～ | CJ44: ='3計画'!P44 -> 00:00:00 | CM44: 00:00:00 | CP44: ='3計画'!V44 -> 0 | CV44: ='3計画'!AB44 -> 0 | DB44: ='3計画'!AH44 -> 0
